Workbook

Sheet Table List
B1: Stream | C1: Tab title | D1: Table title
C2: 1 Overview | D2: Appendix 1.1. NHCDC 2019-20 to 2021-22 summary, actual, by jurisdiction and stream
D3: Appendix 1.2. NHCDC 2019-20 to 2021-22 direct and indirect expenditure, by stream
C4: 2 NHCDC Adjustments | D4: Appendix 2. NHCDC 2019-20 to 2021-22 WIP and exclude cost bucket, actual, by jurisdiction and stream
B5: Admitted acute | C5: 3 Acute Cost Wghts V11 | D5: Appendix 3. NHCDC 2021-22 admitted acute Cost Weights for AR-DRG Version 11.0
C6: 4 Acute Overview | D6: Appendix 4.1. NHCDC 2019-20 to 2021-22 admitted acute summary, by jurisdiction
D7: Appendix 4.2. NHCDC 2019-20 to 2021-22 admitted acute cost bucket and line item average cost per separation, by jurisdiction
C8: 5 Acute Product | D8: Appendix 5. NHCDC 2019-20 to 2021-22 admitted acute summaries, by jurisdiction
B9: Subacute and non-acute | C9: 6 Subacute ANSNAP Ep | D9: Appendix 6. NHCDC 2021-22 subacute ANSNAP Version 5.0 episodes summary
C10: 7 Subacute ANSNAP Ph | D10: Appendix 7. NHCDC 2021-22 subacute ANSNAP Version 5.0 phases summary
C11: 8 Subacute Overview | D11: Appendix 8.1. NHCDC 2019-20 to 2021-22 subacute and non-acute summary, by jurisdiction
D12: Appendix 8.2. NHCDC 2019-20 to 2021-22 subacute cost bucket average cost per separation, by jurisdiction
D13: Appendix 8.3. NHCDC 2019-20 to 2021-22 subacute line item average cost per separation, by jurisdiction
C14: 9 Subacute Product | D14: Appendix 9. NHCDC 2019-20 to 2021-22 subacute care type summary, by jurisdiction
B15: Emergency department | C15: 10 ED AECC Table | D15: Appendix 10: NHCDC 2021-22 emergency department AECC Version 1.0 summary
C16: 11 ED Overview | D16: Appendix 11.1. NHCDC 2019-20 to 2021-22 emergency department summary, by jurisdiction
D17: Appendix 11.2. NHCDC 2019-20 to 2021-22 emergency department cost bucket and line item average cost per presentation, by jurisdiction
C18: 12 ED by End Status | D18: Appendix 12. NHCDC 2019-20 to 2021-22 emergency department by end status
B19: Non-admitted | C19: 13 NAP Tier 2 Table | D19: Appendix 13.1. NHCDC 2021-22 non-admitted Tier 2 Version 7.0 summary
D20: Appendix 13.2. NHCDC 2019-20 to 2021-22 non-admitted Tier 2 movement
C21: 14 NAP Overview | D21: Appendix 14.1. NHCDC 2019-20 to 2021-22 non-admitted summary, by jurisdiction
D22: Appendix 14.2. NHCDC 2019-20 to 2021-22 non-admitted cost bucket and line item per service event, by jurisdiction
B23: Mental health | C23: 15 MH Admitted Table - Episode | D23: Appendix 15. NHCDC 2021-22 admitted mental health AR-DRG Version 11.0 episodes summary
C24: 16 MH Admitted Table - Phase | D24: Appendix 16. NHCDC 2021-22 admitted mental health AMHCC Version 1.0 phases summary
C25: 17 MH Community Table - Episode | D25: Appendix 17. NHCDC 2021-22 community mental health AMHCC Version 1.0 episodes summary
C26: 18 MH Community Table - Phase | D26: Appendix 18. NHCDC 2021-22 community mental health AMHCC Version 1.0 phases summary
C27: 19 MH Overview | D27: Appendix 19. NHCDC 2019-20 to 2021-22 mental health summaries, by jurisdiction
C28: 20 MH Cost Bucket | D28: Appendix 20. NHCDC 2019-20 to 2021-22 mental health admitted, community and unlinked cost bucket average cost per episode/phase, by jurisdiction
C29: 21 MH Line Item | D29: Appendix 21. NHCDC 2019-20 to 2021-22 mental health admitted, community and unlinked line item average cost per episode/phase, by jurisdiction
B30: Other | C30: 22 Other Stream Product | D30: Appendix 22.1. NHCDC 2019-20 to 2021-22 organ procurement summary, by jurisdiction
D31: Appendix 22.2. NHCDC 2019-20 to 2021-22 organ procurement cost bucket average per separation, by jurisdiction

Sheet 1 Overview
C1: 0 | D1: 1 | E1: 2 | F1: 9 | G1: 10 | H1: 11 | I1: 12 | J1: 13 | K1: 14 | L1: 3 | M1: 4 | N1: 5 | O1: 6 | P1: 7 | Q1: 8 | R1: 18 | S1: 19 | T1: 20 | V1: 0 | W1: 1 | X1: 2 | Y1: 3 | Z1: 4 | AJ1: 15 | AK1: 16 | AL1: 17 | AM1: 18 | AN1: 19 | AO1: 20
C3: Appendix 1.1 NHCDC 2019-20 to 2021-22 summary, actual, by jurisdiction and stream
A4: Jurisdiction | C4: Stream | AT4: 2020-21 to 2021-22 Change (%)
C5: Acute (APC) | F5: Sub-acute (APC) | I5: Sub-acute (PCC) | L5: Emergency (ED) | O5: Non-admitted (NAP) | R5: Admitted mental health (APC MHCE) | U5: Admitted mental health (MHCP) | X5: Community mental health (MHCE) | AA5: Community mental health (MHCP) | AD5: Unlinked mental health (MHCE) | AG5: Unlinked mental health (MHCP) | AJ5: Other (APC TT RS) | AM5: Other (PCC) | AP5: Total | AT5: Acute | AU5: Sub-acute | AW5: Emergency | AX5: Non-admitted | AY5: Mental-Health | BE5: Other | BG5: Total
F6: Episodes | I6: Phases | R6: Episodes | U6: Phases | X6: Episodes | AA6: Phases | AD6: Episodes | AG6: Phases | AJ6: Episodes | AM6: Phases | AU6: Episodes | AV6: Phases | AY6: Admitted | BA6: Community | BC6: Unlinked | BE6: Episodes | BF6: Phases
C7: 2019-20 | D7: 2020-21 | E7: 2021-22 | F7: 2019-20 | G7: 2020-21 | H7: 2021-22 | I7: 2019-20 | J7: 2020-21 | K7: 2021-22 | L7: 2019-20 | M7: 2020-21 | N7: 2021-22 | O7: 2019-20 | P7: 2020-21 | Q7: 2021-22 | R7: 2019-20 | S7: 2020-21 | T7: 2021-22 | U7: 2019-20 | V7: 2020-21 | W7: 2021-22 | X7: 2019-20 | Y7: 2020-21 | Z7: 2021-22 | AA7: 2019-20 | AB7: 2020-21 | AC7: 2021-22 | AD7: 2019-20 | AE7: 2020-21 | AF7: 2021-22 | AG7: 2019-20 | AH7: 2020-21 | AI7: 2021-22 | AJ7: 2019-20 | AK7: 2020-21 | AL7: 2021-22 | AM7: 2019-20 | AN7: 2020-21 | AO7: 2021-22 | AP7: 2019-20 | AQ7: 2020-21 | AR7: 2021-22 | AY7: Episodes | AZ7: Phases | BA7: Episodes | BB7: Phases | BC7: Episodes | BD7: Phases
A8: Hospitals Submitting to NHCDC | B8: NSW | C8: 86 | D8: 86 | E8: 82 | F8: 87 | G8: 87 | H8: 88 | I8: 85 | J8: 81 | K8: 77 | L8: 73 | M8: 70 | N8: 70 | O8: 96 | P8: 91 | Q8: 91 | R8: 4 | S8: 20 | T8: 21 | U8: 44 | V8: 43 | W8: 40 | X8: 0 | Y8: 0 | Z8: 0 | AA8: 46 | AB8: 48 | AC8: 47 | AD8: 0 | AE8: 0 | AF8: 0 | AG8: 81 | AH8: 2 | AI8: 28 | AJ8: 22 | AK8: 23 | AL8: 20 | AM8: 39 | AN8: 4 | AO8: 0 | AP8: 142 | AQ8: 142 | AR8: 139 | AT8: =IFERROR((E8/D8-1)*100,"") -> -4.651162791 | AU8: =IFERROR((H8/G8-1)*100,"") -> 1.149425287 | AV8: =IFERROR((K8/J8-1)*100,"") -> -4.938271605 | AW8: =IFERROR((N8/M8-1)*100,"") -> 0 | AX8: =IFERROR((Q8/P8-1)*100,"") -> 0 | AY8: =IFERROR((T8/S8-1)*100,"") -> 5 | AZ8: =IFERROR((W8/V8-1)*100,"") -> -6.976744186 | BA8: =IFERROR((Z8/Y8-1)*100,"") ->  | BB8: =IFERROR((AC8/AB8-1)*100,"") -> -2.083333333 | BC8: =IFERROR((AF8/AE8-1)*100,"") ->  | BD8: =IFERROR((AI8/AH8-1)*100,"") -> 1300 | BE8: =IFERROR((AL8/AK8-1)*100,"") -> -13.04347826 | BF8: =IFERROR((AO8/AN8-1)*100,"") -> -100 | BG8: =IFERROR((AR8/AQ8-1)*100,"") -> -2.112676056
B9: Vic | C9: 72 | D9: 69 | E9: 75 | F9: 59 | G9: 61 | H9: 59 | I9: 33 | J9: 34 | K9: 38 | L9: 38 | M9: 38 | N9: 39 | O9: 58 | P9: 58 | Q9: 67 | R9: 32 | S9: 29 | T9: 30 | U9: 21 | V9: 29 | W9: 29 | X9: 20 | Y9: 16 | Z9: 24 | AA9: 28 | AB9: 29 | AC9: 30 | AD9: 20 | AE9: 0 | AF9: 0 | AG9: 29 | AH9: 0 | AI9: 0 | AJ9: 18 | AK9: 18 | AL9: 21 | AM9: 0 | AN9: 0 | AO9: 0 | AP9: 83 | AQ9: 80 | AR9: 89 | AT9: 8.695652174 | AU9: -3.278688525 | AV9: 11.76470588 | AW9: 2.631578947 | AX9: 15.51724138 | AY9: 3.448275862 | AZ9: 0 | BA9: 50 | BB9: 3.448275862 | BE9: 16.66666667 | BG9: =IFERROR((AR9/AQ9-1)*100,"") -> 11.25
B10: Qld | C10: 114 | D10: 137 | E10: 138 | F10: 99 | G10: 106 | H10: 111 | I10: 57 | J10: 95 | K10: 92 | L10: 108 | M10: 108 | N10: 101 | O10: 135 | P10: 193 | Q10: 200 | R10: 50 | S10: 53 | T10: 52 | U10: 23 | V10: 35 | W10: 29 | X10: 82 | Y10: 91 | Z10: 91 | AA10: 97 | AB10: 120 | AC10: 130 | AD10: 14 | AE10: 82 | AF10: 8 | AG10: 39 | AH10: 78 | AI10: 35 | AJ10: 87 | AK10: 79 | AL10: 71 | AM10: 0 | AN10: 20 | AO10: 0 | AP10: 240 | AQ10: 367 | AR10: 349 | AT10: 0.7299270073 | AU10: 4.716981132 | AV10: -3.157894737 | AW10: -6.481481481 | AX10: 3.626943005 | AY10: -1.886792453 | AZ10: -17.14285714 | BA10: 0 | BB10: 8.333333333 | BC10: -90.24390244 | BD10: -55.12820513 | BE10: -10.12658228 | BF10: -100 | BG10: -4.904632153
B11: SA | C11: 17 | D11: 18 | E11: 19 | F11: 17 | G11: 18 | H11: 19 | I11: 5 | J11: 0 | K11: 3 | L11: 17 | M11: 17 | N11: 18 | O11: 18 | P11: 19 | Q11: 20 | R11: 12 | S11: 13 | T11: 2 | U11: 8 | V11: 0 | W11: 8 | X11: 0 | Y11: 0 | Z11: 0 | AA11: 0 | AB11: 0 | AC11: 0 | AD11: 0 | AE11: 2 | AF11: 0 | AG11: 4 | AH11: 0 | AI11: 2 | AJ11: 5 | AK11: 13 | AL11: 19 | AM11: 0 | AN11: 0 | AO11: 0 | AP11: 19 | AQ11: 22 | AR11: 21 | AT11: 5.555555556 | AU11: 5.555555556 | AW11: 5.882352941 | AX11: 5.263157895 | AY11: -84.61538462 | BC11: -100 | BE11: 46.15384615 | BG11: -4.545454545
B12: WA | C12: 33 | D12: 33 | E12: 33 | F12: 33 | G12: 31 | H12: 33 | I12: 0 | J12: 0 | K12: 0 | L12: 28 | M12: 28 | N12: 28 | O12: 32 | P12: 33 | Q12: 33 | R12: 17 | S12: 17 | T12: 18 | U12: 0 | V12: 0 | W12: 0 | X12: 0 | Y12: 0 | Z12: 0 | AA12: 0 | AB12: 0 | AC12: 0 | AD12: 0 | AE12: 0 | AF12: 0 | AG12: 0 | AH12: 0 | AI12: 0 | AJ12: 7 | AK12: 15 | AL12: 15 | AM12: 0 | AN12: 0 | AO12: 0 | AP12: 36 | AQ12: 36 | AR12: 36 | AT12: 0 | AU12: 6.451612903 | AW12: 0 | AX12: 0 | AY12: 5.882352941 | BE12: 0 | BG12: 0
B13: Tas | C13: 23 | D13: 23 | E13: 23 | F13: 20 | G13: 21 | H13: 21 | I13: 1 | J13: 1 | K13: 1 | L13: 4 | M13: 4 | N13: 4 | O13: 14 | P13: 12 | Q13: 11 | R13: 5 | S13: 3 | T13: 4 | U13: 0 | V13: 0 | W13: 0 | X13: 1 | Y13: 1 | Z13: 1 | AA13: 0 | AB13: 1 | AC13: 1 | AD13: 3 | AE13: 1 | AF13: 1 | AG13: 0 | AH13: 1 | AI13: 1 | AJ13: 14 | AK13: 9 | AL13: 9 | AM13: 19 | AN13: 18 | AO13: 21 | AP13: 24 | AQ13: 24 | AR13: 24 | AT13: 0 | AU13: 0 | AV13: 0 | AW13: 0 | AX13: -8.333333333 | AY13: 33.33333333 | BA13: 0 | BB13: 0 | BC13: 0 | BD13: 0 | BE13: 0 | BF13: 16.66666667 | BG13: 0
B14: NT | C14: 6 | D14: 6 | E14: 6 | F14: 6 | G14: 6 | H14: 6 | I14: 3 | J14: 3 | K14: 3 | L14: 6 | M14: 6 | N14: 6 | O14: 6 | P14: 6 | Q14: 6 | R14: 3 | S14: 2 | T14: 3 | U14: 0 | V14: 0 | W14: 0 | X14: 0 | Y14: 0 | Z14: 0 | AA14: 0 | AB14: 0 | AC14: 0 | AD14: 0 | AE14: 0 | AF14: 0 | AG14: 0 | AH14: 0 | AI14: 0 | AJ14: 6 | AK14: 6 | AL14: 6 | AM14: 1 | AN14: 3 | AO14: 4 | AP14: 6 | AQ14: 6 | AR14: 6 | AT14: 0 | AU14: 0 | AV14: 0 | AW14: 0 | AX14: 0 | AY14: 50 | BE14: 0 | BF14: 33.33333333 | BG14: 0
B15: ACT | C15: 3 | D15: 3 | E15: 3 | F15: 3 | G15: 3 | H15: 3 | I15: 0 | J15: 0 | K15: 0 | L15: 2 | M15: 2 | N15: 2 | O15: 3 | P15: 3 | Q15: 3 | R15: 3 | S15: 3 | T15: 3 | U15: 0 | V15: 0 | W15: 0 | X15: 0 | Y15: 1 | Z15: 0 | AA15: 0 | AB15: 0 | AC15: 0 | AD15: 0 | AE15: 0 | AF15: 0 | AG15: 0 | AH15: 0 | AI15: 0 | AJ15: 2 | AK15: 3 | AL15: 1 | AM15: 0 | AN15: 0 | AO15: 0 | AP15: 3 | AQ15: 3 | AR15: 3 | AT15: 0 | AU15: 0 | AW15: 0 | AX15: 0 | AY15: 0 | BA15: -100 | BE15: -66.66666667 | BG15: 0
B16: National | C16: 354 | D16: 375 | E16: 379 | F16: 324 | G16: 333 | H16: 340 | I16: 184 | J16: 214 | K16: 214 | L16: 276 | M16: 273 | N16: 268 | O16: 362 | P16: 415 | Q16: 431 | R16: 126 | S16: 140 | T16: 133 | U16: 96 | V16: 107 | W16: 106 | X16: 103 | Y16: 109 | Z16: 116 | AA16: 171 | AB16: 198 | AC16: 208 | AD16: 37 | AE16: 85 | AF16: 9 | AG16: 153 | AH16: 81 | AI16: 66 | AJ16: 161 | AK16: 166 | AL16: 162 | AM16: 59 | AN16: 45 | AO16: 25 | AP16: 553 | AQ16: 680 | AR16: 667 | AT16: 1.066666667 | AU16: 2.102102102 | AV16: 0 | AW16: -1.831501832 | AX16: 3.855421687 | AY16: -5 | AZ16: -0.9345794393 | BA16: 6.422018349 | BB16: 5.050505051 | BC16: -89.41176471 | BD16: -18.51851852 | BE16: -2.409638554 | BF16: -44.44444444 | BG16: -1.911764706
A17: Hospitals with Linked Records | B17: NSW | C17: 86 | D17: 86 | E17: 82 | F17: 87 | G17: 87 | H17: 88 | I17: 85 | J17: 81 | K17: 77 | L17: 73 | M17: 70 | N17: 70 | O17: 96 | P17: 91 | Q17: 91 | R17: 4 | S17: 20 | T17: 21 | U17: 44 | V17: 43 | W17: 40 | X17: 0 | Y17: 0 | Z17: 0 | AA17: 46 | AB17: 48 | AC17: 47 | AD17: 0 | AE17: 0 | AF17: 0 | AG17: 0 | AH17: 0 | AI17: 0 | AJ17: 22 | AK17: 22 | AL17: 20 | AM17: 0 | AN17: 0 | AO17: 0 | AP17: 142 | AQ17: 142 | AR17: 139 | AT17: -4.651162791 | AU17: 1.149425287 | AV17: -4.938271605 | AW17: 0 | AX17: 0 | AY17: 5 | AZ17: -6.976744186 | BB17: -2.083333333 | BE17: -9.090909091 | BG17: -2.112676056
B18: Vic | C18: 72 | D18: 69 | E18: 75 | F18: 59 | G18: 61 | H18: 59 | I18: 33 | J18: 34 | K18: 38 | L18: 38 | M18: 38 | N18: 39 | O18: 57 | P18: 57 | Q18: 63 | R18: 32 | S18: 29 | T18: 30 | U18: 21 | V18: 29 | W18: 29 | X18: 20 | Y18: 16 | Z18: 24 | AA18: 28 | AB18: 29 | AC18: 30 | AD18: 20 | AE18: 0 | AF18: 0 | AG18: 23 | AH18: 0 | AI18: 0 | AJ18: 17 | AK18: 18 | AL18: 21 | AM18: 0 | AN18: 0 | AO18: 0 | AP18: 83 | AQ18: 80 | AR18: 89 | AT18: 8.695652174 | AU18: -3.278688525 | AV18: 11.76470588 | AW18: 2.631578947 | AX18: 10.52631579 | AY18: 3.448275862 | AZ18: 0 | BA18: 50 | BB18: 3.448275862 | BE18: 16.66666667 | BG18: 11.25
B19: Qld | C19: 114 | D19: 137 | E19: 138 | F19: 99 | G19: 106 | H19: 111 | I19: 57 | J19: 95 | K19: 92 | L19: 108 | M19: 105 | N19: 101 | O19: 135 | P19: 193 | Q19: 200 | R19: 50 | S19: 53 | T19: 52 | U19: 23 | V19: 35 | W19: 29 | X19: 82 | Y19: 91 | Z19: 91 | AA19: 97 | AB19: 120 | AC19: 130 | AD19: 13 | AE19: 18 | AF19: 0 | AG19: 13 | AH19: 8 | AI19: 0 | AJ19: 87 | AK19: 79 | AL19: 71 | AM19: 0 | AN19: 0 | AO19: 0 | AP19: 239 | AQ19: 338 | AR19: 349 | AT19: 0.7299270073 | AU19: 4.716981132 | AV19: -3.157894737 | AW19: -3.80952381 | AX19: 3.626943005 | AY19: -1.886792453 | AZ19: -17.14285714 | BA19: 0 | BB19: 8.333333333 | BC19: -100 | BD19: -100 | BE19: -10.12658228 | BG19: 3.25443787
B20: SA | C20: 17 | D20: 18 | E20: 19 | F20: 17 | G20: 18 | H20: 19 | I20: 5 | J20: 0 | K20: 3 | L20: 17 | M20: 17 | N20: 18 | O20: 18 | P20: 19 | Q20: 20 | R20: 12 | S20: 13 | T20: 2 | U20: 8 | V20: 0 | W20: 8 | X20: 0 | Y20: 0 | Z20: 0 | AA20: 0 | AB20: 0 | AC20: 0 | AD20: 0 | AE20: 0 | AF20: 0 | AG20: 0 | AH20: 0 | AI20: 0 | AJ20: 5 | AK20: 5 | AL20: 4 | AM20: 0 | AN20: 0 | AO20: 0 | AP20: 19 | AQ20: 20 | AR20: 21 | AT20: 5.555555556 | AU20: 5.555555556 | AW20: 5.882352941 | AX20: 5.263157895 | AY20: -84.61538462 | BE20: -20 | BG20: 5
B21: WA | C21: 33 | D21: 33 | E21: 33 | F21: 33 | G21: 31 | H21: 33 | I21: 0 | J21: 0 | K21: 0 | L21: 21 | M21: 21 | N21: 21 | O21: 32 | P21: 33 | Q21: 33 | R21: 17 | S21: 17 | T21: 18 | U21: 0 | V21: 0 | W21: 0 | X21: 0 | Y21: 0 | Z21: 0 | AA21: 0 | AB21: 0 | AC21: 0 | AD21: 0 | AE21: 0 | AF21: 0 | AG21: 0 | AH21: 0 | AI21: 0 | AJ21: 5 | AK21: 3 | AL21: 6 | AM21: 0 | AN21: 0 | AO21: 0 | AP21: 36 | AQ21: 36 | AR21: 36 | AT21: 0 | AU21: 6.451612903 | AW21: 0 | AX21: 0 | AY21: 5.882352941 | BE21: 100 | BG21: 0
B22: Tas | C22: 23 | D22: 23 | E22: 23 | F22: 20 | G22: 21 | H22: 21 | I22: 1 | J22: 1 | K22: 1 | L22: 4 | M22: 4 | N22: 4 | O22: 5 | P22: 5 | Q22: 5 | R22: 5 | S22: 3 | T22: 4 | U22: 0 | V22: 0 | W22: 0 | X22: 1 | Y22: 1 | Z22: 1 | AA22: 0 | AB22: 1 | AC22: 1 | AD22: 0 | AE22: 0 | AF22: 0 | AG22: 0 | AH22: 1 | AI22: 1 | AJ22: 11 | AK22: 9 | AL22: 9 | AM22: 0 | AN22: 0 | AO22: 0 | AP22: 24 | AQ22: 24 | AR22: 24 | AT22: 0 | AU22: 0 | AV22: 0 | AW22: 0 | AX22: 0 | AY22: 33.33333333 | BA22: 0 | BB22: 0 | BD22: 0 | BE22: 0 | BG22: 0
B23: NT | C23: 6 | D23: 6 | E23: 6 | F23: 6 | G23: 6 | H23: 6 | I23: 3 | J23: 3 | K23: 3 | L23: 6 | M23: 6 | N23: 6 | O23: 6 | P23: 6 | Q23: 6 | R23: 3 | S23: 2 | T23: 3 | U23: 0 | V23: 0 | W23: 0 | X23: 0 | Y23: 0 | Z23: 0 | AA23: 0 | AB23: 0 | AC23: 0 | AD23: 0 | AE23: 0 | AF23: 0 | AG23: 0 | AH23: 0 | AI23: 0 | AJ23: 1 | AK23: 1 | AL23: 1 | AM23: 0 | AN23: 0 | AO23: 0 | AP23: 6 | AQ23: 6 | AR23: 6 | AT23: 0 | AU23: 0 | AV23: 0 | AW23: 0 | AX23: 0 | AY23: 50 | BE23: 0 | BG23: 0
B24: ACT | C24: 3 | D24: 3 | E24: 3 | F24: 3 | G24: 3 | H24: 3 | I24: 0 | J24: 0 | K24: 0 | L24: 2 | M24: 2 | N24: 2 | O24: 3 | P24: 3 | Q24: 3 | R24: 3 | S24: 3 | T24: 3 | U24: 0 | V24: 0 | W24: 0 | X24: 0 | Y24: 1 | Z24: 0 | AA24: 0 | AB24: 0 | AC24: 0 | AD24: 0 | AE24: 0 | AF24: 0 | AG24: 0 | AH24: 0 | AI24: 0 | AJ24: 0 | AK24: 2 | AL24: 1 | AM24: 0 | AN24: 0 | AO24: 0 | AP24: 3 | AQ24: 3 | AR24: 3 | AT24: 0 | AU24: 0 | AW24: 0 | AX24: 0 | AY24: 0 | BA24: -100 | BE24: -50 | BG24: 0
B25: National | C25: 354 | D25: 375 | E25: 379 | F25: 324 | G25: 333 | H25: 340 | I25: 184 | J25: 214 | K25: 214 | L25: 269 | M25: 263 | N25: 261 | O25: 352 | P25: 407 | Q25: 421 | R25: 126 | S25: 140 | T25: 133 | U25: 96 | V25: 107 | W25: 106 | X25: 103 | Y25: 109 | Z25: 116 | AA25: 171 | AB25: 198 | AC25: 208 | AD25: 33 | AE25: 18 | AF25: 0 | AG25: 36 | AH25: 9 | AI25: 1 | AJ25: 148 | AK25: 139 | AL25: 133 | AM25: 0 | AN25: 0 | AO25: 0 | AP25: 552 | AQ25: 649 | AR25: 667 | AT25: 1.066666667 | AU25: 2.102102102 | AV25: 0 | AW25: -0.7604562738 | AX25: 3.43980344 | AY25: -5 | AZ25: -0.9345794393 | BA25: 6.422018349 | BB25: 5.050505051 | BC25: -100 | BD25: -88.88888889 | BE25: -4.316546763 | BG25: 2.773497689
A26: NHCDC Records | B26: NSW | C26: 1598193 | D26: 1627515 | E26: 1489598 | F26: 46946 | G26: 45016 | H26: 35623 | I26: 32574 | J26: 30691 | K26: 28082 | L26: 2571745 | M26: 2520197 | N26: 2463075 | O26: 7717128 | P26: 10363280 | Q26: 9923216 | R26: 15 | S26: 527 | T26: 94 | U26: 37523 | V26: 36387 | W26: 32181 | X26: 0 | Y26: 0 | Z26: 0 | AA26: 187015 | AB26: 200186 | AC26: 192668 | AD26: 0 | AE26: 0 | AF26: 0 | AG26: 2167 | AH26: 6 | AI26: 298 | AJ26: 94 | AK26: 103 | AL26: 69 | AM26: 209 | AN26: 10 | AO26: 0 | AP26: 12193609 | AQ26: 14823918 | AR26: 14164904 | AT26: -8.474084724 | AU26: -20.86591434 | AV26: -8.500863445 | AW26: -2.266568844 | AX26: -4.246377595 | AY26: -82.16318786 | AZ26: -11.5590733 | BB26: -3.755507378 | BD26: 4866.666667 | BE26: -33.00970874 | BF26: -100 | BG26: -4.445612827
B27: Vic | C27: 1671680 | D27: 1659307 | E27: 1682451 | F27: 36660 | G27: 30786 | H27: 30342 | I27: 15492 | J27: 14969 | K27: 15741 | L27: 1916990 | M27: 1704061 | N27: 1817818 | O27: 4872486 | P27: 5038904 | Q27: 5423425 | R27: 8304 | S27: 423 | T27: 448 | U27: 17993 | V27: 26470 | W27: 25507 | X27: 234517 | Y27: 205750 | Z27: 205348 | AA27: 131828 | AB27: 119841 | AC27: 223996 | AD27: 987 | AE27: 0 | AF27: 0 | AG27: 5847 | AH27: 0 | AI27: 0 | AJ27: 141 | AK27: 120 | AL27: 111 | AM27: 0 | AN27: 0 | AO27: 0 | AP27: 8912925 | AQ27: 8800631 | AR27: 9425187 | AT27: 1.394799154 | AU27: -1.442213993 | AV27: 5.157325139 | AW27: 6.675641306 | AX27: 7.63104437 | AY27: 5.910165485 | AZ27: -3.638080846 | BA27: -0.1953827461 | BB27: 86.9109904 | BE27: -7.5 | BG27: 7.096718406
B28: Qld | C28: 1509216 | D28: 1626382 | E28: 1622556 | F28: 37240 | G28: 39850 | H28: 52240 | I28: 6787 | J28: 9902 | K28: 15871 | L28: 1947567 | M28: 2301101 | N28: 2163308 | O28: 6074761 | P28: 6774890 | Q28: 8558608 | R28: 10813 | S28: 17667 | T28: 7991 | U28: 10241 | V28: 6562 | W28: 15763 | X28: 8860 | Y28: 9266 | Z28: 6681 | AA28: 126405 | AB28: 82904 | AC28: 135181 | AD28: 263 | AE28: 1844 | AF28: 14 | AG28: 4169 | AH28: 7321 | AI28: 1207 | AJ28: 17118 | AK28: 10981 | AL28: 11480 | AM28: 0 | AN28: 139 | AO28: 0 | AP28: 9753440 | AQ28: 10888809 | AR28: 12590900 | AT28: -0.2352460861 | AU28: 31.09159348 | AV28: 60.28075136 | AW28: -5.988133507 | AX28: 26.32836843 | AY28: -54.76877795 | AZ28: 140.2163974 | BA28: -27.89769048 | BB28: 63.05727106 | BC28: -99.24078091 | BD28: -83.51318126 | BE28: 4.544212731 | BF28: -100 | BG28: 15.63156264
B29: SA | C29: 387506 | D29: 404836 | E29: 409865 | F29: 10712 | G29: 11840 | H29: 13363 | I29: 3597 | J29: 0 | K29: 2918 | L29: 530195 | M29: 597695 | N29: 597497 | O29: 1699229 | P29: 2086861 | Q29: 3608829 | R29: 6260 | S29: 6344 | T29: 5 | U29: 7271 | V29: 0 | W29: 6484 | X29: 0 | Y29: 0 | Z29: 0 | AA29: 0 | AB29: 0 | AC29: 0 | AD29: 0 | AE29: 301567 | AF29: 0 | AG29: 20 | AH29: 0 | AI29: 549 | AJ29: 39 | AK29: 14004 | AL29: 2182 | AM29: 0 | AN29: 0 | AO29: 0 | AP29: 2644829 | AQ29: 3423147 | AR29: 4641692 | AT29: 1.242231422 | AU29: 12.86317568 | AW29: -0.03312726391 | AX29: 72.93097144 | AY29: -99.92118537 | BC29: -100 | BE29: -84.4187375 | BG29: 35.59721508
B30: WA | C30: 564900 | D30: 609839 | E30: 588309 | F30: 12151 | G30: 12396 | H30: 11914 | I30: 0 | J30: 0 | K30: 0 | L30: 747687 | M30: 804175 | N30: 808784 | O30: 2255748 | P30: 2734270 | Q30: 3267124 | R30: 12959 | S30: 12839 | T30: 12458 | U30: 0 | V30: 0 | W30: 0 | X30: 0 | Y30: 0 | Z30: 0 | AA30: 0 | AB30: 0 | AC30: 0 | AD30: 0 | AE30: 0 | AF30: 0 | AG30: 0 | AH30: 0 | AI30: 0 | AJ30: 53 | AK30: 96 | AL30: 1574 | AM30: 0 | AN30: 0 | AO30: 0 | AP30: 3593498 | AQ30: 4173615 | AR30: 4690163 | AT30: -3.530440001 | AU30: -3.888351081 | AW30: 0.5731339572 | AX30: 19.48798034 | AY30: -2.967520835 | BE30: 1539.583333 | BG30: 12.37651293
B31: Tas | C31: 123544 | D31: 132792 | E31: 150054 | F31: 2671 | G31: 2587 | H31: 2593 | I31: 730 | J31: 626 | K31: 713 | L31: 154249 | M31: 170848 | N31: 173894 | O31: 564802 | P31: 705105 | Q31: 866647 | R31: 3281 | S31: 3297 | T31: 3133 | U31: 0 | V31: 0 | W31: 0 | X31: 8072 | Y31: 6483 | Z31: 7003 | AA31: 0 | AB31: 2884 | AC31: 3983 | AD31: 24 | AE31: 505 | AF31: 455 | AG31: 0 | AH31: 42 | AI31: 22 | AJ31: 1890 | AK31: 1740 | AL31: 1891 | AM31: 528 | AN31: 607 | AO31: 668 | AP31: 859791 | AQ31: 1027516 | AR31: 1211056 | AT31: 12.99927706 | AU31: 0.2319288751 | AV31: 13.89776358 | AW31: 1.782871324 | AX31: 22.91034669 | AY31: -4.974218987 | BA31: 8.020977942 | BB31: 38.10679612 | BC31: -9.900990099 | BD31: -47.61904762 | BE31: 8.67816092 | BF31: 10.04942339 | BG31: 17.86249557
B32: NT | C32: 178875 | D32: 179773 | E32: 169314 | F32: 863 | G32: 765 | H32: 900 | I32: 1048 | J32: 1257 | K32: 1152 | L32: 164784 | M32: 177681 | N32: 171415 | O32: 311963 | P32: 357919 | Q32: 306681 | R32: 1346 | S32: 1377 | T32: 1332 | U32: 0 | V32: 0 | W32: 0 | X32: 0 | Y32: 0 | Z32: 0 | AA32: 0 | AB32: 0 | AC32: 0 | AD32: 0 | AE32: 0 | AF32: 0 | AG32: 0 | AH32: 0 | AI32: 0 | AJ32: 17 | AK32: 831 | AL32: 12 | AM32: 3 | AN32: 12 | AO32: 36 | AP32: 658899 | AQ32: 719615 | AR32: 650842 | AT32: -5.817892565 | AU32: 17.64705882 | AV32: -8.353221957 | AW32: -3.526544763 | AX32: -14.31552949 | AY32: -3.267973856 | BE32: -98.55595668 | BF32: 200 | BG32: -9.556915851
B33: ACT | C33: 107934 | D33: 119815 | E33: 112495 | F33: 5143 | G33: 5247 | H33: 4731 | I33: 0 | J33: 0 | K33: 0 | L33: 139759 | M33: 153456 | N33: 143351 | O33: 822421 | P33: 972593 | Q33: 1687208 | R33: 2423 | S33: 2622 | T33: 2457 | U33: 0 | V33: 0 | W33: 0 | X33: 0 | Y33: 6857 | Z33: 0 | AA33: 0 | AB33: 0 | AC33: 0 | AD33: 0 | AE33: 0 | AF33: 0 | AG33: 0 | AH33: 0 | AI33: 0 | AJ33: 15 | AK33: 259 | AL33: 8 | AM33: 0 | AN33: 0 | AO33: 0 | AP33: 1077695 | AQ33: 1260849 | AR33: 1950250 | AT33: -6.109418687 | AU33: -9.834190966 | AW33: -6.584949432 | AX33: 73.47523579 | AY33: -6.292906178 | BA33: -100 | BE33: -96.91119691 | BG33: =IFERROR((AR33/AQ33-1)*100,"") -> 54.67752284
B34: National | C34: 6141848 | D34: 6360259 | E34: 6224642 | F34: 152386 | G34: 148487 | H34: 151706 | I34: 60228 | J34: 57445 | K34: 64477 | L34: 8172976 | M34: 8429214 | N34: 8339142 | O34: 24318538 | P34: 29033822 | Q34: 33641738 | R34: 45401 | S34: 45096 | T34: 27918 | U34: 73028 | V34: 69419 | W34: 79935 | X34: 251449 | Y34: 228356 | Z34: 219032 | AA34: 445248 | AB34: 405815 | AC34: 555828 | AD34: 1274 | AE34: 303916 | AF34: 469 | AG34: 12203 | AH34: 7369 | AI34: 2076 | AJ34: 19367 | AK34: 28134 | AL34: 17327 | AM34: 740 | AN34: 768 | AO34: 704 | AP34: 39694686 | AQ34: 45118100 | AR34: 49324994 | AT34: -2.132255935 | AU34: 2.167866547 | AV34: 12.24127426 | AW34: -1.068569383 | AX34: 15.87085572 | AY34: -38.09207025 | AZ34: 15.14859044 | BA34: -4.08309832 | BB34: 36.96585883 | BC34: -99.84568104 | BD34: -71.82792781 | BE34: -38.41259686 | BF34: -8.333333333 | BG34: 9.324182534
A35: NHCDC Records Linked to Activity Records | B35: NSW | C35: 1598193 | D35: 1627515 | E35: 1489598 | F35: 46946 | G35: 45016 | H35: 35623 | I35: 32574 | J35: 30691 | K35: 28082 | L35: 2571745 | M35: 2520197 | N35: 2463075 | O35: 7703947 | P35: 10363280 | Q35: 9923216 | R35: 15 | S35: 527 | T35: 94 | U35: 37523 | V35: 36387 | W35: 32181 | X35: 0 | Y35: 0 | Z35: 0 | AA35: 187015 | AB35: 200186 | AC35: 192668 | AE35: 0 | AF35: 0 | AG35: 0 | AH35: 0 | AI35: 0 | AJ35: 94 | AK35: 94 | AL35: 69 | AM35: 0 | AN35: 0 | AO35: 0 | AP35: 12178052 | AQ35: 14823893 | AR35: 14164606 | AT35: -8.474084724 | AU35: -20.86591434 | AV35: -8.500863445 | AW35: -2.266568844 | AX35: -4.246377595 | AY35: -82.16318786 | AZ35: -11.5590733 | BB35: -3.755507378 | BE35: -26.59574468 | BG35: -4.447461945
B36: Vic | C36: 1671680 | D36: 1659307 | E36: 1682451 | F36: 36660 | G36: 30786 | H36: 30342 | I36: 15492 | J36: 14969 | K36: 15741 | L36: 1724209 | M36: 1704061 | N36: 1817818 | O36: 4125667 | P36: 4393960 | Q36: 4726182 | R36: 8304 | S36: 423 | T36: 448 | U36: 17993 | V36: 26470 | W36: 25507 | X36: 234517 | Y36: 205750 | Z36: 205348 | AA36: 131828 | AB36: 119841 | AC36: 223996 | AD36: 987 | AE36: 0 | AF36: 0 | AG36: 1526 | AH36: 0 | AI36: 0 | AJ36: 140 | AK36: 120 | AL36: 111 | AM36: 0 | AN36: 0 | AO36: 0 | AP36: 7969003 | AQ36: 8155687 | AR36: 8727944 | AT36: 1.394799154 | AU36: -1.442213993 | AV36: 5.157325139 | AW36: 6.675641306 | AX36: 7.560879025 | AY36: 5.910165485 | AZ36: -3.638080846 | BA36: -0.1953827461 | BB36: 86.9109904 | BE36: -7.5 | BG36: 7.016662116
B37: Qld | C37: 1509216 | D37: 1626382 | E37: 1622556 | F37: 37240 | G37: 39850 | H37: 52240 | I37: 6787 | J37: 9902 | K37: 15871 | L37: 1947567 | M37: 2297035 | N37: 2163308 | O37: 6074761 | P37: 6774890 | Q37: 8554330 | R37: 10813 | S37: 17667 | T37: 7991 | U37: 10241 | V37: 6562 | W37: 15763 | X37: 8860 | Y37: 9266 | Z37: 6681 | AA37: 126405 | AB37: 82904 | AC37: 135181 | AD37: 253 | AE37: 1294 | AF37: 0 | AG37: 1153 | AH37: 553 | AI37: 0 | AJ37: 17118 | AK37: 10981 | AL37: 11480 | AM37: 0 | AN37: 0 | AO37: 0 | AP37: 9750414 | AQ37: 10877286 | AR37: 12585401 | AT37: -0.2352460861 | AU37: 31.09159348 | AV37: 60.28075136 | AW37: -5.821722351 | AX37: 26.26522349 | AY37: -54.76877795 | AZ37: 140.2163974 | BA37: -27.89769048 | BB37: 63.05727106 | BC37: -100 | BD37: -100 | BE37: 4.544212731 | BG37: 15.70350361
B38: SA | C38: 387506 | D38: 404836 | E38: 409865 | F38: 10712 | G38: 11840 | H38: 13363 | I38: 3597 | J38: 0 | K38: 2918 | L38: 530195 | M38: 576703 | N38: 572455 | O38: 1699229 | P38: 1960074 | Q38: 3534331 | R38: 6260 | S38: 6344 | T38: 5 | U38: 7271 | V38: 0 | W38: 6484 | X38: 0 | Y38: 0 | Z38: 0 | AA38: 0 | AB38: 0 | AC38: 0 | AE38: 0 | AF38: 0 | AG38: 0 | AH38: 0 | AI38: 0 | AJ38: 39 | AK38: 47 | AL38: 32 | AM38: 0 | AN38: 0 | AO38: 0 | AP38: 2644809 | AQ38: 2959844 | AR38: 4539453 | AT38: 1.242231422 | AU38: 12.86317568 | AW38: -0.7366009887 | AX38: 80.31620235 | AY38: -99.92118537 | BE38: -31.91489362 | BG38: 53.36798156
B39: WA | C39: 564900 | D39: 609839 | E39: 588309 | F39: 12151 | G39: 12396 | H39: 11914 | I39: 0 | J39: 0 | K39: 0 | L39: 709208 | M39: 763051 | N39: 765477 | O39: 2222967 | P39: 2683334 | Q39: 2829078 | R39: 12959 | S39: 12839 | T39: 12458 | U39: 0 | V39: 0 | W39: 0 | X39: 0 | Y39: 0 | Z39: 0 | AA39: 0 | AB39: 0 | AC39: 0 | AE39: 0 | AF39: 0 | AG39: 0 | AH39: 0 | AI39: 0 | AJ39: 43 | AK39: 41 | AL39: 46 | AM39: 0 | AN39: 0 | AO39: 0 | AP39: 3522228 | AQ39: 4081500 | AR39: 4207282 | AT39: -3.530440001 | AU39: -3.888351081 | AW39: 0.3179341879 | AX39: 5.431452067 | AY39: -2.967520835 | BE39: 12.19512195 | BG39: 3.081759157
B40: Tas | C40: 123544 | D40: 132792 | E40: 150054 | F40: 2671 | G40: 2587 | H40: 2593 | I40: 730 | J40: 626 | K40: 713 | L40: 153735 | M40: 170287 | N40: 173276 | O40: 556323 | P40: 699461 | Q40: 835257 | R40: 3281 | S40: 3297 | T40: 3133 | U40: 0 | V40: 0 | W40: 0 | X40: 8072 | Y40: 6483 | Z40: 7003 | AA40: 0 | AB40: 2884 | AC40: 3983 | AD40: 0 | AE40: 0 | AF40: 0 | AG40: 0 | AH40: 42 | AI40: 16 | AJ40: 1536 | AK40: 1432 | AL40: 1600 | AM40: 0 | AN40: 0 | AO40: 0 | AP40: 849892 | AQ40: 1019891 | AR40: 1177628 | AT40: =IFERROR((E40/D40-1)*100,"") -> 12.99927706 | AU40: =IFERROR((H40/G40-1)*100,"") -> 0.2319288751 | AV40: =IFERROR((K40/J40-1)*100,"") -> 13.89776358 | AW40: =IFERROR((N40/M40-1)*100,"") -> 1.755271982 | AX40: =IFERROR((Q40/P40-1)*100,"") -> 19.41437764 | AY40: =IFERROR((T40/S40-1)*100,"") -> -4.974218987 | AZ40: =IFERROR((W40/V40-1)*100,"") ->  | BA40: =IFERROR((Z40/Y40-1)*100,"") -> 8.020977942 | BB40: =IFERROR((AC40/AB40-1)*100,"") -> 38.10679612 | BC40: =IFERROR((AF40/AE40-1)*100,"") ->  | BD40: =IFERROR((AI40/AH40-1)*100,"") -> -61.9047619 | BE40: =IFERROR((AL40/AK40-1)*100,"") -> 11.73184358 | BF40: =IFERROR((AO40/AN40-1)*100,"") ->  | BG40: 15.46606451
B41: NT | C41: 178875 | D41: 179773 | E41: 169314 | F41: 863 | G41: 765 | H41: 900 | I41: 1048 | J41: 1257 | K41: 1152 | L41: 164783 | M41: 177652 | N41: 171415 | O41: 311963 | P41: 357560 | Q41: 306629 | R41: 1346 | S41: 1377 | T41: 1332 | U41: 0 | V41: 0 | W41: 0 | X41: 0 | Y41: 0 | Z41: 0 | AA41: 0 | AB41: 0 | AC41: 0 | AE41: 0 | AF41: 0 | AG41: 0 | AH41: 0 | AI41: 0 | AJ41: 2 | AK41: 3 | AL41: 4 | AM41: 0 | AN41: 0 | AO41: 0 | AP41: 658880 | AQ41: 718387 | AR41: 650746 | AT41: -5.817892565 | AU41: 17.64705882 | AV41: -8.353221957 | AW41: -3.510796388 | AX41: -14.24404296 | AY41: -3.267973856 | BE41: 33.33333333 | BG41: -9.415677065
B42: ACT | C42: 107934 | D42: 119815 | E42: 112495 | F42: 5143 | G42: 5247 | H42: 4731 | I42: 0 | J42: 0 | K42: 0 | L42: 139677 | M42: 153456 | N42: 143351 | O42: 815864 | P42: 966537 | Q42: 1685768 | R42: 2423 | S42: 2622 | T42: 2457 | U42: 0 | V42: 0 | W42: 0 | X42: 0 | Y42: 6857 | Z42: 0 | AA42: 0 | AB42: 0 | AC42: 0 | AE42: 0 | AF42: 0 | AG42: 0 | AH42: 0 | AI42: 0 | AJ42: 0 | AK42: 11 | AL42: 8 | AM42: 0 | AN42: 0 | AO42: 0 | AP42: 1071041 | AQ42: 1254545 | AR42: 1948810 | AT42: -6.109418687 | AU42: -9.834190966 | AW42: -6.584949432 | AX42: 74.41318853 | AY42: -6.292906178 | BA42: -100 | BE42: -27.27272727 | BG42: 55.33998382
B43: National | C43: 6141848 | D43: 6360259 | E43: 6224642 | F43: 152386 | G43: 148487 | H43: 151706 | I43: 60228 | J43: 57445 | K43: 64477 | L43: 7941119 | M43: 8362442 | N43: 8270175 | O43: 23510721 | P43: 28199096 | Q43: 32394791 | R43: 45401 | S43: 45096 | T43: 27918 | U43: 73028 | V43: 69419 | W43: 79935 | X43: 251449 | Y43: 228356 | Z43: 219032 | AA43: 445248 | AB43: 405815 | AC43: 555828 | AD43: 1240 | AE43: 1294 | AF43: 0 | AG43: 2679 | AH43: 595 | AI43: 16 | AJ43: 18972 | AK43: 12729 | AL43: 13350 | AM43: 0 | AN43: 0 | AO43: 0 | AP43: 38644319 | AQ43: 43891033 | AR43: 48001870 | AT43: -2.132255935 | AU43: 2.167866547 | AV43: 12.24127426 | AW43: -1.103349954 | AX43: 14.87882803 | AY43: -38.09207025 | AZ43: 15.14859044 | BA43: -4.08309832 | BB43: 36.96585883 | BC43: -100 | BD43: -97.31092437 | BE43: 4.878623615 | BG43: 9.366006492
A44: NHCDC Records Unlinked to Activity Records | B44: NSW | C44: 0 | D44: 0 | E44: 0 | F44: 0 | G44: 0 | H44: 0 | I44: 0 | J44: 0 | K44: 0 | L44: 0 | M44: 0 | N44: 0 | O44: 13181 | P44: 0 | Q44: 0 | R44: 0 | S44: 0 | T44: 0 | U44: 0 | V44: 0 | W44: 0 | X44: 0 | Y44: 0 | Z44: 0 | AA44: 0 | AB44: 0 | AC44: 0 | AD44: 0 | AE44: 0 | AF44: 0 | AG44: 2167 | AH44: 6 | AI44: 298 | AJ44: 0 | AK44: 9 | AL44: 0 | AM44: 209 | AN44: 10 | AO44: 0 | AP44: 15557 | AQ44: 25 | AR44: 298 | BD44: 4866.666667 | BE44: -100 | BF44: -100 | BG44: 1092
B45: Vic | C45: 0 | D45: 0 | E45: 0 | F45: 0 | G45: 0 | H45: 0 | I45: 0 | J45: 0 | K45: 0 | L45: 192781 | M45: 0 | N45: 0 | O45: 746819 | P45: 644944 | Q45: 697243 | R45: 0 | S45: 0 | T45: 0 | U45: 0 | V45: 0 | W45: 0 | X45: 0 | Y45: 0 | Z45: 0 | AA45: 0 | AB45: 0 | AC45: 0 | AD45: 0 | AE45: 0 | AF45: 0 | AG45: 4321 | AH45: 0 | AI45: 0 | AJ45: 1 | AK45: 0 | AL45: 0 | AM45: 0 | AN45: 0 | AO45: 0 | AP45: 943922 | AQ45: 644944 | AR45: 697243 | AX45: 8.109076137 | BG45: 8.109076137
B46: Qld | C46: 0 | D46: 0 | E46: 0 | F46: 0 | G46: 0 | H46: 0 | I46: 0 | J46: 0 | K46: 0 | L46: 0 | M46: 4066 | N46: 0 | O46: 0 | P46: 0 | Q46: 4278 | R46: 0 | S46: 0 | T46: 0 | U46: 0 | V46: 0 | W46: 0 | X46: 0 | Y46: 0 | Z46: 0 | AA46: 0 | AB46: 0 | AC46: 0 | AD46: 10 | AE46: 550 | AF46: 14 | AG46: 3016 | AH46: 6768 | AI46: 1207 | AJ46: 0 | AK46: 0 | AL46: 0 | AM46: 0 | AN46: 139 | AO46: 0 | AP46: 3026 | AQ46: 11523 | AR46: 5499 | AW46: -100 | BC46: -97.45454545 | BD46: -82.16607565 | BF46: -100 | BG46: -52.27805259
B47: SA | C47: 0 | D47: 0 | E47: 0 | F47: 0 | G47: 0 | H47: 0 | I47: 0 | J47: 0 | K47: 0 | L47: 0 | M47: 20992 | N47: 25042 | O47: 0 | P47: 126787 | Q47: 74498 | R47: 0 | S47: 0 | T47: 0 | U47: 0 | V47: 0 | W47: 0 | X47: 0 | Y47: 0 | Z47: 0 | AA47: 0 | AB47: 0 | AC47: 0 | AD47: 0 | AE47: 301567 | AF47: 0 | AG47: 20 | AH47: 0 | AI47: 549 | AJ47: 0 | AK47: 13957 | AL47: 2150 | AM47: 0 | AN47: 0 | AO47: 0 | AP47: 20 | AQ47: 463303 | AR47: 102239 | AW47: 19.29306402 | AX47: -41.24160994 | BC47: -100 | BE47: -84.59554345 | BG47: -77.93258408
B48: WA | C48: 0 | D48: 0 | E48: 0 | F48: 0 | G48: 0 | H48: 0 | I48: 0 | J48: 0 | K48: 0 | L48: 38479 | M48: 41124 | N48: 43307 | O48: 32781 | P48: 50936 | Q48: 438046 | R48: 0 | S48: 0 | T48: 0 | U48: 0 | V48: 0 | W48: 0 | X48: 0 | Y48: 0 | Z48: 0 | AA48: 0 | AB48: 0 | AC48: 0 | AD48: 0 | AE48: 0 | AF48: 0 | AG48: 0 | AH48: 0 | AI48: 0 | AJ48: 10 | AK48: 55 | AL48: 1528 | AM48: 0 | AN48: 0 | AO48: 0 | AP48: 71270 | AQ48: 92115 | AR48: 482881 | AW48: 5.308335765 | AX48: 759.9929323 | BE48: 2678.181818 | BG48: 424.2153829
B49: Tas | C49: 0 | D49: 0 | E49: 0 | F49: 0 | G49: 0 | H49: 0 | I49: 0 | J49: 0 | K49: 0 | L49: 514 | M49: 561 | N49: 618 | O49: 8479 | P49: 5644 | Q49: 31390 | R49: 0 | S49: 0 | T49: 0 | U49: 0 | V49: 0 | W49: 0 | X49: 0 | Y49: 0 | Z49: 0 | AA49: 0 | AB49: 0 | AC49: 0 | AD49: 24 | AE49: 505 | AF49: 455 | AG49: 0 | AH49: 0 | AI49: 6 | AJ49: 354 | AK49: 308 | AL49: 291 | AM49: 528 | AN49: 607 | AO49: 668 | AP49: 9899 | AQ49: 7625 | AR49: 33428 | AW49: 10.16042781 | AX49: 456.1658398 | BC49: -9.900990099 | BE49: -5.519480519 | BF49: 10.04942339 | BG49: 338.4
B50: NT | C50: 0 | D50: 0 | E50: 0 | F50: 0 | G50: 0 | H50: 0 | I50: 0 | J50: 0 | K50: 0 | L50: 1 | M50: 29 | N50: 0 | O50: 0 | P50: 359 | Q50: 52 | R50: 0 | S50: 0 | T50: 0 | U50: 0 | V50: 0 | W50: 0 | X50: 0 | Y50: 0 | Z50: 0 | AA50: 0 | AB50: 0 | AC50: 0 | AD50: 0 | AE50: 0 | AF50: 0 | AG50: 0 | AH50: 0 | AI50: 0 | AJ50: 15 | AK50: 828 | AL50: 8 | AM50: 3 | AN50: 12 | AO50: 36 | AP50: 19 | AQ50: 1228 | AR50: 96 | AW50: -100 | AX50: -85.51532033 | BE50: -99.03381643 | BF50: 200 | BG50: -92.18241042
B51: ACT | C51: 0 | D51: 0 | E51: 0 | F51: 0 | G51: 0 | H51: 0 | I51: 0 | J51: 0 | K51: 0 | L51: 82 | M51: 0 | N51: 0 | O51: 6557 | P51: 6056 | Q51: 1440 | R51: 0 | S51: 0 | T51: 0 | U51: 0 | V51: 0 | W51: 0 | X51: 0 | Y51: 0 | Z51: 0 | AA51: 0 | AB51: 0 | AC51: 0 | AD51: 0 | AE51: 0 | AF51: 0 | AG51: 0 | AH51: 0 | AI51: 0 | AJ51: 15 | AK51: 248 | AL51: 0 | AM51: 0 | AN51: 0 | AO51: 0 | AP51: 6654 | AQ51: 6304 | AR51: 1440 | AX51: -76.22192867 | BE51: -100 | BG51: -77.15736041
B52: National | C52: 0 | D52: 0 | E52: 0 | F52: 0 | G52: 0 | H52: 0 | I52: 0 | J52: 0 | K52: 0 | L52: 231857 | M52: 66772 | N52: 68967 | O52: 807817 | P52: 834726 | Q52: 1246947 | R52: 0 | S52: 0 | T52: 0 | U52: 0 | V52: 0 | W52: 0 | X52: 0 | Y52: 0 | Z52: 0 | AA52: 0 | AB52: 0 | AC52: 0 | AD52: 34 | AE52: 302622 | AF52: 469 | AG52: 9524 | AH52: 6774 | AI52: 2060 | AJ52: 395 | AK52: 15405 | AL52: 3977 | AM52: 740 | AN52: 768 | AO52: 704 | AP52: 1050367 | AQ52: 1227067 | AR52: 1323124 | AW52: 3.287306056 | AX52: 49.38398948 | BC52: -99.84502118 | BD52: -69.58960732 | BE52: -74.18370659 | BF52: -8.333333333 | BG52: 7.828178901
A53: Expenditure ($) | B53: NSW | C53: 9308810894 | D53: 9370588140 | E53: 9888104470 | F53: 740844799.9 | G53: 742936644 | H53: 745076890 | I53: 188786706.2 | J53: 176724378.8 | K53: 178545623.3 | L53: 1969263441 | M53: 2011736814 | N53: 2233851770 | O53: 2201848291 | P53: 3036247769 | Q53: 3241930206 | R53: 61002.83847 | S53: 1379795.886 | T53: 1181471.822 | U53: 752186859.5 | V53: 706781028.3 | W53: 744111273 | X53: 0 | Y53: 0 | Z53: 0 | AA53: 570468622.1 | AB53: 610642135.9 | AC53: 705928979.5 | AD53: 0 | AE53: 0 | AF53: 0 | AG53: 13206806.32 | AH53: 36976.95808 | AI53: 766370.8085 | AJ53: 1084646.509 | AK53: 1114002.444 | AL53: 859585.5139 | AM53: 511614.3102 | AN53: 41513.72906 | AO53: 0 | AP53: 1.574707368e+10 | AQ53: 1.66582292e+10 | AR53: 1.774035664e+10 | AT53: 5.522773196 | AU53: 0.2880792067 | AV53: 1.030556436 | AW53: 11.04095495 | AX53: 6.77423097 | AY53: -14.37343496 | AZ53: 5.281727033 | BB53: 15.60436759 | BD53: 1972.563154 | BE53: -22.83809446 | BF53: -100 | BG53: 6.496053254
B54: Vic | C54: 8223119631 | D54: 8650831419 | E54: 9376141505 | F54: 762038831.6 | G54: 718320924 | H54: 796536993.9 | I54: 100787445.4 | J54: 109487279.5 | K54: 120004220 | L54: 1367964133 | M54: 1441069171 | N54: 1671395531 | O54: 1683666996 | P54: 1845232410 | Q54: 2052194931 | R54: 190834429.2 | S54: 37375413.13 | T54: 32466085.9 | U54: 336630806.4 | V54: 574617630.8 | W54: 593505759.1 | X54: 67634952.57 | Y54: 44542587.27 | Z54: 48962900.82 | AA54: 306681016.4 | AB54: 269560443.9 | AC54: 532995089.5 | AD54: 477245.3459 | AE54: 0 | AF54: 0 | AG54: 92015150.73 | AH54: 0 | AI54: 0 | AJ54: 2173968.353 | AK54: 1864995.489 | AL54: 1873966.142 | AM54: 0 | AN54: 0 | AO54: 0 | AP54: 1.313402461e+10 | AQ54: 1.369290227e+10 | AR54: 1.522607698e+10 | AT54: 8.384281827 | AU54: 10.88873612 | AV54: 9.605627807 | AW54: 15.98301909 | AX54: 11.2160679 | AY54: -13.1351785 | AZ54: 3.287077764 | BA54: 9.923791637 | BB54: 97.72748619 | BE54: 0.4810013135 | BG54: 11.19685716
B55: Qld | C55: 7363630072 | D55: 7540225206 | E55: 7856246720 | F55: 671407075.1 | G55: 677686932.9 | H55: 811021834.7 | I55: 57805598.94 | J55: 125620419.4 | K55: 132002870.8 | L55: 1440400793 | M55: 1525598855 | N55: 1624630469 | O55: 2335132142 | P55: 2462950125 | Q55: 2715063212 | R55: 111523250.8 | S55: 271562556.5 | T55: 114423662.4 | U55: 195254497.7 | V55: 155510002.9 | W55: 395341962 | X55: 23428119.41 | Y55: 23047079.17 | Z55: 26117009.76 | AA55: 289342215.6 | AB55: 283460052.1 | AC55: 271778486.3 | AD55: 3227775.362 | AE55: 36330602.81 | AF55: 9577.3446 | AG55: 120298698.2 | AH55: 103998986 | AI55: 8429238.137 | AJ55: 9404349.763 | AK55: 9031246.487 | AL55: 8904062.203 | AM55: 0 | AN55: 45831.474 | AO55: 0 | AP55: 1.262085459e+10 | AQ55: 1.32150679e+10 | AR55: 1.39639691e+10 | AT55: 4.191141586 | AU55: 19.67499966 | AV55: 5.080743592 | AW55: 6.491327217 | AX55: 10.23622379 | AY55: -57.86471306 | AZ55: 154.2228503 | BA55: 13.3202588 | BB55: -4.121062475 | BC55: -99.97363835 | BD55: -91.8948843 | BE55: -1.408269436 | BF55: -100 | BG55: 5.667025053
B56: SA | C56: 2436411095 | D56: 2424589708 | E56: 2685792635 | F56: 201574422.3 | G56: 240994175 | H56: 293821088.2 | I56: 19099585.62 | J56: 0 | K56: 21728767.66 | L56: 438487916.1 | M56: 499036379.1 | N56: 533842407.1 | O56: 857201544.7 | P56: 932748846.2 | Q56: 1035338334 | R56: 62206077.32 | S56: 57129828.5 | T56: 673425.7023 | U56: 173990616.3 | V56: 0 | W56: 176547082.6 | X56: 0 | Y56: 0 | Z56: 0 | AA56: 0 | AB56: 0 | AC56: 0 | AD56: 0 | AE56: 85932212.45 | AF56: 0 | AG56: 83563.19255 | AH56: 0 | AI56: 30484020.92 | AJ56: 338504.0477 | AK56: 401163689.6 | AL56: 31848582.22 | AM56: 0 | AN56: 0 | AO56: 0 | AP56: 4189393324 | AQ56: 4641594839 | AR56: 4810076344 | AT56: 10.77307746 | AU56: 21.92041084 | AW56: 6.974647433 | AX56: 10.99861857 | AY56: -98.82123626 | BC56: -100 | BE56: -92.06095092 | BG56: 3.629819294
B57: WA | C57: 3271962703 | D57: 3482194556 | E57: 3737797750 | F57: 324972244.4 | G57: 314567693.9 | H57: 366389153.3 | I57: 0 | J57: 0 | K57: 0 | L57: 689167563.9 | M57: 719204354.8 | N57: 842501202.5 | O57: 817082705 | P57: 917216870.3 | Q57: 1092738192 | R57: 303531343.7 | S57: 325858675 | T57: 348933341.2 | U57: 0 | V57: 0 | W57: 0 | X57: 0 | Y57: 0 | Z57: 0 | AA57: 0 | AB57: 0 | AC57: 0 | AD57: 0 | AE57: 0 | AF57: 0 | AG57: 0 | AH57: 0 | AI57: 0 | AJ57: 1189246.188 | AK57: 1734536.339 | AL57: 11067304.96 | AM57: 0 | AN57: 0 | AO57: 0 | AP57: 5407905806 | AQ57: 5760776686 | AR57: 6399426945 | AT57: 7.340290452 | AU57: 16.47386566 | AW57: 17.14350682 | AX57: 19.13629458 | AY57: 7.081188248 | BE57: 538.0555261 | BG57: 11.08618322
B58: Tas | C58: 822529276.4 | D58: 889717732.5 | E58: 1055657372 | F58: 53634037.2 | G58: 57315458.06 | H58: 63472247.82 | I58: 4570202.085 | J58: 4888998.645 | K58: 4313589.725 | L58: 156042100.5 | M58: 169135022.9 | N58: 198562468.8 | O58: 214773053.5 | P58: 271160192.6 | Q58: 241282831.6 | R58: 51067230.91 | S58: 47407482.54 | T58: 51426700.13 | U58: 0 | V58: 0 | W58: 0 | X58: 15020380.42 | Y58: 5764276.945 | Z58: 9011433.706 | AA58: 0 | AB58: 5720616.624 | AC58: 153154.5684 | AD58: 65067.23179 | AE58: 14563942.94 | AF58: 21292904.32 | AG58: 0 | AH58: 37313.57184 | AI58: 371.598433 | AJ58: 14675196.15 | AK58: 9153271.787 | AL58: 9411929.853 | AM58: 8823556.121 | AN58: 8479745.899 | AO58: 13107703.28 | AP58: 1341200100 | AQ58: 1483344055 | AR58: 1667692708 | AT58: 18.65081854 | AU58: 10.74193589 | AV58: -11.76946368 | AW58: 17.39878908 | AX58: -11.01834334 | AY58: 8.478023668 | BA58: 56.33242109 | BB58: -97.32276119 | BC58: 46.20288206 | BD58: -99.00411991 | BE58: 2.825853657 | BF58: 54.57660452 | BG58: 12.42790923
B59: NT | C59: 683540573.3 | D59: 739062016.2 | E59: 754287432.4 | F59: 50919244.59 | G59: 45896440.18 | H59: 56941563.22 | I59: 12617456.27 | J59: 9473090.128 | K59: 11352404.25 | L59: 137908835.5 | M59: 166903093.3 | N59: 171114992.4 | O59: 158479320.8 | P59: 173096638.8 | Q59: 161696110.3 | R59: 37482061.78 | S59: 40500484.76 | T59: 40177787.01 | U59: 0 | V59: 0 | W59: 0 | X59: 0 | Y59: 0 | Z59: 0 | AA59: 0 | AB59: 0 | AC59: 0 | AD59: 0 | AE59: 0 | AF59: 0 | AG59: 0 | AH59: 0 | AI59: 0 | AJ59: 35568110.23 | AK59: 39173201.72 | AL59: 43412373.63 | AM59: 73151.46937 | AN59: 765392.1844 | AO59: 801722.3133 | AP59: 1116588754 | AQ59: 1214870357 | AR59: 1239784385 | AT59: 2.06009994 | AU59: 24.06531528 | AV59: 19.83844869 | AW59: 2.523559628 | AX59: -6.58622181 | AY59: -0.796775031 | BE59: 10.82161205 | BF59: 4.746603079 | BG59: 2.050756112
B60: ACT | C60: 655820240.6 | D60: 707190360.6 | E60: 801848018.1 | F60: 93400547.35 | G60: 95343576.77 | H60: 113573116.5 | I60: 0 | J60: 0 | K60: 0 | L60: 133757543 | M60: 117719134.9 | N60: 144143237.2 | O60: 247550481.4 | P60: 278336906.6 | Q60: 341685959.6 | R60: 58475526.19 | S60: 60879245.42 | T60: 78238515.99 | U60: 0 | V60: 0 | W60: 0 | X60: 0 | Y60: 33812155.3 | Z60: 0 | AA60: 0 | AB60: 0 | AC60: 0 | AD60: 0 | AE60: 0 | AF60: 0 | AG60: 0 | AH60: 0 | AI60: 0 | AJ60: 166800.8725 | AK60: 719906.2985 | AL60: 135437.1753 | AM60: 0 | AN60: 0 | AO60: 0 | AP60: 1189171139 | AQ60: 1294001286 | AR60: 1479624285 | AT60: 13.3850322 | AU60: 19.11984037 | AW60: 22.44673504 | AX60: 22.7598466 | AY60: 28.51426696 | BA60: -100 | BE60: -81.18683285 | BG60: 14.34488517
B61: National | C61: 3.276582448e+10 | D61: 3.380439914e+10 | E61: 3.61558759e+10 | F61: 2898791202 | G61: 2893061845 | H61: 3246832888 | I61: 383666994.6 | J61: 426194166.5 | K61: 467947475.8 | L61: 6332992326 | M61: 6650402825 | N61: 7420042078 | O61: 8515734533 | P61: 9916989759 | Q61: 1.088192978e+10 | R61: 815180922.8 | S61: 842093481.8 | T61: 667520990.1 | U61: 1458062780 | V61: 1436908662 | W61: 1909506077 | X61: 106083452.4 | Y61: 107166098.7 | Z61: 84091344.29 | AA61: 1166491854 | AB61: 1169383249 | AC61: 1510855710 | AD61: 3770087.94 | AE61: 136826758.2 | AF61: 21302481.66 | AG61: 225604218.5 | AH61: 104073276.5 | AI61: 39680001.47 | AJ61: 64600822.11 | AK61: 463954850.2 | AL61: 107513241.7 | AM61: 9408321.9 | AN61: 9332483.287 | AO61: 13909425.6 | AP61: 5.4746212e+10 | AQ61: 5.796078659e+10 | AR61: 6.252700739e+10 | AT61: 6.956126499 | AU61: 12.22825718 | AV61: 9.796781039 | AW61: 11.57282157 | AX61: 9.730170548 | AY61: -20.73077341 | AZ61: 32.88987165 | BA61: -21.53176675 | BB61: 29.20107345 | BC61: -84.43105578 | BD61: -61.87301602 | BE61: -76.82678785 | BF61: 49.04313428 | BG61: 7.878120827
A62: Linked Expenditure ($) | B62: NSW | C62: 9308810894 | D62: 9370588140 | E62: 9888104470 | F62: 740844799.9 | G62: 742936644 | H62: 745076890 | I62: 188786706.2 | J62: 176724378.8 | K62: 178545623.3 | L62: 1969263441 | M62: 2011736814 | N62: 2233851770 | O62: 2201051390 | P62: 3036247769 | Q62: 3241930206 | R62: 61002.83847 | S62: 1379795.886 | T62: 1181471.822 | U62: 752186859.5 | V62: 706781028.3 | W62: 744111273 | X62: 0 | Y62: 0 | Z62: 0 | AA62: 570468622.1 | AB62: 610642135.9 | AC62: 705928979.5 | AD62: 0 | AE62: 0 | AF62: 0 | AG62: 0 | AH62: 0 | AI62: 0 | AJ62: 1084646.509 | AK62: 1011579.47 | AL62: 859585.5139 | AM62: 0 | AN62: 0 | AO62: 0 | AP62: 1.573255836e+10 | AQ62: 1.665804829e+10 | AR62: 1.773959027e+10 | AT62: 5.522773196 | AU62: 0.2880792067 | AV62: 1.030556436 | AW62: 11.04095495 | AX62: 6.77423097 | AY62: -14.37343496 | AZ62: 5.281727033 | BB62: 15.60436759 | BE62: -15.02540932 | BG62: 6.492609243
B63: Vic | C63: 8223119631 | D63: 8650831419 | E63: 9376141505 | F63: 762038831.6 | G63: 718320924 | H63: 796536993.9 | I63: 100787445.4 | J63: 109487279.5 | K63: 120004220 | L63: 1329430603 | M63: 1441069171 | N63: 1671395531 | O63: 1426091021 | P63: 1609890719 | Q63: 1786737332 | R63: 190834429.2 | S63: 37375413.13 | T63: 32466085.9 | U63: 336630806.4 | V63: 574617630.8 | W63: 593505759.1 | X63: 67634952.57 | Y63: 44542587.27 | Z63: 48962900.82 | AA63: 306681016.4 | AB63: 269560443.9 | AC63: 532995089.5 | AD63: 477245.3459 | AE63: 0 | AF63: 0 | AG63: 2862218.051 | AH63: 0 | AI63: 0 | AJ63: 2161658.549 | AK63: 1864995.489 | AL63: 1873966.142 | AM63: 0 | AN63: 0 | AO63: 0 | AP63: 1.274874986e+10 | AQ63: 1.345756058e+10 | AR63: 1.496061938e+10 | AT63: 8.384281827 | AU63: 10.88873612 | AV63: 9.605627807 | AW63: 15.98301909 | AX63: 10.98500732 | AY63: -13.1351785 | AZ63: 3.287077764 | BA63: 9.923791637 | BB63: 97.72748619 | BE63: 0.4810013135 | BG63: 11.16888007
B64: Qld | C64: 7363630072 | D64: 7540225206 | E64: 7856246720 | F64: 671407075.1 | G64: 677686932.9 | H64: 811021834.7 | I64: 57805598.94 | J64: 125620419.4 | K64: 132002870.8 | L64: 1440400793 | M64: 1523998530 | N64: 1624630469 | O64: 2335132142 | P64: 2462950125 | Q64: 2714148638 | R64: 111523250.8 | S64: 271562556.5 | T64: 114423662.4 | U64: 195254497.7 | V64: 155510002.9 | W64: 395341962 | X64: 23428119.41 | Y64: 23047079.17 | Z64: 26117009.76 | AA64: 289342215.6 | AB64: 283460052.1 | AC64: 271778486.3 | AD64: 3209522.31 | AE64: 34533125.59 | AF64: 0 | AG64: 64375803.95 | AH64: 7540403.546 | AI64: 0 | AJ64: 9404349.763 | AK64: 9031246.487 | AL64: 8904062.203 | AM64: 0 | AN64: 0 | AO64: 0 | AP64: 1.256491344e+10 | AQ64: 1.311516568e+10 | AR64: 1.395461571e+10 | AT64: 4.191141586 | AU64: 19.67499966 | AV64: 5.080743592 | AW64: 6.603151932 | AX64: 10.1990905 | AY64: -57.86471306 | AZ64: 154.2228503 | BA64: 13.3202588 | BB64: -4.121062475 | BC64: -100 | BD64: -100 | BE64: -1.408269436 | BG64: 6.400605642
B65: SA | C65: 2436411095 | D65: 2424589708 | E65: 2685792635 | F65: 201574422.3 | G65: 240994175 | H65: 293821088.2 | I65: 19099585.62 | J65: 0 | K65: 21728767.66 | L65: 438487916.1 | M65: 488029396.8 | N65: 518022418.5 | O65: 857201544.7 | P65: 897476689.6 | Q65: 1008836721 | R65: 62206077.32 | S65: 57129828.5 | T65: 673425.7023 | U65: 173990616.3 | V65: 0 | W65: 176547082.6 | X65: 0 | Y65: 0 | Z65: 0 | AA65: 0 | AB65: 0 | AC65: 0 | AD65: 0 | AE65: 0 | AF65: 0 | AG65: 0 | AH65: 0 | AI65: 0 | AJ65: 338504.0477 | AK65: 395887.4365 | AL65: 291661.6301 | AM65: 0 | AN65: 0 | AO65: 0 | AP65: 4189309761 | AQ65: 4108615685 | AR65: 4705713801 | AT65: 10.77307746 | AU65: 21.92041084 | AW65: 6.1457408 | AX65: 12.40812521 | AY65: -98.82123626 | BE65: -26.32713161 | BG65: 14.53282957
B66: WA | C66: 3271962703 | D66: 3482194556 | E66: 3737797750 | F66: 324972244.4 | G66: 314567693.9 | H66: 366389153.3 | I66: 0 | J66: 0 | K66: 0 | L66: 660429211.2 | M66: 689980922.5 | N66: 805938186.1 | O66: 808044565.8 | P66: 902053218.8 | Q66: 1014542223 | R66: 303531343.7 | S66: 325858675 | T66: 348933341.2 | U66: 0 | V66: 0 | W66: 0 | X66: 0 | Y66: 0 | Z66: 0 | AA66: 0 | AB66: 0 | AC66: 0 | AD66: 0 | AE66: 0 | AF66: 0 | AG66: 0 | AH66: 0 | AI66: 0 | AJ66: 744325.9821 | AK66: 883267.0021 | AL66: 1277688.799 | AM66: 0 | AN66: 0 | AO66: 0 | AP66: 5369684394 | AQ66: 5715538333 | AR66: 6274878342 | AT66: 7.340290452 | AU66: 16.47386566 | AW66: 16.80586517 | AX66: 12.47032896 | AY66: 7.081188248 | BE66: 44.65487743 | BG66: 9.786304922
B67: Tas | C67: 822529276.4 | D67: 889717732.5 | E67: 1055657372 | F67: 53634037.2 | G67: 57315458.06 | H67: 63472247.82 | I67: 4570202.085 | J67: 4888998.645 | K67: 4313589.725 | L67: 155286425.8 | M67: 168483015.3 | N67: 197702499.1 | O67: 210658935.2 | P67: 268900294.2 | Q67: 235187799.2 | R67: 51067230.91 | S67: 47407482.54 | T67: 51426700.13 | U67: 0 | V67: 0 | W67: 0 | X67: 15020380.42 | Y67: 5764276.945 | Z67: 9011433.706 | AA67: 0 | AB67: 5720616.624 | AC67: 153154.5684 | AD67: 0 | AE67: 0 | AF67: 0 | AG67: 0 | AH67: 37313.57184 | AI67: 296.130271 | AJ67: 729690.273 | AK67: 552818.9505 | AL67: 1084211.117 | AM67: 0 | AN67: 0 | AO67: 0 | AP67: 1313496178 | AQ67: 1448788007 | AR67: 1618009304 | AT67: 18.65081854 | AU67: 10.74193589 | AV67: -11.76946368 | AW67: 17.34268812 | AX67: -12.53717297 | AY67: 8.478023668 | BA67: 56.33242109 | BB67: -97.32276119 | BD67: -99.20637383 | BE67: 96.12408647 | BG67: 11.68019722
B68: NT | C68: 683540573.3 | D68: 739062016.2 | E68: 754287432.4 | F68: 50919244.59 | G68: 45896440.18 | H68: 56941563.22 | I68: 12617456.27 | J68: 9473090.128 | K68: 11352404.25 | L68: 137908627 | M68: 166881433.8 | N68: 171114992.4 | O68: 158479320.8 | P68: 172807677.9 | Q68: 161657197.9 | R68: 37482061.78 | S68: 40500484.76 | T68: 40177787.01 | U68: 0 | V68: 0 | W68: 0 | X68: 0 | Y68: 0 | Z68: 0 | AA68: 0 | AB68: 0 | AC68: 0 | AD68: 0 | AE68: 0 | AF68: 0 | AG68: 0 | AH68: 0 | AI68: 0 | AJ68: 21408.15943 | AK68: 31072.52135 | AL68: 81389.78506 | AM68: 0 | AN68: 0 | AO68: 0 | AP68: 1080968692 | AQ68: 1174652216 | AR68: 1195612767 | AT68: 2.06009994 | AU68: 24.06531528 | AV68: 19.83844869 | AW68: 2.536866105 | AX68: -6.452537322 | AY68: -0.796775031 | BE68: 161.9349236 | BG68: 1.784404879
B69: ACT | C69: 655820240.6 | D69: 707190360.6 | E69: 801848018.1 | F69: 93400547.35 | G69: 95343576.77 | H69: 113573116.5 | I69: 0 | J69: 0 | K69: 0 | L69: 133608759.2 | M69: 117719134.9 | N69: 144143237.2 | O69: 246359781.7 | P69: 277164963.1 | Q69: 341247911.8 | R69: 58475526.19 | S69: 60879245.42 | T69: 78238515.99 | U69: 0 | V69: 0 | W69: 0 | X69: 0 | Y69: 33812155.3 | Z69: 0 | AA69: 0 | AB69: 0 | AC69: 0 | AD69: 0 | AE69: 0 | AF69: 0 | AG69: 0 | AH69: 0 | AI69: 0 | AJ69: 0 | AK69: 355159.5614 | AL69: 135437.1753 | AM69: 0 | AN69: 0 | AO69: 0 | AP69: 1187664855 | AQ69: 1292464596 | AR69: 1479186237 | AT69: 13.3850322 | AU69: 19.11984037 | AW69: 22.44673504 | AX69: 23.12086923 | AY69: 28.51426696 | BA69: -100 | BE69: -61.86582314 | BG69: 14.44694436
B70: National | C70: 3.276582448e+10 | D70: 3.380439914e+10 | E70: 3.61558759e+10 | F70: 2898791202 | G70: 2893061845 | H70: 3246832888 | I70: 383666994.6 | J70: 426194166.5 | K70: 467947475.8 | L70: 6264815776 | M70: 6607898418 | N70: 7366799103 | O70: 8243018700 | P70: 9627491456 | Q70: 1.050428803e+10 | R70: 815180922.8 | S70: 842093481.8 | T70: 667520990.1 | U70: 1458062780 | V70: 1436908662 | W70: 1909506077 | X70: 106083452.4 | Y70: 107166098.7 | Z70: 84091344.29 | AA70: 1166491854 | AB70: 1169383249 | AC70: 1510855710 | AD70: 3686767.656 | AE70: 34533125.59 | AF70: 0 | AG70: 67238022 | AH70: 7577717.118 | AI70: 296.130271 | AJ70: 14484583.28 | AK70: 14126026.92 | AL70: 14508002.37 | AM70: 0 | AN70: 0 | AO70: 0 | AP70: 5.418734554e+10 | AQ70: 5.697083338e+10 | AR70: 6.192822582e+10 | AT70: 6.956126499 | AU70: 12.22825718 | AV70: 9.796781039 | AW70: 11.48475107 | AX70: 9.107217339 | AY70: -20.73077341 | AZ70: 32.88987165 | BA70: -21.53176675 | BB70: 29.20107345 | BC70: -100 | BD70: -99.99609209 | BE70: 2.704054362 | BG70: 8.701632288
A71: Unlinked Expenditure ($) | B71: NSW | C71: 0 | D71: 0 | E71: 0 | F71: 0 | G71: 0 | H71: 0 | I71: 0 | J71: 0 | K71: 0 | L71: 0 | M71: 0 | N71: 0 | O71: 796901.1 | P71: 0 | Q71: 0 | R71: 0 | S71: 0 | T71: 0 | U71: 0 | V71: 0 | W71: 0 | X71: 0 | Y71: 0 | Z71: 0 | AA71: 0 | AB71: 0 | AC71: 0 | AD71: 0 | AE71: 0 | AF71: 0 | AG71: 13206806.32 | AH71: 36976.95808 | AI71: 766370.8085 | AJ71: 0 | AK71: 102422.9745 | AL71: 0 | AM71: 511614.3102 | AN71: 41513.72906 | AO71: 0 | AP71: 14515321.73 | AQ71: 180913.6616 | AR71: 766370.8085 | BD71: 1972.563154 | BE71: -100 | BF71: -100 | BG71: 323.6113523
B72: Vic | C72: 0 | D72: 0 | E72: 0 | F72: 0 | G72: 0 | H72: 0 | I72: 0 | J72: 0 | K72: 0 | L72: 38533530.8 | M72: 0 | N72: 0 | O72: 257575975 | P72: 235341691.8 | Q72: 265457598.6 | R72: 0 | S72: 0 | T72: 0 | U72: 0 | V72: 0 | W72: 0 | X72: 0 | Y72: 0 | Z72: 0 | AA72: 0 | AB72: 0 | AC72: 0 | AD72: 0 | AE72: 0 | AF72: 0 | AG72: 89152932.68 | AH72: 0 | AI72: 0 | AJ72: 12309.8042 | AK72: 0 | AL72: 0 | AM72: 0 | AN72: 0 | AO72: 0 | AP72: 385274748.3 | AQ72: 235341691.8 | AR72: 265457598.6 | AT72: =IFERROR((E72/D72-1)*100,"") ->  | AU72: =IFERROR((H72/G72-1)*100,"") ->  | AV72: =IFERROR((K72/J72-1)*100,"") ->  | AW72: =IFERROR((N72/M72-1)*100,"") ->  | AX72: =IFERROR((Q72/P72-1)*100,"") -> 12.79667303 | AY72: =IFERROR((T72/S72-1)*100,"") ->  | AZ72: =IFERROR((W72/V72-1)*100,"") ->  | BA72: =IFERROR((Z72/Y72-1)*100,"") ->  | BB72: =IFERROR((AC72/AB72-1)*100,"") ->  | BC72: =IFERROR((AF72/AE72-1)*100,"") ->  | BD72: =IFERROR((AI72/AH72-1)*100,"") ->  | BE72: =IFERROR((AL72/AK72-1)*100,"") ->  | BF72: =IFERROR((AO72/AN72-1)*100,"") ->  | BG72: 12.79667303
B73: Qld | C73: 0 | D73: 0 | E73: 0 | F73: 0 | G73: 0 | H73: 0 | I73: 0 | J73: 0 | K73: 0 | L73: 0 | M73: 1600324.7 | N73: 0 | O73: 0 | P73: 0 | Q73: 914574.3 | R73: 0 | S73: 0 | T73: 0 | U73: 0 | V73: 0 | W73: 0 | X73: 0 | Y73: 0 | Z73: 0 | AA73: 0 | AB73: 0 | AC73: 0 | AD73: 18253.0521 | AE73: 1797477.227 | AF73: 9577.3446 | AG73: 55922894.28 | AH73: 96458582.43 | AI73: 8429238.137 | AJ73: 0 | AK73: 0 | AL73: 0 | AM73: 0 | AN73: 45831.474 | AO73: 0 | AP73: 55941147.33 | AQ73: 99902215.84 | AR73: 9353389.781 | AW73: -100 | BC73: -99.46717853 | BD73: -91.26128757 | BF73: -100 | BG73: =IFERROR((AR73/AQ73-1)*100,"") -> -90.63745513
B74: SA | C74: 0 | D74: 0 | E74: 0 | F74: 0 | G74: 0 | H74: 0 | I74: 0 | J74: 0 | K74: 0 | L74: 0 | M74: 11006982.3 | N74: 15819988.55 | O74: 0 | P74: 35272156.53 | Q74: 26501613 | R74: 0 | S74: 0 | T74: 0 | U74: 0 | V74: 0 | W74: 0 | X74: 0 | Y74: 0 | Z74: 0 | AA74: 0 | AB74: 0 | AC74: 0 | AD74: 0 | AE74: 85932212.45 | AF74: 0 | AG74: 83563.19255 | AH74: 0 | AI74: 30484020.92 | AJ74: 0 | AK74: 400767802.2 | AL74: 31556920.59 | AM74: 0 | AN74: 0 | AO74: 0 | AP74: 83563.19255 | AQ74: 532979153.4 | AR74: 104362543.1 | AW74: 43.72684646 | AX74: -24.86534534 | BC74: -100 | BE74: -92.12588426 | BG74: -80.4190197
B75: WA | C75: 0 | D75: 0 | E75: 0 | F75: 0 | G75: 0 | H75: 0 | I75: 0 | J75: 0 | K75: 0 | L75: 28738352.69 | M75: 29223432.33 | N75: 36563016.4 | O75: 9038139.22 | P75: 15163651.5 | Q75: 78195969.9 | R75: 0 | S75: 0 | T75: 0 | U75: 0 | V75: 0 | W75: 0 | X75: 0 | Y75: 0 | Z75: 0 | AA75: 0 | AB75: 0 | AC75: 0 | AD75: 0 | AE75: 0 | AF75: 0 | AG75: 0 | AH75: 0 | AI75: 0 | AJ75: 444920.2062 | AK75: 851269.3368 | AL75: 9789616.164 | AM75: 0 | AN75: 0 | AO75: 0 | AP75: 38221412.12 | AQ75: 45238353.17 | AR75: 124548602.5 | AW75: 25.11540735 | AX75: 415.6803419 | BE75: 1050.002207 | BG75: 175.3163936
B76: Tas | C76: 0 | D76: 0 | E76: 0 | F76: 0 | G76: 0 | H76: 0 | I76: 0 | J76: 0 | K76: 0 | L76: 755674.73 | M76: 652007.66 | N76: 859969.68 | O76: 4114118.32 | P76: 2259898.49 | Q76: 6095032.46 | R76: 0 | S76: 0 | T76: 0 | U76: 0 | V76: 0 | W76: 0 | X76: 0 | Y76: 0 | Z76: 0 | AA76: 0 | AB76: 0 | AC76: 0 | AD76: 65067.23179 | AE76: 14563942.94 | AF76: 21292904.32 | AG76: 0 | AH76: 0 | AI76: 75.468162 | AJ76: 13945505.88 | AK76: 8600452.837 | AL76: 8327718.736 | AM76: 8823556.121 | AN76: 8479745.899 | AO76: 13107703.28 | AP76: 27703922.28 | AQ76: 34556047.82 | AR76: 49683403.95 | AW76: 31.89564061 | AX76: 169.7038158 | BC76: 46.20288206 | BE76: -3.171159771 | BF76: 54.57660452 | BG76: 43.7762912
B77: NT | C77: 0 | D77: 0 | E77: 0 | F77: 0 | G77: 0 | H77: 0 | I77: 0 | J77: 0 | K77: 0 | L77: 208.48 | M77: 21659.45 | N77: 0 | O77: 0 | P77: 288960.98 | Q77: 38912.31 | R77: 0 | S77: 0 | T77: 0 | U77: 0 | V77: 0 | W77: 0 | X77: 0 | Y77: 0 | Z77: 0 | AA77: 0 | AB77: 0 | AC77: 0 | AD77: 0 | AE77: 0 | AF77: 0 | AG77: 0 | AH77: 0 | AI77: 0 | AJ77: 35546702.07 | AK77: 39142129.2 | AL77: 43330983.85 | AM77: 73151.46937 | AN77: 765392.1844 | AO77: 801722.3133 | AP77: 35620062.02 | AQ77: 40218141.81 | AR77: 44171618.47 | AW77: -100 | AX77: -86.53371469 | BE77: 10.70165251 | BF77: 4.746603079 | BG77: 9.830082854
B78: ACT | C78: 0 | D78: 0 | E78: 0 | F78: 0 | G78: 0 | H78: 0 | I78: 0 | J78: 0 | K78: 0 | L78: 148783.82 | M78: 0 | N78: 0 | O78: 1190699.75 | P78: 1171943.5 | Q78: 438047.78 | R78: 0 | S78: 0 | T78: 0 | U78: 0 | V78: 0 | W78: 0 | X78: 0 | Y78: 0 | Z78: 0 | AA78: 0 | AB78: 0 | AC78: 0 | AD78: 0 | AE78: 0 | AF78: 0 | AG78: 0 | AH78: 0 | AI78: 0 | AJ78: 166800.8725 | AK78: 364746.7371 | AL78: 0 | AM78: 0 | AN78: 0 | AO78: 0 | AP78: 1506284.443 | AQ78: 1536690.237 | AR78: 438047.78 | AX78: -62.62210764 | BE78: -100 | BG78: -71.49407412
B79: National | C79: 0 | D79: 0 | E79: 0 | F79: 0 | G79: 0 | H79: 0 | I79: 0 | J79: 0 | K79: 0 | L79: 68176550.52 | M79: 42504406.44 | N79: 53242974.63 | O79: 272715833.4 | P79: 289498302.8 | Q79: 377641748.4 | R79: 0 | S79: 0 | T79: 0 | U79: 0 | V79: 0 | W79: 0 | X79: 0 | Y79: 0 | Z79: 0 | AA79: 0 | AB79: 0 | AC79: 0 | AD79: 83320.28389 | AE79: 102293632.6 | AF79: 21302481.66 | AG79: 158366196.5 | AH79: 96495559.39 | AI79: 39679705.34 | AJ79: 50116238.83 | AK79: 449828823.2 | AL79: 93005239.34 | AM79: 9408321.9 | AN79: 9332483.287 | AO79: 13909425.6 | AP79: 558866461.4 | AQ79: 989953207.8 | AR79: 598781574.9 | AW79: 25.26459981 | AX79: 30.44696452 | BC79: -79.17516358 | BD79: -58.87924213 | BE79: -79.32430415 | BF79: 49.04313428 | BG79: -39.51415378
A80: Linked Average Cost ($) (Unweighted) | B80: NSW | C80: 5824.584949 | D80: 5757.604778 | E80: 6638.102676 | F80: 15780.78643 | G80: 16503.83517 | H80: 20915.61323 | I80: 5795.625537 | J80: 5758.182492 | K80: 6358.009519 | L80: 765.730444 | M80: 798.245857 | N80: 906.9361548 | O80: 285.7043785 | P80: 292.9813504 | Q80: 326.7015659 | R80: 4066.855898 | S80: 2618.208512 | T80: 12568.84917 | U80: 20046.02136 | V80: 19423.99836 | W80: 23122.68957 | X80: 0 | Y80: 0 | Z80: 0 | AA80: 3050.389659 | AB80: 3050.373832 | AC80: 3663.965887 | AD80: 0 | AE80: 0 | AF80: 0 | AG80: 0 | AH80: 0 | AI80: 0 | AJ80: 11538.79265 | AK80: 10761.48372 | AL80: 12457.76107 | AM80: 0 | AN80: 0 | AO80: 0 | AT80: 15.29278115 | AU80: 26.73183543 | AV80: 10.41695063 | AW80: 13.61614305 | AX80: 11.50933853 | AY80: 380.0553168 | AZ80: 19.04186326 | BB80: 20.1153068 | BE80: 15.76248585
B81: Vic | C81: 4919.075201 | D81: 5213.520716 | E81: 5572.906138 | F81: 20786.65662 | G81: 23332.7137 | H81: 26251.96078 | I81: 6505.773653 | J81: 7314.268117 | K81: 7623.67194 | L81: 771.0379673 | M81: 845.6675968 | N81: 919.4515245 | O81: 345.6631426 | P81: 366.387204 | Q81: 378.0508944 | R81: 22981.02471 | S81: 88357.95066 | T81: 72468.94174 | U81: 18708.98718 | V81: 21708.25957 | W81: 23268.34826 | X81: 288.401065 | Y81: 216.488881 | Z81: 238.4386545 | AA81: 2326.372367 | AB81: 2249.317378 | AC81: 2379.484855 | AD81: 483.5312522 | AE81: 0 | AF81: 0 | AG81: 1875.634371 | AH81: 0 | AI81: 0 | AJ81: 15440.41821 | AK81: 15541.62908 | AL81: 16882.57786 | AM81: 0 | AN81: 0 | AO81: 0 | AT81: 6.8933345 | AU81: 12.51139115 | AV81: 4.230140566 | AW81: 8.724932582 | AX81: 3.183432796 | AY81: -17.98254577 | AZ81: 7.186613414 | BA81: 10.13898421 | BB81: 5.786976874 | BE81: 8.628109528
B82: Qld | C82: 4879.109466 | D82: 4636.195682 | E82: 4841.895577 | F82: 18029.19106 | G82: 17005.94562 | H82: 15524.92027 | I82: 8517.106076 | J82: 12686.36835 | K82: 8317.237152 | L82: 739.589854 | M82: 663.4633475 | N82: 750.9936027 | O82: 384.3990145 | P82: 363.5409763 | Q82: 317.2836023 | R82: 10313.81215 | S82: 15371.17544 | T82: 14319.06675 | U82: 19065.96013 | V82: 23698.56796 | W82: 25080.37569 | X82: 2644.257269 | Y82: 2487.273815 | Z82: 3909.146799 | AA82: 2289.00926 | AB82: 3419.136014 | AC82: 2010.478442 | AD82: 12685.85893 | AE82: 26687.11406 | AF82: 0 | AG82: 55833.30785 | AH82: 13635.44945 | AI82: 0 | AJ82: 549.3836758 | AK82: 822.4429913 | AL82: 775.6151745 | AM82: 0 | AN82: 0 | AO82: 0 | AT82: 4.436825128 | AU82: -8.708867982 | AV82: -34.43957387 | AW82: 13.19293004 | AX82: -12.72411559 | AY82: -6.844685984 | AZ82: 5.830764679 | BA82: 57.16592098 | BB82: -41.19922595 | BC82: -100 | BD82: -100 | BE82: -5.693746227
B83: SA | C83: 6287.415149 | D83: 5989.066456 | E83: 6552.871397 | F83: 18817.62718 | G83: 20354.23775 | H83: 21987.65908 | I83: 5309.865338 | J83: 0 | K83: 7446.459102 | L83: 827.0314056 | M83: 846.2404336 | N83: 904.913781 | O83: 504.4649925 | P83: 457.878983 | Q83: 285.4392305 | R83: 9937.073055 | S83: 9005.332362 | T83: 134685.1405 | U83: 23929.39297 | V83: 0 | W83: 27228.11268 | X83: 0 | Y83: 0 | Z83: 0 | AA83: 0 | AB83: 0 | AC83: 0 | AD83: 0 | AE83: 0 | AF83: 0 | AG83: 0 | AH83: 0 | AI83: 0 | AJ83: 8679.590967 | AK83: 8423.136948 | AL83: 9114.425941 | AM83: 0 | AN83: 0 | AO83: 0 | AT83: 9.413903575 | AU83: 8.024969271 | AW83: 6.933413379 | AX83: -37.66055199 | AY83: 1395.615432 | BE83: 8.20702545
B84: WA | C84: 5792.109583 | D84: 5710.022737 | E84: 6353.460087 | F84: 26744.48559 | G84: 25376.5484 | H84: 30752.82468 | I84: 0 | J84: 0 | K84: 0 | L84: 931.2207578 | M84: 904.2395888 | N84: 1052.857481 | O84: 363.4982282 | P84: 336.1688179 | Q84: 358.6123191 | R84: 23422.43566 | S84: 25380.37814 | T84: 28008.77678 | U84: 0 | V84: 0 | W84: 0 | X84: 0 | Y84: 0 | Z84: 0 | AA84: 0 | AB84: 0 | AC84: 0 | AD84: 0 | AE84: 0 | AF84: 0 | AG84: 0 | AH84: 0 | AI84: 0 | AJ84: 17309.90656 | AK84: 21543.09761 | AL84: 27775.84346 | AM84: 0 | AN84: 0 | AO84: 0 | AT84: 11.26856021 | AU84: 21.18600292 | AW84: 16.43567635 | AX84: 6.67625908 | AY84: 10.35602632 | BE84: 28.93152119
B85: Tas | C85: 6657.78408 | D85: 6700.08534 | E85: 7035.18315 | F85: 20080.13373 | G85: 22155.18286 | H85: 24478.30614 | I85: 6260.550801 | J85: 7809.901988 | K85: 6049.915463 | L85: 1010.091559 | M85: 989.4062098 | N85: 1140.968738 | O85: 378.6629983 | P85: 384.4392956 | Q85: 281.5753704 | R85: 15564.53243 | S85: 14378.97559 | T85: 16414.52286 | U85: 0 | V85: 0 | W85: 0 | X85: 1860.80035 | Y85: 889.1372736 | Z85: 1286.796188 | AA85: 0 | AB85: 1983.570258 | AC85: 38.45206336 | AD85: 0 | AE85: 0 | AF85: 0 | AG85: 0 | AH85: 888.4183772 | AI85: 18.50814194 | AJ85: 475.0587715 | AK85: 386.0467531 | AL85: 677.6319478 | AM85: 0 | AN85: 0 | AO85: 0 | AT85: 5.001396142 | AU85: 10.48568767 | AV85: -22.53532155 | AW85: 15.3185342 | AX85: -26.75687069 | AY85: 14.15641367 | BA85: 44.7241305 | BB85: -98.06147208 | BD85: -97.9167313 | BE85: 75.53105739
B86: NT | C86: 3821.330948 | D86: 4111.084625 | E86: 4454.961978 | F86: 59002.60091 | G86: 59995.34664 | H86: 63268.40357 | I86: 12039.55751 | J86: 7536.268996 | K86: 9854.51758 | L86: 836.9105248 | M86: 939.3726714 | N86: 998.2498169 | O86: 508.0067854 | P86: 483.2970071 | Q86: 527.2077916 | R86: 27846.99984 | S86: 29412.11675 | T86: 30163.50376 | U86: 0 | V86: 0 | W86: 0 | X86: 0 | Y86: 0 | Z86: 0 | AA86: 0 | AB86: 0 | AC86: 0 | AD86: 0 | AE86: 0 | AF86: 0 | AG86: 0 | AH86: 0 | AI86: 0 | AJ86: 10704.07971 | AK86: 10357.50712 | AL86: 20347.44627 | AM86: 0 | AN86: 0 | AO86: 0 | AT86: 8.364638167 | AU86: 5.455517986 | AV86: 30.76122396 | AW86: 6.267708995 | AX86: 9.085672763 | AY86: 2.554685273 | BE86: 96.45119271
B87: ACT | C87: 6076.122821 | D87: 5902.352465 | E87: 7127.854732 | F87: 18160.71308 | G87: 18171.06475 | H87: 24006.1544 | I87: 0 | J87: 0 | K87: 0 | L87: 956.5551894 | M87: 767.1197926 | N87: 1005.526555 | O87: 301.9618241 | P87: 286.7608412 | Q87: 202.4287517 | R87: 24133.52298 | S87: 23218.62907 | T87: 31843.10785 | U87: 0 | V87: 0 | W87: 0 | X87: 0 | Y87: 4931.042045 | Z87: 0 | AA87: 0 | AB87: 0 | AC87: 0 | AD87: 0 | AE87: 0 | AF87: 0 | AG87: 0 | AH87: 0 | AI87: 0 | AJ87: 0 | AK87: 32287.23286 | AL87: 16929.64691 | AM87: 0 | AN87: 0 | AO87: 0 | AT87: 20.76294621 | AU87: 32.11198529 | AW87: 31.07816599 | AX87: -29.4085096 | AY87: 37.14465119 | BA87: -100 | BE87: -47.56550682
B88: National | C88: 5334.847832 | D88: 5314.940655 | E88: 5808.506883 | F88: 19022.68714 | G88: 19483.60358 | H88: 21402.13892 | I88: 6370.242987 | J88: 7419.169057 | K88: 7257.587602 | L88: 788.9084367 | M88: 790.1876531 | N88: 890.7670156 | O88: 350.6068019 | P88: 341.4113508 | Q88: 324.2585522 | R88: 17955.13145 | S88: 18673.352 | T88: 23910.05767 | U88: 19965.80462 | V88: 20699.06887 | W88: 23888.23515 | X88: 421.8885436 | Y88: 469.2939913 | Z88: 383.9226427 | AA88: 2619.869947 | AB88: 2881.567336 | AC88: 2718.207269 | AD88: 2973.199722 | AE88: 26687.11406 | AF88: 0 | AG88: 25098.17917 | AH88: 12735.65902 | AI88: 18.50814194 | AJ88: 763.4716046 | AK88: 1109.751506 | AL88: 1086.74175 | AM88: 0 | AN88: 0 | AO88: 0 | AT88: 9.28639208 | AU88: 9.846922493 | AV88: -2.177891546 | AW88: 12.72854138 | AX88: -5.024085631 | AY88: 28.04373674 | AZ88: 15.40729343 | BA88: -18.19144293 | BB88: -5.669139337 | BC88: -100 | BD88: -99.85467464 | BE88: -2.073415133
C91: Appendix 1.2. NHCDC 2019-20 to 2021-22 direct and indirect expenditure, by stream
C93: Expenditure | M93: Change
A94: Stream | D94: 2019-20 | G94: 2020-21 | J94: 2021-22 | M94: 2020-21 and 2021-22
C95: Direct | D95: Indirect | E95: Total | F95: Direct | G95: Indirect | H95: Total | I95: Direct | J95: Indirect | K95: Total | M95: Direct | N95: Indirect | O95: Total
C96: ($) | D96: ($) | E96: ($) | F96: ($) | G96: ($) | H96: ($) | I96: ($) | J96: ($) | K96: ($) | M96: (%) | N96: (%) | O96: (%)
A97: Admitted Acute | B97: Episodes | C97: 25456927365 | D97: 7308897120 | E97: 32765824485 | F97: 26373201359 | G97: 7431197778 | H97: 33804399137 | I97: 27821506402 | J97: 8334369501 | K97: 36155875903 | M97: =IFERROR((I97/F97-1)*100,"") -> 5.491578452 | N97: =IFERROR((J97/G97-1)*100,"") -> 12.15378394 | O97: =IFERROR((K97/H97-1)*100,"") -> 6.956126498
A98: Subacute | B98: Episodes | C98: 2149272429 | D98: 749518773 | E98: 2898791202 | F98: 2159175018 | G98: 733886827.1 | H98: 2893061845 | I98: 2406594006 | J98: 840238881.4 | K98: 3246832888 | M98: =IFERROR((I98/F98-1)*100,"") -> 11.45895939 | N98: 14.4916151 | O98: 12.22825718
B99: Phases | C99: 289429076.4 | D99: 94237918.15 | E99: 383666994.6 | F99: 327347740.8 | G99: 98846425.72 | H99: 426194166.5 | I99: 354260731 | J99: 113686744.8 | K99: 467947475.8 | M99: 8.221529242 | N99: 15.01351108 | O99: 9.796781039
A100: Emergency Department | B100: Episodes | C100: 4916296682 | D100: 1348519093 | E100: 6264815776 | F100: 5209929216 | G100: 1397969202 | H100: 6607898418 | I100: 5741337763 | J100: 1625461340 | K100: 7366799103 | M100: 10.19991875 | N100: 16.27304355 | O100: 11.48475107
A101: Non-admitted | B101: Episodes | C101: 6479527227 | D101: 1763491473 | E101: 8243018700 | F101: 7578383042 | G101: 2049108415 | H101: 9627491457 | I101: 8294682314 | J101: 2209605714 | K101: 10504288028 | M101: 9.451874729 | N101: 7.832543092 | O101: 9.107217341
A102: Mental Health
A103: Admitted | B103: Episodes | C103: 612604210.2 | D103: 202576712.6 | E103: 815180922.8 | F103: 637078962.7 | G103: 205014519 | H103: 842093481.8 | I103: 502048213.9 | J103: 165472776.3 | K103: 667520990.1 | M103: -21.19529238 | N103: -19.28728899 | O103: -20.73077341
A104: Admitted | B104: Phases | C104: 1105836323 | D104: 352226457.2 | E104: 1458062780 | F104: 1089276538 | G104: 347632123.9 | H104: 1436908662 | I104: 1428845859 | J104: 480660217.6 | K104: 1909506077 | M104: 31.17383962 | N104: 38.26691622 | O104: 32.88987165
A105: Community | B105: Episodes | C105: 90684793.34 | D105: 15398659.05 | E105: 106083452.4 | F105: 87172607.82 | G105: 19993490.87 | H105: 107166098.7 | I105: 69784081.51 | J105: 14307262.78 | K105: 84091344.29 | M105: -19.94723657 | N105: -28.44039658 | O105: -21.53176675
A106: Community | B106: Phases | C106: 927449269.3 | D106: 239042584.7 | E106: 1166491854 | F106: 924418458.5 | G106: 244964790.1 | H106: 1169383249 | I106: 1183877262 | J106: 326978448.4 | K106: 1510855710 | M106: 28.06724602 | N106: 33.4797741 | O106: 29.20107344
A107: Unlinked | B107: Episodes | C107: 3238613.678 | D107: 448153.9775 | E107: 3686767.656 | F107: 31395491.69 | G107: 3137633.898 | H107: 34533125.59 | I107: 0 | J107: 0 | K107: 0 | M107: -100 | N107: -100 | O107: -100
A108: Unlinked | B108: Phases | C108: 59342941.22 | D108: 7895080.777 | E108: 67238022 | F108: 6242657.324 | G108: 1335059.794 | H108: 7577717.118 | I108: 263.146957 | J108: 32.983314 | K108: 296.130271 | M108: -99.9957847 | N108: -99.99752945 | O108: -99.99609209
A109: Other | B109: Episodes | C109: 10808602.54 | D109: 3675980.741 | E109: 14484583.28 | F109: 10387215.28 | G109: 3738811.641 | H109: 14126026.92 | I109: 11823574.75 | J109: 2684427.612 | K109: 14508002.37 | M109: 13.82814774 | N109: -28.201047 | O109: 2.704054362
B110: Phases | C110: 0 | D110: 0 | E110: 0 | F110: 0 | G110: 0 | H110: 0 | I110: 0 | J110: 0 | K110: 0
A111: Total | C111: 4.210141753e+10 | D111: 1.208592801e+10 | E111: 5.418734554e+10 | F111: 4.443400831e+10 | G111: 1.253682508e+10 | H111: 5.697083338e+10 | I111: =SUM(I97:I110) -> 4.781476047e+10 | J111: =SUM(J97:J110) -> 1.411346535e+10 | K111: 6.192822582e+10 | M111: 7.608478937 | N111: 12.57607296 | O111: 8.701632288

Sheet 2 NHCDC Adjustments
C2: Appendix 2. NHCDC 2019-20 to 2021-22 WIP and exclude cost bucket, actual, by jurisdiction and stream
A3: Jurisdiction | Q3: Stream | AW3: 2020-21 to 2021-22 Change (%)
C4: Acute | F4: Sub-acute | L4: Emergency | O4: Non-admitted | R4: Admitted mental health | X4: Community mental health | AD4: Unlinked mental health | AJ4: Other | AP4: Total | AW4: Acute | AX4: Sub-acute | AZ4: Emergency | BA4: Non-admitted | BB4: Mental-Health | BH4: Other | BJ4: Total
G5: Episodes | J5: Phases | R5: Episodes | U5: Phases | X5: Episodes | AA5: Phases | AD5: Episodes | AG5: Phases | AJ5: Episodes | AM5: Phases | AP5: Episodes | AS5: Phases | AX5: Episodes | AY5: Phases | BB5: Admitted | BD5: Community | BF5: Unlinked | BH5: Episodes | BI5: Phases | BJ5: Episodes | BK5: Phases
C6: 2019-20 | D6: 2020-21 | E6: 2021-22 | F6: 2019-20 | G6: 2020-21 | H6: 2021-22 | I6: 2019-20 | J6: 2020-21 | K6: 2021-22 | L6: 2019-20 | M6: 2020-21 | N6: 2021-22 | O6: 2019-20 | P6: 2020-21 | Q6: 2021-22 | R6: 2019-20 | S6: 2020-21 | T6: 2021-22 | U6: 2019-20 | V6: 2020-21 | W6: 2021-22 | X6: 2019-20 | Y6: 2020-21 | Z6: 2021-22 | AA6: 2019-20 | AB6: 2020-21 | AC6: 2021-22 | AD6: 2019-20 | AE6: 2020-21 | AF6: 2021-22 | AG6: 2019-20 | AH6: 2020-21 | AI6: 2021-22 | AJ6: 2019-20 | AK6: 2020-21 | AL6: 2021-22 | AM6: 2019-20 | AN6: 2020-21 | AO6: 2021-22 | AP6: 2019-20 | AQ6: 2020-21 | AR6: 2021-22 | AS6: 2019-20 | AT6: 2020-21 | AU6: 2021-22 | BB6: Episodes | BC6: Phases | BD6: Episodes | BE6: Phases | BF6: Episodes | BG6: Phases
A7: WIP Activity | B7: NSW | C7: 3 | D7: 1 | E7: 5 | F7: 7 | G7: 6 | H7: 4 | I7: 0 | J7: 0 | K7: 0 | L7: 0 | M7: 0 | N7: 0 | O7: 0 | P7: 0 | Q7: 0 | R7: 0 | S7: 0 | T7: 0 | U7: 21 | V7: 9 | W7: 16 | X7: 0 | Y7: 0 | Z7: 0 | AA7: 0 | AB7: 0 | AC7: 0 | AD7: 0 | AE7: 0 | AF7: 0 | AG7: 0 | AH7: 0 | AI7: 0 | AJ7: 0 | AK7: 0 | AL7: 0 | AM7: 0 | AN7: 0 | AO7: 0 | AP7: 10 | AQ7: 7 | AR7: 9 | AS7: 21 | AT7: 9 | AU7: 16 | AW7: =IFERROR((E7/D7-1)*100,"") -> 400 | AX7: =IFERROR((H7/G7-1)*100,"") -> -33.33333333 | AY7: =IFERROR((K7/J7-1)*100,"") ->  | AZ7: =IFERROR((N7/M7-1)*100,"") ->  | BA7: =IFERROR((Q7/P7-1)*100,"") ->  | BB7: =IFERROR((T7/S7-1)*100,"") ->  | BC7: =IFERROR((W7/V7-1)*100,"") -> 77.77777778 | BD7: =IFERROR((Z7/Y7-1)*100,"") ->  | BE7: =IFERROR((AC7/AB7-1)*100,"") ->  | BF7: =IFERROR((AF7/AE7-1)*100,"") ->  | BG7: =IFERROR((AI7/AH7-1)*100,"") ->  | BH7: =IFERROR((AL7/AK7-1)*100,"") ->  | BI7: =IFERROR((AO7/AN7-1)*100,"") ->  | BJ7: =IFERROR((AR7/AQ7-1)*100,"") -> 28.57142857 | BK7: =IFERROR((AU7/AT7-1)*100,"") -> 77.77777778
B8: Vic | C8: 3 | D8: 2 | E8: 3 | F8: 3 | G8: 2 | H8: 5 | I8: 0 | J8: 0 | K8: 0 | L8: 0 | M8: 0 | N8: 0 | O8: 0 | P8: 0 | Q8: 0 | R8: 25 | S8: 26 | T8: 28 | U8: 0 | V8: 3 | W8: 5 | X8: 0 | Y8: 0 | Z8: 0 | AA8: 0 | AB8: 0 | AC8: 0 | AD8: 0 | AE8: 0 | AF8: 0 | AG8: 0 | AH8: 0 | AI8: 0 | AJ8: 0 | AK8: 0 | AL8: 0 | AM8: 0 | AN8: 0 | AO8: 0 | AP8: 31 | AQ8: 30 | AR8: 36 | AS8: 0 | AT8: 3 | AU8: 5 | AW8: =IFERROR((E8/D8-1)*100,"") -> 50 | AX8: =IFERROR((H8/G8-1)*100,"") -> 150 | AY8: =IFERROR((K8/J8-1)*100,"") ->  | AZ8: =IFERROR((N8/M8-1)*100,"") ->  | BA8: =IFERROR((Q8/P8-1)*100,"") ->  | BB8: =IFERROR((T8/S8-1)*100,"") -> 7.692307692 | BC8: =IFERROR((W8/V8-1)*100,"") -> 66.66666667 | BD8: =IFERROR((Z8/Y8-1)*100,"") ->  | BE8: =IFERROR((AC8/AB8-1)*100,"") ->  | BF8: =IFERROR((AF8/AE8-1)*100,"") ->  | BG8: =IFERROR((AI8/AH8-1)*100,"") ->  | BH8: =IFERROR((AL8/AK8-1)*100,"") ->  | BI8: =IFERROR((AO8/AN8-1)*100,"") ->  | BJ8: =IFERROR((AR8/AQ8-1)*100,"") -> 20 | BK8: =IFERROR((AU8/AT8-1)*100,"") -> 66.66666667
B9: Qld | C9: 0 | D9: 0 | E9: 2 | F9: 9 | G9: 15 | H9: 8 | I9: 0 | J9: 0 | K9: 0 | L9: 0 | M9: 0 | N9: 0 | O9: 0 | P9: 0 | Q9: 0 | R9: 26 | S9: 19 | T9: 11 | U9: 0 | V9: 25 | W9: 13 | X9: 0 | Y9: 0 | Z9: 0 | AA9: 0 | AB9: 0 | AC9: 0 | AD9: 0 | AE9: 0 | AF9: 0 | AG9: 0 | AH9: 0 | AI9: 0 | AJ9: 0 | AK9: 0 | AL9: 0 | AM9: 0 | AN9: 0 | AO9: 0 | AP9: 35 | AQ9: 34 | AR9: 21 | AS9: 0 | AT9: 25 | AU9: 13 | AX9: -46.66666667 | BB9: -42.10526316 | BC9: -48 | BJ9: -38.23529412 | BK9: -48
B10: SA | C10: 1 | D10: 1 | E10: 0 | F10: 0 | G10: 1 | H10: 0 | I10: 0 | J10: 0 | K10: 0 | L10: 0 | M10: 0 | N10: 0 | O10: 0 | P10: 0 | Q10: 0 | R10: 10 | S10: 0 | T10: 0 | U10: 2 | V10: 0 | W10: 34 | X10: 0 | Y10: 0 | Z10: 0 | AA10: 0 | AB10: 0 | AC10: 0 | AD10: 0 | AE10: 0 | AF10: 0 | AG10: 0 | AH10: 0 | AI10: 0 | AJ10: 0 | AK10: 0 | AL10: 0 | AM10: 0 | AN10: 0 | AO10: 0 | AP10: 11 | AQ10: 2 | AR10: 0 | AS10: 2 | AT10: 0 | AU10: 34 | AW10: -100 | AX10: -100 | BJ10: -100
B11: WA | C11: 1 | D11: 0 | E11: 2 | F11: 1 | G11: 0 | H11: 4 | I11: 0 | J11: 0 | K11: 0 | L11: 0 | M11: 0 | N11: 0 | O11: 0 | P11: 0 | Q11: 0 | R11: 25 | S11: 15 | T11: 28 | U11: 0 | V11: 0 | W11: 0 | X11: 0 | Y11: 0 | Z11: 0 | AA11: 0 | AB11: 0 | AC11: 0 | AD11: 0 | AE11: 0 | AF11: 0 | AG11: 0 | AH11: 0 | AI11: 0 | AJ11: 0 | AK11: 0 | AL11: 0 | AM11: 0 | AN11: 0 | AO11: 0 | AP11: 27 | AQ11: 15 | AR11: 34 | AS11: 0 | AT11: 0 | AU11: 0 | BB11: 86.66666667 | BJ11: 126.6666667
B12: Tas | C12: 0 | D12: 0 | E12: 0 | F12: 1 | G12: 0 | H12: 1 | I12: 0 | J12: 0 | K12: 0 | L12: 0 | M12: 0 | N12: 0 | O12: 0 | P12: 0 | Q12: 0 | R12: 2 | S12: 1 | T12: 0 | U12: 0 | V12: 0 | W12: 0 | X12: 0 | Y12: 0 | Z12: 0 | AA12: 0 | AB12: 0 | AC12: 0 | AD12: 0 | AE12: 0 | AF12: 0 | AG12: 0 | AH12: 0 | AI12: 0 | AJ12: 0 | AK12: 0 | AL12: 0 | AM12: 0 | AN12: 0 | AO12: 0 | AP12: 3 | AQ12: 1 | AR12: 1 | AS12: 0 | AT12: 0 | AU12: 0 | BB12: -100 | BJ12: 0
B13: NT | C13: 0 | D13: 0 | E13: 1 | F13: 1 | G13: 0 | H13: 4 | I13: 0 | J13: 0 | K13: 0 | L13: 0 | M13: 0 | N13: 0 | O13: 0 | P13: 0 | Q13: 0 | R13: 0 | S13: 0 | T13: 0 | U13: 0 | V13: 0 | W13: 0 | X13: 0 | Y13: 0 | Z13: 0 | AA13: 0 | AB13: 0 | AC13: 0 | AD13: 0 | AE13: 0 | AF13: 0 | AG13: 0 | AH13: 0 | AI13: 0 | AJ13: 0 | AK13: 0 | AL13: 0 | AM13: 0 | AN13: 0 | AO13: 0 | AP13: 1 | AQ13: 0 | AR13: 5 | AS13: 0 | AT13: 0 | AU13: 0
B14: ACT | C14: 0 | D14: 2 | E14: 0 | F14: 2 | G14: 0 | H14: 2 | I14: 0 | J14: 0 | K14: 0 | L14: 0 | M14: 0 | N14: 0 | O14: 0 | P14: 0 | Q14: 0 | R14: 3 | S14: 3 | T14: 4 | U14: 0 | V14: 0 | W14: 0 | X14: 0 | Y14: 0 | Z14: 0 | AA14: 0 | AB14: 0 | AC14: 0 | AD14: 0 | AE14: 0 | AF14: 0 | AG14: 0 | AH14: 0 | AI14: 0 | AJ14: 0 | AK14: 0 | AL14: 0 | AM14: 0 | AN14: 0 | AO14: 0 | AP14: 5 | AQ14: 5 | AR14: 6 | AS14: 0 | AT14: 0 | AU14: 0 | AW14: -100 | BB14: 33.33333333 | BJ14: 20
B15: National | C15: 8 | D15: 6 | E15: 13 | F15: 24 | G15: 24 | H15: 28 | I15: 0 | J15: 0 | K15: 0 | L15: 0 | M15: 0 | N15: 0 | O15: 0 | P15: 0 | Q15: 0 | R15: 91 | S15: 64 | T15: 71 | U15: 23 | V15: 37 | W15: 68 | X15: 0 | Y15: 0 | Z15: 0 | AA15: 0 | AB15: 0 | AC15: 0 | AD15: 0 | AE15: 0 | AF15: 0 | AG15: 0 | AH15: 0 | AI15: 0 | AJ15: 0 | AK15: 0 | AL15: 0 | AM15: 0 | AN15: 0 | AO15: 0 | AP15: 123 | AQ15: 94 | AR15: 112 | AS15: 23 | AT15: 37 | AU15: 68 | AW15: 116.6666667 | AX15: 16.66666667 | BB15: 10.9375 | BC15: 83.78378378 | BJ15: 19.14893617 | BK15: 83.78378378
A16: WIP Expenditure ($) | B16: NSW | C16: 2960597.154 | D16: 239246.6659 | E16: 4902425.127 | F16: 2563329.608 | G16: 2118280.216 | H16: 1053286.093 | I16: 0 | J16: 0 | K16: 0 | L16: 0 | M16: 0 | N16: 0 | O16: 0 | P16: 0 | Q16: 0 | R16: 0 | S16: 0 | T16: 0 | U16: 8648889.813 | V16: 1792038.474 | W16: 4482674.673 | X16: 0 | Y16: 0 | Z16: 0 | AA16: 0 | AB16: 0 | AC16: 0 | AD16: 0 | AE16: 0 | AF16: 0 | AG16: 0 | AH16: 0 | AI16: 0 | AJ16: 0 | AK16: 0 | AL16: 0 | AM16: 0 | AN16: 0 | AO16: 0 | AP16: 5523926.762 | AQ16: 2357526.882 | AR16: 5955711.22 | AS16: 8648889.813 | AT16: 1792038.474 | AU16: 4482674.673 | AW16: 1949.109068 | AX16: -50.27635698 | BC16: 150.1438858 | BJ16: 152.625379 | BK16: 150.1438858
B17: Vic | C17: 5272608.349 | D17: 806881.1568 | E17: 1841174.862 | F17: 2268947.159 | G17: 649597.8067 | H17: 1718333.546 | I17: 0 | J17: 0 | K17: 0 | L17: 0 | M17: 0 | N17: 0 | O17: 0 | P17: 0 | Q17: 0 | R17: 18367543.62 | S17: 26513520.45 | T17: 32333772.89 | U17: 0 | V17: 1597476.891 | W17: 6639510.019 | X17: 0 | Y17: 0 | Z17: 0 | AA17: 0 | AB17: 0 | AC17: 0 | AD17: 0 | AE17: 0 | AF17: 0 | AG17: 0 | AH17: 0 | AI17: 0 | AJ17: 0 | AK17: 0 | AL17: 0 | AM17: 0 | AN17: 0 | AO17: 0 | AP17: 25909099.13 | AQ17: 27969999.41 | AR17: 35893281.3 | AS17: 0 | AT17: 1597476.891 | AU17: 6639510.019 | AW17: 128.1841441 | AX17: 164.5226828 | BB17: 21.95201673 | BC17: 315.6247927 | BJ17: 28.32778711 | BK17: 315.6247927
B18: Qld | C18: 0 | D18: 0 | E18: 2496334.521 | F18: 7749818.903 | G18: 11646446.97 | H18: 5324844.114 | I18: 0 | J18: 0 | K18: 0 | L18: 0 | M18: 0 | N18: 0 | O18: 0 | P18: 0 | Q18: 0 | R18: 4554468.711 | S18: 9895090.977 | T18: 14336022.29 | U18: 0 | V18: 9578515.049 | W18: 11780931.42 | X18: 0 | Y18: 0 | Z18: 0 | AA18: 0 | AB18: 0 | AC18: 0 | AD18: 0 | AE18: 0 | AF18: 0 | AG18: 0 | AH18: 0 | AI18: 0 | AJ18: 0 | AK18: 0 | AL18: 0 | AM18: 0 | AN18: 0 | AO18: 0 | AP18: 12304287.61 | AQ18: 21541537.94 | AR18: 22157200.92 | AS18: 0 | AT18: 9578515.049 | AU18: 11780931.42 | AX18: -54.27923959 | BB18: 44.88014631 | BC18: 22.99329659 | BJ18: 2.858027023 | BK18: 22.99329659
B19: SA | C19: 4309900.574 | D19: 2139948.602 | E19: 0 | F19: 0 | G19: 3637623.96 | H19: 0 | I19: 0 | J19: 0 | K19: 0 | L19: 0 | M19: 0 | N19: 0 | O19: 0 | P19: 0 | Q19: 0 | R19: 12574891.89 | S19: 0 | T19: 0 | U19: 29085.46174 | V19: 0 | W19: 13107080.2 | X19: 0 | Y19: 0 | Z19: 0 | AA19: 0 | AB19: 0 | AC19: 0 | AD19: 0 | AE19: 0 | AF19: 0 | AG19: 0 | AH19: 0 | AI19: 0 | AJ19: 0 | AK19: 0 | AL19: 0 | AM19: 0 | AN19: 0 | AO19: 0 | AP19: 16884792.47 | AQ19: 5777572.562 | AR19: 0 | AS19: 29085.46174 | AT19: 0 | AU19: 13107080.2 | AW19: -100 | AX19: -100 | BJ19: -100
B20: WA | C20: 703855.4649 | D20: 0 | E20: 2422903.832 | F20: 1277.1827 | G20: 0 | H20: 3214498.841 | I20: 0 | J20: 0 | K20: 0 | L20: 0 | M20: 0 | N20: 0 | O20: 0 | P20: 0 | Q20: 0 | R20: 15853781.3 | S20: 16069659.55 | T20: 35577478.78 | U20: 0 | V20: 0 | W20: 0 | X20: 0 | Y20: 0 | Z20: 0 | AA20: 0 | AB20: 0 | AC20: 0 | AD20: 0 | AE20: 0 | AF20: 0 | AG20: 0 | AH20: 0 | AI20: 0 | AJ20: 0 | AK20: 0 | AL20: 0 | AM20: 0 | AN20: 0 | AO20: 0 | AP20: 16558913.95 | AQ20: 16069659.55 | AR20: 41214881.46 | AS20: 0 | AT20: 0 | AU20: 0 | BB20: 121.3953486 | BJ20: 156.4763822
B21: Tas | C21: 0 | D21: 0 | E21: 0 | F21: 173299.116 | G21: 0 | H21: 485220.2503 | I21: 0 | J21: 0 | K21: 0 | L21: 0 | M21: 0 | N21: 0 | O21: 0 | P21: 0 | Q21: 0 | R21: 4539.929878 | S21: 578698.7918 | T21: 0 | U21: 0 | V21: 0 | W21: 0 | X21: 0 | Y21: 0 | Z21: 0 | AA21: 0 | AB21: 0 | AC21: 0 | AD21: 0 | AE21: 0 | AF21: 0 | AG21: 0 | AH21: 0 | AI21: 0 | AJ21: 0 | AK21: 0 | AL21: 0 | AM21: 0 | AN21: 0 | AO21: 0 | AP21: 177839.0459 | AQ21: 578698.7918 | AR21: 485220.2503 | AS21: 0 | AT21: 0 | AU21: 0 | BB21: -100 | BJ21: -16.15322907
B22: NT | C22: 0 | D22: 0 | E22: 665890.7114 | F22: 426274.6829 | G22: 0 | H22: 2662027.771 | I22: 0 | J22: 0 | K22: 0 | L22: 0 | M22: 0 | N22: 0 | O22: 0 | P22: 0 | Q22: 0 | R22: 0 | S22: 0 | T22: 0 | U22: 0 | V22: 0 | W22: 0 | X22: 0 | Y22: 0 | Z22: 0 | AA22: 0 | AB22: 0 | AC22: 0 | AD22: 0 | AE22: 0 | AF22: 0 | AG22: 0 | AH22: 0 | AI22: 0 | AJ22: 0 | AK22: 0 | AL22: 0 | AM22: 0 | AN22: 0 | AO22: 0 | AP22: 426274.6829 | AQ22: 0 | AR22: 3327918.483 | AS22: 0 | AT22: 0 | AU22: 0
B23: ACT | C23: 0 | D23: 226990.887 | E23: 0 | F23: 372358.4746 | G23: 0 | H23: 346375.5662 | I23: 0 | J23: 0 | K23: 0 | L23: 0 | M23: 0 | N23: 0 | O23: 0 | P23: 0 | Q23: 0 | R23: 3569962.872 | S23: 2069149.415 | T23: 1606538.592 | U23: 0 | V23: 0 | W23: 0 | X23: 0 | Y23: 0 | Z23: 0 | AA23: 0 | AB23: 0 | AC23: 0 | AD23: 0 | AE23: 0 | AF23: 0 | AG23: 0 | AH23: 0 | AI23: 0 | AJ23: 0 | AK23: 0 | AL23: 0 | AM23: 0 | AN23: 0 | AO23: 0 | AP23: 3942321.346 | AQ23: 2296140.303 | AR23: 1952914.158 | AS23: 0 | AT23: 0 | AU23: 0 | AW23: -100 | BB23: -22.3575359 | BJ23: -14.94796044
B24: National | C24: 13246961.54 | D24: 3413067.312 | E24: 12328729.05 | F24: 13555305.13 | G24: 18051948.95 | H24: 14804586.18 | I24: 0 | J24: 0 | K24: 0 | L24: 0 | M24: 0 | N24: 0 | O24: 0 | P24: 0 | Q24: 0 | R24: 54925188.33 | S24: 55126119.19 | T24: 83853812.56 | U24: 8677975.275 | V24: 12968030.41 | W24: 36010196.31 | X24: 0 | Y24: 0 | Z24: 0 | AA24: 0 | AB24: 0 | AC24: 0 | AD24: 0 | AE24: 0 | AF24: 0 | AG24: 0 | AH24: 0 | AI24: 0 | AJ24: 0 | AK24: 0 | AL24: 0 | AM24: 0 | AN24: 0 | AO24: 0 | AP24: 81727454.99 | AQ24: 76591135.45 | AR24: 110987127.8 | AS24: 8677975.275 | AT24: 12968030.41 | AU24: 36010196.31 | AW24: 261.2213861 | AX24: -17.98898711 | BB24: 52.11267143 | BC24: 177.6843912 | BJ24: 44.90858131 | BK24: 177.6843912
A25: Exclude Cost Bucket Expenditure ($) | B25: NSW | C25: 131094511.8 | D25: -62029132.73 | E25: 0 | F25: 10881414.61 | G25: -4299855.873 | H25: 0 | I25: 2293658.997 | J25: -1089285.868 | K25: 0 | L25: 27324964.04 | M25: -15141812.3 | N25: 0 | O25: 33065002.49 | P25: -15761147.45 | Q25: -62924.18584 | R25: 1023.314857 | S25: -11571.92088 | T25: 0 | U25: 12067018.35 | V25: -4905213.433 | W25: 0 | X25: 0 | Y25: 0 | Z25: 0 | AA25: 9467548.998 | AB25: -5388733.51 | AC25: 0 | AD25: 0 | AE25: 0 | AF25: 0 | AG25: 218888.6048 | AH25: -537.252217 | AI25: 0 | AJ25: 13845.47139 | AK25: -7982.21979 | AL25: 0 | AM25: 7350.702176 | AN25: -408.82478 | AO25: 0 | AP25: 202380761.7 | AQ25: -97251502.49 | AR25: -62924.18584 | AS25: 24054465.65 | AT25: -11384178.89 | AU25: 0 | AW25: -100 | AX25: -100 | AY25: -100 | AZ25: -100 | BA25: -99.60076393 | BB25: -100 | BC25: -100 | BE25: -100 | BG25: -100 | BH25: -100 | BI25: -100 | BJ25: -99.93529747 | BK25: -100
B26: Vic | C26: 295.9154 | D26: 7.3915 | E26: 0 | F26: 9.7441 | G26: 677.4298 | H26: 0 | I26: 0.4773 | J26: 63.8519 | K26: 0 | L26: 75.8139 | M26: 1944.2422 | N26: 0 | O26: 4.8272 | P26: 20.4974 | Q26: 0 | R26: 0.183 | S26: 14.8232 | T26: 0 | U26: 0 | V26: 53.9988 | W26: 0 | X26: 0 | Y26: 0 | Z26: 0 | AA26: 0 | AB26: 0 | AC26: 0 | AD26: 0 | AE26: 0 | AF26: 0 | AG26: 0.177 | AH26: 0 | AI26: 0 | AJ26: 0 | AK26: 0 | AL26: 0 | AM26: 0 | AN26: 0 | AO26: 0 | AP26: 386.4836 | AQ26: 2664.3841 | AR26: 0 | AS26: 0.6543 | AT26: 117.8507 | AU26: 0 | AW26: -100 | AX26: -100 | AY26: -100 | AZ26: -100 | BA26: -100 | BB26: -100 | BC26: -100 | BJ26: -100 | BK26: -100
B27: Qld | C27: 15532750.66 | D27: 26018498.85 | E27: 14864356.69 | F27: 2061879.502 | G27: 1921943.3 | H27: 1884538.484 | I27: 250590.6644 | J27: 510226.4161 | K27: 308930.0049 | L27: 3097752.886 | M27: 5950209.563 | N27: 2461416.432 | O27: 5364387.161 | P27: 11174335.79 | Q27: 8124836.204 | R27: 354556.2099 | S27: 975809.614 | T27: 487126.1264 | U27: 231614.7779 | V27: 917803.9381 | W27: 1032540.627 | X27: 49451.62396 | Y27: 49276.0399 | Z27: 23659.60041 | AA27: 301217.3444 | AB27: 731719.6824 | AC27: 818809.6403 | AD27: 60.6372 | AE27: 232988.8713 | AF27: 9.3159 | AG27: 3585.74244 | AH27: 144325.36 | AI27: 28982.31138 | AJ27: 61212.56654 | AK27: 55521.0947 | AL27: 38734.57819 | AM27: 0 | AN27: 488.9758 | AO27: 0 | AP27: 26522051.25 | AQ27: 46378583.12 | AR27: 27884677.43 | AS27: 787008.5291 | AT27: 2304564.372 | AU27: 2189262.583 | AW27: -42.87004499 | AX27: -1.946197664 | AY27: -39.45236955 | AZ27: -58.63311358 | BA27: -27.29020898 | BB27: -50.07979841 | BC27: 12.50121992 | BD27: -51.98558882 | BE27: 11.90209311 | BF27: -99.99600157 | BG27: -79.9187673 | BH27: -30.23448403 | BI27: -100 | BJ27: -39.87596095 | BK27: -5.003192378
B28: SA | C28: 0 | D28: 0 | E28: 0 | F28: 0 | G28: 0 | H28: 0 | I28: 0 | J28: 0 | K28: 0 | L28: 0 | M28: 0 | N28: 0 | O28: 0 | P28: 0 | Q28: 0 | R28: 0 | S28: 0 | T28: 0 | U28: 0 | V28: 0 | W28: 0 | X28: 0 | Y28: 0 | Z28: 0 | AA28: 0 | AB28: 0 | AC28: 0 | AD28: 0 | AE28: 0 | AF28: 0 | AG28: 0 | AH28: 0 | AI28: 0 | AJ28: 0 | AK28: 0 | AL28: 0 | AM28: 0 | AN28: 0 | AO28: 0 | AP28: 0 | AQ28: 0 | AR28: 0 | AS28: 0 | AT28: 0 | AU28: 0
B29: WA | C29: 0 | D29: 0 | E29: 0 | F29: 0 | G29: 0 | H29: 0 | I29: 0 | J29: 0 | K29: 0 | L29: 0 | M29: 0 | N29: 0 | O29: 0 | P29: 0 | Q29: 0 | R29: 0 | S29: 0 | T29: 0 | U29: 0 | V29: 0 | W29: 0 | X29: 0 | Y29: 0 | Z29: 0 | AA29: 0 | AB29: 0 | AC29: 0 | AD29: 0 | AE29: 0 | AF29: 0 | AG29: 0 | AH29: 0 | AI29: 0 | AJ29: 0 | AK29: 0 | AL29: 0 | AM29: 0 | AN29: 0 | AO29: 0 | AP29: 0 | AQ29: 0 | AR29: 0 | AS29: 0 | AT29: 0 | AU29: 0
B30: Tas | C30: 0 | D30: 0 | E30: 0 | F30: 0 | G30: 0 | H30: 0 | I30: 0 | J30: 0 | K30: 0 | L30: 0 | M30: 0 | N30: 0 | O30: 0 | P30: 0 | Q30: 0 | R30: 0 | S30: 0 | T30: 0 | U30: 0 | V30: 0 | W30: 0 | X30: 0 | Y30: 0 | Z30: 0 | AA30: 0 | AB30: 0 | AC30: 0 | AD30: 0 | AE30: 0 | AF30: 0 | AG30: 0 | AH30: 0 | AI30: 0 | AJ30: 0 | AK30: 0 | AL30: 0 | AM30: 0 | AN30: 0 | AO30: 0 | AP30: 0 | AQ30: 0 | AR30: 0 | AS30: 0 | AT30: 0 | AU30: 0
B31: NT | C31: 4825082.31 | D31: 7566084.332 | E31: 3547779.576 | F31: 36294.49944 | G31: 28891.28444 | H31: 4831.358268 | I31: 6158.213696 | J31: 3128.649992 | K31: 11200.26298 | L31: 824237.9507 | M31: 35992554.17 | N31: 38680927.81 | O31: 4495029.449 | P31: 4948782.559 | Q31: 4919313.6 | R31: 129304.2177 | S31: 69230.88195 | T31: 2307.023324 | U31: 0 | V31: 0 | W31: 0 | X31: 0 | Y31: 0 | Z31: 0 | AA31: 0 | AB31: 0 | AC31: 0 | AD31: 0 | AE31: 0 | AF31: 0 | AG31: 0 | AH31: 0 | AI31: 0 | AJ31: 0 | AK31: 57926.09105 | AL31: 0 | AM31: 0 | AN31: 0 | AO31: 4470.161181 | AP31: 10309948.43 | AQ31: 48663469.32 | AR31: 47155159.37 | AS31: 6158.213696 | AT31: 3128.649992 | AU31: 15670.42416 | AW31: -53.10943652 | AX31: -83.27745422 | AY31: 257.9902837 | AZ31: 7.469249392 | BA31: -0.5954789436 | BB31: -96.6676384 | BH31: -100 | BJ31: -3.099470663 | BK31: 400.86856
B32: ACT | C32: -2028.468676 | D32: 0 | E32: 0 | F32: -145227.7306 | G32: 0 | H32: 0 | I32: 0 | J32: 0 | K32: 0 | L32: 0 | M32: 0 | N32: 0 | O32: -44902.18647 | P32: 0 | Q32: 0 | R32: -39450.92427 | S32: 0 | T32: 0 | U32: 0 | V32: 0 | W32: 0 | X32: 0 | Y32: 0 | Z32: 0 | AA32: 0 | AB32: 0 | AC32: 0 | AD32: 0 | AE32: 0 | AF32: 0 | AG32: 0 | AH32: 0 | AI32: 0 | AJ32: 0 | AK32: 0 | AL32: 0 | AM32: 0 | AN32: 0 | AO32: 0 | AP32: -231609.31 | AQ32: 0 | AR32: 0 | AS32: 0 | AT32: 0 | AU32: 0
B33: National | C33: 151450612.2 | D33: -28444542.16 | E33: 18412136.26 | F33: 12834370.62 | G33: -2348343.859 | H33: 1889369.843 | I33: 2550408.353 | J33: -575866.95 | K33: 320130.2679 | L33: 31247030.69 | M33: 26802895.68 | N33: 41142344.24 | O33: 42879521.74 | P33: 361991.3999 | Q33: 12981225.62 | R33: 445433.0011 | S33: 1033483.398 | T33: 489433.1498 | U33: 12298633.12 | V33: -3987355.496 | W33: 1032540.627 | X33: 49451.62396 | Y33: 49276.0399 | Z33: 23659.60041 | AA33: 9768766.342 | AB33: -4657013.828 | AC33: 818809.6403 | AD33: 60.6372 | AE33: 232988.8713 | AF33: 9.3159 | AG33: 222474.5243 | AH33: 143788.1078 | AI33: 28982.31138 | AJ33: 75058.03793 | AK33: 105464.966 | AL33: 38734.57819 | AM33: 7350.702176 | AN33: 80.15102 | AO33: 4470.161181 | AP33: 238981538.6 | AQ33: -2206785.663 | AR33: 74976912.61 | AS33: 24847633.05 | AT33: -9076368.015 | AU33: 2204933.008 | AW33: -164.7299442 | AX33: -180.4554169 | AY33: -155.5910124 | AZ33: 53.49962456 | BA33: 3486.059122 | BB33: -52.64237911 | BC33: -125.8953742 | BD33: -51.98558882 | BE33: -117.5822892 | BF33: -99.99600157 | BG33: -79.84373546 | BH33: -63.2725637 | BI33: 5477.173168 | BJ33: -3497.562069 | BK33: -124.2931204

Sheet 3 Acute Cost Wghts V11
A1: NATIONAL HOSPITAL COST DATA COLLECTION | D1: (National)
A2: Appendix 3. NHCDC 2021-22 admitted acute Cost Weights for AR-DRG Version 11.0
A3: Public Sector - Sample
F4: Average Cost per AR-DRG
A5: AR-DRG v11.0 | B5: Description | C5: Cost | D5: Number of | E5: ALOS | F5: Total | G5: Direct | H5: Indirect | I5: Ward Medical | K5: Ward Nursing | M5: Non-Clinical | N5: Pathology | P5: Imaging | R5: Allied | T5: Pharmacy | V5: Critical | X5: Oper Room | Z5: ED | AB5: Ward Supplies | AD5: SPS | AF5: Prosthesis | AG5: Oncosts | AH5: Hotel | AI5: Deprec | AJ5: Patient Travel | AL5: Estab
C6: weight | D6: Seps | E6: (Days) | F6: Cost | G6: Cost | H6: Cost | I6: Direct | J6: Indirect | K6: Direct | L6: Indirect | N6: Direct | O6: Indirect | P6: Direct | Q6: Indirect | R6: Direct | S6: Indirect | T6: Direct | U6: Indirect | V6: Direct | W6: Indirect | X6: Direct | Y6: Indirect | Z6: Direct | AA6: Indirect | AB6: Direct | AC6: Indirect | AD6: Direct | AE6: Indirect | AJ6: Direct | AK6: Indirect | AL6: Count
A7: product | B7: Description | C7: Cw | D7: Seps | E7: Alos | F7: Total_Cost | G7: Direct_Cost | H7: Overhead_Cost | I7: wardmedDir | J7: wardmedOhd | K7: WardNursDir | L7: WardNursOhd | M7: NonClinical | N7: PathDir | O7: PathOhd | P7: ImagDir | Q7: ImagOhd | R7: AlliedDir | S7: AlliedOhd | T7: PharmDir | U7: PharmOhd | V7: CriticalDir | W7: CriticalOhd | X7: ORDir | Y7: OROhd | Z7: EDDir | AA7: EDOhd | AB7: WardSuppliesDir | AC7: WardSuppliesOhd | AD7: SPSDir | AE7: SPSOhd | AF7: Pros | AG7: Oncosts | AH7: Hotel | AI7: Deprec | AJ7: PatTravDir | AK7: PatTravOhd | AL7: estab_count
A8: 801A | B8: GIs Unrelated to Principal Diagnosis, Major Complexity | C8: 10.44518454 | D8: 1035 | E8: 23.03671498 | F8: 60670.92627 | G8: 46931.32514 | H8: 13739.60113 | I8: 6337.428652 | J8: 299.6746885 | K8: 11718.39689 | L8: 789.16182 | M8: 3669.664484 | N8: 2328.825114 | O8: 250.4750766 | P8: 1876.519741 | Q8: 376.6270121 | R8: 2056.242883 | S8: 689.4162997 | T8: 2099.580398 | U8: 170.7635462 | V8: 5019.796164 | W8: 1137.819951 | X8: 4062.415703 | Y8: 959.7973195 | Z8: 80.53281021 | AA8: 17.74963052 | AB8: 2215.8477 | AC8: 2452.885248 | AD8: 620.4437128 | AE8: 131.6027548 | AF8: 1398.414794 | AG8: 4906.361461 | AH8: 2758.87352 | AI8: 2099.854 | AJ8: 133.2052624 | AK8: 12.54963176 | AL8: 109
A9: 801B | B9: GIs Unrelated to Principal Diagnosis, Intermediate Complexity | C9: 4.322420163 | D9: 1338 | E9: 9.363976084 | F9: 25106.80727 | G9: 19161.42818 | H9: 5945.379086 | I9: 2818.842062 | J9: 128.3283881 | K9: 4490.790773 | L9: 338.4436522 | M9: 1429.136059 | N9: 685.8897397 | O9: 90.7262224 | P9: 824.5132978 | Q9: 158.7740975 | R9: 680.6713811 | S9: 245.8566551 | T9: 601.1121042 | U9: 56.42198029 | V9: 1042.710791 | W9: 243.1954177 | X9: 3193.146148 | Y9: 785.7956636 | Z9: 54.51201615 | AA9: 14.68062971 | AB9: 777.9573245 | AC9: 1033.481222 | AD9: 333.3898487 | AE9: 61.10105043 | AF9: 690.2542002 | AG9: 2094.440481 | AH9: 1207.395882 | AI9: 940.6764361 | AJ9: 76.5016313 | AK9: 8.06211374 | AL9: 145
A10: 801C | B10: GIs Unrelated to Principal Diagnosis, Minor Complexity | C10: 1.762736672 | D10: 1549 | E10: 2.971594577 | F10: 10238.86809 | G10: 7792.113407 | H10: 2446.754687 | I10: 1077.812944 | J10: 47.29265713 | K10: 1327.715619 | L10: 120.7085177 | M10: 515.8899053 | N10: 214.1151848 | O10: 33.98266508 | P10: 377.3266178 | Q10: 69.87792893 | R10: 161.7788176 | S10: 64.78337575 | T10: 163.537476 | U10: 16.7213154 | V10: 245.4708834 | W10: 62.1181622 | X10: 2323.00639 | Y10: 583.1663289 | Z10: 28.67721823 | AA10: 7.516142109 | AB10: 337.2862928 | AC10: 384.0664347 | AD10: 116.3289809 | AE10: 22.34265294 | AF10: 287.8037105 | AG10: 853.8591251 | AH10: 376.5956367 | AI10: 381.6300759 | AJ10: 34.73068824 | AK10: 2.726347923 | AL10: 176
A11: 960Z | B11: Ungroupable | C11: 1.667034864 | D11: 266 | E11: 5.165413534 | F11: 9682.983485 | G11: 7602.633428 | H11: 2080.350057 | I11: 1482.2263 | J11: 61.68569547 | K11: 1500.228947 | L11: 109.582549 | M11: 705.7542919 | N11: 353.2767786 | O11: 21.88390081 | P11: 183.2105673 | Q11: 32.97144059 | R11: 335.0663448 | S11: 119.1102291 | T11: 521.1834429 | U11: 25.88307309 | V11: 445.9384072 | W11: 128.5032693 | X11: 504.4559703 | Y11: 123.2466193 | Z11: 36.59820033 | AA11: 6.94692397 | AB11: 1092.637617 | AC11: 433.4544683 | AD11: 17.06302077 | AE11: 3.716408699 | AF11: 180.5957375 | AG11: 614.0541602 | AH11: 238.2961433 | AI11: 349.9567801 | AJ11: 50.1795125 | AK11: 5.276685752 | AL11: 38
A12: 961Z | B12: Unacceptable Principal Diagnosis | C12: 0.3908589352 | D12: 7 | E12: 2.285714286 | F12: 2270.306815 | G12: 1654.543013 | H12: 615.7638023 | I12: 592.0039523 | J12: 30.00544629 | K12: 445.1351796 | L12: 53.981353 | M12: 225.686442 | N12: 64.73810243 | O12: 7.047558 | P12: 108.6897926 | Q12: 16.61642743 | R12: 40.85241057 | S12: 27.606337 | T12: 23.23120571 | U12: 7.236294143 | V12: 0 | W12: 0 | X12: 0 | Y12: 0 | Z12: 61.24814286 | AA12: 14.58254286 | AB12: 102.177801 | AC12: 153.5551517 | AD12: 0 | AE12: 0 | AF12: 31.09143243 | AG12: 129.0823043 | AH12: 92.25544786 | AI12: 43.45607971 | AJ12: 0.0230972857 | AK12: 0.0043144286 | AL12: 6
A13: A13A | B13: Ventilation >= 336 Hours, Major Complexity | C13: 67.50143359 | D13: 466 | E13: 70.26824034 | F13: 392082.5416 | G13: 309645.4233 | H13: 82437.11836 | I13: 18599.9424 | J13: 638.9464379 | K13: 17183.62891 | L13: 1340.055495 | M13: 7250.789515 | N13: 14619.45274 | O13: 1230.371933 | P13: 8760.988404 | Q13: 1779.056884 | R13: 12267.98245 | S13: 3475.967184 | T13: 7692.309327 | U13: 622.3010024 | V13: 168252.935 | W13: 36789.86728 | X13: 18226.01071 | Y13: 4123.642179 | Z13: 119.9626477 | AA13: 22.5166253 | AB13: 3406.259853 | AC13: 5074.760325 | AD13: 804.3514952 | AE13: 171.0259181 | AF13: 4157.835854 | AG13: 31180.92609 | AH13: 10593.81335 | AI13: 13260.52556 | AJ13: 315.4573327 | AK13: 120.8586769 | AL13: 67
A14: A13B | B14: Ventilation >= 336 Hours, Minor Complexity | C14: 41.59214209 | D14: 1324 | E14: 41.58308157 | F14: 241588.2436 | G14: 192462.2095 | H14: 49126.03416 | I14: 10018.93705 | J14: 326.8021713 | K14: 7575.0524 | L14: 626.7036155 | M14: 4157.45837 | N14: 9162.903356 | O14: 732.1149157 | P14: 4874.43134 | Q14: 968.0319706 | R14: 7248.13906 | S14: 2080.128394 | T14: 4717.734699 | U14: 335.5923983 | V14: 113626.8296 | W14: 24005.15156 | X14: 5465.240243 | Y14: 1200.142975 | Z14: 270.7684385 | AA14: 53.95388842 | AB14: 2018.867775 | AC14: 2488.267366 | AD14: 304.4617724 | AE14: 56.28446376 | AF14: 1686.233757 | AG14: 22074.7825 | AH14: 7093.168604 | AI14: 8079.480938 | AJ14: 282.28722 | AK14: 58.29280865 | AL14: 86
A15: A14A | B15: Ventilation >= 96 Hours and < 336 Hours, Major Complexity | C15: 31.22380259 | D15: 1763 | E15: 36.5796937 | F15: 181363.6723 | G15: 142811.1591 | H15: 38552.51313 | I15: 10951.2591 | J15: 403.5645791 | K15: 11950.55463 | L15: 890.1002441 | M15: 4967.684369 | N15: 7209.06454 | O15: 723.6243769 | P15: 5070.984274 | Q15: 975.968946 | R15: 6328.217215 | S15: 1911.627967 | T15: 4211.737406 | U15: 337.3971176 | V15: 59072.86013 | W15: 12950.31158 | X15: 12544.59206 | Y15: 2797.69508 | Z15: 86.60106435 | AA15: 17.12827559 | AB15: 3100.516227 | AC15: 3431.100573 | AD15: 439.131668 | AE15: 89.45441278 | AF15: 3488.912213 | AG15: 14861.00191 | AH15: 5577.207873 | AI15: 6520.694463 | AJ15: 387.3501535 | AK15: 67.32982366 | AL15: 91
A16: A14B | B16: Ventilation >= 96 Hours and < 336 Hours, Intermediate Complexity | C16: 19.3922125 | D16: 3021 | E16: 21.28732208 | F16: 112639.7998 | G16: 89949.61445 | H16: 22690.18536 | I16: 5924.72069 | J16: 201.5762675 | K16: 5275.962716 | L16: 419.2465143 | M16: 2676.672733 | N16: 4683.451043 | O16: 400.9139068 | P16: 2278.986841 | Q16: 410.3686555 | R16: 3255.471096 | S16: 920.1424406 | T16: 2162.69105 | U16: 147.6202775 | V16: 45912.92058 | W16: 9705.394523 | X16: 4923.812776 | Y16: 1074.306727 | Z16: 76.82679623 | AA16: 17.76041542 | AB16: 1686.439789 | AC16: 1564.339262 | AD16: 279.4316603 | AE16: 53.25679112 | AF16: 1240.888373 | AG16: 10240.37543 | AH16: 3280.443833 | AI16: 3569.343602 | AJ16: 224.3473699 | AK16: 32.08764697 | AL16: 97
A17: A14C | B17: Ventilation >= 96 Hours and < 336 Hours, Minor Complexity | C17: 14.14341916 | D17: 2198 | E17: 14.65969063 | F17: 82152.14757 | G17: 65416.03984 | H17: 16736.10773 | I17: 3893.317736 | J17: 123.6631759 | K17: 2953.105241 | L17: 252.3940495 | M17: 1468.829677 | N17: 3319.891996 | O17: 298.9897397 | P17: 1481.218493 | Q17: 269.9610452 | R17: 2049.798455 | S17: 587.8317944 | T17: 1093.854184 | U17: 81.28628177 | V17: 37242.13348 | W17: 8052.142103 | X17: 2464.883173 | Y17: 553.2529158 | Z17: 74.6879183 | AA17: 16.43874419 | AB17: 652.067511 | AC17: 925.4834393 | AD17: 359.8103464 | AE17: 70.58482656 | AF17: 745.415727 | AG17: 8014.560798 | AH17: 2354.512698 | AI17: 2518.371877 | AJ17: 209.4834449 | AK17: 24.17669657 | AL17: 99
A18: A15A | B18: Tracheostomy, Major Complexity | C18: 26.56171063 | D18: 169 | E18: 35.50295858 | F18: 154283.879 | G18: 118064.256 | H18: 36219.62299 | I18: 12775.40022 | J18: 519.6758064 | K18: 14440.64328 | L18: 1057.145023 | M18: 4830.909663 | N18: 3335.467525 | O18: 416.3891474 | P18: 2172.897268 | Q18: 476.1713507 | R18: 5602.03893 | S18: 1596.228615 | T18: 2114.045003 | U18: 174.9838599 | V18: 23910.37087 | W18: 5274.351013 | X18: 28985.33917 | Y18: 7559.139602 | Z18: 85.45712831 | AA18: 13.9256035 | AB18: 4936.377046 | AC18: 4537.216624 | AD18: 585.2613205 | AE18: 132.5224908 | AF18: 3278.491508 | AG18: 12941.753 | AH18: 5466.896293 | AI18: 6885.078308 | AJ18: 155.4084656 | AK18: 24.29487713 | AL18: 38
A19: A15B | B19: Tracheostomy, Intermediate Complexity | C19: 14.98231079 | D19: 401 | E19: 19.39401496 | F19: 87024.85535 | G19: 65765.77215 | H19: 21259.0832 | I19: 7554.707922 | J19: 291.326407 | K19: 7926.518934 | L19: 608.1558373 | M19: 2676.519372 | N19: 1721.790549 | O19: 213.7653806 | P19: 1005.888047 | Q19: 239.2525586 | R19: 3035.937216 | S19: 926.7880621 | T19: 1055.590077 | U19: 92.22556323 | V19: 9357.480978 | W19: 2176.614542 | X19: 20935.57958 | Y19: 5411.418075 | Z19: 41.22950488 | AA19: 7.57519092 | AB19: 2235.886841 | AC19: 2617.820375 | AD19: 88.67378882 | AE19: 25.65982868 | AF19: 2228.233587 | AG19: 7022.840056 | AH19: 3158.109725 | AI19: 4238.730832 | AJ19: 117.8548631 | AK19: 12.6816603 | AL19: 49
A20: A15C | B20: Tracheostomy, Minor Complexity | C20: 9.089222131 | D20: 216 | E20: 12.71296296 | F20: 52794.80931 | G20: 40267.60884 | H20: 12527.20047 | I20: 5237.176264 | J20: 195.591597 | K20: 4968.982614 | L20: 406.1448459 | M20: 1825.30792 | N20: 1089.145164 | O20: 100.4234994 | P20: 869.9992757 | Q20: 171.655814 | R20: 2023.171055 | S20: 605.0310345 | T20: 573.4737796 | U20: 49.89978423 | V20: 7295.823115 | W20: 1584.009201 | X20: 11091.47825 | Y20: 2852.982572 | Z20: 42.55677363 | AA20: 9.822928116 | AB20: 1283.769846 | AC20: 1602.701239 | AD20: 96.39487543 | AE20: 26.85110399 | AF20: 743.8548906 | AG20: 3875.807922 | AH20: 1746.947553 | AI20: 2268.625736 | AJ20: 138.3040617 | AK20: 18.87660054 | AL20: 55
A21: A40Z | B21: ECMO | C21: 46.73432648 | D21: 603 | E21: 30.69651741 | F21: 271456.657 | G21: 223804.4695 | H21: 47652.18757 | I21: 9109.030116 | J21: 273.6712574 | K21: 5431.474065 | L21: 486.7929446 | M21: 3478.782603 | N21: 13174.30182 | O21: 1553.45966 | P21: 3802.706143 | Q21: 823.8232437 | R21: 6197.41271 | S21: 1818.478793 | T21: 4757.931403 | U21: 347.0995376 | V21: 128672.3981 | W21: 23379.23989 | X21: 12622.22169 | Y21: 2684.176546 | Z21: 67.97145449 | AA21: 14.02029343 | AB21: 2201.352009 | AC21: 2189.440591 | AD21: 1782.552364 | AE21: 445.4981582 | AF21: 2552.312459 | AG21: 29719.22623 | AH21: 6234.905718 | AI21: 7250.771756 | AJ21: 358.4615877 | AK21: 27.14389982 | AL21: 43
A22: B01Z | B22: Ventricular Shunt Revision | C22: 3.859971964 | D22: 391 | E22: 5.491048593 | F22: 22420.67372 | G22: 17427.25198 | H22: 4993.421735 | I22: 2600.337851 | J22: 94.64454948 | K22: 3315.787289 | L22: 236.6974653 | M22: 1144.605464 | N22: 262.5077142 | O22: 37.64778815 | P22: 645.0439957 | Q22: 129.4929654 | R22: 435.965994 | S22: 190.3823468 | T22: 225.5504304 | U22: 21.49631084 | V22: 760.3217137 | W22: 171.4829449 | X22: 4722.234134 | Y22: 1104.840488 | Z22: 30.79102284 | AA22: 6.9106871 | AB22: 483.9427502 | AC22: 842.102895 | AD22: 4.191398765 | AE22: 0.8924422711 | AF22: 1593.234954 | AG22: 1684.601255 | AH22: 695.1300506 | AI22: 934.7273547 | AJ22: 41.26633486 | AK22: 3.84312911 | AL22: 32
A23: B02A | B23: Cranial Interventions, Major Complexity | C23: 14.65868975 | D23: 1911 | E23: 20.33019362 | F23: 85145.10031 | G23: 66736.5314 | H23: 18408.56891 | I23: 6930.175022 | J23: 268.4760051 | K23: 10544.77646 | L23: 659.3078508 | M23: 3239.791185 | N23: 2042.95939 | O23: 323.7816044 | P23: 4312.572911 | Q23: 774.2770505 | R23: 2798.692688 | S23: 865.7742829 | T23: 1677.065419 | U23: 107.2672593 | V23: 13167.51821 | W23: 2919.783587 | X23: 9821.46445 | Y23: 2279.719258 | Z23: 58.33793299 | AA23: 12.80948742 | AB23: 2258.206458 | AC23: 2574.621717 | AD23: 199.1042055 | AE23: 33.89718106 | AF23: 4123.894461 | AG23: 6477.842089 | AH23: 2841.460134 | AI23: 3472.557871 | AJ23: 344.8768078 | AK23: 14.08933254 | AL23: 41
A24: B02B | B24: Cranial Interventions, Intermediate Complexity | C24: 7.336608721 | D24: 2982 | E24: 9.407444668 | F24: 42614.74225 | G24: 33478.41212 | H24: 9136.330131 | I24: 3738.116034 | J24: 134.0306199 | K24: 4964.591528 | L24: 324.0973323 | M24: 1550.200821 | N24: 872.0422576 | O24: 135.9207592 | P24: 1862.016451 | Q24: 327.2449295 | R24: 1136.037039 | S24: 387.3102994 | T24: 525.7085917 | U24: 39.19850655 | V24: 3131.532775 | W24: 724.0546808 | X24: 8593.130278 | Y24: 2046.526002 | Z24: 31.36871899 | AA24: 9.23430765 | AB24: 1409.186276 | AC24: 1307.704235 | AD24: 80.13624779 | AE24: 12.57404814 | AF24: 2891.116671 | AG24: 3189.046097 | AH24: 1337.908674 | AI24: 1718.867929 | AJ24: 128.4762632 | AK24: 7.363880904 | AL24: 46
A25: B02C | B25: Cranial Interventions, Minor Complexity | C25: 4.823723577 | D25: 4546 | E25: 5.480642323 | F25: 28018.6316 | G25: 22081.65942 | H25: 5936.972182 | I25: 2442.159893 | J25: 88.91955074 | K25: 2947.270188 | L25: 210.3542956 | M25: 986.9809217 | N25: 541.9515773 | O25: 82.03497456 | P25: 1109.909049 | Q25: 189.3135027 | R25: 610.8872632 | S25: 218.6738926 | T25: 301.2300131 | U25: 21.00654086 | V25: 1295.48486 | W25: 303.3971911 | X25: 6615.304933 | Y25: 1625.151429 | Z25: 17.83594536 | AA25: 5.924816183 | AB25: 1151.162837 | AC25: 832.1599389 | AD25: 78.37987724 | AE25: 12.17993435 | AF25: 2270.503899 | AG25: 2025.565139 | AH25: 813.2646888 | AI25: 1089.047635 | AJ25: 127.6942358 | AK25: 4.882578967 | AL25: 56
A26: B03A | B26: Spinal Interventions, Major Complexity | C26: 13.2519696 | D26: 434 | E26: 20.43087558 | F26: 76974.15666 | G26: 59071.83111 | H26: 17902.32555 | I26: 6068.407953 | J26: 307.0580795 | K26: 10894.38528 | L26: 751.962142 | M26: 3213.464866 | N26: 1761.298153 | O26: 245.1625525 | P26: 1814.760677 | Q26: 383.7072445 | R26: 3168.019888 | S26: 1128.468079 | T26: 1439.189682 | U26: 107.3023314 | V26: 7982.126133 | W26: 2014.737353 | X26: 10318.56582 | Y26: 2463.381581 | Z26: 147.6562313 | AA26: 39.74649296 | AB26: 1527.509156 | AC26: 2304.292227 | AD26: 148.4137759 | AE26: 20.80874973 | AF26: 5864.975843 | AG26: 5731.554946 | AH26: 3094.632724 | AI26: 3720.236217 | AJ26: 302.5584166 | AK26: 9.774073652 | AL26: 41
A27: B03B | B27: Spinal Interventions, Intermediate Complexity | C27: 6.449387905 | D27: 732 | E27: 8.613387978 | F27: 37461.31404 | G27: 29577.54757 | H27: 7883.766469 | I27: 3484.683283 | J27: 124.3299161 | K27: 4643.512475 | L27: 313.3508506 | M27: 1388.467882 | N27: 656.9357293 | O27: 105.2809245 | P27: 769.5909316 | Q27: 154.32837 | R27: 962.1431539 | S27: 335.6228585 | T27: 519.8384119 | U27: 37.32200251 | V27: 1116.856791 | W27: 259.6591997 | X27: 8869.857319 | Y27: 2118.674053 | Z27: 23.20929437 | AA27: 6.518200656 | AB27: 1790.397998 | AC27: 1161.356733 | AD27: 30.93634208 | AE27: 4.967208285 | AF27: 2801.348727 | AG27: 2846.395688 | AH27: 1247.946515 | AI27: 1512.366008 | AJ27: 171.516175 | AK27: 3.901002246 | AL27: 42
A28: B03C | B28: Spinal Interventions, Minor Complexity | C28: 3.203950436 | D28: 1437 | E28: 3.234516354 | F28: 18610.16816 | G28: 14601.50636 | H28: 4008.661803 | I28: 1672.986089 | J28: 54.50258819 | K28: 1734.634565 | L28: 133.2986325 | M28: 625.927212 | N28: 142.082603 | O28: 21.59173099 | P28: 281.4532471 | Q28: 55.71200765 | R28: 308.5226394 | S28: 136.1612465 | T28: 136.9168821 | U28: 14.22870061 | V28: 147.117963 | W28: 34.00180214 | X28: 5875.93455 | Y28: 1431.432675 | Z28: 10.42457167 | AA28: 3.036086072 | AB28: 899.6480754 | AC28: 488.4832924 | AD28: 9.917482452 | AE28: 2.048891076 | AF28: 1587.825779 | AG28: 1329.237549 | AH28: 520.4435746 | AI28: 808.5825889 | AJ28: 141.3820745 | AK28: 2.63306481 | AL28: 53
A29: B04A | B29: Extracranial Vascular Interventions, Major Complexity | C29: 7.764581693 | D29: 354 | E29: 12.23728814 | F29: 45100.62621 | G29: 35000.32248 | H29: 10100.30373 | I29: 4154.495907 | J29: 175.8507026 | K29: 5882.658342 | L29: 420.9011294 | M29: 1931.667561 | N29: 925.814176 | O29: 125.64257 | P29: 2236.741312 | Q29: 429.8107844 | R29: 1581.533459 | S29: 458.8440999 | T29: 483.7533049 | U29: 38.59270104 | V29: 5691.858681 | W29: 1363.966802 | X29: 5790.106017 | Y29: 1284.721566 | Z29: 49.09956131 | AA29: 11.28478077 | AB29: 1394.447492 | AC29: 1348.350873 | AD29: 172.8339804 | AE29: 27.51095485 | AF29: 1896.710749 | AG29: 3497.217639 | AH29: 1701.167816 | AI29: 1902.743481 | AJ29: 116.301308 | AK29: 5.998458017 | AL29: 45
A30: B04B | B30: Extracranial Vascular Interventions, Intermediate Complexity | C30: 4.697459341 | D30: 615 | E30: 5.863414634 | F30: 27285.22492 | G30: 21137.39647 | H30: 6147.828444 | I30: 2322.2219 | J30: 92.4595371 | K30: 2620.129443 | L30: 191.8288932 | M30: 995.1754118 | N30: 375.7885555 | O30: 66.67568742 | P30: 1308.601643 | Q30: 268.5148415 | R30: 590.4051102 | S30: 185.3315588 | T30: 258.6231001 | U30: 20.93835376 | V30: 2877.385265 | W30: 811.198968 | X30: 5661.909465 | Y30: 1291.757275 | Z30: 25.92956531 | AA30: 5.606498646 | AB30: 956.269502 | AC30: 735.5608456 | AD30: 82.39232895 | AE30: 15.39841163 | AF30: 1296.77103 | AG30: 2165.186491 | AH30: 886.1102552 | AI30: 1123.760467 | AJ30: 48.1160913 | AK30: 5.178421836 | AL30: 46
A31: B04C | B31: Extracranial Vascular Interventions, Minor Complexity | C31: 3.224278558 | D31: 662 | E31: 2.942598187 | F31: 18728.2442 | G31: 14375.27973 | H31: 4352.964471 | I31: 1354.568941 | J31: 49.11383954 | K31: 1182.472797 | L31: 99.92723765 | M31: 493.202336 | N31: 237.2405156 | O31: 38.52155656 | P31: 601.0659096 | Q31: 142.2314022 | R31: 159.8833163 | S31: 66.71236184 | T31: 133.174979 | U31: 14.51747611 | V31: 2014.915886 | W31: 596.6358307 | X31: 5448.631113 | Y31: 1307.021073 | Z31: 11.27219667 | AA31: 2.82564668 | AB31: 769.1077154 | AC31: 375.5408968 | AD31: 37.48658017 | AE31: 6.438705527 | AF31: 773.1800012 | AG31: 1418.128733 | AH31: 505.6082318 | AI31: 875.4887266 | AJ31: 9.683208778 | AK31: 3.646987183 | AL31: 62
A32: B05Z | B32: Carpal Tunnel Release | C32: 0.5159393868 | D32: 8159 | E32: 1.020835887 | F32: 2996.837479 | G32: 2240.911557 | H32: 755.9259229 | I32: 373.7136317 | J32: 13.75151435 | K32: 127.7683747 | L32: 19.00371318 | M32: 106.20489 | N32: 8.06682827 | O32: 1.005519822 | P32: 16.68816159 | Q32: 0.7720205742 | R32: 18.4004153 | S32: 7.623121346 | T32: 18.90933959 | U32: 3.9175419 | V32: 4.9982016 | W32: 0.8548714396 | X32: 1277.81615 | Y32: 363.5327709 | Z32: 0.7035680536 | AA32: 0.1519576205 | AB32: 102.3290821 | AC32: 81.3099568 | AD32: 5.322391322 | AE32: 1.006589938 | AF32: 25.19685293 | AG32: 208.1681075 | AH32: 78.69151874 | AI32: 127.746545 | AJ32: 1.548683592 | AK32: 1.635159704 | AL32: 205
A33: B06A | B33: Interventions for Cerebral Palsy, Muscular Dystrophy and Neuropathy, Major Complexity | C33: 8.661048158 | D33: 267 | E33: 18.13483146 | F33: 50307.75784 | G33: 38793.07769 | H33: 11514.68015 | I33: 5398.403475 | J33: 236.9116189 | K33: 9128.606123 | L33: 602.4812014 | M33: 2853.038245 | N33: 2061.681112 | O33: 203.9193483 | P33: 1279.224647 | Q33: 238.3459875 | R33: 2632.744952 | S33: 830.5380892 | T33: 1038.60118 | U33: 105.2336998 | V33: 3534.307594 | W33: 866.5128164 | X33: 4654.480752 | Y33: 1056.621333 | Z33: 149.2921364 | AA33: 78.43125239 | AB33: 1433.635481 | AC33: 1905.122397 | AD33: 291.8479478 | AE33: 66.30410415 | AF33: 1197.579383 | AG33: 4347.163375 | AH33: 2066.030921 | AI33: 1987.804477 | AJ33: 55.13780245 | AK33: 7.756393929 | AL33: 68
A34: B06B | B34: Interventions for Cerebral Palsy, Muscular Dystrophy and Neuropathy, Intermediate Complexity | C34: 3.025837976 | D34: 418 | E34: 4.590909091 | F34: 17575.60071 | G34: 13441.68504 | H34: 4133.915669 | I34: 1884.379224 | J34: 77.11516257 | K34: 2377.476718 | L34: 194.7477158 | M34: 841.2584041 | N34: 307.9665272 | O34: 52.58941132 | P34: 426.2098841 | Q34: 88.16304555 | R34: 629.1879259 | S34: 191.2236676 | T34: 260.5372942 | U34: 31.69954218 | V34: 459.0840335 | W34: 129.164208 | X34: 3965.276874 | Y34: 950.9241741 | Z34: 5.912535046 | AA34: 1.399980182 | AB34: 506.3168217 | AC34: 588.1993863 | AD34: 77.56870404 | AE34: 15.43702473 | AF34: 624.7665238 | AG34: 1455.444698 | AH34: 634.3793229 | AI34: 774.1505387 | AJ34: 20.3704875 | AK34: 4.650878388 | AL34: 93
A35: B06C | B35: Interventions for Cerebral Palsy, Muscular Dystrophy and Neuropathy, Minor Complexity | C35: 1.038025293 | D35: 1630 | E35: 1.209815951 | F35: 6029.377059 | G35: 4587.662504 | H35: 1441.714555 | I35: 612.0700354 | J35: 18.36800642 | K35: 369.0620773 | L35: 41.63975509 | M35: 192.7961611 | N35: 106.6978459 | O35: 8.395995544 | P35: 50.48654263 | Q35: 8.808370212 | R35: 49.20647243 | S35: 20.01217306 | T35: 34.48547136 | U35: 5.819403654 | V35: 20.97661431 | W35: 4.516962469 | X35: 2501.419119 | Y35: 669.8077358 | Z35: 0.084489362 | AA35: 0.0130190571 | AB35: 199.458244 | AC35: 142.0956226 | AD35: 3.047126443 | AE35: 1.044400262 | AF35: 133.7666856 | AG35: 422.2981634 | AH35: 162.9511575 | AI35: 243.296878 | AJ35: 3.450750958 | AK35: 3.301780799 | AL35: 168
A36: B07A | B36: Cranial or Peripheral Nerve and Other Nervous System Interventions, Major Complexity | C36: 4.455676157 | D36: 721 | E36: 10.83217753 | F36: 25880.82563 | G36: 19566.08358 | H36: 6314.742049 | I36: 2730.501946 | J36: 135.6085629 | K36: 4961.327567 | L36: 361.4349333 | M36: 1603.213903 | N36: 568.3083051 | O36: 68.66326746 | P36: 609.7809271 | Q36: 116.7871499 | R36: 1071.374067 | S36: 329.2145622 | T36: 699.534598 | U36: 65.26110092 | V36: 940.3133414 | W36: 222.4555523 | X36: 3301.700995 | Y36: 810.7248424 | Z36: 101.4652548 | AA36: 27.75061998 | AB36: 699.1349812 | AC36: 1074.128246 | AD36: 205.3731252 | AE36: 29.67858483 | AF36: 412.5240845 | AG36: 2347.635223 | AH36: 1228.735692 | AI36: 1064.348512 | AJ36: 86.55359197 | AK36: 7.292093118 | AL36: 115
A37: B07B | B37: Cranial or Peripheral Nerve and Other Nervous System Interventions, Minor Complexity | C37: 1.296437969 | D37: 3631 | E37: 1.561002479 | F37: 7530.368866 | G37: 5656.10488 | H37: 1874.263986 | I37: 739.7870842 | J37: 26.88080115 | K37: 662.3014919 | L37: 65.02211137 | M37: 305.8364251 | N37: 51.86294698 | O37: 8.759068545 | P37: 51.67000626 | Q37: 10.6110131 | R37: 84.83240023 | S37: 36.50627285 | T37: 49.36615886 | U37: 6.391839447 | V37: 45.80146911 | W37: 9.526935021 | X37: 2919.950116 | Y37: 742.494188 | Z37: 26.62890042 | AA37: 7.210593356 | AB37: 168.3996807 | AC37: 202.8637702 | AD37: 11.1470855 | AE37: 2.168991802 | AF37: 98.2367971 | AG37: 592.1812235 | AH37: 239.0457558 | AI37: 349.130833 | AJ37: 13.62452856 | AK37: 2.130378253 | AL37: 149
A38: B08A | B38: Endovascular Clot Retrieval, Major Complexity | C38: 8.673408919 | D38: 538 | E38: 10.64684015 | F38: 50379.55541 | G38: 40743.33431 | H38: 9636.221098 | I38: 3712.523603 | J38: 158.605062 | K38: 5985.684488 | L38: 319.2020195 | M38: 1752.416526 | N38: 877.9776575 | O38: 160.3074885 | P38: 6284.144821 | Q38: 663.1828927 | R38: 2567.307598 | S38: 657.235043 | T38: 727.6469061 | U38: 57.30074237 | V38: 5569.022662 | W38: 1289.53006 | X38: 2790.510699 | Y38: 627.9466303 | Z38: 64.19570834 | AA38: 12.42436732 | AB38: 1626.773424 | AC38: 1408.233405 | AD38: 821.1089186 | AE38: 140.1723956 | AF38: 4940.303117 | AG38: 3407.764215 | AH38: 1496.309099 | AI38: 2034.763632 | AJ38: 217.317477 | AK38: 9.644745502 | AL38: 23
A39: B08B | B39: Endovascular Clot Retrieval, Minor Complexity | C39: 5.120415745 | D39: 1373 | E39: 4.373634377 | F39: 29741.9701 | G39: 24721.15349 | H39: 5020.816609 | I39: 2314.44037 | J39: 78.26042235 | K39: 2476.866203 | L39: 147.2721534 | M39: 946.1406999 | N39: 350.0210086 | O39: 73.16827303 | P39: 4856.897097 | Q39: 505.6773915 | R39: 1314.645647 | S39: 316.9385411 | T39: 282.3270917 | U39: 19.48320022 | V39: 2650.677821 | W39: 612.188524 | X39: 1685.32916 | Y39: 316.5532879 | Z39: 21.74004213 | AA39: 4.922832551 | AB39: 1440.404261 | AC39: 770.573963 | AD39: 460.6491393 | AE39: 73.47451917 | AF39: 4178.814317 | AG39: 1805.299143 | AH39: 674.5714605 | AI39: 1057.415112 | AJ39: 302.4346221 | AK39: 4.783797542 | AL39: 24
A40: B40Z | B40: Plasmapheresis with Neurological Disease, Sameday | C40: 0.3119872859 | D40: 1367 | E40: 1 | F40: 1812.180298 | G40: 1431.137984 | H40: 381.042314 | I40: 133.4399686 | J40: 7.188502885 | K40: 232.8507609 | L40: 17.29774341 | M40: 126.6509018 | N40: 576.6558668 | O40: 55.34972094 | P40: 14.16112412 | Q40: 5.012290691 | R40: 74.48321315 | S40: 7.25042362 | T40: 55.65359556 | U40: 6.052776819 | V40: 11.99894389 | W40: 2.262111485 | X40: 10.13722737 | Y40: 1.75648671 | Z40: 0 | AA40: 0 | AB40: 134.6689462 | AC40: 128.3574491 | AD40: 0 | AE40: 0 | AF40: 0.9781731266 | AG40: 126.4206345 | AH40: 43.1315307 | AI40: 34.34735625 | AJ40: 5.902051797 | AK40: 0.1724971514 | AL40: 25
A41: B41A | B41: Telemetric EEG Monitoring, Major Complexity | C41: 4.239090358 | D41: 227 | E41: 8.550660793 | F41: 24622.78552 | G41: 19444.34894 | H41: 5178.436584 | I41: 4266.606562 | J41: 135.8176133 | K41: 6169.206978 | L41: 328.9068081 | M41: 2770.903004 | N41: 717.8372763 | O41: 130.3603766 | P41: 630.127516 | Q41: 107.8934803 | R41: 1294.708215 | S41: 244.766694 | T41: 1013.111718 | U41: 84.4489646 | V41: 613.7046572 | W41: 143.9626771 | X41: 180.1409813 | Y41: 36.5262623 | Z41: 15.59076603 | AA41: 3.388508855 | AB41: 550.6922835 | AC41: 1061.034517 | AD41: 3.717827458 | AE41: 0.7714716035 | AF41: 9.496675908 | AG41: 2445.587507 | AH41: 831.6649143 | AI41: 798.0191411 | AJ41: 31.18189642 | AK41: 2.610227722 | AL41: 19
A42: B41B | B42: Telemetric EEG Monitoring, Minor Complexity | C42: 2.04454231 | D42: 764 | E42: 3.447643979 | F42: 11875.73808 | G42: 9342.566076 | H42: 2533.172002 | I42: 2577.531268 | J42: 86.58916661 | K42: 2508.020632 | L42: 169.8811245 | M42: 1478.177275 | N42: 220.1600631 | O42: 35.5651731 | P42: 474.2855973 | Q42: 77.45997749 | R42: 406.1356531 | S42: 81.8434831 | T42: 736.5903707 | U42: 23.0874053 | V42: 14.73175273 | W42: 4.258084709 | X42: 66.07809172 | Y42: 15.67516953 | Z42: 1.998854751 | AA42: 0.4645879058 | AB42: 281.9444868 | AC42: 617.7797536 | AD42: 12.445037 | AE42: 2.477299738 | AF42: 11.52978791 | AG42: 1154.903777 | AH42: 422.9591988 | AI42: 391.6164953 | AJ42: 0.1199676099 | AK42: 1.428543919 | AL42: 22
A43: B42A | B43: Nervous System Disorders with Ventilator Support, Major Complexity | C43: 11.93288361 | D43: 323 | E43: 17.83900929 | F43: 69312.23655 | G43: 54395.89172 | H43: 14916.34483 | I43: 4496.984725 | J43: 214.5093919 | K43: 7583.061537 | L43: 503.5638432 | M43: 2326.138859 | N43: 2644.94357 | O43: 239.9137128 | P43: 1629.597036 | Q43: 285.8340327 | R43: 2797.523882 | S43: 828.5827644 | T43: 1639.201439 | U43: 94.23704127 | V43: 24220.21565 | W43: 5231.093109 | X43: 699.8051952 | Y43: 182.7136846 | Z43: 160.8835425 | AA43: 37.94584086 | AB43: 794.6261913 | AC43: 1650.37984 | AD43: 50.44706361 | AE43: 11.29838453 | AF43: 74.86776263 | AG43: 6260.825841 | AH43: 2115.414121 | AI43: 2397.283139 | AJ43: 122.30924 | AK43: 18.03611413 | AL43: 83
A44: B42B | B44: Nervous System Disorders with Ventilator Support, Intermediate Complexity | C44: 7.737773084 | D44: 353 | E44: 9.682719547 | F44: 44944.90822 | G44: 35331.88458 | H44: 9613.023633 | I44: 2770.832753 | J44: 104.7954702 | K44: 3807.691217 | L44: 266.5461491 | M44: 1369.466261 | N44: 1404.869252 | O44: 160.8449275 | P44: 986.3098094 | Q44: 172.3683574 | R44: 1552.170288 | S44: 433.2278161 | T44: 636.2673561 | U44: 48.35114486 | V44: 17366.31983 | W44: 3876.343585 | X44: 901.9581997 | Y44: 204.044522 | Z44: 79.15818915 | AA44: 18.53990556 | AB44: 463.4888896 | AC44: 813.6180926 | AD44: 45.65790971 | AE44: 9.69287813 | AF44: 155.9978124 | AG44: 4131.195342 | AH44: 1370.049928 | AI44: 1573.562231 | AJ44: 194.1787505 | AK44: 27.36134576 | AL44: 87
A45: B42C | B45: Nervous System Disorders with Ventilator Support, Minor Complexity | C45: 4.80906129 | D45: 690 | E45: 4.815942029 | F45: 27933.4656 | G45: 22001.07288 | H45: 5932.392721 | I45: 1452.250719 | J45: 53.44041949 | K45: 1446.033503 | L45: 110.4548303 | M45: 577.624354 | N45: 905.3489865 | O45: 104.7656592 | P45: 654.9181621 | Q45: 118.9892625 | R45: 890.3679725 | S45: 239.0927764 | T45: 314.916584 | U45: 22.17687367 | V45: 12465.45057 | W45: 2790.659703 | X45: 406.5115474 | Y45: 100.4419607 | Z45: 56.72555912 | AA45: 13.6562273 | AB45: 217.8799047 | AC45: 383.6850923 | AD45: 31.49103669 | AE45: 5.338942977 | AF45: 77.32154584 | AG45: 2572.259427 | AH45: 726.6427403 | AI45: 984.8807336 | AJ45: 201.1975652 | AK45: 8.942941499 | AL45: 96
A46: B62Z | B46: Apheresis | C46: 0.4051249106 | D46: 392 | E46: 1.017857143 | F46: 2353.170832 | G46: 1608.93568 | H46: 744.2351516 | I46: 126.4977552 | J46: 12.35650756 | K46: 448.564734 | L46: 36.51577789 | M46: 169.6659454 | N46: 340.6485174 | O46: 103.5421624 | P46: 42.38254067 | Q46: 15.47165215 | R46: 55.86800621 | S46: 21.99488838 | T46: 185.5578185 | U46: 19.22032914 | V46: 0 | W46: 0 | X46: 26.61229516 | Y46: 9.133296087 | Z46: 0 | AA46: 0 | AB46: 154.100775 | AC46: 250.8044306 | AD46: 0 | AE46: 0 | AF46: 0.5345161888 | AG46: 168.6128295 | AH46: 75.44411299 | AI46: 89.16662103 | AJ46: 0.1451852781 | AK46: 0.3301352092 | AL46: 16
A47: B63A | B47: Dementia and Other Chronic Disturbances of Cerebral Function, Major Complexity | C47: 3.537427909 | D47: 7092 | E47: 12.89861816 | F47: 20547.17436 | G47: 15244.15281 | H47: 5303.021541 | I47: 2667.537537 | J47: 157.2953501 | K47: 6415.16779 | L47: 450.0020437 | M47: 1873.466224 | N47: 322.0039811 | O47: 50.70011572 | P47: 269.1147821 | Q47: 56.00214414 | R47: 1095.791635 | S47: 345.9496854 | T47: 430.6094647 | U47: 42.20548879 | V47: 110.4446234 | W47: 35.41022021 | X47: 12.9009709 | Y47: 2.53827501 | Z47: 125.2765365 | AA47: 37.77882262 | AB47: 964.5197084 | AC47: 1252.232493 | AD47: 8.638944992 | AE47: 1.803600498 | AF47: 2.556053202 | AG47: 1792.238128 | AH47: 1266.506164 | AI47: 686.3937427 | AJ47: 63.73995335 | AK47: 8.349876944 | AL47: 248
A48: B63B | B48: Dementia and Other Chronic Disturbances of Cerebral Function, Minor Complexity | C48: 1.650135916 | D48: 7518 | E48: 6.160148976 | F48: 9584.825827 | G48: 7092.329072 | H48: 2492.496754 | I48: 1287.382375 | J48: 67.77725276 | K48: 2915.78265 | L48: 227.6174843 | M48: 926.805918 | N48: 122.137033 | O48: 20.45372698 | P48: 102.630552 | Q48: 21.57576858 | R48: 486.3299754 | S48: 158.9579297 | T48: 204.671861 | U48: 22.36925927 | V48: 18.98454084 | W48: 6.615725496 | X48: 11.9233549 | Y48: 1.778456442 | Z48: 105.0246884 | AA48: 28.40424962 | AB48: 462.1054016 | AC48: 576.7628657 | AD48: 1.900255512 | AE48: 0.180433399 | AF48: 0.8469498369 | AG48: 854.2517594 | AH48: 591.6583131 | AI48: 303.5777616 | AJ48: 50.43104751 | AK48: 5.888236873 | AL48: 268
A49: B64A | B49: Delirium, Major Complexity | C49: 2.76661968 | D49: 7458 | E49: 9.671493698 | F49: 16069.92945 | G49: 11998.07145 | H49: 4071.858004 | I49: 2098.110985 | J49: 113.2684176 | K49: 4486.613036 | L49: 322.5272913 | M49: 1499.819568 | N49: 425.4106439 | O49: 50.1239335 | P49: 348.6497352 | Q49: 63.54584172 | R49: 943.7427411 | S49: 286.8085989 | T49: 430.5624826 | U49: 40.66875036 | V49: 206.109043 | W49: 51.91930729 | X49: 27.30504686 | Y49: 6.654409035 | Z49: 79.50931253 | AA49: 20.23685019 | AB49: 623.2639072 | AC49: 911.454234 | AD49: 17.40368361 | AE49: 1.944271722 | AF49: 3.499837066 | AG49: 1441.5172 | AH49: 985.3423134 | AI49: 500.1408685 | AJ49: 73.49354924 | AK49: 10.28359608 | AL49: 232
A50: B64B | B50: Delirium, Minor Complexity | C50: 1.097114941 | D50: 7494 | E50: 3.876434481 | F50: 6372.599685 | G50: 4781.059888 | H50: 1591.539796 | I50: 885.6875055 | J50: 43.53141924 | K50: 1678.175388 | L50: 130.5529259 | M50: 605.2363685 | N50: 146.4515934 | O50: 18.98039941 | P50: 159.4026873 | Q50: 27.90721833 | R50: 357.5501528 | S50: 111.3518995 | T50: 178.3502355 | U50: 18.4592565 | V50: 39.37668817 | W50: 11.78922331 | X50: 9.626822688 | Y50: 1.922181372 | Z50: 94.56251962 | AA50: 22.83798695 | AB50: 264.471102 | AC50: 365.0923223 | AD50: 9.002059591 | AE50: 1.773796101 | AF50: 1.388144898 | AG50: 602.8863312 | AH50: 357.2509564 | AI50: 183.1128724 | AJ50: 42.10729975 | AK50: 3.762328448 | AL50: 277
A51: B65Z | B51: Cerebral Palsy | C51: 0.832913839 | D51: 1356 | E51: 1.365044248 | F51: 4837.985767 | G51: 3404.860939 | H51: 1433.124828 | I51: 668.4738302 | J51: 42.90100224 | K51: 569.4014845 | L51: 94.25159932 | M51: 448.3796071 | N51: 32.39083905 | O51: 6.945431621 | P51: 138.4176305 | Q51: 28.29596818 | R51: 491.1722185 | S51: 72.51299671 | T51: 386.1168476 | U51: 50.80088572 | V51: 3.064111283 | W51: 0.2577389381 | X51: 452.5952867 | Y51: 135.6918793 | Z51: 2.059482347 | AA51: 0.5508644034 | AB51: 102.0575342 | AC51: 246.8087574 | AD51: 0.5138711652 | AE51: 0.1992537611 | AF51: 4.911144765 | AG51: 357.6795613 | AH51: 136.4527881 | AI51: 354.4749432 | AJ51: 10.25765574 | AK51: 0.3505531504 | AL51: 69
A52: B66A | B52: Nervous System Neoplastic Disorders, Major Complexity | C52: 3.129407033 | D52: 2083 | E52: 8.961113778 | F52: 18177.18229 | G52: 13489.79206 | H52: 4687.390235 | I52: 2181.46373 | J52: 118.9116078 | K52: 4557.509477 | L52: 318.2428233 | M52: 1479.226193 | N52: 447.5082677 | O52: 78.72192322 | P52: 585.0627063 | Q52: 115.6751797 | R52: 1061.442191 | S52: 316.9049284 | T52: 1133.037719 | U52: 78.82631535 | V52: 190.0936724 | W52: 48.40777712 | X52: 116.2066839 | Y52: 27.75105566 | Z52: 62.01126418 | AA52: 16.35204321 | AB52: 616.1266351 | AC52: 1171.121879 | AD52: 133.1104475 | AE52: 23.26115856 | AF52: 14.95468094 | AG52: 1544.253236 | AH52: 926.9424049 | AI52: 734.6688062 | AJ52: 71.67038175 | AK52: 7.717105355 | AL52: 174
A53: B66B | B53: Nervous System Neoplastic Disorders, Minor Complexity | C53: 1.26463139 | D53: 4387 | E53: 3.334852975 | F53: 7345.620136 | G53: 5515.491771 | H53: 1830.128365 | I53: 875.4296313 | J53: 43.7378546 | K53: 1569.049531 | L53: 123.2168719 | M53: 588.7680517 | N53: 125.4178114 | O53: 24.57930585 | P53: 519.8122929 | Q53: 97.747816 | R53: 336.1344508 | S53: 104.4774647 | T53: 397.1211863 | U53: 27.89894833 | V53: 40.13539928 | W53: 10.85421871 | X53: 233.6334155 | Y53: 62.89766923 | Z53: 52.40245588 | AA53: 13.65756082 | AB53: 229.1239448 | AC53: 439.6873258 | AD53: 63.74835585 | AE53: 14.69772456 | AF53: 9.12798673 | AG53: 622.717094 | AH53: 308.6409598 | AI53: 285.3795098 | AJ53: 118.5823406 | AK53: 6.942957619 | AL53: 224
A54: B67A | B54: Degenerative Nervous System Disorders, Major Complexity | C54: 3.932711331 | D54: 2156 | E54: 12.17625232 | F54: 22843.18084 | G54: 17125.65647 | H54: 5717.524364 | I54: 2882.777702 | J54: 159.2692329 | K54: 5904.120966 | L54: 427.3836663 | M54: 1903.457868 | N54: 698.3907251 | O54: 68.9289825 | P54: 516.1240425 | Q54: 100.1464806 | R54: 1499.0719 | S54: 447.1415624 | T54: 861.9639389 | U54: 65.13833244 | V54: 661.2217372 | W54: 173.7206289 | X54: 92.3537256 | Y54: 19.83784753 | Z54: 109.5450499 | AA54: 29.83768505 | AB54: 869.593068 | AC54: 1248.988106 | AD54: 66.41368265 | AE54: 16.66027674 | AF54: 22.75733581 | AG54: 1918.595783 | AH54: 1204.76801 | AI54: 790.9292767 | AJ54: 75.35568893 | AK54: 8.687538063 | AL54: 203
A55: B67B | B55: Degenerative Nervous System Disorders, Intermediate Complexity | C55: 2.522098405 | D55: 4422 | E55: 4.352555405 | F55: 14649.62595 | G55: 12033.88977 | H55: 2615.736173 | I55: 1166.689513 | J55: 59.08995424 | K55: 2057.175501 | L55: 157.1475409 | M55: 772.2004881 | N55: 332.255557 | O55: 38.53467374 | P55: 254.3106438 | Q55: 47.27269827 | R55: 514.4878525 | S55: 159.5360967 | T55: 5911.426202 | U55: 445.493213 | V55: 88.40565143 | W55: 23.59401582 | X55: 100.4700483 | Y55: 24.62938762 | Z55: 68.57772771 | AA55: 16.81093176 | AB55: 315.759269 | AC55: 470.9927366 | AD55: 28.42920539 | AE55: 5.168657298 | AF55: 6.949920169 | AG55: 768.6717385 | AH55: 427.1824464 | AI55: 337.9001217 | AJ55: 45.13913069 | AK55: 5.325024399 | AL55: 250
A56: B67C | B56: Degenerative Nervous System Disorders, Minor Complexity | C56: 0.443262415 | D56: 12834 | E56: 1.247000156 | F56: 2574.692789 | G56: 2147.982604 | H56: 426.7101853 | I56: 277.0739642 | J56: 11.94131252 | K56: 284.796395 | L56: 26.69406564 | M56: 170.748634 | N56: 985.9174055 | O56: 23.29442032 | P56: 32.44830759 | Q56: 5.694306302 | R56: 67.6799232 | S56: 19.39546054 | T56: 101.5061183 | U56: 13.93525782 | V56: 21.71319995 | W56: 4.923038631 | X56: 64.87650563 | Y56: 26.58041669 | Z56: 8.307855201 | AA56: 1.954793806 | AB56: 66.70353782 | AC56: 86.32636042 | AD56: 10.0750685 | AE56: 5.981699665 | AF56: 3.073855897 | AG56: 143.9074974 | AH56: 54.13785964 | AI56: 50.28021114 | AJ56: 3.952364681 | AK56: 0.7729529211 | AL56: 217
A57: B68A | B57: Multiple Sclerosis and Cerebellar Ataxia, Major Complexity | C57: 1.444860064 | D57: 2405 | E57: 3.619126819 | F57: 8392.479626 | G57: 6622.477561 | H57: 1770.002065 | I57: 1054.065783 | J57: 45.65180279 | K57: 1702.207736 | L57: 122.0535434 | M57: 636.9838281 | N57: 532.6539868 | O57: 36.0842058 | P57: 288.9959347 | Q57: 52.83542163 | R57: 381.6022525 | S57: 104.5331711 | T57: 1182.755912 | U57: 64.33345531 | V57: 132.6972219 | W57: 34.25271929 | X57: 62.99508137 | Y57: 16.68895666 | Z57: 23.99767433 | AA57: 7.328471214 | AB57: 237.354731 | AC57: 378.0774644 | AD57: 13.58438726 | AE57: 6.680720328 | AF57: 3.8555692 | AG57: 655.4680203 | AH57: 325.9879591 | AI57: 254.8594732 | AJ57: 30.27300775 | AK57: 3.621136238 | AL57: 160
A58: B68B | B58: Multiple Sclerosis and Cerebellar Ataxia, Minor Complexity | C58: 0.5950177156 | D58: 25354 | E58: 1.060069417 | F58: 3456.164497 | G58: 3141.796947 | H58: 314.3675502 | I58: 191.016595 | J58: 6.485031796 | K58: 158.6615085 | L58: 12.99889473 | M58: 112.9218201 | N58: 41.4167797 | O58: 3.323544476 | P58: 20.85283293 | Q58: 3.441991186 | R58: 27.52447252 | S58: 8.516862212 | T58: 2444.151507 | U58: 77.51894171 | V58: 0.4061863987 | W58: 0.1249370417 | X58: 15.71885972 | Y58: 3.321648166 | Z58: 3.526757314 | AA58: 0.6758349632 | AB58: 43.85294661 | AC58: 52.29876764 | AD58: 8.285248616 | AE58: 6.124463803 | AF58: 0.772234462 | AG58: 141.6364411 | AH58: 41.66211946 | AI58: 27.88964374 | AJ58: 0.6067923094 | AK58: 0.4308336067 | AL58: 181
A59: B69A | B59: TIA and Precerebral Occlusion, Major Complexity | C59: 1.471198621 | D59: 1877 | E59: 4.433137986 | F59: 8545.467318 | G59: 6429.460086 | H59: 2116.007233 | I59: 1127.485645 | J59: 53.83526377 | K59: 2028.286045 | L59: 152.8350563 | M59: 726.8794984 | N59: 207.0205387 | O59: 23.96899653 | P59: 468.2730515 | Q59: 84.25347993 | R59: 643.4202309 | S59: 185.1728975 | T59: 201.260239 | U59: 23.8107198 | V59: 222.1003763 | W59: 61.00237181 | X59: 45.12116262 | Y59: 10.63652814 | Z59: 84.00529368 | AA59: 20.86935682 | AB59: 273.9174247 | AC59: 455.1215709 | AD59: 22.80601251 | AE59: 4.319623097 | AF59: 15.94141685 | AG59: 696.9514203 | AH59: 338.6773106 | AI59: 283.1040756 | AJ59: 78.69769381 | AK59: 5.694018352 | AL59: 171
A60: B69B | B60: TIA and Precerebral Occlusion, Minor Complexity | C60: 0.5199561201 | D60: 9321 | E60: 1.690483854 | F60: 3020.168703 | G60: 2298.524596 | H60: 721.6441071 | I60: 421.5098698 | J60: 17.54886269 | K60: 594.414413 | L60: 47.33573479 | M60: 251.5715191 | N60: 63.55489793 | O60: 9.488195199 | P60: 251.437402 | Q60: 41.54214928 | R60: 218.3060506 | S60: 64.72608248 | T60: 67.2724513 | U60: 9.253581019 | V60: 43.32386444 | W60: 13.51049744 | X60: 10.36509269 | Y60: 2.895969395 | Z60: 107.6127657 | AA60: 25.01919319 | AB60: 98.64200412 | AC60: 152.3702612 | AD60: 11.54191663 | AE60: 2.649740593 | AF60: 7.432102187 | AG60: 255.79257 | AH60: 106.6247557 | AI60: 93.99971294 | AJ60: 27.97914832 | AK60: 2.447899038 | AL60: 258
A61: B70A | B61: Stroke and Other Cerebrovascular Disorders, Major Complexity | C61: 4.527692885 | D61: 5436 | E61: 13.1004415 | F61: 26299.13529 | G61: 19812.33447 | H61: 6486.800818 | I61: 3067.854176 | J61: 158.8427563 | K61: 6867.063233 | L61: 464.3965044 | M61: 2045.386634 | N61: 640.0499133 | O61: 70.26091608 | P61: 939.1801591 | Q61: 172.365857 | R61: 2317.093164 | S61: 659.855558 | T61: 608.9368956 | U61: 58.46181201 | V61: 973.403613 | W61: 237.4035405 | X61: 92.7086174 | Y61: 20.72768244 | Z61: 60.51105104 | AA61: 15.89927614 | AB61: 819.3112738 | AC61: 1326.274252 | AD61: 71.74489505 | AE61: 12.60768437 | AF61: 52.4943517 | AG61: 2185.248369 | AH61: 1335.147256 | AI61: 917.5187387 | AJ61: 95.4309234 | AK61: 12.95618534 | AL61: 180
A62: B70B | B62: Stroke and Other Cerebrovascular Disorders, Intermediate Complexity | C62: 2.254273536 | D62: 8743 | E62: 6.501315338 | F62: 13093.96335 | G62: 9854.193996 | H62: 3239.769358 | I62: 1679.48555 | J62: 82.10257436 | K62: 3227.846025 | L62: 230.4767054 | M62: 1043.372863 | N62: 267.7977133 | O62: 33.77687711 | P62: 550.7533897 | Q62: 98.46379665 | R62: 1174.126891 | S62: 333.0689232 | T62: 294.7850136 | U62: 29.88936259 | V62: 415.5952432 | W62: 104.6144039 | X62: 29.96072627 | Y62: 7.134570509 | Z62: 56.5564913 | AA62: 15.24935034 | AB62: 391.3694563 | AC62: 693.4884683 | AD62: 31.95199714 | AE62: 6.651521432 | AF62: 26.09046326 | AG62: 1164.891155 | AH62: 612.5410409 | AI62: 431.6302627 | AJ62: 54.3598809 | AK62: 5.932637229 | AL62: 213
A63: B70C | B63: Stroke and Other Cerebrovascular Disorders, Minor Complexity | C63: 1.258366761 | D63: 14820 | E63: 3.639001349 | F63: 7309.231994 | G63: 5534.91405 | H63: 1774.317944 | I63: 980.0628165 | J63: 44.78250175 | K63: 1651.886195 | L63: 124.3322061 | M63: 565.9166184 | N63: 148.1200936 | O63: 18.435209 | P63: 385.9938392 | Q63: 67.22715788 | R63: 603.5916555 | S63: 170.5507973 | T63: 170.4990171 | U63: 17.67782506 | V63: 208.8719185 | W63: 55.0419863 | X63: 33.55033027 | Y63: 9.696248248 | Z63: 61.81706347 | AA63: 16.23546968 | AB63: 224.1480706 | AC63: 379.3609765 | AD63: 37.84343133 | AE63: 7.487395598 | AF63: 41.36319179 | AG63: 689.57621 | AH63: 326.6026289 | AI63: 234.4120724 | AJ63: 31.30091849 | AK63: 2.848149668 | AL63: 255
A64: B70D | B64: Stroke and Other Cerebrovascular Disorders, Transferred < 5 Days | C64: 0.8387372203 | D64: 3312 | E64: 1.925724638 | F64: 4871.810917 | G64: 3834.039424 | H64: 1037.771494 | I64: 555.5655197 | J64: 24.85867002 | K64: 788.0597748 | L64: 55.55627161 | M64: 367.6006419 | N64: 110.7180443 | O64: 20.22273703 | P64: 337.3229848 | Q64: 52.10370254 | R64: 347.2587838 | S64: 93.81324822 | T64: 92.01258661 | U64: 10.12964759 | V64: 155.3898429 | W64: 39.09794663 | X64: 31.44466325 | Y64: 6.755586822 | Z64: 98.40472097 | AA64: 24.70231605 | AB64: 127.8568758 | AC64: 213.0248038 | AD64: 12.08555865 | AE64: 2.244112772 | AF64: 35.90957616 | AG64: 373.9993961 | AH64: 176.0299496 | AI64: 167.7154929 | AJ64: 549.202146 | AK64: 2.725316239 | AL64: 245
A65: B71A | B65: Cranial and Peripheral Nerve Disorders, Major Complexity | C65: 2.021152474 | D65: 4162 | E65: 5.966602595 | F65: 11739.87806 | G65: 8958.34015 | H65: 2781.537907 | I65: 1501.852835 | J65: 73.82829326 | K65: 2767.949335 | L65: 207.934609 | M65: 965.1976742 | N65: 897.5576958 | O65: 55.20885302 | P65: 406.1801628 | Q65: 71.09049384 | R65: 615.9485844 | S65: 184.5056136 | T65: 355.3764495 | U65: 31.83446829 | V65: 299.1434137 | W65: 70.79290363 | X65: 76.4982589 | Y65: 17.12490349 | Z65: 116.1815738 | AA65: 37.21613002 | AB65: 389.6565425 | AC65: 607.3171509 | AD65: 47.7916602 | AE65: 9.695449816 | AF65: 6.272122482 | AG65: 957.6459358 | AH65: 511.4675099 | AI65: 387.8608371 | AJ65: 65.25208342 | AK65: 5.496512248 | AL65: 227
A66: B71B | B66: Cranial and Peripheral Nerve Disorders, Minor Complexity | C66: 0.4443583317 | D66: 25689 | E66: 1.252948733 | F66: 2581.058428 | G66: 2166.05927 | H66: 414.999158 | I66: 276.7340228 | J66: 11.80960721 | K66: 293.1611858 | L66: 25.82701912 | M66: 158.9988774 | N66: 1017.574727 | O66: 24.37728539 | P66: 56.73552588 | Q66: 9.665984842 | R66: 51.86308923 | S66: 15.75519923 | T66: 55.77274427 | U66: 5.170692232 | V66: 8.905301662 | W66: 2.082630622 | X66: 74.90422186 | Y66: 25.15142444 | Z66: 27.76609172 | AA66: 6.824660098 | AB66: 63.99849801 | AC66: 82.35460881 | AD66: 12.95500566 | AE66: 7.807090515 | AF66: 2.044741447 | AG66: 145.9058098 | AH66: 56.45867233 | AI66: 51.88731738 | AJ66: 7.430097866 | AK66: 1.136295221 | AL66: 262
A67: B72A | B67: Nervous System Infection Excluding Viral Meningitis, Major Complexity | C67: 4.317370865 | D67: 1738 | E67: 11.46317606 | F67: 25077.47839 | G67: 19278.33575 | H67: 5799.142637 | I67: 3165.921012 | J67: 142.2015874 | K67: 5736.097468 | L67: 396.5000535 | M67: 1829.055679 | N67: 1162.763516 | O67: 100.5412147 | P67: 854.0186416 | Q67: 156.5028934 | R67: 925.9776368 | S67: 282.970962 | T67: 1965.268368 | U67: 186.6759397 | V67: 1204.000915 | W67: 280.2824776 | X67: 260.0201877 | Y67: 58.30072303 | Z67: 82.15524291 | AA67: 21.32321581 | AB67: 755.3253319 | AC67: 1249.729987 | AD67: 27.67398086 | AE67: 5.830323431 | AF67: 18.14111788 | AG67: 2046.542162 | AH67: 1142.636074 | AI67: 864.7889304 | AJ67: 149.2956484 | AK67: 6.937095319 | AL67: 186
A68: B72B | B68: Nervous System Infection Excluding Viral Meningitis, Minor Complexity | C68: 0.9271143702 | D68: 2358 | E68: 2.83418151 | F68: 5385.150201 | G68: 4251.7879 | H68: 1133.362301 | I68: 752.0531203 | J68: 33.09989787 | K68: 1055.174495 | L68: 82.31483528 | M68: 410.1836386 | N68: 913.7409515 | O68: 50.56616986 | P68: 136.3104045 | Q68: 24.99057597 | R68: 123.8075835 | S68: 37.09003563 | T68: 316.2161592 | U68: 32.99319688 | V68: 27.08351181 | W68: 8.311488173 | X68: 79.41567139 | Y68: 22.27758406 | Z68: 35.90815223 | AA68: 7.97442237 | AB68: 166.512259 | AC68: 256.5856351 | AD68: 15.14549415 | AE68: 11.62292341 | AF68: 3.054741285 | AG68: 388.9440828 | AH68: 190.189784 | AI68: 152.1612571 | AJ68: 48.88094905 | AK68: 2.541181314 | AL68: 198
A69: B73A | B69: Viral Meningitis, Major Complexity | C69: 2.186134581 | D69: 208 | E69: 6.394230769 | F69: 12698.17776 | G69: 9778.136698 | H69: 2920.041063 | I69: 1822.314523 | J69: 87.10046162 | K69: 3238.928208 | L69: 236.9620336 | M69: 1049.138475 | N69: 506.2512677 | O69: 49.45737226 | P69: 468.8764622 | Q69: 80.27714651 | R69: 211.3302313 | S69: 89.33003115 | T69: 833.4416353 | U69: 82.66133803 | V69: 524.0627737 | W69: 103.5701437 | X69: 59.01807064 | Y69: 11.45173369 | Z69: 95.38455726 | AA69: 18.33773525 | AB69: 586.9005116 | AC69: 668.5223371 | AD69: 2.256927332 | AE69: 1.352550481 | AF69: 8.577522024 | AG69: 947.3766543 | AH69: 436.8818255 | AI69: 433.4339845 | AJ69: 40.97177286 | AK69: 4.009474337 | AL69: 90
A70: B73B | B70: Viral Meningitis, Minor Complexity | C70: 0.9896629372 | D70: 720 | E70: 2.815277778 | F70: 5748.463983 | G70: 4300.914793 | H70: 1447.54919 | I70: 980.9052627 | J70: 43.88125252 | K70: 1520.506518 | L70: 112.6544624 | M70: 525.4929054 | N70: 213.7100225 | O70: 32.90463279 | P70: 181.0522125 | Q70: 33.8487043 | R70: 52.17336641 | S70: 30.72931363 | T70: 256.1269396 | U70: 30.85006585 | V70: 67.07828276 | W70: 16.15517495 | X70: 23.33803281 | Y70: 6.734925381 | Z70: 100.8157102 | AA70: 26.34844286 | AB70: 203.5411752 | AC70: 363.4324047 | AD70: 5.799381354 | AE70: 2.180044625 | AF70: 0.9331576653 | AG70: 450.3235692 | AH70: 219.1945513 | AI70: 224.8605451 | AJ70: 20.17530388 | AK70: 2.717622031 | AL70: 143
A71: B74A | B71: Nontraumatic Stupor and Coma, Major Complexity | C71: 1.914649998 | D71: 835 | E71: 5.500598802 | F71: 11121.2577 | G71: 8523.525632 | H71: 2597.732062 | I71: 1317.223915 | J71: 58.82147237 | K71: 2609.766606 | L71: 185.8006178 | M71: 863.7889331 | N71: 329.1401514 | O71: 31.2740588 | P71: 295.946185 | Q71: 57.9469171 | R71: 561.3658377 | S71: 151.3574999 | T71: 331.3683124 | U71: 30.18777133 | V71: 1068.127325 | W71: 256.1723995 | X71: 35.26574781 | Y71: 7.227227541 | Z71: 79.93947129 | AA71: 21.16728856 | AB71: 339.6889536 | AC71: 527.4690966 | AD71: 7.116037266 | AE71: 1.214221207 | AF71: 6.046320741 | AG71: 1059.339112 | AH71: 449.8129819 | AI71: 358.3880178 | AJ71: 74.94954012 | AK71: 5.345675704 | AL71: 154
A72: B74B | B72: Nontraumatic Stupor and Coma, Minor Complexity | C72: 0.4866243328 | D72: 2174 | E72: 1.685832567 | F72: 2826.560787 | G72: 2142.161575 | H72: 684.3992117 | I72: 386.5974751 | J72: 16.06099379 | K72: 561.0137352 | L72: 47.50400894 | M72: 253.4324096 | N72: 64.51768483 | O72: 10.59671406 | P72: 82.21439994 | Q72: 13.98737849 | R72: 90.19222278 | S72: 27.86264432 | T72: 64.14177752 | U72: 8.375113345 | V72: 213.8741656 | W72: 50.53162638 | X72: 7.659275471 | Y72: 2.2596801 | Z72: 119.6542766 | AA72: 28.52868361 | AB72: 76.57341375 | AC72: 138.7777866 | AD72: 57.35248845 | AE72: 16.21780261 | AF72: 5.509682318 | AG72: 258.5321651 | AH72: 96.42094171 | AI72: 81.4438384 | AJ72: 43.31324323 | AK72: 3.415159052 | AL72: 206
A73: B75Z | B73: Febrile Convulsions | C73: 0.4236285575 | D73: 1811 | E73: 1.291551629 | F73: 2460.649392 | G73: 1846.741055 | H73: 613.9083374 | I73: 537.4427774 | J73: 18.24766359 | K73: 616.8560708 | L73: 48.35695766 | M73: 220.4384824 | N73: 58.78488213 | O73: 11.40236012 | P73: 32.70762915 | Q73: 6.643923959 | R73: 29.73519145 | S73: 14.64804909 | T73: 31.70864751 | U73: 3.627587247 | V73: 52.66153072 | W73: 7.811927093 | X73: 31.5737889 | Y73: 6.669333182 | Z73: 65.46981188 | AA73: 15.93854948 | AB73: 67.1652524 | AC73: 161.5182364 | AD73: 3.004136656 | AE73: 0.6717723479 | AF73: 0.6349056731 | AG73: 232.0427957 | AH73: 80.06491491 | AI73: 90.91642064 | AJ73: 12.61901027 | AK73: 1.286783326 | AL73: 146
A74: B76A | B74: Seizures, Major Complexity | C74: 1.708286392 | D74: 10176 | E74: 4.262775157 | F74: 9922.593269 | G74: 7537.122201 | H74: 2385.471068 | I74: 1382.917234 | J74: 63.72149641 | K74: 2198.174736 | L74: 159.7496335 | M74: 772.5312558 | N74: 252.8537048 | O74: 35.62763355 | P74: 284.5919502 | Q74: 51.49916931 | R74: 455.5007495 | S74: 129.3237457 | T74: 393.4036995 | U74: 28.20227596 | V74: 857.8314938 | W74: 203.5863329 | X74: 56.83308195 | Y74: 15.22892803 | Z74: 83.67030011 | AA74: 20.12688464 | AB74: 275.2185339 | AC74: 512.2608365 | AD74: 18.2993386 | AE74: 3.606531295 | AF74: 9.329588768 | AG74: 854.9270844 | AH74: 386.9229426 | AI74: 354.8260886 | AJ74: 57.62415525 | AK74: 4.203863606 | AL74: 232
A75: B76B | B75: Seizures, Minor Complexity | C75: 0.4746213155 | D75: 21339 | E75: 1.476404705 | F75: 2756.841178 | G75: 2093.058309 | H75: 663.7828688 | I75: 461.8845831 | J75: 19.39298155 | K75: 561.6160405 | L75: 46.21581863 | M75: 238.0869675 | N75: 86.88874017 | O75: 10.76734185 | P75: 133.8547234 | Q75: 24.2428135 | R75: 83.03406995 | S75: 23.99509327 | T75: 100.71271 | U75: 8.096044465 | V75: 66.05440725 | W75: 16.56488152 | X75: 47.67191965 | Y75: 12.86389105 | Z75: 96.38837587 | AA75: 23.28275784 | AB75: 77.95411816 | AC75: 150.7940722 | AD75: 4.140562698 | AE75: 0.851872246 | AF75: 2.809854654 | AG75: 234.9705432 | AH75: 96.33909537 | AI75: 98.27486109 | AJ75: 27.54730806 | AK75: 1.544729381 | AL75: 272
A76: B77A | B76: Headaches, Major Complexity | C76: 0.6911622422 | D76: 7321 | E76: 2.793744024 | F76: 4014.620641 | G76: 3056.703095 | H76: 957.9175465 | I76: 615.2281253 | J76: 25.35163475 | K76: 904.7858648 | L76: 68.72781321 | M76: 381.9691594 | N76: 108.2237427 | O76: 12.08243482 | P76: 216.597339 | Q76: 35.53241032 | R76: 133.7745821 | S76: 41.44763587 | T76: 137.9317905 | U76: 13.11149716 | V76: 44.92058007 | W76: 12.90617144 | X76: 77.24269399 | Y76: 18.71585656 | Z76: 113.1296182 | AA76: 28.21587165 | AB76: 130.6888079 | AC76: 217.1167532 | AD76: 8.237656739 | AE76: 2.275879825 | AF76: 4.368589587 | AG76: 354.2597726 | AH76: 159.4314177 | AI76: 129.6196113 | AJ76: 16.51741752 | AK76: 2.209912884 | AL76: 244
A77: B77B | B77: Headaches, Minor Complexity | C77: 0.248380413 | D77: 30754 | E77: 1.559114262 | F77: 1442.719339 | G77: 1109.741441 | H77: 332.9778978 | I77: 220.7297324 | J77: 8.153959982 | K77: 261.8332652 | L77: 21.17394982 | M77: 127.1575389 | N77: 29.61285099 | O77: 4.416748358 | P77: 118.7036239 | Q77: 20.03908233 | R77: 31.40495945 | S77: 9.763723008 | T77: 37.40005146 | U77: 4.073821647 | V77: 4.492686277 | W77: 1.445129421 | X77: 24.12793861 | Y77: 5.793614173 | Z77: 124.1628811 | AA77: 30.11824101 | AB77: 48.39361493 | AC77: 68.00935494 | AD77: 1.243663093 | AE77: 0.2792209656 | AF77: 1.909979694 | AG77: 128.3985164 | AH77: 55.2659513 | AI77: 46.07870638 | AJ77: 7.68426204 | AK77: 0.8522707538 | AL77: 270
A78: B78A | B78: Intracranial Injuries, Major Complexity | C78: 3.39719556 | D78: 2785 | E78: 10.04057451 | F78: 19732.6338 | G78: 14806.21587 | H78: 4926.417932 | I78: 2291.429179 | J78: 125.5011033 | K78: 5150.963494 | L78: 356.9274477 | M78: 1494.683224 | N78: 492.9133976 | O78: 55.67418617 | P78: 627.496828 | Q78: 116.8257106 | R78: 1396.032238 | S78: 421.3465067 | T78: 414.553718 | U78: 41.48139817 | V78: 1024.539808 | W78: 242.9629022 | X78: 64.0523079 | Y78: 12.7803086 | Z78: 198.280558 | AA78: 55.27604868 | AB78: 578.1174787 | AC78: 987.8613393 | AD78: 20.38815501 | AE78: 5.514892806 | AF78: 22.85394622 | AG78: 1723.315407 | AH78: 993.6328652 | AI78: 717.2773025 | AJ78: 90.32461584 | AK78: 9.627429044 | AL78: 171
A79: B78B | B79: Intracranial Injuries, Minor Complexity | C79: 1.009900555 | D79: 5298 | E79: 3.02397131 | F79: 5866.014325 | G79: 4426.579605 | H79: 1439.43472 | I79: 780.4469439 | J79: 36.8068517 | K79: 1459.72325 | L79: 110.3759769 | M79: 474.6364993 | N79: 111.5767697 | O79: 14.01004908 | P79: 273.733128 | Q79: 49.0849375 | R79: 368.0230957 | S79: 111.3414843 | T79: 115.8490262 | U79: 13.46381598 | V79: 192.0964551 | W79: 46.7263087 | X79: 28.11397055 | Y79: 6.673975635 | Z79: 140.2413949 | AA79: 36.35758091 | AB79: 187.2233482 | AC79: 303.4723914 | AD79: 4.908220141 | AE79: 1.219749721 | AF79: 4.604261585 | AG79: 501.0181646 | AH79: 254.1841826 | AI79: 197.1629994 | AJ79: 39.83200685 | AK79: 3.107486918 | AL79: 224
A80: B78C | B80: Intracranial Injuries, Transferred < 5 Days | C80: 0.6266041038 | D80: 754 | E80: 1.555702918 | F80: 3639.63425 | G80: 2856.65511 | H80: 782.9791403 | I80: 366.7721077 | J80: 17.97170798 | K80: 594.1283506 | L80: 47.27173232 | M80: 317.0593081 | N80: 105.16055 | O80: 14.7458572 | P80: 208.6365371 | Q80: 35.4123807 | R80: 173.1200685 | S80: 55.32577068 | T80: 61.2648076 | U80: 7.362001357 | V80: 153.4991527 | W80: 38.38489639 | X80: 8.383864276 | Y80: 2.427152309 | Z80: 193.1850912 | AA80: 43.90603434 | AB80: 102.4318888 | AC80: 156.9045646 | AD80: 0.9073872732 | AE80: 0.1775093488 | AF80: 0.9508695557 | AG80: 242.3413115 | AH80: 117.546165 | AI80: 111.7408868 | AJ80: 455.4972747 | AK80: 7.119021328 | AL80: 181
A81: B79A | B81: Skull Fractures, Major Complexity | C81: 1.577039139 | D81: 682 | E81: 4.337243402 | F81: 9160.242693 | G81: 6940.524822 | H81: 2219.717871 | I81: 1162.400572 | J81: 49.68708682 | K81: 2159.078363 | L81: 146.9352226 | M81: 685.6821944 | N81: 187.1758041 | O81: 19.39416211 | P81: 387.8490953 | Q81: 69.52057024 | R81: 650.3368658 | S81: 180.6733594 | T81: 176.1273513 | U81: 19.25099921 | V81: 443.4456358 | W81: 104.1527294 | X81: 81.05797485 | Y81: 16.10637711 | Z81: 172.7179521 | AA81: 42.75924788 | AB81: 279.8442896 | AC81: 473.6374637 | AD81: 13.58588897 | AE81: 2.475688493 | AF81: 13.25025581 | AG81: 834.5243137 | AH81: 383.1939133 | AI81: 338.7059674 | AJ81: 61.2468008 | AK81: 5.426548087 | AL81: 131
A82: B79B | B82: Skull Fractures, Minor Complexity | C82: 0.479544164 | D82: 1242 | E82: 1.42431562 | F82: 2785.435578 | G82: 2119.786472 | H82: 665.6491054 | I82: 454.0858938 | J82: 18.45773059 | K82: 548.2084838 | L82: 43.59977627 | M82: 242.7870046 | N82: 29.37832376 | O82: 4.70387775 | P82: 150.0907955 | Q82: 25.05717028 | R82: 147.9939926 | S82: 43.85524242 | T82: 40.21521407 | U82: 4.929428903 | V82: 29.61645197 | W82: 6.15028 | X82: 84.3027224 | Y82: 19.48835385 | Z82: 143.450247 | AA82: 35.03272929 | AB82: 83.65531738 | AC82: 141.2639392 | AD82: 3.143760371 | AE82: 0.5978355378 | AF82: 7.553662514 | AG82: 239.5873608 | AH82: 97.08223542 | AI82: 102.1309607 | AJ82: 37.59428598 | AK82: 1.422500832 | AL82: 170
A83: B80A | B83: Other Head Injuries, Major Complexity | C83: 1.078408957 | D83: 3114 | E83: 3.815350032 | F83: 6263.94585 | G83: 4591.811685 | H83: 1672.134165 | I83: 841.2777437 | J83: 39.81297141 | K83: 1523.796269 | L83: 114.0266798 | M83: 613.5958534 | N83: 157.7217669 | O83: 17.2017132 | P83: 210.8446996 | Q83: 40.14500146 | R83: 391.3637769 | S83: 118.1976571 | T83: 126.8229758 | U83: 15.73532445 | V83: 160.3829687 | W83: 48.42248082 | X83: 16.94709965 | Y83: 3.893686796 | Z83: 145.6212443 | AA83: 37.52355066 | AB83: 223.8974836 | AC83: 380.9047586 | AD83: 7.565438841 | AE83: 1.742938183 | AF83: 2.403917941 | AG83: 491.7621743 | AH83: 236.3512013 | AI83: 243.7613229 | AJ83: 46.93455376 | AK83: 5.288596662 | AL83: 230
A84: B80B | B84: Other Head Injuries, Minor Complexity | C84: 0.2149790983 | D84: 20064 | E84: 1.10446571 | F84: 1248.707572 | G84: 948.1266468 | H84: 300.5809252 | I84: 170.8331909 | J84: 6.476534123 | K84: 204.332459 | L84: 15.81583269 | M84: 102.7779039 | N84: 14.40862033 | O84: 2.698175967 | P84: 89.67802067 | Q84: 15.5829356 | R84: 64.27924063 | S84: 18.7055 | T84: 18.29687511 | U84: 2.89834922 | V84: 17.01277206 | W84: 4.538190606 | X84: 3.948558959 | Y84: 1.220224836 | Z84: 166.9627905 | AA84: 40.85694808 | AB84: 33.29885438 | AC84: 57.11082651 | AD84: 0.7216655278 | AE84: 0.1510662336 | AF84: 0.600723874 | AG84: 97.97800978 | AH84: 37.50616692 | AI84: 43.87169572 | AJ84: 14.71299182 | AK84: 1.432448101 | AL84: 271
A85: B81A | B85: Other Disorders of the Nervous System, Major Complexity | C85: 2.190567595 | D85: 9964 | E85: 6.789140907 | F85: 12723.92696 | G85: 9598.608684 | H85: 3125.318272 | I85: 1603.379834 | J85: 81.36167932 | K85: 3012.886468 | L85: 222.1881697 | M85: 1034.214438 | N85: 382.96749 | O85: 40.21203316 | P85: 690.8940339 | Q85: 128.7998969 | R85: 677.0670243 | S85: 203.3435854 | T85: 329.8634195 | U85: 29.35357702 | V85: 314.4325201 | W85: 73.48964459 | X85: 202.6825296 | Y85: 52.20451277 | Z85: 78.42968787 | AA85: 19.87716822 | AB85: 507.0838554 | AC85: 670.9854521 | AD85: 33.67061818 | AE85: 5.470407472 | AF85: 84.81281765 | AG85: 1082.304943 | AH85: 614.5563611 | AI85: 455.2043129 | AJ85: 86.73253987 | AK85: 5.457936207 | AL85: 252
A86: B81B | B86: Other Disorders of the Nervous System, Minor Complexity | C86: 0.727553572 | D86: 17739 | E86: 2.864986752 | F86: 4225.999931 | G86: 3201.828945 | H86: 1024.170987 | I86: 590.9756992 | J86: 26.66458736 | K86: 950.5375005 | L86: 77.1252756 | M86: 370.835138 | N86: 131.8697387 | O86: 11.72427735 | P86: 231.368863 | Q86: 40.27609343 | R86: 235.199939 | S86: 69.81378612 | T86: 103.3688309 | U86: 10.86266673 | V86: 20.44845184 | W86: 6.456635112 | X86: 58.9031309 | Y86: 13.96645038 | Z86: 103.8916691 | AA86: 25.12890048 | AB86: 152.7794003 | AC86: 221.44755 | AD86: 6.37973986 | AE86: 1.975799321 | AF86: 3.270935112 | AG86: 389.4064019 | AH86: 192.2256066 | AI86: 137.5804683 | AJ86: 38.76858377 | AK86: 2.747812184 | AL86: 282
A87: B82A | B87: Chronic and Unspecified Paraplegia/Quadriplegia, Major Complexity | C87: 6.390859928 | D87: 426 | E87: 16.32394366 | F87: 37121.35388 | G87: 26807.46254 | H87: 10313.89134 | I87: 4011.484943 | J87: 260.7190269 | K87: 9724.183931 | L87: 720.0296903 | M87: 2889.547454 | N87: 802.6976869 | O87: 88.29132096 | P87: 609.1036384 | Q87: 117.897382 | R87: 1681.395745 | S87: 617.2877626 | T87: 838.1085326 | U87: 102.4762127 | V87: 3177.551589 | W87: 795.9072537 | X87: 284.1132712 | Y87: 66.34453632 | Z87: 59.04086148 | AA87: 12.5557992 | AB87: 1379.361266 | AC87: 2232.707104 | AD87: 54.94729972 | AE87: 10.55148821 | AF87: 28.11913815 | AG87: 2599.971412 | AH87: 2163.629825 | AI87: 1683.113882 | AJ87: 97.0842755 | AK87: 13.1315552 | AL87: 106
A88: B82B | B88: Chronic and Unspecified Paraplegia/Quadriplegia, Intermediate Complexity | C88: 2.159467575 | D88: 357 | E88: 6.162464986 | F88: 12543.28227 | G88: 9243.862478 | H88: 3299.419797 | I88: 1594.407073 | J88: 78.94080324 | K88: 3468.579934 | L88: 245.7375154 | M88: 1072.691551 | N88: 246.8809956 | O88: 28.96236296 | P88: 219.9752273 | Q88: 39.3934935 | R88: 581.4949955 | S88: 190.9897423 | T88: 386.5330239 | U88: 46.75951919 | V88: 361.7002109 | W88: 101.7267664 | X88: 216.7650068 | Y88: 58.43324737 | Z88: 56.50591283 | AA88: 14.28181008 | AB88: 429.9505689 | AC88: 771.9881557 | AD88: 6.584928557 | AE88: 1.031215952 | AF88: 79.22609488 | AG88: 972.2929971 | AH88: 619.9596694 | AI88: 590.6791553 | AJ88: 54.21740647 | AK88: 6.592890778 | AL88: 100
A89: B82C | B89: Chronic and Unspecified Paraplegia/Quadriplegia, Minor Complexity | C89: 1.067140309 | D89: 423 | E89: 3.089834515 | F89: 6198.491831 | G89: 4603.949436 | H89: 1594.542396 | I89: 879.9870794 | J89: 42.08200503 | K89: 1446.96523 | L89: 120.8095291 | M89: 536.12336 | N89: 111.3358181 | O89: 11.92810744 | P89: 103.9288094 | Q89: 18.37063267 | R89: 208.9125901 | S89: 65.21554086 | T89: 215.8533148 | U89: 26.08106383 | V89: 115.7540082 | W89: 29.14442005 | X89: 433.0376457 | Y89: 116.4549159 | Z89: 72.68579375 | AA89: 18.49988109 | AB89: 233.692185 | AC89: 312.8107568 | AD89: 25.44671392 | AE89: 4.642115946 | AF89: 41.63698793 | AG89: 451.0727575 | AH89: 269.9793785 | AI89: 262.7063612 | AJ89: 21.41916722 | AK89: 1.915661976 | AL89: 111
A90: B83A | B90: Acute Paraplegia and Quadriplegia and Spinal Cord Conditions, Major Complexity | C90: 5.435817945 | D90: 523 | E90: 14.18164436 | F90: 31573.98595 | G90: 23482.9312 | H90: 8091.054757 | I90: 3526.689301 | J90: 248.1205428 | K90: 8339.97387 | L90: 619.0302004 | M90: 2335.774928 | N90: 817.906806 | O90: 99.52862147 | P90: 864.3994544 | Q90: 178.8999495 | R90: 2506.967563 | S90: 662.9730645 | T90: 932.1291957 | U90: 91.08197934 | V90: 893.2308253 | W90: 201.3989454 | X90: 168.4223552 | Y90: 38.23688875 | Z90: 110.0386757 | AA90: 26.53682717 | AB90: 1045.783891 | AC90: 1872.649699 | AD90: 223.6987219 | AE90: 44.55771567 | AF90: 51.13464372 | AG90: 2562.961349 | AH90: 1609.622201 | AI90: 1330.788977 | AJ90: 163.9813941 | AK90: 7.467366598 | AL90: 111
A91: B83B | B91: Acute Paraplegia and Quadriplegia and Spinal Cord Conditions, Intermediate Complexity | C91: 2.356213895 | D91: 385 | E91: 6.553246753 | F91: 13686.08463 | G91: 10263.29586 | H91: 3422.788767 | I91: 1531.046513 | J91: 83.50403006 | K91: 3672.853863 | L91: 275.3553682 | M91: 1077.660714 | N91: 271.9095917 | O91: 35.29387266 | P91: 518.3623802 | Q91: 95.70071423 | R91: 982.6818465 | S91: 251.3208502 | T91: 350.7960881 | U91: 33.68922008 | V91: 208.631267 | W91: 57.00872636 | X91: 57.74612858 | Y91: 15.48177842 | Z91: 87.54050838 | AA91: 23.6588057 | AB91: 446.237056 | AC91: 855.5467629 | AD91: 164.6403324 | AE91: 39.47322857 | AF91: 51.06751697 | AG91: 1108.441824 | AH91: 690.5931565 | AI91: 486.4798775 | AJ91: 203.7125791 | AK91: 9.650027065 | AL91: 113
A92: B83C | B92: Acute Paraplegia and Quadriplegia and Spinal Cord Conditions, Minor Complexity | C92: 1.046665485 | D92: 441 | E92: 2.952380952 | F92: 6079.563677 | G92: 4631.682399 | H92: 1447.881279 | I92: 699.7572033 | J92: 33.50271875 | K92: 1543.843577 | L92: 105.7901559 | M92: 537.6070919 | N92: 106.5356097 | O92: 13.85951883 | P92: 323.6420271 | Q92: 58.16929856 | R92: 335.3185799 | S92: 99.02951764 | T92: 166.2711052 | U92: 17.41232359 | V92: 17.66130228 | W92: 4.829536764 | X92: 111.0972915 | Y92: 30.14745028 | Z92: 99.00120979 | AA92: 24.44444209 | AB92: 175.9529437 | AC92: 352.8104778 | AD92: 29.21742676 | AE92: 19.54142381 | AF92: 13.38468932 | AG92: 524.9853145 | AH92: 267.6659974 | AI92: 202.0220466 | AJ92: 163.2924069 | AK92: 2.770990206 | AL92: 128
A93: C01Z | B93: Interventions for Penetrating Eye Injury | C93: 1.971285341 | D93: 408 | E93: 2.470588235 | F93: 11450.22447 | G93: 8459.747741 | H93: 2990.47673 | I93: 1451.46193 | J93: 49.71827507 | K93: 1249.706424 | L93: 139.2485501 | M93: 590.0685983 | N93: 43.42453942 | O93: 12.24022913 | P93: 74.66235159 | Q93: 13.73746858 | R93: 157.8384278 | S93: 56.30571678 | T93: 238.7783321 | U93: 43.56350707 | V93: 35.31024197 | W93: 9.093317164 | X93: 3585.5782 | Y93: 1003.188844 | Z93: 27.78875507 | AA93: 7.14131377 | AB93: 261.5094059 | AC93: 423.8791336 | AD93: 0.766525 | AE93: 0.9588323529 | AF93: 126.9866055 | AG93: 976.6174401 | AH93: 379.041524 | AI93: 479.2445466 | AJ93: 9.582495711 | AK93: 2.782940529 | AL93: 68
A94: C02A | B94: Enucleations and Orbital Interventions, Major Complexity | C94: 4.216158974 | D94: 307 | E94: 6.511400651 | F94: 24489.58842 | G94: 18006.96102 | H94: 6482.627406 | I94: 3092.319665 | J94: 113.5413455 | K94: 3764.932536 | L94: 335.5038247 | M94: 1393.703379 | N94: 423.7608393 | O94: 52.95708902 | P94: 365.9203205 | Q94: 79.75077306 | R94: 390.8475553 | S94: 167.8010252 | T94: 536.8394659 | U94: 80.703965 | V94: 282.6312357 | W94: 57.28513923 | X94: 5851.345273 | Y94: 1564.099935 | Z94: 26.33531613 | AA94: 7.052243098 | AB94: 590.9884126 | AC94: 1031.927418 | AD94: 1.530839681 | AE94: 0.1422449511 | AF94: 185.6471819 | AG94: 1981.521885 | AH94: 797.878308 | AI94: 1266.77171 | AJ94: 39.17648423 | AK94: 6.673013215 | AL94: 49
A95: C02B | B95: Enucleations and Orbital Interventions, Minor Complexity | C95: 1.794042475 | D95: 394 | E95: 1.66751269 | F95: 10420.70807 | G95: 7618.003026 | H95: 2802.705041 | I95: 1323.101823 | J95: 35.29168535 | K95: 840.2132068 | L95: 100.1573894 | M95: 482.9971728 | N95: 243.6450935 | O95: 37.7850512 | P95: 73.87964503 | Q95: 14.32695676 | R95: 119.4529873 | S95: 48.39782268 | T95: 140.4290105 | U95: 33.99507589 | V95: 0 | W95: 0 | X95: 3162.084791 | Y95: 920.0248725 | Z95: 1.873210251 | AA95: 0.3621316853 | AB95: 504.4038898 | AC95: 364.9580453 | AD95: 7.55857132 | AE95: 1.540010152 | AF95: 218.2519132 | AG95: 834.0713955 | AH95: 313.964946 | AI95: 590.0907032 | AJ95: 5.487031528 | AK95: 2.36363685 | AL95: 68
A96: C03A | B96: Retinal Interventions, Major Complexity | C96: 1.152487186 | D96: 6294 | E96: 1.426278996 | F96: 6694.229754 | G96: 4822.312416 | H96: 1871.917339 | I96: 750.1928001 | J96: 27.6452823 | K96: 554.6464749 | L96: 78.37791684 | M96: 317.7517236 | N96: 31.35037626 | O96: 6.966484995 | P96: 15.26903459 | Q96: 4.730543115 | R96: 43.11298065 | S96: 30.39488392 | T96: 212.4909145 | U96: 28.21179157 | V96: 9.321582046 | W96: 2.575952621 | X96: 2204.028263 | Y96: 682.6273821 | Z96: 1.953264939 | AA96: 0.7608125848 | AB96: 256.1788429 | AC96: 253.3280912 | AD96: 0.9842818974 | AE96: 0.6473039411 | AF96: 149.6682097 | AG96: 539.9286874 | AH96: 166.1716452 | AI96: 318.8269243 | AJ96: 4.961242425 | AK96: 1.126060312 | AL96: 87
A97: C03B | B97: Retinal Interventions, Minor Complexity | C97: 0.3140289274 | D97: 19599 | E97: 1.007398337 | F97: 1824.039187 | G97: 1400.122635 | H97: 423.9165517 | I97: 257.9701208 | J97: 7.97864454 | K97: 277.0910313 | L97: 23.23375022 | M97: 130.0656845 | N97: 2.016975432 | O97: 1.457130146 | P97: 5.53020579 | Q97: 1.019690854 | R97: 59.24019662 | S97: 26.01526662 | T97: 131.4700475 | U97: 7.505910725 | V97: 2.258230597 | W97: 0.7253700188 | X97: 343.1610477 | Y97: 105.3900555 | Z97: 0.0728541589 | AA97: 0.0286794818 | AB97: 119.7320048 | AC97: 65.89947153 | AD97: 0.1576717792 | AE97: 0.0314039543 | AF97: 35.50834122 | AG97: 133.5031179 | AH97: 33.70503853 | AI97: 51.98899913 | AJ97: 0.3842860015 | AK97: 0.8979594359 | AL97: 106
A98: C04A | B98: Major Corneal, Scleral and Conjunctival Interventions, Major Complexity | C98: 3.106646549 | D98: 284 | E98: 4.788732394 | F98: 18044.97787 | G98: 13066.09553 | H98: 4978.882333 | I98: 2097.955936 | J98: 90.43799069 | K98: 2574.366338 | L98: 291.5159612 | M98: 1040.560613 | N98: 174.2925785 | O98: 31.16123564 | P98: 63.95566538 | Q98: 20.58397887 | R98: 217.5190555 | S98: 149.8798162 | T98: 562.4454131 | U98: 86.12961364 | V98: 246.3722257 | W98: 65.94033763 | X98: 4014.257695 | Y98: 1283.307524 | Z98: 23.33427364 | AA98: 7.16158857 | AB98: 415.1393831 | AC98: 788.2801708 | AD98: 7.704462725 | AE98: 5.417208451 | AF98: 973.2353438 | AG98: 1412.218396 | AH98: 616.0865271 | AI98: 758.4088741 | AJ98: 22.79736615 | AK98: 4.512294109 | AL98: 36
A99: C04B | B99: Major Corneal, Scleral and Conjunctival Interventions, Minor Complexity | C99: 1.507687088 | D99: 858 | E99: 1.328671329 | F99: 8757.41083 | G99: 6524.367848 | H99: 2233.042982 | I99: 869.0269882 | J99: 28.33313161 | K99: 612.2145211 | L99: 90.61389752 | M99: 342.4956906 | N99: 43.72979507 | O99: 7.110059689 | P99: 3.13486233 | Q99: 1.508592149 | R99: 53.46263507 | S99: 52.6995843 | T99: 131.4826808 | U99: 38.63075815 | V99: 0 | W99: 0 | X99: 2594.926378 | Y99: 825.093766 | Z99: 0.9004660629 | AA99: 0.367636697 | AB99: 485.9832746 | AC99: 306.9510208 | AD99: 0 | AE99: 0 | AF99: 1046.397347 | AG99: 639.9497204 | AH99: 217.4450517 | AI99: 363.2193532 | AJ99: 0.7260308811 | AK99: 1.007588034 | AL99: 62
A100: C05Z | B100: Dacryocystorhinostomy | C100: 1.119915071 | D100: 657 | E100: 1.066971081 | F100: 6505.034401 | G100: 4718.052523 | H100: 1786.981878 | I100: 765.8675151 | J100: 28.29024877 | K100: 308.7767148 | L100: 55.23709861 | M100: 227.9681509 | N100: 15.04328561 | O100: 3.001338012 | P100: 2.474803338 | Q100: 1.446685084 | R100: 40.1881416 | S100: 17.81656513 | T100: 73.40226224 | U100: 22.97267408 | V100: 11.12010507 | W100: 2.860935 | X100: 2382.459507 | Y100: 727.84296 | Z100: 2.447407108 | AA100: 0.5158293455 | AB100: 427.0334068 | AC100: 205.6349547 | AD100: 0.0072196347 | AE100: 0.0003407915 | AF100: 144.2124358 | AG100: 516.1110113 | AH100: 145.7570756 | AI100: 375.3757351 | AJ100: 0.2210545936 | AK100: 0.9489401735 | AL100: 71
A101: C10Z | B101: Strabismus Interventions | C101: 1.153591501 | D101: 1271 | E101: 1.008654603 | F101: 6700.644175 | G101: 4932.837648 | H101: 1767.806527 | I101: 864.7861865 | J101: 30.74451007 | K101: 316.1084151 | L101: 57.38823746 | M101: 264.1286482 | N101: 7.415158444 | O101: 1.656509949 | P101: 5.550703845 | Q101: 1.250839444 | R101: 60.89425183 | S101: 15.28474473 | T101: 59.35221578 | U101: 15.08772336 | V101: 6.413373069 | W101: 1.014615224 | X101: 2443.824491 | Y101: 690.5226468 | Z101: 0.6055140134 | AA101: 0.3175941456 | AB101: 519.5450841 | AC101: 229.2717248 | AD101: 1.010799843 | AE101: 1.290213061 | AF101: 32.67796043 | AG101: 494.8643401 | AH101: 153.5736732 | AI101: 420.0625266 | AJ101: 5.158767409 | AK101: 0.8427065216 | AL101: 67
A102: C11Z | B102: Eyelid Interventions | C102: 0.8684314391 | D102: 3681 | E102: 1.174952459 | F102: 5044.289992 | G102: 3750.426354 | H102: 1293.863637 | I102: 624.7457504 | J102: 18.43964356 | K102: 303.7385504 | L102: 41.33746951 | M102: 193.4551361 | N102: 24.04207321 | O102: 3.377136323 | P102: 9.687363217 | Q102: 2.051191912 | R102: 39.42938201 | S102: 17.47154397 | T102: 43.67813164 | U102: 7.832032295 | V102: 21.39678705 | W102: 4.688220949 | X102: 1863.641173 | Y102: 528.2065139 | Z102: 10.0212968 | AA102: 2.289068484 | AB102: 304.9516417 | AC102: 150.6139979 | AD102: 4.057244444 | AE102: 0.5397262429 | AF102: 41.8841986 | AG102: 393.4033602 | AH102: 139.5264121 | AI102: 245.8188081 | AJ102: 2.546442444 | AK102: 1.419694676 | AL102: 177
A103: C12A | B103: Other Corneal, Scleral and Conjunctival Interventions, Major Complexity | C103: 1.750861779 | D103: 471 | E103: 3.571125265 | F103: 10169.89269 | G103: 7022.583409 | H103: 3147.309283 | I103: 1453.506048 | J103: 47.4971464 | K103: 1613.998477 | L103: 207.8532782 | M103: 753.3692639 | N103: 104.6389 | O103: 15.00989889 | P103: 59.37660905 | Q103: 14.74274257 | R103: 87.77843702 | S103: 69.25450163 | T103: 301.9260876 | U103: 68.11235459 | V103: 65.56559406 | W103: 17.49841571 | X103: 1908.530554 | Y103: 622.3016061 | Z103: 6.169767304 | AA103: 1.670591507 | AB103: 347.0512931 | AC103: 592.6211264 | AD103: 2.836309735 | AE103: 0.4609840764 | AF103: 85.37121883 | AG103: 872.5398455 | AH103: 294.6025864 | AI103: 542.4104378 | AJ103: 11.45666793 | AK103: 1.741948459 | AL103: 59
A104: C12B | B104: Other Corneal, Scleral and Conjunctival Interventions, Minor Complexity | C104: 0.7008672024 | D104: 2485 | E104: 1.014889336 | F104: 4070.991969 | G104: 3003.894507 | H104: 1067.097462 | I104: 552.785995 | J104: 14.93752761 | K104: 168.7850356 | L104: 31.54234788 | M104: 142.4896942 | N104: 52.23742752 | O104: 5.826095226 | P104: 1.579838465 | Q104: 0.3901112845 | R104: 20.58985914 | S104: 11.11738788 | T104: 57.68248816 | U104: 16.60356107 | V104: 3.171951582 | W104: 0.7347149497 | X104: 1362.974435 | Y104: 454.1343971 | Z104: 0.1137808853 | AA104: 0.0368420121 | AB104: 424.3782488 | AC104: 135.7448959 | AD104: 0.6219045875 | AE104: 0.6853281288 | AF104: 60.52034798 | AG104: 262.2086957 | AH104: 87.12849561 | AI104: 197.434707 | AJ104: 2.67657068 | AK104: 1.859284217 | AL104: 131
A105: C13Z | B105: Lacrimal Interventions | C105: 0.8401070365 | D105: 325 | E105: 1.230769231 | F105: 4879.767504 | G105: 3565.932861 | H105: 1313.834643 | I105: 700.6832839 | J105: 25.00819286 | K105: 357.5160461 | L105: 49.30836081 | M105: 231.0519295 | N105: 95.19548254 | O105: 9.112655105 | P105: 23.41533705 | Q105: 4.804742769 | R105: 53.2482879 | S105: 15.67110216 | T105: 44.68027683 | U105: 6.16081244 | V105: 2.256235015 | W105: 0.1332177846 | X105: 1383.1358 | Y105: 405.3925911 | Z105: 5.198118311 | AA105: 1.815824237 | AB105: 387.3674757 | AC105: 172.9503316 | AD105: 2.471132615 | AE105: 0.4848941538 | AF105: 40.81738842 | AG105: 357.8970713 | AH105: 146.4536911 | AI105: 356.8853633 | AJ105: 0.1833986185 | AK105: 0.4684607846 | AL105: 61
A106: C14A | B106: Other Eye Interventions, Major Complexity | C106: 1.882545202 | D106: 215 | E106: 5.204651163 | F106: 10934.77677 | G106: 7865.653783 | H106: 3069.122984 | I106: 2007.371805 | J106: 77.50080569 | K106: 2428.394918 | L106: 253.6160489 | M106: 1111.566133 | N106: 285.0098834 | O106: 25.45549223 | P106: 123.0987849 | Q106: 26.81502735 | R106: 171.5301374 | S106: 103.4882425 | T106: 534.1392879 | U106: 66.33174537 | V106: 78.52224751 | W106: 15.14184186 | X106: 700.3772687 | Y106: 185.0338007 | Z106: 10.95419363 | AA106: 2.778504726 | AB106: 370.8801835 | AC106: 675.9699389 | AD106: 0.0034837209 | AE106: 0.0001651163 | AF106: 14.63036237 | AG106: 806.7654325 | AH106: 327.854873 | AI106: 514.0206398 | AJ106: 15.20811983 | AK106: 2.317397642 | AL106: 49
A107: C14B | B107: Other Eye Interventions, Minor Complexity | C107: 0.6299033924 | D107: 1149 | E107: 1.178416014 | F107: 3658.798191 | G107: 2729.048546 | H107: 929.7496441 | I107: 493.0005711 | J107: 15.75959194 | K107: 278.4831456 | L107: 39.30733536 | M107: 178.3519708 | N107: 81.46447614 | O107: 10.51391215 | P107: 9.631262168 | Q107: 1.671513294 | R107: 33.19747497 | S107: 16.66905858 | T107: 50.08571475 | U107: 9.654760146 | V107: 1.02528864 | W107: 0.8447425004 | X107: 1132.545829 | Y107: 311.7580717 | Z107: 6.0786656 | AA107: 1.425510553 | AB107: 298.6454437 | AC107: 133.5904034 | AD107: 6.727465448 | AE107: 0.6310280244 | AF107: 21.26648814 | AG107: 271.7228607 | AH107: 82.74530572 | AI107: 168.638239 | AJ107: 2.124918834 | AK107: 1.237142809 | AL107: 142
A108: C15A | B108: Glaucoma and Complex Cataract Interventions, Major Complexity | C108: 2.204567503 | D108: 441 | E108: 4.199546485 | F108: 12805.24551 | G108: 9224.6055 | H108: 3580.640015 | I108: 1770.226467 | J108: 78.4323491 | K108: 1972.074152 | L108: 236.4663326 | M108: 948.2887665 | N108: 171.4070713 | O108: 17.59675001 | P108: 59.09929041 | Q108: 12.39400096 | R108: 158.1947918 | S108: 99.47617711 | T108: 452.1553404 | U108: 71.54636595 | V108: 35.3598693 | W108: 8.018607193 | X108: 2560.873164 | Y108: 713.7274309 | Z108: 2.09174395 | AA108: 0.7346172018 | AB108: 489.1593692 | AC108: 646.1861029 | AD108: 20.66247733 | AE108: 5.096565746 | AF108: 234.119073 | AG108: 995.7283409 | AH108: 372.5618477 | AI108: 639.4030783 | AJ108: 30.92821828 | AK108: 3.23715276 | AL108: 48
A109: C15B | B109: Glaucoma and Complex Cataract Interventions, Minor Complexity | C109: 0.9127433613 | D109: 4358 | E109: 1.094079853 | F109: 5301.676097 | G109: 4019.370939 | H109: 1282.305158 | I109: 665.4142288 | J109: 17.57257005 | K109: 265.3253272 | L109: 43.99926 | M109: 202.4620277 | N109: 8.927901643 | O109: 2.381623264 | P109: 7.043253607 | Q109: 1.123316443 | R109: 24.48592331 | S109: 20.99558506 | T109: 191.8556021 | U109: 22.26892124 | V109: 1.33633263 | W109: 0.3130559431 | X109: 1785.127548 | Y109: 512.2192132 | Z109: 0.6597180429 | AA109: 0.2004627542 | AB109: 242.083884 | AC109: 172.9435132 | AD109: 0.2070191831 | AE109: 0.220450849 | AF109: 368.8570273 | AG109: 427.79256 | AH109: 119.3986453 | AI109: 193.6745188 | AJ109: 2.086037038 | AK109: 0.7005703015 | AL109: 125
A110: C16Z | B110: Lens Interventions | C110: 0.6144001259 | D110: 58537 | E110: 1.011582418 | F110: 3568.747361 | G110: 2783.37055 | H110: 785.3768107 | I110: 593.7333871 | J110: 22.25269305 | K110: 136.3257436 | L110: 25.65283422 | M110: 113.8366662 | N110: 2.44005332 | O110: 0.7633888718 | P110: 21.93217882 | Q110: 0.3066296816 | R110: 15.93269679 | S110: 13.22016385 | T110: 45.99118544 | U110: 11.77659709 | V110: 0.2292147181 | W110: 0.0763822674 | X110: 1044.772511 | Y110: 311.3221569 | Z110: 0.0632155691 | AA110: 0.0136231167 | AB110: 402.43952 | AC110: 119.7492942 | AD110: 0.2476824357 | AE110: 0.1959630729 | AF110: 293.1308021 | AG110: 211.4142456 | AH110: 63.14177479 | AI110: 115.5748356 | AJ110: 1.163379809 | AK110: 1.048541423 | AL110: 155
A111: C60A | B111: Acute and Major Eye Infections, Major Complexity | C111: 2.478181275 | D111: 471 | E111: 7.25477707 | F111: 14394.53299 | G111: 10700.97541 | H111: 3693.557582 | I111: 2190.270353 | J111: 111.5915317 | K111: 3865.302804 | L111: 336.1374891 | M111: 1445.007625 | N111: 292.6564058 | O111: 45.17926329 | P111: 187.6673989 | Q111: 39.22069553 | R111: 442.5222487 | S111: 152.4739708 | T111: 707.8071072 | U111: 92.72002483 | V111: 98.31287368 | W111: 29.87011984 | X111: 56.64611527 | Y111: 7.709515567 | Z111: 52.57333102 | AA111: 11.25973906 | AB111: 760.8614572 | AC111: 949.7061293 | AD111: 2.950662389 | AE111: 0.5394282378 | AF111: 19.56318344 | AG111: 1161.621934 | AH111: 714.5410614 | AI111: 473.1432452 | AJ111: 144.8773599 | AK111: 1.799920629 | AL111: 116
A112: C60B | B112: Acute and Major Eye Infections, Minor Complexity | C112: 0.8918249817 | D112: 931 | E112: 2.80773362 | F112: 5180.171545 | G112: 3876.842096 | H112: 1303.329449 | I112: 882.2126301 | J112: 37.60703847 | K112: 1344.137947 | L112: 120.012849 | M112: 481.8608659 | N112: 215.567184 | O112: 19.06262452 | P112: 62.29048086 | Q112: 11.4548322 | R112: 88.17635368 | S112: 36.83800322 | T112: 240.9724167 | U112: 28.08158094 | V112: 6.328561108 | W112: 2.420602519 | X112: 41.99970699 | Y112: 13.36129488 | Z112: 92.61873135 | AA112: 21.10815214 | AB112: 204.8570117 | AC112: 313.9676378 | AD112: 0.2256081665 | AE112: 0.0399415113 | AF112: 7.475303927 | AG112: 386.7342018 | AH112: 235.861992 | AI112: 210.9314644 | AJ112: 69.70334732 | AK112: 4.263181355 | AL112: 163
A113: C61A | B113: Neurological and Vascular Disorders of the Eye, Major Complexity | C113: 1.350076659 | D113: 1169 | E113: 3.698887938 | F113: 7841.929564 | G113: 5890.779285 | H113: 1951.150279 | I113: 1109.208813 | J113: 55.405194 | K113: 1710.806821 | L113: 133.1378241 | M113: 669.7048099 | N113: 409.068133 | O113: 41.91408154 | P113: 582.5630361 | Q113: 116.8178263 | R113: 316.8953318 | S113: 90.26816967 | T113: 213.3966032 | U113: 20.85619068 | V113: 43.74640106 | W113: 12.10880249 | X113: 175.2581316 | Y113: 47.57418811 | Z113: 62.77265429 | AA113: 15.50307026 | AB113: 224.5028553 | AC113: 432.7159441 | AD113: 21.45342191 | AE113: 3.867452017 | AF113: 19.9447132 | AG113: 638.2816362 | AH113: 320.9205657 | AI113: 320.2590789 | AJ113: 30.49306146 | AK113: 2.484753935 | AL113: 136
A114: C61B | B114: Neurological and Vascular Disorders of the Eye, Minor Complexity | C114: 0.5740717498 | D114: 2394 | E114: 1.793650794 | F114: 3334.49971 | G114: 2505.037874 | H114: 829.4618364 | I114: 447.572697 | J114: 21.01086472 | K114: 612.5673249 | L114: 56.3794896 | M114: 282.6582361 | N114: 192.0383356 | O114: 23.11435064 | P114: 308.4558891 | Q114: 56.67566721 | R114: 99.39724295 | S114: 29.59437408 | T114: 141.7461854 | U114: 15.42916446 | V114: 7.439003135 | W114: 2.668465607 | X114: 72.98179451 | Y114: 20.86509957 | Z114: 75.10897464 | AA114: 17.48638042 | AB114: 91.6566034 | AC114: 177.533426 | AD114: 17.8400407 | AE114: 4.749370652 | AF114: 2.935489709 | AG114: 286.7755561 | AH114: 123.9255244 | AI114: 123.3918734 | AJ114: 20.63972053 | AK114: 1.862565477 | AL114: 172
A115: C62A | B115: Hyphaema and Medically Managed Trauma to the Eye, Major Complexity | C115: 1.19154888 | D115: 908 | E115: 4.146475771 | F115: 6921.119872 | G115: 5159.668345 | H115: 1761.451527 | I115: 974.8051688 | J115: 41.26965858 | K115: 1748.191292 | L115: 135.7541856 | M115: 619.488762 | N115: 166.1772346 | O115: 16.14779036 | P115: 169.4083626 | Q115: 32.55025807 | R115: 363.231425 | S115: 108.483104 | T115: 191.8451441 | U115: 22.16889679 | V115: 109.4309332 | W115: 37.56393653 | X115: 67.16242337 | Y115: 16.99199463 | Z115: 125.5327229 | AA115: 33.47022447 | AB115: 254.0441533 | AC115: 401.1677036 | AD115: 6.512528113 | AE115: 2.044848736 | AF115: 4.724442095 | AG115: 587.8540308 | AH115: 289.1011328 | AI115: 242.223432 | AJ115: 147.2100019 | AK115: 6.564080938 | AL115: 163
A116: C62B | B116: Hyphaema and Medically Managed Trauma to the Eye, Minor Complexity | C116: 0.2629682601 | D116: 4977 | E116: 1.18384569 | F116: 1527.452949 | G116: 1163.082937 | H116: 364.3700117 | I116: 212.8779152 | J116: 8.173842022 | K116: 269.268788 | L116: 21.99232029 | M116: 127.2044233 | N116: 19.21939422 | O116: 2.650066007 | P116: 84.98146311 | Q116: 15.19429987 | R116: 68.07273243 | S116: 20.86764651 | T116: 24.62487909 | U116: 3.327276387 | V116: 9.945835973 | W116: 2.764379637 | X116: 66.83349877 | Y116: 17.11727363 | Z116: 142.4767833 | AA116: 35.03841062 | AB116: 44.73319331 | AC116: 67.7355511 | AD116: 0.8489107079 | AE116: 0.1708786866 | AF116: 0.9935811913 | AG116: 124.3628133 | AH116: 50.32255504 | AI116: 58.79941871 | AJ116: 25.49550998 | AK116: 1.359308507 | AL116: 237
A117: C63A | B117: Other Disorders of the Eye, Major Complexity | C117: 1.225076347 | D117: 1682 | E117: 3.325802616 | F117: 7115.864391 | G117: 5250.865292 | H117: 1864.999099 | I117: 1078.26293 | J117: 50.20895216 | K117: 1398.314249 | L117: 124.4762388 | M117: 626.8620032 | N117: 233.6623023 | O117: 28.11048658 | P117: 333.3464117 | Q117: 68.88061306 | R117: 175.8054631 | S117: 67.66228907 | T117: 315.0792784 | U117: 33.50341719 | V117: 19.23917388 | W117: 5.781424263 | X117: 485.3692989 | Y117: 128.1542454 | Z117: 56.35417903 | AA117: 12.55318756 | AB117: 241.6475235 | AC117: 405.6296539 | AD117: 8.435665281 | AE117: 1.143808101 | AF117: 11.54272387 | AG117: 570.6595402 | AH117: 277.1193194 | AI117: 321.692465 | AJ117: 35.13302431 | AK117: 1.234523534 | AL117: 164
A118: C63B | B118: Other Disorders of the Eye, Minor Complexity | C118: 0.37763577 | D118: 5145 | E118: 1.38931001 | F118: 2193.49997 | G118: 1645.783851 | H118: 547.7161189 | I118: 407.0411431 | J118: 15.89525034 | K118: 361.1829433 | L118: 36.28074896 | M118: 191.4009031 | N118: 44.77992692 | O118: 7.298463997 | P118: 82.23222563 | Q118: 15.51999468 | R118: 49.27036936 | S118: 18.63554997 | T118: 76.06382283 | U118: 9.333088768 | V118: 9.684526393 | W118: 3.125734951 | X118: 125.7021738 | Y118: 36.2135083 | Z118: 67.36025329 | AA118: 15.98561324 | AB118: 94.13915755 | AC118: 119.876524 | AD118: 3.523587151 | AE118: 1.506222982 | AF118: 3.701209346 | AG118: 168.937435 | AH118: 70.59088927 | AI118: 83.24596046 | AJ118: 73.73224235 | AK118: 1.240500476 | AL118: 247
A119: D01Z | B119: Cochlear Implant | C119: 7.027376366 | D119: 512 | E119: 1.087890625 | F119: 40818.56399 | G119: 35208.06308 | H119: 5610.500914 | I119: 1669.15723 | J119: 40.62126029 | K119: 806.1854084 | L119: 90.58937827 | M119: 454.8552004 | N119: 20.94957938 | O119: 5.666841584 | P119: 119.2538137 | Q119: 23.36153457 | R119: 285.4036709 | S119: 328.5045438 | T119: 96.04980132 | U119: 30.64569289 | V119: 13.98708495 | W119: 3.09091209 | X119: 7139.343763 | Y119: 2713.372355 | Z119: 2.544445625 | AA119: 0.9358562695 | AB119: 1774.705248 | AC119: 413.2222677 | AD119: 0.4102367246 | AE119: 0.0726280215 | AF119: 21906.46304 | AG119: 1476.962477 | AH119: 425.3840304 | AI119: 973.8700889 | AJ119: 0.2584547246 | AK119: 2.697144666 | AL119: 29
A120: D02A | B120: Head and Neck Interventions, Major Complexity | C120: 8.673723268 | D120: 404 | E120: 10.33910891 | F120: 50381.38131 | G120: 38227.95951 | H120: 12153.42179 | I120: 5129.873261 | J120: 193.1019158 | K120: 5151.55638 | L120: 396.021078 | M120: 1726.392473 | N120: 998.645743 | O120: 136.6122368 | P120: 528.2077159 | Q120: 107.5653673 | R120: 1154.733157 | S120: 397.3192494 | T120: 927.4136584 | U120: 121.7576684 | V120: 3991.236942 | W120: 933.7322289 | X120: 14199.41766 | Y120: 3470.781849 | Z120: 17.74010535 | AA120: 3.74012925 | AB120: 983.193919 | AC120: 1579.646975 | AD120: 32.63785974 | AE120: 6.603304559 | AF120: 673.6005705 | AG120: 3553.720428 | AH120: 1530.486366 | AI120: 2398.84006 | AJ120: 28.37114054 | AK120: 8.431869906 | AL120: 56
A121: D02B | B121: Head and Neck Interventions, Intermediate Complexity | C121: 4.937429075 | D121: 414 | E121: 5.516908213 | F121: 28679.09077 | G121: 21909.15324 | H121: 6769.937527 | I121: 2942.555708 | J121: 107.04175 | K121: 2623.282379 | L121: 234.7389994 | M121: 965.88118 | N121: 542.8973794 | O121: 82.04223337 | P121: 170.8717827 | Q121: 41.55967761 | R121: 480.8776654 | S121: 164.8597277 | T121: 283.0352653 | U121: 26.11920255 | V121: 1650.700736 | W121: 365.3164459 | X121: 9259.091561 | Y121: 2341.192197 | Z121: 10.05821648 | AA121: 3.042926403 | AB121: 754.6846725 | AC121: 884.9103109 | AD121: 21.85498875 | AE121: 5.291062843 | AF121: 454.078946 | AG121: 2247.803467 | AH121: 899.5879213 | AI121: 1101.082897 | AJ121: 6.090203739 | AK121: 8.541265171 | AL121: 67
A122: D02C | B122: Head and Neck Interventions, Minor Complexity | C122: 2.40849059 | D122: 872 | E122: 2.430045872 | F122: 13989.73417 | G122: 10563.14748 | H122: 3426.586688 | I122: 1492.627799 | J122: 49.7345852 | K122: 1285.804419 | L122: 116.6187459 | M122: 503.2720359 | N122: 219.8696755 | O122: 35.97863492 | P122: 135.8992026 | Q122: 25.31276374 | R122: 127.545749 | S122: 54.85463116 | T122: 106.2196646 | U122: 14.58186222 | V122: 346.5235058 | W122: 77.69814741 | X122: 4782.135148 | Y122: 1246.519544 | Z122: 10.43267444 | AA122: 2.239862034 | AB122: 520.6654486 | AC122: 420.8307634 | AD122: 26.63491099 | AE122: 6.353454358 | AF122: 191.8349612 | AG122: 1071.744449 | AH122: 415.9447989 | AI122: 679.5602809 | AJ122: 18.73299108 | AK122: 3.563462554 | AL122: 99
A123: D03A | B123: Surgical Repair for Cleft Lip and Palate Disorders, Major Complexity | C123: 3.694987993 | D123: 215 | E123: 2.558139535 | F123: 21462.36319 | G123: 16097.21038 | H123: 5365.152806 | I123: 1884.688601 | J123: 65.14791797 | K123: 2376.459697 | L123: 161.2523955 | M123: 1042.656995 | N123: 62.32454675 | O123: 11.15922995 | P123: 21.41523234 | Q123: 4.592397614 | R123: 302.2708859 | S123: 99.91092524 | T123: 187.9901056 | U123: 27.61745299 | V123: 1000.988656 | W123: 205.3591407 | X123: 7346.333711 | Y123: 1742.90544 | Z123: 3.06411893 | AA123: 0.8219646047 | AB123: 353.594022 | AC123: 682.9747415 | AD123: 0 | AE123: 0 | AF123: 160.5197378 | AG123: 1810.436579 | AH123: 612.3597262 | AI123: 1295.108081 | AJ123: 0.2324180698 | AK123: 0.1784694744 | AL123: 11
A124: D03B | B124: Surgical Repair for Cleft Lip and Palate Disorders, Minor Complexity | C124: 2.269974444 | D124: 335 | E124: 1.650746269 | F124: 13185.16218 | G124: 9856.759477 | H124: 3328.402705 | I124: 1157.726218 | J124: 48.44756287 | K124: 1597.524243 | L124: 131.0412505 | M124: 561.5759744 | N124: 21.35862948 | O124: 4.883586809 | P124: 5.390464263 | Q124: 1.504760531 | R124: 153.3346793 | S124: 56.04642362 | T124: 101.1492879 | U124: 16.34440791 | V124: 162.0791884 | W124: 32.70486116 | X124: 4933.777367 | Y124: 1129.520046 | Z124: 0 | AA124: 0 | AB124: 294.7580096 | AC124: 403.9487899 | AD124: 0 | AE124: 0 | AF124: 80.1464216 | AG124: 1078.903452 | AH124: 404.7268374 | AI124: 806.5890905 | AJ124: 0.9288892 | AK124: 0.7517413433 | AL124: 19
A125: D04A | B125: Maxillo Surgery, Major Complexity | C125: 3.980921484 | D125: 521 | E125: 4.02303263 | F125: 23123.20984 | G125: 17857.11652 | H125: 5266.093322 | I125: 2553.225481 | J125: 94.92303624 | K125: 2168.149762 | L125: 192.0575948 | M125: 952.8425914 | N125: 181.168125 | O125: 25.34064856 | P125: 329.8604111 | Q125: 63.13242902 | R125: 426.3625493 | S125: 149.9971312 | T125: 189.1211742 | U125: 20.23281129 | V125: 849.1807639 | W125: 205.9058716 | X125: 6794.403261 | Y125: 1729.287475 | Z125: 73.12879936 | AA125: 19.88685274 | AB125: 488.2450796 | AC125: 622.2953071 | AD125: 13.80475094 | AE125: 2.526205449 | AF125: 1589.110447 | AG125: 1732.039052 | AH125: 668.7083841 | AI125: 952.0259589 | AJ125: 32.01123711 | AK125: 4.236652432 | AL125: 53
A126: D04B | B126: Maxillo Surgery, Minor Complexity | C126: 2.29780798 | D126: 2612 | E126: 1.817381317 | F126: 13346.83347 | G126: 10246.56756 | H126: 3100.265908 | I126: 1464.461381 | J126: 53.40986491 | K126: 1017.811929 | L126: 113.5642443 | M126: 496.7336361 | N126: 33.16260661 | O126: 8.015325773 | P126: 154.3464659 | Q126: 30.44675965 | R126: 130.2759679 | S126: 62.64061661 | T126: 80.65510459 | U126: 9.629591268 | V126: 66.34544646 | W126: 16.8641633 | X126: 4702.380119 | Y126: 1197.072078 | Z126: 17.10212456 | AA126: 6.482666324 | AB126: 244.2454655 | AC126: 358.7440897 | AD126: 15.74963924 | AE126: 3.570780972 | AF126: 1112.413263 | AG126: 987.1671946 | AH126: 379.8621001 | AI126: 578.9580026 | AJ126: 2.265109262 | AK126: 2.457734401 | AL126: 83
A127: D05Z | B127: Parotid Gland Interventions | C127: 2.841348979 | D127: 743 | E127: 2.184387618 | F127: 16503.9951 | G127: 12538.4194 | H127: 3965.575697 | I127: 1694.724284 | J127: 66.49068982 | K127: 1219.194525 | L127: 127.9634713 | M127: 539.7952003 | N127: 324.662689 | O127: 43.78844672 | P127: 30.23031109 | Q127: 6.490778797 | R127: 58.21159431 | S127: 33.26141461 | T127: 96.5378884 | U127: 16.07651393 | V127: 97.33469054 | W127: 22.63960249 | X127: 6657.458086 | Y127: 1722.76008 | Z127: 1.026480619 | AA127: 0.1914 | AB127: 519.1582715 | AC127: 460.0908241 | AD127: 56.8258607 | AE127: 16.7468463 | AF127: 206.7490283 | AG127: 1372.107726 | AH127: 462.7988937 | AI127: 642.6299774 | AJ127: 2.196467985 | AK127: 5.853059886 | AL127: 85
A128: D06Z | B128: Sinus and Complex Middle Ear Interventions | C128: 1.689687372 | D128: 6059 | E128: 1.273642515 | F128: 9814.56073 | G128: 7416.119784 | H128: 2398.440946 | I128: 1108.183975 | J128: 37.38748297 | K128: 575.0325339 | L128: 68.22688016 | M128: 313.3840272 | N128: 93.44378259 | O128: 11.33875131 | P128: 38.63797188 | Q128: 5.742791909 | R128: 28.86409361 | S128: 17.85055317 | T128: 125.5741184 | U128: 20.75325547 | V128: 73.10538683 | W128: 17.43028897 | X128: 3960.789449 | Y128: 1075.151109 | Z128: 2.249725903 | AA128: 0.6041692908 | AB128: 439.256439 | AC128: 285.226694 | AD128: 11.11314151 | AE128: 3.127215805 | AF128: 125.8714268 | AG128: 716.0082812 | AH128: 242.299002 | AI128: 398.5183458 | AJ128: 16.65741438 | AK128: 2.732423904 | AL128: 155
A129: D10Z | B129: Nasal Interventions | C129: 1.182613142 | D129: 5808 | E129: 1.054235537 | F129: 6869.216578 | G129: 5161.970306 | H129: 1707.246272 | I129: 764.6043748 | J129: 26.66791388 | K129: 460.5623117 | L129: 53.95860323 | M129: 243.1527628 | N129: 30.14738092 | O129: 4.596840788 | P129: 6.029417572 | Q129: 1.418207704 | R129: 27.86802065 | S129: 14.39712806 | T129: 58.54535901 | U129: 13.98964414 | V129: 56.24506965 | W129: 13.32752431 | X129: 2669.893773 | Y129: 720.4725825 | Z129: 0.6510967109 | AA129: 0.1921499845 | AB129: 398.5401318 | AC129: 216.9598922 | AD129: 13.48682371 | AE129: 1.850275534 | AF129: 71.10464664 | AG129: 509.2582222 | AH129: 172.4405874 | AI129: 302.751979 | AJ129: 13.99116139 | AK129: 2.112697148 | AL129: 144
A130: D11Z | B130: Tonsillectomy and Adenoidectomy | C130: 0.9273470257 | D130: 10338 | E130: 1.148674792 | F130: 5386.501582 | G130: 4004.102955 | H130: 1382.398627 | I130: 666.2605228 | J130: 30.35165527 | K130: 663.1182826 | L130: 71.05930751 | M130: 286.0410124 | N130: 61.68959836 | O130: 7.31937143 | P130: 19.23080966 | Q130: 3.878455369 | R130: 28.85440841 | S130: 16.56388997 | T130: 64.13768832 | U130: 12.0413054 | V130: 66.17480554 | W130: 14.92429576 | X130: 1639.410813 | Y130: 415.7567955 | Z130: 12.00252447 | AA130: 3.148674844 | AB130: 224.285319 | AC130: 218.4122354 | AD130: 19.08805532 | AE130: 1.62706069 | AF130: 29.53132968 | AG130: 394.7382563 | AH130: 164.3520745 | AI130: 238.7225332 | AJ130: 10.38683843 | AK130: 3.393662193 | AL130: 168
A131: D12A | B131: Other Ear, Nose, Mouth and Throat Interventions, Major Complexity | C131: 3.454650871 | D131: 870 | E131: 5.455172414 | F131: 20066.36337 | G131: 15051.13239 | H131: 5015.230974 | I131: 2453.022091 | J131: 97.06391103 | K131: 2712.934406 | L131: 218.2279233 | M131: 1048.277727 | N131: 429.6462613 | O131: 74.68522658 | P131: 526.0555787 | Q131: 101.9659546 | R131: 506.111539 | S131: 190.9266038 | T131: 490.9919366 | U131: 48.143919 | V131: 1785.409879 | W131: 439.4131116 | X131: 3344.064409 | Y131: 865.129534 | Z131: 31.87983835 | AA131: 9.385332266 | AB131: 380.3087909 | AC131: 785.0919523 | AD131: 55.98713855 | AE131: 12.72366139 | AF131: 157.922341 | AG131: 1635.045714 | AH131: 683.3353302 | AI131: 926.6993134 | AJ131: 51.79282173 | AK131: 4.121120554 | AL131: 89
A132: D12B | B132: Other Ear, Nose, Mouth and Throat Interventions, Minor Complexity | C132: 1.013090651 | D132: 6749 | E132: 1.255889761 | F132: 5884.544018 | G132: 4435.85022 | H132: 1448.693798 | I132: 641.1055686 | J132: 23.40470124 | K132: 496.6933354 | L132: 56.68932155 | M132: 252.4964258 | N132: 68.35725332 | O132: 9.383249509 | P132: 32.49422432 | Q132: 6.474696307 | R132: 53.75403514 | S132: 23.3456474 | T132: 57.16945264 | U132: 6.19210925 | V132: 60.99805264 | W132: 14.08975482 | X132: 2195.677931 | Y132: 548.3956321 | Z132: 12.67275285 | AA132: 3.221268559 | AB132: 129.7312743 | AC132: 172.4657151 | AD132: 8.504935567 | AE132: 2.161747039 | AF132: 56.78011174 | AG132: 509.7953539 | AH132: 181.3634084 | AI132: 255.1312674 | AJ132: 4.484923406 | AK132: 1.50986848 | AL132: 177
A133: D13Z | B133: Myringotomy with Tube Insertion | C133: 0.6701635353 | D133: 3262 | E133: 1.207541386 | F133: 3892.649508 | G133: 2910.224924 | H133: 982.424584 | I133: 493.4703876 | J133: 21.82128645 | K133: 333.873492 | L133: 34.98320915 | M133: 190.1949521 | N133: 21.53787588 | O133: 3.020063878 | P133: 28.792947 | Q133: 5.231061291 | R133: 38.00131721 | S133: 17.96406878 | T133: 53.99881436 | U133: 5.512045517 | V133: 24.86472565 | W133: 5.553049918 | X133: 1336.158951 | Y133: 342.238932 | Z133: 4.169279035 | AA133: 0.9021040086 | AB133: 109.5033473 | AC133: 128.8324758 | AD133: 6.46093412 | AE133: 1.525901594 | AF133: 64.7257645 | AG133: 304.7524763 | AH133: 115.9440193 | AI133: 195.0282408 | AJ133: 2.098670634 | AK133: 1.489115215 | AL133: 148
A134: D14A | B134: Mouth and Salivary Gland Interventions, Major Complexity | C134: 1.911030347 | D134: 1791 | E134: 2.641541039 | F134: 11100.23292 | G134: 8385.881377 | H134: 2714.351545 | I134: 1365.495707 | J134: 49.88582303 | K134: 1144.696276 | L134: 106.7308768 | M134: 501.8441157 | N134: 235.4285923 | O134: 32.90933361 | P134: 162.1857734 | Q134: 32.01434094 | R134: 138.1020408 | S134: 52.99743863 | T134: 146.8199701 | U134: 16.41463683 | V134: 832.9727404 | W134: 210.9764875 | X134: 2847.11126 | Y134: 695.2923952 | Z134: 27.01874421 | AA134: 11.30458173 | AB134: 258.5695717 | AC134: 359.0959543 | AD134: 30.31820941 | AE134: 5.660708068 | AF134: 47.38835414 | AG134: 926.3458962 | AH134: 351.9568235 | AI134: 492.065473 | AJ134: 15.93054443 | AK134: 2.700252994 | AL134: 123
A135: D14B | B135: Mouth and Salivary Gland Interventions, Minor Complexity | C135: 0.8222306418 | D135: 3087 | E135: 1.163913184 | F135: 4775.932343 | G135: 3603.422101 | H135: 1172.510242 | I135: 570.6696873 | J135: 18.3695443 | K135: 347.1544939 | L135: 42.46662945 | M135: 199.1172381 | N135: 152.9009076 | O135: 19.46804478 | P135: 35.02995275 | Q135: 6.181077592 | R135: 42.17258918 | S135: 16.17561696 | T135: 35.27208725 | U135: 5.359392171 | V135: 49.69523325 | W135: 11.13997544 | X135: 1733.851049 | Y135: 458.4596419 | Z135: 6.548558342 | AA135: 1.859991914 | AB135: 113.5759565 | AC135: 138.7423066 | AD135: 9.14529394 | AE135: 2.120871353 | AF135: 35.57635834 | AG135: 380.3488389 | AH135: 131.8171721 | AI135: 203.0214883 | AJ135: 8.175347469 | AK135: 1.516998147 | AL135: 183
A136: D15Z | B136: Mastoid Interventions | C136: 3.087047956 | D136: 882 | E136: 2.06462585 | F136: 17931.1393 | G136: 13562.04267 | H136: 4369.096629 | I136: 2152.339744 | J136: 57.34327156 | K136: 1155.444512 | L136: 113.0647566 | M136: 580.0907104 | N136: 157.74138 | O136: 26.07704409 | P136: 112.4427672 | Q136: 21.51743701 | R136: 83.72004247 | S136: 39.13898922 | T136: 178.2295042 | U136: 41.15266929 | V136: 109.6998808 | W136: 29.06348076 | X136: 7195.681444 | Y136: 1942.703278 | Z136: 9.73915568 | AA136: 2.364529286 | AB136: 379.7299703 | AC136: 528.6787412 | AD136: 1.760314854 | AE136: 0.6175088435 | AF136: 231.8273783 | AG136: 1652.850295 | AH136: 435.8679232 | AI136: 684.9956824 | AJ136: 3.478975924 | AK136: 3.777917939 | AL136: 84
A137: D40Z | B137: Dental Extractions and Restorations | C137: 0.9791439531 | D137: 14343 | E137: 1.102279858 | F137: 5687.364391 | G137: 4179.765934 | H137: 1507.598458 | I137: 503.4655315 | J137: 21.44882672 | K137: 292.403349 | L137: 35.28477301 | M137: 269.7812821 | N137: 43.01527767 | O137: 4.28788213 | P137: 13.17303017 | Q137: 3.08496962 | R137: 109.1774623 | S137: 13.0293027 | T137: 40.59655458 | U137: 6.417847512 | V137: 59.0532962 | W137: 12.06245047 | X137: 2352.832118 | Y137: 708.9410481 | Z137: 7.297196823 | AA137: 1.487061838 | AB137: 131.3161081 | AC137: 163.8772881 | AD137: 2.308504342 | AE137: 0.6723308123 | AF137: 20.84817114 | AG137: 407.9876463 | AH137: 145.5527136 | AI137: 313.1622473 | AJ137: 1.59139766 | AK137: 3.208723625 | AL137: 174
A138: D60A | B138: Ear, Nose, Mouth and Throat Malignancy, Major Complexity | C138: 3.171690547 | D138: 832 | E138: 8.167067308 | F138: 18422.78637 | G138: 13751.97081 | H138: 4670.815565 | I138: 2141.664534 | J138: 119.9673074 | K138: 4229.049392 | L138: 322.8641633 | M138: 1568.400449 | N138: 433.3289602 | O138: 66.59468029 | P138: 486.8115592 | Q138: 96.90799451 | R138: 1404.571488 | S138: 361.0313498 | T138: 779.9272351 | U138: 60.67477169 | V138: 286.7409136 | W138: 55.3695629 | X138: 406.0239989 | Y138: 115.8448048 | Z138: 32.13923028 | AA138: 8.211165785 | AB138: 863.7420974 | AC138: 1151.338572 | AD138: 291.0741235 | AE138: 58.59192456 | AF138: 56.09849417 | AG138: 1429.167243 | AH138: 846.5594066 | AI138: 662.8245259 | AJ138: 79.95033162 | AK138: 7.316094537 | AL138: 129
A139: D60B | B139: Ear, Nose, Mouth and Throat Malignancy, Minor Complexity | C139: 0.7927570967 | D139: 2376 | E139: 1.593855219 | F139: 4604.735053 | G139: 3464.546493 | H139: 1140.18856 | I139: 531.7243242 | J139: 22.89820617 | K139: 663.6393123 | L139: 63.33539358 | M139: 302.607301 | N139: 134.0653769 | O139: 19.11295622 | P139: 182.5393684 | Q139: 34.7589382 | R139: 182.904982 | S139: 48.94390967 | T139: 144.7431465 | U139: 13.97701748 | V139: 23.06424993 | W139: 7.106904925 | X139: 823.0301812 | Y139: 218.7132859 | Z139: 6.626522889 | AA139: 1.810440328 | AB139: 140.1939518 | AC139: 219.2869811 | AD139: 58.19231861 | AE139: 16.63048633 | AF139: 36.26388477 | AG139: 361.563565 | AH139: 133.3087482 | AI139: 190.5028507 | AJ139: 21.06400555 | AK139: 2.126443368 | AL139: 150
A140: D61A | B140: Dysequilibrium, Major Complexity | C140: 0.8544606283 | D140: 7040 | E140: 3.026846591 | F140: 4963.140441 | G140: 3707.730311 | H140: 1255.41013 | I140: 707.9344732 | J140: 33.12034001 | K140: 1169.428022 | L140: 94.79698202 | M140: 478.0675876 | N140: 111.0951561 | O140: 13.71250308 | P140: 236.2897105 | Q140: 42.5007797 | R140: 300.6712085 | S140: 92.12191565 | T140: 122.9988744 | U140: 13.85209637 | V140: 46.56271015 | W140: 15.08107682 | X140: 10.47682223 | Y140: 2.730184064 | Z140: 141.9548619 | AA140: 35.63670447 | AB140: 173.655132 | AC140: 267.3454842 | AD140: 17.73760042 | AE140: 3.710871628 | AF140: 7.620387013 | AG140: 440.8211754 | AH140: 204.9754793 | AI140: 156.8788646 | AJ140: 18.43985245 | AK140: 2.923585494 | AL140: 249
A141: D61B | B141: Dysequilibrium, Minor Complexity | C141: 0.2935369381 | D141: 22957 | E141: 1.342901947 | F141: 1705.011326 | G141: 1296.621427 | H141: 408.3898982 | I141: 233.6778183 | J141: 9.151531072 | K141: 325.0017728 | L141: 26.64295921 | M141: 148.1241748 | N141: 30.76574881 | O141: 4.334059989 | P141: 118.1593257 | Q141: 19.29491795 | R141: 93.68818927 | S141: 28.01817295 | T141: 32.59366261 | U141: 4.396639045 | V141: 12.63549325 | W141: 4.290784561 | X141: 4.396987903 | Y141: 1.280692758 | Z141: 144.3025092 | AA141: 35.15098952 | AB141: 58.76018308 | AC141: 79.83062114 | AD141: 7.114433013 | AE141: 1.729377926 | AF141: 6.715014379 | AG141: 152.2587171 | AH141: 61.84584761 | AI141: 52.03831654 | AJ141: 7.554000408 | AK141: 1.258384577 | AL141: 285
A142: D62A | B142: Epistaxis, Major Complexity | C142: 1.144397607 | D142: 705 | E142: 3.404255319 | F142: 6647.241376 | G142: 4995.4645 | H142: 1651.776875 | I142: 981.0887041 | J142: 45.09195772 | K142: 1510.89558 | L142: 118.4645047 | M142: 576.1869721 | N142: 505.8434168 | O142: 43.62055115 | P142: 139.0315971 | Q142: 30.5621791 | R142: 218.576354 | S142: 78.1730355 | T142: 235.7475323 | U142: 22.23825896 | V142: 104.1815989 | W142: 20.1999182 | X142: 96.56611249 | Y142: 23.72815742 | Z142: 133.3236016 | AA142: 34.84006889 | AB142: 208.4667526 | AC142: 391.7299298 | AD142: 28.001656 | AE142: 3.184931261 | AF142: 7.657816041 | AG142: 557.6587675 | AH142: 264.7016433 | AI142: 221.1400466 | AJ142: 43.27902719 | AK142: 3.060704285 | AL142: 136
A143: D62B | B143: Epistaxis, Minor Complexity | C143: 0.3196954639 | D143: 5598 | E143: 1.3113612 | F143: 1856.953303 | G143: 1390.567323 | H143: 466.3859802 | I143: 337.2023235 | J143: 11.55040563 | K143: 401.4500158 | L143: 32.93419488 | M143: 173.6265238 | N143: 54.38984452 | O143: 6.114693249 | P143: 13.29176496 | Q143: 2.648785177 | R143: 27.28610434 | S143: 12.75194571 | T143: 46.79800144 | U143: 5.696578648 | V143: 4.006416702 | W143: 1.216655892 | X143: 74.05050474 | Y143: 18.28329265 | Z143: 115.6692384 | AA143: 29.06252727 | AB143: 60.04783335 | AC143: 106.5237117 | AD143: 2.924985494 | AE143: 0.64537254 | AF143: 3.226910325 | AG143: 167.0309418 | AH143: 69.39778224 | AI143: 60.88364909 | AJ143: 16.43379845 | AK143: 1.808500704 | AL143: 232
A144: D63A | B144: Otitis Media and Upper Respiratory Infections, Major Complexity | C144: 1.021814163 | D144: 8830 | E144: 3.535220838 | F144: 5935.214602 | G144: 4509.714604 | H144: 1425.499998 | I144: 961.8904537 | J144: 41.18218049 | K144: 1566.814838 | L144: 111.5959745 | M144: 580.5755132 | N144: 172.3543471 | O144: 22.38035672 | P144: 86.09547729 | Q144: 15.28966058 | R144: 160.9041256 | S144: 54.48220887 | T144: 246.1559059 | U144: 22.14398652 | V144: 196.1455453 | W144: 44.48758033 | X144: 23.88414127 | Y144: 6.320230805 | Z144: 79.96174564 | AA144: 19.49430529 | AB144: 214.0695275 | AC144: 336.4822214 | AD144: 3.787405598 | AE144: 1.156642281 | AF144: 1.257411025 | AG144: 495.7338074 | AH144: 220.9312638 | AI144: 216.1569915 | AJ144: 30.81170657 | AK144: 2.669048303 | AL144: 255
A145: D63B | B145: Otitis Media and Upper Respiratory Infections, Minor Complexity | C145: 0.3658267974 | D145: 38163 | E145: 2.073972172 | F145: 2124.907471 | G145: 1625.994124 | H145: 498.913347 | I145: 459.4442174 | J145: 16.21816278 | K145: 497.6530925 | L145: 40.07114845 | M145: 222.046319 | N145: 44.20482358 | O145: 7.683007602 | P145: 25.91309337 | Q145: 4.940775598 | R145: 36.31247847 | S145: 13.39244745 | T145: 58.13081577 | U145: 4.967342016 | V145: 13.06448692 | W145: 3.063725819 | X145: 15.94598311 | Y145: 4.39580012 | Z145: 88.61631198 | AA145: 20.42576814 | AB145: 89.43129667 | AC145: 125.1208375 | AD145: 2.51757645 | AE145: 0.6061870422 | AF145: 0.3960676341 | AG145: 168.7929138 | AH145: 79.49071422 | AI145: 71.58321254 | AJ145: 9.426217417 | AK145: 1.052647662 | AL145: 295
A146: D64A | B146: Laryngotracheitis and Epiglottitis, Major Complexity | C146: 0.7001930357 | D146: 1557 | E146: 1.73731535 | F146: 4067.076068 | G146: 3117.332352 | H146: 949.7437157 | I146: 685.0533365 | J146: 23.28551995 | K146: 692.1851371 | L146: 51.09660233 | M146: 297.8293313 | N146: 67.26405098 | O146: 10.51150714 | P146: 25.13428446 | Q146: 4.748934058 | R146: 62.10456718 | S146: 22.83477601 | T146: 72.0698135 | U146: 6.777181157 | V146: 694.1911155 | W146: 154.0289512 | X146: 62.45765194 | Y146: 15.1116952 | Z146: 68.54680175 | AA146: 15.92997154 | AB146: 108.0168729 | AC146: 188.5293406 | AD146: 3.232314579 | AE146: 0.8175804753 | AF146: 0.5227243205 | AG146: 363.8602404 | AH146: 123.3579461 | AI146: 164.7880188 | AJ146: 81.66560912 | AK146: 1.124191716 | AL146: 141
A147: D64B | B147: Laryngotracheitis and Epiglottitis, Minor Complexity | C147: 0.2812149721 | D147: 2885 | E147: 1.11542461 | F147: 1633.439101 | G147: 1231.764212 | H147: 401.6748886 | I147: 347.4615974 | J147: 11.79039127 | K147: 322.8358495 | L147: 24.90668581 | M147: 140.1429072 | N147: 24.57624571 | O147: 4.526630297 | P147: 5.983917276 | Q147: 1.348268752 | R147: 15.6856423 | S147: 6.833858069 | T147: 17.39979222 | U147: 2.762483614 | V147: 129.702943 | W147: 28.52990207 | X147: 11.79933507 | Y147: 3.663991339 | Z147: 96.21119037 | AA147: 22.73439191 | AB147: 46.81059895 | AC147: 98.39562125 | AD147: 0.0265700815 | AE147: 0 | AF147: 0.2248818607 | AG147: 148.7078833 | AH147: 48.15876832 | AI147: 58.13980454 | AJ147: 13.11832215 | AK147: 0.9606273494 | AL147: 183
A148: D65A | B148: Nasal Trauma and Deformity, Major Complexity | C148: 1.141284822 | D148: 751 | E148: 3.814913449 | F148: 6629.160746 | G148: 4947.664476 | H148: 1681.496269 | I148: 892.8977427 | J148: 41.43309222 | K148: 1494.562343 | L148: 114.0318362 | M148: 568.0358097 | N148: 167.4888795 | O148: 17.86326522 | P148: 207.6774782 | Q148: 39.10870395 | R148: 403.696163 | S148: 123.7065188 | T148: 156.4183963 | U148: 17.82599636 | V148: 170.9061371 | W148: 43.56616733 | X148: 124.0468585 | Y148: 30.8453793 | Z148: 138.1043674 | AA148: 37.90662202 | AB148: 273.2378775 | AC148: 356.5017359 | AD148: 4.229725917 | AE148: 0.8246960107 | AF148: 5.14897972 | AG148: 619.9728579 | AH148: 299.731935 | AI148: 224.3055996 | AJ148: 51.17152454 | AK148: 3.914056051 | AL148: 143
A149: D65B | B149: Nasal Trauma and Deformity, Minor Complexity | C149: 0.3308623723 | D149: 4982 | E149: 1.107988759 | F149: 1921.816367 | G149: 1449.383823 | H149: 472.432544 | I149: 277.582653 | J149: 10.14023018 | K149: 213.6551369 | L149: 23.68870051 | M149: 125.1025786 | N149: 12.16711076 | O149: 2.047556934 | P149: 53.34883201 | Q149: 9.395642051 | R149: 46.7200281 | S149: 16.65393442 | T149: 16.75374106 | U149: 2.51359797 | V149: 8.683420003 | W149: 2.354327932 | X149: 454.7795065 | Y149: 108.9619158 | Z149: 85.26382265 | AA149: 20.88507731 | AB149: 43.08449027 | AC149: 69.78625446 | AD149: 2.336548342 | AE149: 0.4299807248 | AF149: 7.828560451 | AG149: 170.2095694 | AH149: 59.41261911 | AI149: 68.39234414 | AJ149: 8.355742005 | AK149: 1.28244544 | AL149: 210
A150: D66A | B150: Other Ear, Nose, Mouth and Throat Disorders, Major Complexity | C150: 1.002847553 | D150: 6145 | E150: 3.297477624 | F150: 5825.046915 | G150: 4411.591156 | H150: 1413.45576 | I150: 908.8233009 | J150: 36.92252647 | K150: 1199.326983 | L150: 95.87271234 | M150: 468.0144622 | N150: 125.7221336 | O150: 17.60575698 | P150: 168.598388 | Q150: 33.99880312 | R150: 153.5436033 | S150: 54.8198013 | T150: 244.5104076 | U150: 26.06409755 | V150: 260.4807994 | W150: 54.25907837 | X150: 349.1009124 | Y150: 86.64390168 | Z150: 68.36534556 | AA150: 17.43149949 | AB150: 202.8424311 | AC150: 298.7908521 | AD150: 19.88177642 | AE150: 4.849390365 | AF150: 7.477271663 | AG150: 467.5747981 | AH150: 205.0621256 | AI150: 216.3740938 | AJ150: 29.81140918 | AK150: 2.278253835 | AL150: 238
A151: D66B | B151: Other Ear, Nose, Mouth and Throat Disorders, Minor Complexity | C151: 0.3411301391 | D151: 18050 | E151: 1.843434903 | F151: 1981.456761 | G151: 1518.819859 | H151: 462.6369024 | I151: 339.2754003 | J151: 11.52180888 | K151: 274.0337493 | L151: 26.01615824 | M151: 167.5772849 | N151: 24.10389571 | O151: 3.328893619 | P151: 45.10111919 | Q151: 9.103072407 | R151: 49.17706265 | S151: 17.49760913 | T151: 59.86812946 | U151: 4.839465933 | V151: 9.585692103 | W151: 2.491889945 | X151: 243.1323629 | Y151: 61.57083289 | Z151: 26.70804716 | AA151: 6.54207709 | AB151: 63.54897067 | AC151: 78.74097669 | AD151: 116.5811192 | AE151: 29.34575804 | AF151: 4.174827736 | AG151: 165.0512322 | AH151: 62.90134849 | AI151: 72.37149814 | AJ151: 6.241680486 | AK151: 1.024797489 | AL151: 251
A152: D67A | B152: Oral and Dental Disorders, Major Complexity | C152: 1.004868748 | D152: 3595 | E152: 3.006397775 | F152: 5836.78704 | G152: 4338.088052 | H152: 1498.698988 | I152: 776.6168472 | J152: 38.59475755 | K152: 1311.353467 | L152: 101.2991326 | M152: 482.3296672 | N152: 172.3890948 | O152: 21.08122059 | P152: 103.7609013 | Q152: 21.133415 | R152: 262.3243607 | S152: 79.31672393 | T152: 188.6280216 | U152: 18.77576721 | V152: 117.694897 | W152: 28.651489 | X152: 194.8023306 | Y152: 51.0965535 | Z152: 74.31694431 | AA152: 18.06362795 | AB152: 232.3132047 | AC152: 349.0638259 | AD152: 161.8357664 | AE152: 46.59105949 | AF152: 5.301010553 | AG152: 481.8978773 | AH152: 224.8135115 | AI152: 230.3383256 | AJ152: 39.40218604 | AK152: 3.001054032 | AL152: 229
A153: D67B | B153: Oral and Dental Disorders, Minor Complexity | C153: 0.3614085701 | D153: 11453 | E153: 1.238714747 | F153: 2099.244167 | G153: 1573.582034 | H153: 525.6621334 | I153: 297.2011972 | J153: 12.75164384 | K153: 287.7627929 | L153: 25.69210234 | M153: 162.1145842 | N153: 30.19193767 | O153: 4.13658839 | P153: 66.548641 | Q153: 11.56392687 | R153: 44.67858664 | S153: 15.14566987 | T153: 29.3852364 | U153: 3.999056071 | V153: 19.07167314 | W153: 5.128385548 | X153: 297.8384822 | Y153: 77.51482427 | Z153: 119.1957541 | AA153: 28.56562657 | AB153: 58.84546677 | AC153: 94.870967 | AD153: 27.4801944 | AE153: 7.797011904 | AF153: 6.767480404 | AG153: 167.3271105 | AH153: 62.63249612 | AI153: 87.91036673 | AJ153: 45.71954949 | AK153: 1.406814545 | AL153: 266
A154: E01A | B154: Major Chest Interventions, Major Complexity | C154: 10.9546251 | D154: 533 | E154: 18.71106942 | F154: 63630.01527 | G154: 50195.49594 | H154: 13434.51933 | I154: 5904.902358 | J154: 245.8133233 | K154: 8774.472334 | L154: 607.6620668 | M154: 2898.659225 | N154: 2456.49984 | O154: 202.4092018 | P154: 1873.160445 | Q154: 340.8654373 | R154: 1546.169098 | S154: 500.4256047 | T154: 1884.478552 | U154: 121.8873531 | V154: 9005.665018 | W154: 1924.502076 | X154: 8041.699473 | Y154: 1657.683783 | Z154: 66.833965 | AA154: 15.18684037 | AB154: 1812.969422 | AC154: 1924.086145 | AD154: 191.5486207 | AE154: 34.79916802 | AF154: 1477.525616 | AG154: 5240.257059 | AH154: 2362.286857 | AI154: 2297.788255 | AJ154: 208.5488831 | AK154: 11.22924705 | AL154: 60
A155: E01B | B155: Major Chest Interventions, Intermediate Complexity | C155: 6.41898667 | D155: 1196 | E155: 10.54849498 | F155: 37284.72826 | G155: 29688.06291 | H155: 7596.665352 | I155: 3603.279074 | J155: 144.3415365 | K155: 5089.555858 | L155: 369.6853903 | M155: 1712.448454 | N155: 1127.534289 | O155: 128.7659536 | P155: 987.1126118 | Q155: 184.6897123 | R155: 803.9620394 | S155: 247.9812651 | T155: 816.6410083 | U155: 45.1108649 | V155: 2947.476137 | W155: 637.0587641 | X155: 6361.455904 | Y155: 1320.435964 | Z155: 32.89356746 | AA155: 7.932698296 | AB155: 2723.818237 | AC155: 1182.061578 | AD155: 106.7730993 | AE155: 29.75249887 | AF155: 1302.402963 | AG155: 2842.071661 | AH155: 1241.624184 | AI155: 1188.743169 | AJ155: 91.2229704 | AK155: 7.896806893 | AL155: 78
A156: E01C | B156: Major Chest Interventions, Minor Complexity | C156: 4.177353718 | D156: 2809 | E156: 6.164827341 | F156: 24264.18782 | G156: 19355.28161 | H156: 4908.906215 | I156: 2347.90404 | J156: 84.55242738 | K156: 3047.944501 | L156: 224.0410426 | M156: 1052.244791 | N156: 670.9561326 | O156: 86.4543541 | P156: 495.0555577 | Q156: 98.23989513 | R156: 435.5848344 | S156: 134.7026511 | T156: 308.7033762 | U156: 25.45151385 | V156: 943.2541541 | W156: 225.1190865 | X156: 5763.17998 | Y156: 1175.769549 | Z156: 18.90630607 | AA156: 5.003146442 | AB156: 1764.344974 | AC156: 753.747588 | AD156: 40.61422483 | AE156: 9.453181438 | AF156: 1157.787113 | AG156: 1798.213407 | AH156: 746.6911057 | AI156: 811.524325 | AJ156: 35.00431389 | AK156: 3.74025045 | AL156: 81
A157: E02A | B157: Other Respiratory System GIs, Major Complexity | C157: 6.140590048 | D157: 1355 | E157: 12.58302583 | F157: 35667.65956 | G157: 27676.74958 | H157: 7990.909985 | I157: 3705.354444 | J157: 167.6749676 | K157: 6089.703241 | L157: 445.9700885 | M157: 2133.801995 | N157: 1308.180213 | O157: 136.4221613 | P157: 1234.018597 | Q157: 233.7127447 | R157: 1302.208772 | S157: 392.5907325 | T157: 1664.452236 | U157: 99.61507057 | V157: 2969.375677 | W157: 682.0613099 | X157: 2941.287099 | Y157: 659.497725 | Z157: 106.4186219 | AA157: 25.30844474 | AB157: 1022.908616 | AC157: 1383.255093 | AD157: 161.4252503 | AE157: 38.53388021 | AF157: 745.4901138 | AG157: 3055.382294 | AH157: 1505.436378 | AI157: 1250.359823 | AJ157: 197.8654742 | AK157: 9.348499136 | AL157: 111
A158: E02B | B158: Other Respiratory System GIs, Intermediate Complexity | C158: 1.887418 | D158: 2744 | E158: 2.685131195 | F158: 10963.08044 | G158: 8549.476417 | H158: 2413.604027 | I158: 1113.136197 | J158: 46.0733331 | K158: 1223.180504 | L158: 99.80472995 | M158: 508.1866386 | N158: 441.6086331 | O158: 83.8510884 | P158: 257.6957578 | Q158: 49.55977776 | R158: 175.4916929 | S158: 60.58213957 | T158: 228.1578193 | U158: 17.02383573 | V158: 413.331575 | W158: 99.86020473 | X158: 2471.075959 | Y158: 576.7237442 | Z158: 16.1098328 | AA158: 3.623049937 | AB158: 471.4840232 | AC158: 340.4582591 | AD158: 192.3389289 | AE158: 43.44889604 | AF158: 346.74378 | AG158: 882.6848217 | AH158: 356.9877965 | AI158: 415.1884564 | AJ158: 27.06748935 | AK158: 1.601480121 | AL158: 128
A159: E02C | B159: Other Respiratory System GIs, Minor Complexity | C159: 1.078942363 | D159: 4173 | E159: 1.064222382 | F159: 6267.044141 | G159: 4713.574455 | H159: 1553.469686 | I159: 728.6619331 | J159: 31.3837985 | K159: 732.7578207 | L159: 76.37788512 | M159: 324.9608182 | N159: 46.88334978 | O159: 9.278381837 | P159: 10.17430765 | Q159: 2.094451668 | R159: 28.18544639 | S159: 17.73008638 | T159: 69.36696269 | U159: 14.11735768 | V159: 173.3165124 | W159: 31.6281686 | X159: 1912.203779 | Y159: 437.7509634 | Z159: 0.574887029 | AA159: 0.1688257515 | AB159: 296.4478659 | AC159: 236.6752824 | AD159: 35.15225697 | AE159: 7.45342825 | AF159: 32.25544281 | AG159: 543.0147674 | AH159: 190.1829364 | AI159: 275.0527758 | AJ159: 2.292005562 | AK159: 0.9016435291 | AL159: 124
A160: E03Z | B160: Lung or Heart-Lung Transplantation | C160: 40.53676532 | D160: 161 | E160: 33.11180124 | F160: 235458.0804 | G160: 190055.7295 | H160: 45402.35083 | I160: 12605.19009 | J160: 821.8084705 | K160: 16248.19879 | L160: 1308.429617 | M160: 8444.169517 | N160: 11065.86113 | O160: 1186.290523 | P160: 2675.752111 | Q160: 501.5464077 | R160: 8277.318692 | S160: 2849.4249 | T160: 16065.46481 | U160: 798.5832123 | V160: 60579.70359 | W160: 17114.84311 | X160: 21929.5849 | Y160: 4886.089435 | Z160: 1.273668323 | AA160: 0.3015565217 | AB160: 11281.88032 | AC160: 4348.193884 | AD160: 403.7694594 | AE160: 103.9017971 | AF160: 2585.422831 | AG160: 19855.04094 | AH160: 5544.350945 | AI160: 3937.304664 | AJ160: 7.816249491 | AK160: 30.56476087 | AL160: 4
A161: E40A | B161: Respiratory System Disorders with Ventilator Support, Major Complexity | C161: 10.54885391 | D161: 702 | E161: 13.93019943 | F161: 61273.09057 | G161: 48903.15436 | H161: 12369.93621 | I161: 3415.466316 | J161: 146.3607161 | K161: 4134.993336 | L161: 313.6532974 | M161: 2072.795288 | N161: 2286.263036 | O161: 191.5759222 | P161: 1150.764361 | Q161: 212.3265768 | R161: 1925.984519 | S161: 566.7200105 | T161: 1404.154777 | U161: 85.42986148 | V161: 26088.77199 | W161: 5327.326474 | X161: 597.1182966 | Y161: 133.2160246 | Z161: 56.35643334 | AA161: 11.51466404 | AB161: 713.7309195 | AC161: 1011.602673 | AD161: 105.1956576 | AE161: 19.25425172 | AF161: 100.0962795 | AG161: 5564.036559 | AH161: 1657.985324 | AI161: 1782.12602 | AJ161: 179.2147916 | AK161: 19.05619397 | AL161: 95
A162: E40B | B162: Respiratory System Disorders with Ventilator Support, Minor Complexity | C162: 6.086862776 | D162: 748 | E162: 7.221925134 | F162: 35355.58433 | G162: 28142.73187 | H162: 7212.852466 | I162: 1899.590474 | J162: 64.83743312 | K162: 1736.893084 | L162: 137.8113302 | M162: 920.3634231 | N162: 1272.809573 | O162: 118.4118946 | P162: 659.8248631 | Q162: 108.1466585 | R162: 821.4941234 | S162: 227.98364 | T162: 575.4305903 | U162: 46.48667209 | V162: 16223.83346 | W162: 3535.850031 | X162: 204.87641 | Y162: 43.37728325 | Z162: 41.85161048 | AA162: 8.146802337 | AB162: 318.0063235 | AC162: 490.2504572 | AD162: 72.4260544 | AE162: 13.86590366 | AF162: 30.92817517 | AG162: 3453.979639 | AH162: 964.5506833 | AI162: 1088.154988 | AJ162: 262.1971196 | AK162: 13.20563606 | AL162: 99
A163: E41A | B163: Respiratory System Disorders with Non-Invasive Ventilation, Major Complexity | C163: 6.399391455 | D163: 7954 | E163: 13.55632386 | F163: 37170.90931 | G163: 29062.38175 | H163: 8108.527565 | I163: 3402.602461 | J163: 153.3963342 | K163: 6233.084556 | L163: 418.8312059 | M163: 2357.880219 | N163: 1258.236314 | O163: 110.7113212 | P163: 679.8807585 | Q163: 124.7610592 | R163: 1422.728431 | S163: 426.4748762 | T163: 1276.072661 | U163: 87.64342095 | V163: 8855.712252 | W163: 1952.937746 | X163: 171.357075 | Y163: 38.76103051 | Z163: 90.01780017 | AA163: 19.93459549 | AB163: 929.3903151 | AC163: 1220.266969 | AD163: 49.12275726 | AE163: 10.78699253 | AF163: 38.50273669 | AG163: 3213.818426 | AH163: 1329.087849 | AI163: 1193.890581 | AJ163: 90.30922319 | AK163: 14.70934612 | AL163: 152
A164: E41B | B164: Respiratory System Disorders with Non-Invasive Ventilation, Minor Complexity | C164: 3.160482691 | D164: 13026 | E164: 7.395056042 | F164: 18357.68547 | G164: 14290.54831 | H164: 4067.13716 | I164: 1997.499216 | J164: 86.00707196 | K164: 3459.217014 | L164: 244.3254077 | M164: 1305.802717 | N164: 525.4291827 | O164: 50.86947355 | P164: 229.8598405 | Q164: 42.34533293 | R164: 570.3419091 | S164: 182.456277 | T164: 619.368775 | U164: 43.52375743 | V164: 3802.928467 | W164: 853.4238784 | X164: 23.77142453 | Y164: 5.907725336 | Z164: 58.60455612 | AA164: 14.61706916 | AB164: 496.3266148 | AC164: 697.9211878 | AD164: 19.14807142 | AE164: 4.262061427 | AF164: 5.762702853 | AG164: 1637.956537 | AH164: 736.7291308 | AI164: 566.2477405 | AJ164: 69.73713203 | AK164: 7.295194684 | AL164: 180
A165: E42A | B165: Bronchoscopy, Major Complexity | C165: 5.433757073 | D165: 1637 | E165: 12.04092853 | F165: 31562.01536 | G165: 24309.22444 | H165: 7252.790922 | I165: 3781.242477 | J165: 196.006892 | K165: 6156.921053 | L165: 446.1353405 | M165: 2237.382923 | N165: 1427.320419 | O165: 177.4549146 | P165: 832.8222426 | Q165: 172.1390803 | R165: 1178.594655 | S165: 359.9566247 | T165: 3311.921832 | U165: 165.6669357 | V165: 921.3590206 | W165: 224.9820337 | X165: 1405.588192 | Y165: 341.1800217 | Z165: 58.45408191 | AA165: 14.38082247 | AB165: 941.9722559 | AC165: 1540.971488 | AD165: 283.5440705 | AE165: 60.78621549 | AF165: 84.92726411 | AG165: 2444.627743 | AH165: 1414.370536 | AI165: 1230.813714 | AJ165: 144.5879307 | AK165: 5.904583783 | AL165: 96
A166: E42B | B166: Bronchoscopy, Intermediate Complexity | C166: 1.775201962 | D166: 2256 | E166: 3.142730497 | F166: 10311.27282 | G166: 7970.950986 | H166: 2340.321829 | I166: 1252.026089 | J166: 62.64187259 | K166: 1397.492308 | L166: 108.3030317 | M166: 604.9085805 | N166: 484.8500462 | O166: 75.8403421 | P166: 255.3079623 | Q166: 48.29950633 | R166: 209.3080226 | S166: 65.77093716 | T166: 1136.552089 | U166: 75.44664207 | V166: 168.8629048 | W166: 38.74262834 | X166: 1258.944375 | Y166: 303.0475485 | Z166: 18.24229575 | AA166: 3.988948197 | AB166: 321.7235295 | AC166: 433.3530387 | AD166: 254.2685351 | AE166: 55.02000775 | AF166: 44.69928937 | AG166: 802.0327211 | AH166: 387.2200829 | AI166: 417.5169014 | AJ166: 25.6196175 | AK166: 1.242960682 | AL166: 96
A167: E42C | B167: Bronchoscopy, Minor Complexity | C167: 0.7745974227 | D167: 5303 | E167: 1.285687347 | F167: 4499.254462 | G167: 3559.225302 | H167: 940.0291598 | I167: 475.4330952 | J167: 17.90212557 | K167: 332.0165307 | L167: 32.07753858 | M167: 184.8520236 | N167: 306.6623685 | O167: 46.81245344 | P167: 95.88780302 | Q167: 16.91101637 | R167: 29.47383605 | S167: 11.94922761 | T167: 136.7171318 | U167: 7.517200209 | V167: 37.0780601 | W167: 7.450351728 | X167: 1071.195048 | Y167: 254.6876123 | Z167: 3.090558365 | AA167: 1.224841856 | AB167: 124.0874657 | AC167: 112.0606778 | AD167: 382.3299776 | AE167: 79.69726555 | AF167: 33.93504514 | AG167: 396.2907645 | AH167: 141.5530232 | AI167: 151.6864722 | AJ167: 7.941553912 | AK167: 0.7333930752 | AL167: 103
A168: E60A | B168: Cystic Fibrosis, Major Complexity | C168: 7.432320267 | D168: 746 | E168: 12.27211796 | F168: 43170.68343 | G168: 34280.10554 | H168: 8890.577889 | I168: 4697.02519 | J168: 274.1043944 | K168: 7837.923983 | L168: 706.3926747 | M168: 2459.864605 | N168: 568.7126706 | O168: 114.159877 | P168: 453.6291496 | Q168: 93.05138151 | R168: 3638.756334 | S168: 953.9161185 | T168: 11443.13826 | U168: 396.5526987 | V168: 158.8585544 | W168: 44.6149146 | X168: 398.4238852 | Y168: 86.68735367 | Z168: 25.99012503 | AA168: 6.406153548 | AB168: 948.3346531 | AC168: 1916.016283 | AD168: 30.4097032 | AE168: 11.92041475 | AF168: 22.40242641 | AG168: 2857.763015 | AH168: 1438.302562 | AI168: 1562.972634 | AJ168: 18.05297143 | AK168: 6.300442139 | AL168: 52
A169: E60B | B169: Cystic Fibrosis, Minor Complexity | C169: 4.115958739 | D169: 1340 | E169: 8.108208955 | F169: 23907.57467 | G169: 19164.96227 | H169: 4742.6124 | I169: 2978.680232 | J169: 118.471867 | K169: 4174.438593 | L169: 273.7182044 | M169: 1426.7798 | N169: 331.4812593 | O169: 68.85966076 | P169: 227.9924112 | Q169: 59.7885891 | R169: 1829.44132 | S169: 465.3684779 | T169: 6331.633762 | U169: 357.2066381 | V169: 59.0457754 | W169: 18.09359811 | X169: 195.6536276 | Y169: 41.43522538 | Z169: 12.88860409 | AA169: 3.824419216 | AB169: 525.63548 | AC169: 1002.653918 | AD169: 12.98284193 | AE169: 5.012358858 | AF169: 16.05343458 | AG169: 1814.218489 | AH169: 769.8955235 | AI169: 768.821912 | AJ169: 13.96817705 | AK169: 3.530466604 | AL169: 79
A170: E61A | B170: Pulmonary Embolism, Major Complexity | C170: 2.0635983 | D170: 4625 | E170: 5.899891892 | F170: 11986.42493 | G170: 9111.184011 | H170: 2875.240919 | I170: 1536.245343 | J170: 70.78675287 | K170: 2647.849794 | L170: 200.5310211 | M170: 936.913674 | N170: 453.0360403 | O170: 47.18873348 | P170: 550.3121855 | Q170: 94.00494754 | R170: 381.7254792 | S170: 124.9197103 | T170: 411.1254647 | U170: 41.58128655 | V170: 1024.75086 | W170: 259.46842 | X170: 41.40958472 | Y170: 10.22792927 | Z170: 85.92997274 | AA170: 22.10007044 | AB170: 399.2710503 | AC170: 577.6895642 | AD170: 60.87867687 | AE170: 13.17598259 | AF170: 20.67509177 | AG170: 1010.202469 | AH170: 526.1742523 | AI170: 382.0087347 | AJ170: 48.63334145 | AK170: 7.608497357 | AL170: 206
A171: E61B | B171: Pulmonary Embolism, Minor Complexity | C171: 0.7422374924 | D171: 6506 | E171: 2.37519213 | F171: 4311.291584 | G171: 3288.456327 | H171: 1022.835257 | I171: 650.865115 | J171: 27.39558781 | K171: 886.1603817 | L171: 73.9029598 | M171: 359.8598329 | N171: 140.2733425 | O171: 17.39071578 | P171: 282.1866727 | Q171: 46.00088478 | R171: 81.97495752 | S171: 29.27774715 | T171: 169.760406 | U171: 17.80889026 | V171: 211.705827 | W171: 53.76478757 | X171: 8.206526481 | Y171: 1.888290686 | Z171: 111.459077 | AA171: 26.81778453 | AB171: 151.4310194 | AC171: 218.3416359 | AD171: 19.73350485 | AE171: 3.349369843 | AF171: 5.431145889 | AG171: 376.2142621 | AH171: 178.0153733 | AI171: 132.60519 | AJ171: 26.78385055 | AK171: 2.68644467 | AL171: 246
A172: E62A | B172: Respiratory Infections and Inflammations, Major Complexity | C172: 1.943349978 | D172: 44501 | E172: 6.222062426 | F172: 11287.96173 | G172: 8599.863797 | H172: 2688.097929 | I172: 1524.843729 | J172: 74.15849927 | K172: 2858.023107 | L172: 205.4586691 | M172: 1077.21854 | N172: 403.7562044 | O172: 45.40003779 | P172: 239.6966528 | Q172: 46.33439878 | R172: 494.8448629 | S172: 152.1027255 | T172: 554.0824744 | U172: 42.56624245 | V172: 377.8488541 | W172: 86.04053009 | X172: 22.79612998 | Y172: 5.270188957 | Z172: 74.8987967 | AA172: 19.46215876 | AB172: 441.2763112 | AC172: 605.4048589 | AD172: 17.02277864 | AE172: 3.749670087 | AF172: 3.890655379 | AG172: 939.9087191 | AH172: 534.2460518 | AI172: 365.9829062 | AJ172: 66.38557559 | AK172: 5.291397251 | AL172: 292
A173: E62B | B173: Respiratory Infections and Inflammations, Minor Complexity | C173: 0.8563179026 | D173: 35647 | E173: 2.880438747 | F173: 4973.928432 | G173: 3756.738506 | H173: 1217.189926 | I173: 757.7428387 | J173: 35.91040734 | K173: 1273.074022 | L173: 98.95013837 | M173: 487.1555012 | N173: 153.7808456 | O173: 22.22563265 | P173: 93.88899487 | Q173: 17.25612945 | R173: 147.6943683 | S173: 52.35628999 | T173: 246.3146106 | U173: 19.48176759 | V173: 67.6720286 | W173: 15.34973929 | X173: 5.357173989 | Y173: 1.427752123 | Z173: 80.64408166 | AA173: 18.8284942 | AB173: 211.4470713 | AC173: 294.7641107 | AD173: 4.834950319 | AE173: 1.074611179 | AF173: 0.9637048771 | AG173: 410.7936698 | AH173: 237.1461762 | AI173: 165.4025721 | AJ173: 49.94500973 | AK173: 2.445738561 | AL173: 309
A174: E63A | B174: Sleep Apnoea, Major Complexity | C174: 0.5493386685 | D174: 2873 | E174: 1.499825966 | F174: 3190.837437 | G174: 2427.915163 | H174: 762.9222739 | I174: 324.3479018 | J174: 14.50517358 | K174: 317.5072246 | L174: 26.87884253 | M174: 232.3651784 | N174: 36.59700984 | O174: 4.988038902 | P174: 31.2484302 | Q174: 5.626870571 | R174: 78.7557055 | S174: 21.74434747 | T174: 118.6059762 | U174: 18.61899715 | V174: 127.3818996 | W174: 36.71619787 | X174: 9.028837077 | Y174: 2.019028708 | Z174: 4.825398028 | AA174: 1.258584442 | AB174: 70.89352349 | AC174: 100.7961585 | AD174: 878.3572743 | AE174: 254.1246641 | AF174: 0.4268382725 | AG174: 281.9664426 | AH174: 71.72097789 | AI174: 103.3038754 | AJ174: 14.37625198 | AK174: 1.851788412 | AL174: 107
A175: E63B | B175: Sleep Apnoea, Minor Complexity | C175: 0.4244405233 | D175: 7356 | E175: 1.060902664 | F175: 2465.365701 | G175: 1974.442352 | H175: 490.9233494 | I175: 342.2545926 | J175: 17.24977172 | K175: 138.7750472 | L175: 16.94553037 | M175: 409.2751792 | N175: 8.531220143 | O175: 1.329912252 | P175: 11.61968058 | Q175: 2.085479283 | R175: 34.92617482 | S175: 4.957749364 | T175: 33.48829374 | U175: 2.711187718 | V175: 3.779693893 | W175: 1.26298797 | X175: 5.136669367 | Y175: 1.010889272 | Z175: 1.872285868 | AA175: 0.455248887 | AB175: 107.2181236 | AC175: 86.78535069 | AD175: 640.674927 | AE175: 141.614442 | AF175: 0.1144590886 | AG175: 330.9038677 | AH175: 65.46389596 | AI175: 53.40656361 | AJ175: 1.279820969 | AK175: 0.2366560919 | AL175: 120
A176: E64A | B176: Pulmonary Oedema and Respiratory Failure, Major Complexity | C176: 2.405983787 | D176: 1633 | E176: 6.388242499 | F176: 13975.17339 | G176: 10639.32043 | H176: 3335.852951 | I176: 1745.937262 | J176: 76.58598854 | K176: 2807.526751 | L176: 211.2278579 | M176: 989.5521735 | N176: 462.5131348 | O176: 47.5379308 | P176: 264.51254 | Q176: 49.71306026 | R176: 495.3910842 | S176: 156.6633236 | T176: 377.0041431 | U176: 36.71259189 | V176: 2105.341455 | W176: 488.5240338 | X176: 20.04649134 | Y176: 5.000388058 | Z176: 92.07234962 | AA176: 24.80473723 | AB176: 407.7161715 | AC176: 629.6317068 | AD176: 32.66328479 | AE176: 7.0164092 | AF176: 4.412963468 | AG176: 1223.779927 | AH176: 554.6394364 | AI176: 470.8746178 | AJ176: 182.5846076 | AK176: 5.18696583 | AL176: 166
A177: E64B | B177: Pulmonary Oedema and Respiratory Failure, Minor Complexity | C177: 0.9725454715 | D177: 1754 | E177: 2.750855188 | F177: 5649.037065 | G177: 4295.827483 | H177: 1353.209583 | I177: 740.3418302 | J177: 38.81781018 | K177: 1183.815499 | L177: 87.22420304 | M177: 472.8200022 | N177: 167.7521271 | O177: 23.17927211 | P177: 91.73206325 | Q177: 16.71347367 | R177: 170.6585049 | S177: 53.60896812 | T177: 151.753844 | U177: 14.79890954 | V177: 620.3681775 | W177: 151.8764011 | X177: 3.65193507 | Y177: 0.8316686003 | Z177: 67.89643227 | AA177: 17.04623005 | AB177: 196.6765261 | AC177: 280.6092125 | AD177: 46.88543575 | AE177: 6.181554607 | AF177: 1.017915279 | AG177: 512.8883043 | AH177: 232.8346793 | AI177: 194.2459559 | AJ177: 100.6945562 | AK177: 2.115573936 | AL177: 204
A178: E65A | B178: Chronic Obstructive Pulmonary Disease, Major Complexity | C178: 1.738948417 | D178: 13758 | E178: 5.658598633 | F178: 10100.69385 | G178: 7575.844589 | H178: 2524.849262 | I178: 1434.303547 | J178: 70.01105185 | K178: 2649.826739 | L178: 203.0253905 | M178: 948.0086351 | N178: 301.5817961 | O178: 38.45279942 | P178: 195.9354513 | Q178: 33.47684405 | R178: 456.6804655 | S178: 146.1186028 | T178: 326.7988966 | U178: 36.1193896 | V178: 289.6151084 | W178: 77.33262353 | X178: 13.85762325 | Y178: 2.980322048 | Z178: 90.75119576 | AA178: 22.98823508 | AB178: 460.2867003 | AC178: 573.6251606 | AD178: 24.7682974 | AE178: 5.477586715 | AF178: 2.947375271 | AG178: 839.6117877 | AH178: 491.59632 | AI178: 320.0131064 | AJ178: 38.432602 | AK178: 6.07019747 | AL178: 281
A179: E65B | B179: Chronic Obstructive Pulmonary Disease, Minor Complexity | C179: 0.8125808274 | D179: 22923 | E179: 2.814073202 | F179: 4719.881329 | G179: 3527.243577 | H179: 1192.637752 | I179: 710.492931 | J179: 34.65183272 | K179: 1220.46534 | L179: 97.55719201 | M179: 483.6151928 | N179: 124.715144 | O179: 17.71014739 | P179: 82.17562908 | Q179: 14.0155659 | R179: 159.1287865 | S179: 53.80931146 | T179: 164.4177014 | U179: 20.14283562 | V179: 60.32929892 | W179: 17.13614125 | X179: 5.822617874 | Y179: 0.970924294 | Z179: 103.8113013 | AA179: 23.90387928 | AB179: 238.0401269 | AC179: 287.8805975 | AD179: 8.114078347 | AE179: 1.742253433 | AF179: 0.7327320053 | AG179: 387.3239691 | AH179: 220.9031483 | AI179: 153.7570814 | AJ179: 22.89211623 | AK179: 3.623453354 | AL179: 305
A180: E66A | B180: Major Chest Trauma, Major Complexity | C180: 2.337389713 | D180: 3635 | E180: 7.023658872 | F180: 13576.74424 | G180: 10209.44572 | H180: 3367.298522 | I180: 1852.436487 | J180: 77.70737986 | K180: 3137.188921 | L180: 242.0177582 | M180: 1094.220292 | N180: 292.8545357 | O180: 28.98734385 | P180: 387.2069554 | Q180: 72.82119221 | R180: 739.6813067 | S180: 233.0070912 | T180: 324.5295173 | U180: 36.10639212 | V180: 676.6922961 | W180: 168.9581187 | X180: 234.8354671 | Y180: 50.8400942 | Z180: 175.22565 | AA180: 43.86221601 | AB180: 464.4413797 | AC180: 695.1709591 | AD180: 16.80560305 | AE180: 3.501000448 | AF180: 14.43494166 | AG180: 1273.053462 | AH180: 705.7740112 | AI180: 434.9844832 | AJ180: 92.48309955 | AK180: 6.916285058 | AL180: 202
A181: E66B | B181: Major Chest Trauma, Minor Complexity | C181: 0.8175251124 | D181: 6708 | E181: 2.579755516 | F181: 4748.600243 | G181: 3607.30963 | H181: 1141.290613 | I181: 723.8127283 | J181: 26.61583523 | K181: 1024.132209 | L181: 83.47972156 | M181: 393.7447663 | N181: 66.96996117 | O181: 7.419785344 | P181: 186.2788648 | Q181: 33.77663891 | R181: 235.4120617 | S181: 74.17679033 | T181: 109.6404181 | U181: 13.65023596 | V181: 133.7107079 | W181: 35.50570023 | X181: 71.59732056 | Y181: 15.70090086 | Z181: 145.5957226 | AA181: 35.199574 | AB181: 245.6336698 | AC181: 252.815352 | AD181: 5.223448501 | AE181: 1.174678676 | AF181: 3.158333175 | AG181: 432.3078206 | AH181: 209.9923866 | AI181: 150.6189828 | AJ181: 28.08886194 | AK181: 3.166765728 | AL181: 255
A182: E67A | B182: Respiratory Signs and Symptoms, Major Complexity | C182: 1.109064868 | D182: 14586 | E182: 4.604826546 | F182: 6442.010919 | G182: 5010.147393 | H182: 1431.863526 | I182: 967.6906775 | J182: 40.77459392 | K182: 1602.679853 | L182: 106.0248949 | M182: 697.6404446 | N182: 191.0412568 | O182: 20.32676365 | P182: 132.6200232 | Q182: 24.70066278 | R182: 226.4247627 | S182: 63.13974309 | T182: 297.1912468 | U182: 19.09280322 | V182: 81.78394399 | W182: 19.58324883 | X182: 30.89847827 | Y182: 7.551687946 | Z182: 57.20309893 | AA182: 13.71117508 | AB182: 261.2562949 | AC182: 343.0828272 | AD182: 94.21135435 | AE182: 19.06189828 | AF182: 5.881075309 | AG182: 568.3826446 | AH182: 284.8943388 | AI182: 213.1888106 | AJ182: 49.21832374 | AK182: 2.753992629 | AL182: 269
A183: E67B | B183: Respiratory Signs and Symptoms, Minor Complexity | C183: 0.3766359931 | D183: 45589 | E183: 3.067560157 | F183: 2187.692758 | G183: 1713.268499 | H183: 474.4242592 | I183: 451.123695 | J183: 15.31853598 | K183: 471.184491 | L183: 33.07731618 | M183: 243.408571 | N183: 39.44231377 | O183: 6.859106248 | P183: 41.5074152 | Q183: 7.914795897 | R183: 46.9616917 | S183: 13.61975643 | T183: 101.8391009 | U183: 6.156208872 | V183: 12.70469557 | W183: 2.793790909 | X183: 8.852468855 | Y183: 2.675998649 | Z183: 51.81839548 | AA183: 12.03400627 | AB183: 104.7815051 | AC183: 118.7355797 | AD183: 18.44867243 | AE183: 3.385706982 | AF183: 1.796365678 | AG183: 180.1852158 | AH183: 98.34337022 | AI183: 75.43806129 | AJ183: 16.6429323 | AK183: 0.6429948941 | AL183: 285
A184: E68A | B184: Pneumothorax, Major Complexity | C184: 1.955618011 | D184: 1861 | E184: 5.71735626 | F184: 11359.22068 | G184: 8599.784467 | H184: 2759.436209 | I184: 1484.385906 | J184: 68.57116955 | K184: 2777.44543 | L184: 203.042623 | M184: 964.8032437 | N184: 277.992436 | O184: 29.87050187 | P184: 573.9842801 | Q184: 100.927136 | R184: 411.7871506 | S184: 129.8193424 | T184: 246.8874153 | U184: 23.46944725 | V184: 601.8138085 | W184: 158.9509472 | X184: 154.5340553 | Y184: 37.19716155 | Z184: 102.9000077 | AA184: 25.93825586 | AB184: 353.7972424 | AC184: 587.7361531 | AD184: 19.08080846 | AE184: 5.820653566 | AF184: 12.37384738 | AG184: 950.1168702 | AH184: 489.5213251 | AI184: 380.7153668 | AJ184: 177.3787763 | AK184: 8.359314517 | AL184: 192
A185: E68B | B185: Pneumothorax, Minor Complexity | C185: 0.7908076662 | D185: 2427 | E185: 2.402142563 | F185: 4593.411773 | G185: 3428.678041 | H185: 1164.733731 | I185: 684.5920997 | J185: 31.22860896 | K185: 1074.474767 | L185: 85.86198261 | M185: 418.7227058 | N185: 75.91526956 | O185: 10.45393742 | P185: 285.1730604 | Q185: 54.32570526 | R185: 103.8035625 | S185: 39.18140341 | T185: 81.13035923 | U185: 8.910032163 | V185: 115.3366678 | W185: 31.04994367 | X185: 69.19602864 | Y185: 17.09730451 | Z185: 116.757442 | AA185: 28.83165737 | AB185: 147.3202136 | AC185: 270.0862358 | AD185: 3.225439705 | AE185: 0.8545293795 | AF185: 3.872805748 | AG185: 371.0065605 | AH185: 183.2612342 | AI185: 163.1269339 | AJ185: 116.6812177 | AK185: 1.934063962 | AL185: 212
A186: E69A | B186: Bronchitis and Asthma, Major Complexity | C186: 0.9161800238 | D186: 5762 | E186: 2.708434571 | F186: 5321.637974 | G186: 3990.099901 | H186: 1331.538074 | I186: 814.7302013 | J186: 37.72220446 | K186: 1224.698266 | L186: 96.08116585 | M186: 473.0901733 | N186: 136.3346124 | O186: 21.18434611 | P186: 80.80870843 | Q186: 13.65540149 | R186: 123.7832615 | S186: 45.91531266 | T186: 180.9008232 | U186: 18.28023147 | V186: 462.6638521 | W186: 110.1664076 | X186: 11.36563959 | Y186: 2.877689969 | Z186: 74.84967497 | AA186: 17.13397632 | AB186: 192.2106627 | AC186: 297.1492258 | AD186: 6.712548539 | AE186: 1.483844935 | AF186: 1.317985126 | AG186: 463.4344235 | AH186: 216.4000455 | AI186: 177.0719905 | AJ186: 17.15583236 | AK186: 2.459466993 | AL186: 243
A187: E69B | B187: Bronchitis and Asthma, Minor Complexity | C187: 0.3571474495 | D187: 17234 | E187: 1.353371243 | F187: 2074.493419 | G187: 1554.149764 | H187: 520.3436549 | I187: 409.5766334 | J187: 15.50305688 | K187: 500.0450598 | L187: 40.07659207 | M187: 195.8703187 | N187: 42.4635072 | O187: 7.334865236 | P187: 22.33183222 | Q187: 4.051632717 | R187: 24.41842668 | S187: 11.66017259 | T187: 64.23102719 | U187: 6.605569275 | V187: 55.09859596 | W187: 12.93032423 | X187: 4.159140958 | Y187: 1.078482722 | Z187: 87.70308494 | AA187: 20.2793522 | AB187: 71.02000915 | AC187: 131.8256139 | AD187: 0.9096462423 | AE187: 0.2888494626 | AF187: 0.2483692737 | AG187: 184.0798515 | AH187: 74.73835582 | AI187: 71.53097539 | AJ187: 13.44495873 | AK187: 0.9891143981 | AL187: 266
A188: E70A | B188: Whooping Cough and Acute Bronchiolitis, Major Complexity | C188: 1.133574752 | D188: 1735 | E188: 2.586743516 | F188: 6584.376749 | G188: 4898.077308 | H188: 1686.29944 | I188: 1176.313419 | J188: 58.57062832 | K188: 2150.462329 | L188: 143.3376277 | M188: 581.9338759 | N188: 92.9557855 | O188: 20.5713266 | P188: 32.55306044 | Q188: 6.257587885 | R188: 112.9598338 | S188: 49.83725564 | T188: 79.7847832 | U188: 8.970071005 | V188: 223.2543711 | W188: 47.15002021 | X188: 3.171783492 | Y188: 1.62760096 | Z188: 59.8681172 | AA188: 14.30300893 | AB188: 200.2239435 | AC188: 429.6132765 | AD188: 0 | AE188: 0 | AF188: 0.2074176196 | AG188: 507.3720679 | AH188: 251.7047428 | AI188: 298.6871236 | AJ188: 29.99817925 | AK188: 2.68751217 | AL188: 133
A189: E70B | B189: Whooping Cough and Acute Bronchiolitis, Minor Complexity | C189: 0.630251852 | D189: 8707 | E189: 1.632709314 | F189: 3660.82222 | G189: 2750.987562 | H189: 909.8346582 | I189: 770.9275514 | J189: 30.67658345 | K189: 1158.238448 | L189: 84.90680879 | M189: 342.4060405 | N189: 44.61436884 | O189: 11.41009892 | P189: 9.706835662 | Q189: 1.9356854 | R189: 28.44752574 | S189: 18.41581143 | T189: 33.4786253 | U189: 4.120627148 | V189: 78.67150178 | W189: 14.90643207 | X189: 2.698566563 | Y189: 1.752570557 | Z189: 64.97384307 | AA189: 15.96610992 | AB189: 106.7931007 | AC189: 247.7517168 | AD189: 0.0413029978 | AE189: 0.0072868267 | AF189: 0.0958306992 | AG189: 299.6082977 | AH189: 126.7018873 | AI189: 132.643127 | AJ189: 27.98381943 | AK189: 0.9418162203 | AL189: 195
A190: E71A | B190: Respiratory Neoplastic Disorders, Major Complexity | C190: 2.725082297 | D190: 3915 | E190: 8.222988506 | F190: 15828.65928 | G190: 11964.53833 | H190: 3864.120946 | I190: 2039.011432 | J190: 101.2886228 | K190: 4001.174783 | L190: 299.4318603 | M190: 1390.593205 | N190: 536.4755931 | O190: 67.38448315 | P190: 675.5047482 | Q190: 118.6682094 | R190: 747.4152638 | S190: 222.3284574 | T190: 699.0433137 | U190: 57.27946184 | V190: 222.5696756 | W190: 54.57217175 | X190: 78.77685528 | Y190: 17.04816061 | Z190: 79.2539566 | AA190: 18.76198964 | AB190: 624.4865834 | AC190: 933.4427528 | AD190: 101.8651256 | AE190: 23.37421492 | AF190: 14.79611501 | AG190: 1345.217514 | AH190: 738.9881033 | AI190: 499.6365291 | AJ190: 112.1620772 | AK190: 8.108019709 | AL190: 213
A191: E71B | B191: Respiratory Neoplastic Disorders, Minor Complexity | C191: 1.00468944 | D191: 6633 | E191: 2.937584803 | F191: 5835.745528 | G191: 4438.122717 | H191: 1397.62281 | I191: 741.1086591 | J191: 33.16299228 | K191: 1288.544067 | L191: 102.6238162 | M191: 491.6357097 | N191: 251.8987612 | O191: 43.01572578 | P191: 457.5926033 | Q191: 79.49785559 | R191: 164.2011098 | S191: 52.20958582 | T191: 355.0866585 | U191: 25.82657735 | V191: 38.56566878 | W191: 11.30144328 | X191: 84.74605281 | Y191: 18.37027857 | Z191: 48.51794719 | AA191: 11.28018606 | AB191: 206.5123984 | AC191: 330.2894745 | AD191: 37.05437305 | AE191: 6.772852436 | AF191: 6.365187302 | AG191: 474.030584 | AH191: 235.9235924 | AI191: 204.9304981 | AJ191: 31.04656499 | AK191: 3.634303955 | AL191: 256
A192: E72Z | B192: Respiratory Problems Arising from Neonatal Period | C192: 0.8150906741 | D192: 362 | E192: 2.080110497 | F192: 4734.459791 | G192: 3574.46832 | H192: 1159.991471 | I192: 845.2940196 | J192: 27.46620986 | K192: 1077.155968 | L192: 74.32804749 | M192: 370.3990918 | N192: 36.9421988 | O192: 5.729870528 | P192: 34.64710529 | Q192: 8.309850215 | R192: 129.3517894 | S192: 43.19261605 | T192: 243.8002047 | U192: 16.00859296 | V192: 491.7122293 | W192: 133.0411733 | X192: 6.85937711 | Y192: 2.805146274 | Z192: 6.516655111 | AA192: 1.246142486 | AB192: 134.9933146 | AC192: 308.1364009 | AD192: 5.679503039 | AE192: 1.498841437 | AF192: 0.0510490635 | AG192: 400.5841429 | AH192: 120.0003787 | AI192: 167.9454061 | AJ192: 39.50246783 | AK192: 1.261998091 | AL192: 70
A193: E73A | B193: Pleural Effusion, Major Complexity | C193: 2.647667327 | D193: 1512 | E193: 8.306216931 | F193: 15378.9939 | G193: 11627.20148 | H193: 3751.792411 | I193: 2058.476069 | J193: 94.21483469 | K193: 3909.079403 | L193: 284.6179332 | M193: 1369.075578 | N193: 677.097388 | O193: 71.96666844 | P193: 665.4530885 | Q193: 118.9816036 | R193: 526.9073337 | S193: 168.0625294 | T193: 555.4968787 | U193: 51.28299381 | V193: 457.7019967 | W193: 115.8753452 | X193: 82.78919874 | Y193: 17.59670661 | Z193: 75.95510476 | AA193: 20.53282633 | AB193: 501.7978046 | AC193: 832.6091836 | AD193: 42.41433686 | AE193: 8.667191806 | AF193: 14.00565178 | AG193: 1292.637453 | AH193: 732.0481374 | AI193: 532.9593504 | AJ193: 90.61561064 | AK193: 10.07569502 | AL193: 171
A194: E73B | B194: Pleural Effusion, Intermediate Complexity | C194: 1.401884108 | D194: 1613 | E194: 4.608183509 | F194: 8142.853489 | G194: 6188.766256 | H194: 1954.087233 | I194: 1254.906566 | J194: 51.82732596 | K194: 2005.080885 | L194: 149.0640129 | M194: 726.2640287 | N194: 349.2266113 | O194: 44.96272987 | P194: 379.3844368 | Q194: 66.85142679 | R194: 209.9480208 | S194: 75.53116389 | T194: 310.3132069 | U194: 28.3712164 | V194: 109.0336166 | W194: 29.534242 | X194: 56.2960986 | Y194: 9.719774009 | Z194: 65.21333422 | AA194: 16.55581453 | AB194: 287.4979345 | AC194: 470.842163 | AD194: 26.58010737 | AE194: 5.067508014 | AF194: 9.087476139 | AG194: 724.3927533 | AH194: 371.3756276 | AI194: 239.1383902 | AJ194: 65.43710121 | AK194: 5.349915763 | AL194: 195
A195: E73C | B195: Pleural Effusion, Minor Complexity | C195: 0.6680646185 | D195: 1782 | E195: 2.16386083 | F195: 3880.457935 | G195: 2960.027976 | H195: 920.4299584 | I195: 575.8622303 | J195: 23.3914016 | K195: 831.4495368 | L195: 66.54305356 | M195: 337.0088836 | N195: 197.4208399 | O195: 41.20250791 | P195: 278.0843759 | Q195: 50.93802293 | R195: 62.739057 | S195: 23.91520959 | T195: 136.1596636 | U195: 14.84018013 | V195: 30.92019149 | W195: 8.253375472 | X195: 64.60064149 | Y195: 14.73347555 | Z195: 57.11167851 | AA195: 13.11996597 | AB195: 138.8286181 | AC195: 208.7464082 | AD195: 18.74228575 | AE195: 3.501584024 | AF195: 4.322598258 | AG195: 338.670992 | AH195: 152.1015166 | AI195: 122.1887908 | AJ195: 61.22335624 | AK195: 3.837493527 | AL195: 205
A196: E74A | B196: Interstitial Lung Disease, Major Complexity | C196: 2.274588947 | D196: 1235 | E196: 7.275303644 | F196: 13211.96556 | G196: 9819.883057 | H196: 3392.082498 | I196: 1809.221961 | J196: 90.12492691 | K196: 3334.786752 | L196: 252.0713781 | M196: 1185.419565 | N196: 422.0043709 | O196: 50.25793528 | P196: 348.2363853 | Q196: 66.48153804 | R196: 598.1794302 | S196: 190.462407 | T196: 515.7664955 | U196: 47.52887834 | V196: 356.3442529 | W196: 99.4073057 | X196: 24.81245914 | Y196: 6.625954434 | Z196: 70.13614574 | AA196: 18.13854061 | AB196: 500.9262852 | AC196: 742.2194948 | AD196: 70.84103411 | AE196: 15.27688699 | AF196: 7.720741436 | AG196: 1120.824966 | AH196: 735.8171186 | AI196: 469.5575003 | AJ196: 54.76564484 | AK196: 8.009199419 | AL196: 163
A197: E74B | B197: Interstitial Lung Disease, Minor Complexity | C197: 0.7889069152 | D197: 2520 | E197: 2.528174603 | F197: 4582.371248 | G197: 3516.349735 | H197: 1066.021512 | I197: 711.2298926 | J197: 29.53881443 | K197: 965.0584013 | L197: 80.9069313 | M197: 420.8889971 | N197: 200.620087 | O197: 21.86411408 | P197: 158.2037631 | Q197: 28.1837664 | R197: 134.4931651 | S197: 46.03593423 | T197: 321.7488262 | U197: 26.21960188 | V197: 64.45203567 | W197: 16.87258297 | X197: 45.51224835 | Y197: 15.32731133 | Z197: 49.91811786 | AA197: 11.78492368 | AB197: 180.4173259 | AC197: 240.6553251 | AD197: 46.30924957 | AE197: 8.479922405 | AF197: 7.011224683 | AG197: 388.9816714 | AH197: 200.5831026 | AI197: 137.2848493 | AJ197: 21.18673095 | AK197: 2.602330948 | AL197: 202
A198: E75A | B198: Other Respiratory System Disorders, Major Complexity | C198: 1.314834128 | D198: 7923 | E198: 4.010728259 | F198: 7637.223082 | G198: 5741.55197 | H198: 1895.671111 | I198: 1091.359123 | J198: 54.82575767 | K198: 1903.742063 | L198: 141.9606521 | M198: 719.4674771 | N198: 285.954083 | O198: 40.54609768 | P198: 175.4225421 | Q198: 32.36367293 | R198: 322.3645175 | S198: 99.81325311 | T198: 302.8020181 | U198: 25.72817021 | V198: 150.0313112 | W198: 37.64243958 | X198: 43.49462251 | Y198: 10.51831535 | Z198: 86.54753049 | AA198: 20.01468164 | AB198: 312.8039753 | AC198: 453.9390098 | AD198: 15.28941805 | AE198: 4.404059178 | AF198: 2.932534185 | AG198: 634.0086998 | AH198: 351.8053333 | AI198: 267.4450297 | AJ198: 47.07597609 | AK198: 2.920718295 | AL198: 278
A199: E75B | B199: Other Respiratory System Disorders, Minor Complexity | C199: 0.4142502567 | D199: 15327 | E199: 1.61982123 | F199: 2406.175467 | G199: 1841.984385 | H199: 564.1910823 | I199: 364.5769019 | J199: 15.90963771 | K199: 548.9113966 | L199: 41.68483909 | M199: 244.1528191 | N199: 58.73542889 | O199: 9.728138645 | P199: 79.34210353 | Q199: 13.8446551 | R199: 66.89111558 | S199: 22.89219072 | T199: 77.40482703 | U199: 7.166163757 | V199: 35.73001891 | W199: 9.256879839 | X199: 14.92829957 | Y199: 4.158769401 | Z199: 134.3161086 | AA199: 31.7772725 | AB199: 93.11369775 | AC199: 128.170261 | AD199: 7.19090369 | AE199: 1.509879078 | AF199: 1.93885229 | AG199: 194.6231066 | AH199: 97.36499461 | AI199: 78.51608818 | AJ199: 20.57280403 | AK199: 1.76731376 | AL199: 284
A200: E76A | B200: Respiratory Tuberculosis, Major Complexity | C200: 4.588806765 | D200: 232 | E200: 16.625 | F200: 26654.11568 | G200: 20016.6316 | H200: 6637.484085 | I200: 3730.92585 | J200: 193.1804048 | K200: 7224.460867 | L200: 479.8652155 | M200: 2566.901301 | N200: 1192.741112 | O200: 110.8272574 | P200: 482.2728667 | Q200: 97.63361392 | R200: 570.6593255 | S200: 217.3717338 | T200: 1582.057341 | U200: 164.3734031 | V200: 389.8858462 | W200: 108.7812356 | X200: 104.5991474 | Y200: 24.21125169 | Z200: 27.07735749 | AA200: 5.832880871 | AB200: 965.9874146 | AC200: 1511.589538 | AD200: 20.70770756 | AE200: 5.352144828 | AF200: 5.657487315 | AG200: 2449.961348 | AH200: 1463.244855 | AI200: 910.5402254 | AJ200: 33.62142451 | AK200: 13.79552825 | AL200: 68
... 608 more rows

Sheet 4 Acute Overview
B2: Appendix 4.1 NHCDC 2019-20 to 2021-22 admitted acute summary, by jurisdiction
N4: Jurisdiction | AD4: Change (%)
B5: NSW | E5: Vic | H5: QLD | K5: SA | N5: WA | Q5: Tas | T5: NT | W5: ACT | Z5: National | AD5: NSW | AE5: Vic | AF5: QLD | AG5: SA | AH5: WA | AI5: Tas | AJ5: NT | AK5: ACT | AL5: National
B6: 2019-20 | C6: 2020-21 | D6: 2021-22 | E6: 2019-20 | F6: 2020-21 | G6: 2021-22 | H6: 2019-20 | I6: 2020-21 | J6: 2021-22 | K6: 2019-20 | L6: 2020-21 | M6: 2021-22 | N6: 2019-20 | O6: 2020-21 | P6: 2021-22 | Q6: 2019-20 | R6: 2020-21 | S6: 2021-22 | T6: 2019-20 | U6: 2020-21 | V6: 2021-22 | W6: 2019-20 | X6: 2020-21 | Y6: 2021-22 | Z6: 2019-20 | AA6: 2020-21 | AB6: 2021-22 | AD6: 2020-21 and 2021-22
A7: Number of hospitals | B7: 86 | C7: 86 | D7: 82 | E7: 72 | F7: 69 | G7: 75 | H7: 114 | I7: 137 | J7: 138 | K7: 17 | L7: 18 | M7: 19 | N7: 33 | O7: 33 | P7: 33 | Q7: 23 | R7: 23 | S7: 23 | T7: 6 | U7: 6 | V7: 6 | W7: 3 | X7: 3 | Y7: 3 | Z7: 354 | AA7: 375 | AB7: 379 | AD7: =IFERROR((D7/C7-1)*100,"") -> -4.651162791 | AE7: =IFERROR((G7/F7-1)*100,"") -> 8.695652174 | AF7: =IFERROR((J7/I7-1)*100,"") -> 0.7299270073 | AG7: =IFERROR((M7/L7-1)*100,"") -> 5.555555556 | AH7: =IFERROR((P7/O7-1)*100,"") -> 0 | AI7: =IFERROR((S7/R7-1)*100,"") -> 0 | AJ7: =IFERROR((V7/U7-1)*100,"") -> 0 | AK7: =IFERROR((Y7/X7-1)*100,"") -> 0 | AL7: =IFERROR((AB7/AA7-1)*100,"") -> 1.066666667
A8: Separations | B8: 1598193 | C8: 1627515 | D8: 1489598 | E8: 1671680 | F8: 1659307 | G8: 1682451 | H8: 1509216 | I8: 1626382 | J8: 1622556 | K8: 387506 | L8: 404836 | M8: 409865 | N8: 564900 | O8: 609839 | P8: 588309 | Q8: 123544 | R8: 132792 | S8: 150054 | T8: 178875 | U8: 179773 | V8: 169314 | W8: 107934 | X8: 119815 | Y8: 112495 | Z8: 6141848 | AA8: 6360259 | AB8: 6224642 | AD8: =IFERROR((D8/C8-1)*100,"") -> -8.474084724 | AE8: =IFERROR((G8/F8-1)*100,"") -> 1.394799154 | AF8: =IFERROR((J8/I8-1)*100,"") -> -0.2352460861 | AG8: =IFERROR((M8/L8-1)*100,"") -> 1.242231422 | AH8: =IFERROR((P8/O8-1)*100,"") -> -3.530440001 | AI8: =IFERROR((S8/R8-1)*100,"") -> 12.99927706 | AJ8: =IFERROR((V8/U8-1)*100,"") -> -5.817892565 | AK8: =IFERROR((Y8/X8-1)*100,"") -> -6.109418687 | AL8: =IFERROR((AB8/AA8-1)*100,"") -> -2.132255935
A9: Total Expenditure ($) | B9: 9308810894 | C9: 9370588140 | D9: 9888104470 | E9: 8223119631 | F9: 8650831419 | G9: 9376141505 | H9: 7363630072 | I9: 7540225206 | J9: 7856246720 | K9: 2436411095 | L9: 2424589708 | M9: 2685792635 | N9: 3271962703 | O9: 3482194556 | P9: 3737797750 | Q9: 822529276.4 | R9: 889717732.5 | S9: 1055657372 | T9: 683540573.3 | U9: 739062016.2 | V9: 754287432.4 | W9: 655820240.6 | X9: 707190360.6 | Y9: 801848018.1 | Z9: 3.276582448e+10 | AA9: 3.380439914e+10 | AB9: 3.61558759e+10 | AD9: 5.522773196 | AE9: 8.384281827 | AF9: 4.191141586 | AG9: 10.77307746 | AH9: 7.340290452 | AI9: 18.65081854 | AJ9: 2.06009994 | AK9: 13.3850322 | AL9: 6.956126499
A10: Average length of stay (days) | B10: 2.860639485 | C10: 2.82624922 | D10: 3.125218348 | E10: 2.222445085 | F10: 2.253649867 | G10: 2.264492101 | H10: 2.027793901 | I10: 2.001658282 | J10: 2.114853971 | K10: 2.577668475 | L10: 2.518466737 | M10: 2.588510851 | N10: 2.078328908 | O10: 2.066388014 | P10: 2.144182734 | Q10: 2.612559088 | R10: 2.625256039 | S10: 2.479100857 | T10: 1.845512229 | U10: 1.839792405 | V10: 1.932120203 | W10: 2.632043656 | X10: 2.494178525 | Y10: 2.613565047 | Z10: 2.353905372 | AA10: 2.335227072 | AB10: 2.443869704 | AD10: 10.57830021 | AE10: 0.4810966494 | AF10: 5.655095583 | AG10: 2.781220533 | AH10: 3.764768256 | AI10: -5.567273451 | AJ10: 5.018381289 | AK10: 4.786606929 | AL10: 4.652336953
A11: Average cost per separation incl dep ($) | B11: 5824.584949 | C11: 5757.604778 | D11: 6638.102676 | E11: 4919.075201 | F11: 5213.520716 | G11: 5572.906138 | H11: 4879.109466 | I11: 4636.195682 | J11: 4841.895577 | K11: 6287.415149 | L11: 5989.066456 | M11: 6552.871397 | N11: 5792.109583 | O11: 5710.022737 | P11: 6353.460087 | Q11: 6657.78408 | R11: 6700.08534 | S11: 7035.18315 | T11: 3821.330948 | U11: 4111.084625 | V11: 4454.961978 | W11: 6076.122821 | X11: 5902.352465 | Y11: 7127.854732 | Z11: 5334.847832 | AA11: 5314.940655 | AB11: 5808.506883 | AD11: 15.29278115 | AE11: 6.8933345 | AF11: 4.436825128 | AG11: 9.413903575 | AH11: 11.26856021 | AI11: 5.001396142 | AJ11: 8.364638167 | AK11: 20.76294621 | AL11: 9.28639208
A12: Average cost per separation excl dep ($) | B12: 5547.139868 | C12: 5490.679019 | D12: 6320.483029 | E12: 4876.247057 | F12: 5162.106171 | G12: 5514.286637 | H12: 4739.288956 | I12: 4534.993879 | J12: 4726.060517 | K12: 5955.211712 | L12: 5671.441192 | M12: 6060.267006 | N12: 5519.425797 | O12: 5460.146626 | P12: 6058.471647 | Q12: 6433.942014 | R12: 6465.905836 | S12: 6768.402743 | T12: 3651.759525 | U12: 3942.848703 | V12: 4250.343212 | W12: 6069.91133 | X12: 5896.21366 | Y12: 7105.097709 | Z12: 5161.048049 | AA12: 5153.409768 | AB12: 5613.735699 | AD12: 15.11295793 | AE12: 6.822418107 | AF12: 4.213161973 | AG12: 6.855855525 | AH12: 10.95803945 | AI12: 4.67833764 | AJ12: 7.798790478 | AK12: 20.50271783 | AL12: 8.932453506
A13: Average cost per weighted separation incl dep($) | B13: 5221.190373 | C13: 5163.680625 | D13: 5811.642436 | E13: 5110.674467 | F13: 5388.749622 | G13: 5838.266398 | H13: 5144.186496 | I13: 4883.507463 | J13: 5134.460798 | K13: 5759.884459 | L13: 5551.344575 | M13: 6044.115269 | N13: 5949.604272 | O13: 5922.72014 | P13: 6562.70839 | Q13: 6393.269094 | R13: 6270.773982 | S13: 6888.480832 | T13: 6709.073864 | U13: 7052.27806 | V13: 7692.032572 | W13: 5701.767237 | X13: 5666.464845 | Y13: 6577.745899 | Z13: 5334.847832 | AA13: 5314.940655 | AB13: 5808.506883 | AD13: 12.54844864 | AE13: 8.341764015 | AF13: 5.138792888 | AG13: 8.876600745 | AH13: 10.80564732 | AI13: 9.850567908 | AJ13: 9.071600782 | AK13: 16.08200313 | AL13: 9.286392079
A14: Average cost per weighted separation excl dep($) | B14: 4974.966783 | C14: 4926.979528 | D14: 5536.470706 | E14: 5063.601808 | F14: 5332.660705 | G14: 5773.526874 | H14: 4995.184004 | I14: 4775.526572 | J14: 5010.410004 | K14: 5459.026513 | L14: 5259.89225 | M14: 5594.022146 | N14: 5670.666528 | O14: 5664.26279 | P14: 6259.099809 | Q14: 6179.283495 | R14: 6052.644633 | S14: 6625.232145 | T14: 6408.981474 | U14: 6761.669765 | V14: 7337.03897 | W14: 5696.953103 | X14: 5661.847485 | Y14: 6558.697117 | Z14: 5161.048049 | AA14: 5153.409768 | AB14: 5613.735699 | AD14: 12.37048327 | AE14: 8.267283324 | AF14: 4.918482352 | AG14: 6.352409515 | AH14: 10.50157877 | AI14: 9.460121095 | AJ14: 8.509276926 | AK14: 15.84022944 | AL14: 8.932453505
A16: NOTE: Average cost per weighted separation excluding depreciation is calculated by excluding the depreciation cost bucket from the Total Cost. The depreciation cost bucket includes depreciation of equipment, depreciation of building and leases.
B18: Appendix 4.2 NHCDC 2019-20 to 2021-22 admitted acute cost bucket and line item average cost per separation, by jurisdiction
B20: A: Cost bucket
A22: Cost Bucket | B22: Jurisdiction ($) | AD22: Change (%)
B23: NSW | E23: Vic | H23: QLD | K23: SA | N23: WA | Q23: Tas | T23: NT | W23: ACT | Z23: National | AD23: NSW | AE23: Vic | AF23: QLD | AG23: SA | AH23: WA | AI23: Tas | AJ23: NT | AK23: ACT | AL23: National
B24: 2019-20 | C24: 2020-21 | D24: 2021-22 | E24: 2019-20 | F24: 2020-21 | G24: 2021-22 | H24: 2019-20 | I24: 2020-21 | J24: 2021-22 | K24: 2019-20 | L24: 2020-21 | M24: 2021-22 | N24: 2019-20 | O24: 2020-21 | P24: 2021-22 | Q24: 2019-20 | R24: 2020-21 | S24: 2021-22 | T24: 2019-20 | U24: 2020-21 | V24: 2021-22 | W24: 2019-20 | X24: 2020-21 | Y24: 2021-22 | Z24: 2019-20 | AA24: 2020-21 | AB24: 2021-22 | AD24: 2020-21 and 2021-22
A25: Ward Medical | B25: 778.9859696 | C25: 736.9856526 | D25: 836.3771173 | E25: 518.9424705 | F25: 569.3769757 | G25: 627.1835866 | H25: 672.6552965 | I25: 576.1553187 | J25: 585.7665229 | K25: 728.5381538 | L25: 645.0575466 | M25: 729.5717581 | N25: 740.2726421 | O25: 733.906254 | P25: 800.6790342 | Q25: 800.8501402 | R25: 571.8613541 | S25: 747.5078083 | T25: 491.7317204 | U25: 560.8094855 | V25: 571.7630658 | W25: 579.1575904 | X25: 603.4506741 | Y25: 601.8514859 | Z25: 663.8979452 | AA25: 635.0435851 | AB25: 690.5236063 | AD25: =IFERROR((D25/C25-1)*100,"") -> 13.48621434 | AE25: =IFERROR((G25/F25-1)*100,"") -> 10.15260774 | AF25: =IFERROR((J25/I25-1)*100,"") -> 1.66816202 | AG25: =IFERROR((M25/L25-1)*100,"") -> 13.10180958 | AH25: =IFERROR((P25/O25-1)*100,"") -> 9.098271047 | AI25: =IFERROR((S25/R25-1)*100,"") -> 30.71486698 | AJ25: =IFERROR((V25/U25-1)*100,"") -> 1.953173149 | AK25: =IFERROR((Y25/X25-1)*100,"") -> -0.265007292 | AL25: =IFERROR((AB25/AA25-1)*100,"") -> 8.73641157
A26: Ward Nursing | B26: 1102.696413 | C26: 1046.69719 | D26: 1202.444089 | E26: 822.2875707 | F26: 866.4143165 | G26: 882.3641178 | H26: 1091.380962 | I26: 953.9589454 | J26: 990.6973932 | K26: 1249.481042 | L26: 1158.726722 | M26: 1231.849489 | N26: 984.18892 | O26: 947.5463817 | P26: 1056.029903 | Q26: 1282.057449 | R26: 1330.57259 | S26: 1393.705386 | T26: 790.1279901 | U26: 894.4956091 | V26: 963.9818331 | W26: 1134.69725 | X26: 1026.875252 | Y26: 1228.289803 | Z26: 1017.022852 | AA26: 974.8250846 | AB26: 1047.424372 | AD26: =IFERROR((D26/C26-1)*100,"") -> 14.87984304 | AE26: =IFERROR((G26/F26-1)*100,"") -> 1.840897705 | AF26: =IFERROR((J26/I26-1)*100,"") -> 3.851156073 | AG26: =IFERROR((M26/L26-1)*100,"") -> 6.310613652 | AH26: =IFERROR((P26/O26-1)*100,"") -> 11.44888773 | AI26: =IFERROR((S26/R26-1)*100,"") -> 4.744783994 | AJ26: =IFERROR((V26/U26-1)*100,"") -> 7.768201803 | AK26: =IFERROR((Y26/X26-1)*100,"") -> 19.61431535 | AL26: =IFERROR((AB26/AA26-1)*100,"") -> 7.447416851
A27: Allied Health | B27: 196.7846662 | C27: 197.3336957 | D27: 248.461236 | E27: 118.1983586 | F27: 126.5602399 | G27: 137.7327321 | H27: 201.9360065 | I27: 175.8819827 | J27: 187.8146416 | K27: 164.8758739 | L27: 160.8071584 | M27: 167.7651425 | N27: 216.6832853 | O27: 202.2521723 | P27: 242.3698483 | Q27: 140.2737002 | R27: 157.6666136 | S27: 174.6394232 | T27: 63.27241769 | U27: 80.24696011 | V27: 89.40930303 | W27: 153.002255 | X27: 122.1024899 | Y27: 183.6095436 | Z27: 170.6834021 | AA27: 165.9762179 | AB27: 189.5569056 | AD27: 25.90917889 | AE27: 8.827805809 | AF27: 6.78446917 | AG27: 4.326911898 | AH27: 19.83547344 | AI27: 10.76499917 | AJ27: 11.41768224 | AK27: 50.37330013 | AL27: 14.20726901
A28: Non Clinical | B28: 374.4881944 | C28: 343.366179 | D28: 402.5369029 | E28: 313.9066313 | F28: 283.3545563 | G28: 325.3075954 | H28: 436.4698812 | I28: 386.4788853 | J28: 388.4331996 | K28: 229.6462328 | L28: 207.5588191 | M28: 231.3147486 | N28: 288.025685 | O28: 321.3405855 | P28: 314.1686259 | Q28: 388.3833707 | R28: 393.5384622 | S28: 411.2932967 | T28: 456.1769695 | U28: 549.7509858 | V28: 532.9174398 | W28: 327.794629 | X28: 298.5075892 | Y28: 424.7363617 | Z28: 357.976859 | AA28: 334.0141088 | AB28: 362.518877 | AD28: 17.23254286 | AE28: 14.80584592 | AF28: 0.5056716898 | AG28: 11.44539631 | AH28: -2.23188726 | AI28: 4.51158811 | AJ28: -3.062031071 | AK28: 42.28662089 | AL28: 8.534001244
A29: On-costs | B29: 335.6549457 | C29: 319.8799408 | D29: 381.5965417 | E29: 602.3951567 | F29: 640.1919394 | G29: 731.4851998 | H29: 112.3222778 | I29: 206.588334 | J29: 262.9397333 | K29: 548.3679339 | L29: 441.1171491 | M29: 463.4878289 | N29: 366.4376836 | O29: 358.8220005 | P29: 422.3294038 | Q29: 635.7919895 | R29: 602.8373986 | S29: 555.1296778 | T29: 212.0590515 | U29: 212.2835675 | V29: 229.1170923 | W29: 676.6079095 | X29: 618.4356 | Y29: 687.8218601 | Z29: 378.0584862 | AA29: 394.4167002 | AB29: 460.0496224 | AD29: 19.29367648 | AE29: 14.26029519 | AF29: 27.27714495 | AG29: 5.071369319 | AH29: 17.69885993 | AI29: -7.913862166 | AJ29: 7.929735251 | AK29: 11.21964196 | AL29: 16.64050283
A30: Pathology | B30: 218.9364439 | C30: 222.5383368 | D30: 254.3471729 | E30: 184.6541138 | F30: 194.101095 | G30: 215.4342981 | H30: 147.913637 | I30: 143.1377231 | J30: 149.6896718 | K30: 151.5155382 | L30: 139.0755651 | M30: 194.2969945 | N30: 261.8035526 | O30: 166.4388553 | P30: 203.016171 | Q30: 194.1047928 | R30: 188.0946209 | S30: 146.3816899 | T30: 156.8853368 | U30: 124.3862551 | V30: 139.0967863 | W30: 222.6497168 | X30: 239.6587581 | Y30: 335.1718871 | Z30: 189.6008721 | AA30: 180.9535695 | AB30: 203.4664317 | AD30: 14.29364332 | AE30: 10.9907691 | AF30: 4.577373867 | AG30: 39.70606148 | AH30: 21.97642831 | AI30: -22.17656771 | AJ30: 11.82649254 | AK30: 39.85380286 | AL30: 12.44123689
A31: Imaging | B31: 136.8825851 | C31: 138.7767111 | D31: 167.5828732 | E31: 126.7842894 | F31: 134.7741773 | G31: 136.6973023 | H31: 118.1650687 | I31: 112.8398867 | J31: 119.7200668 | K31: 127.2270664 | L31: 133.4580074 | M31: 159.2663855 | N31: 144.0164424 | O31: 149.3520769 | P31: 154.5496706 | Q31: 134.4028668 | R31: 145.2058388 | S31: 129.9983808 | T31: 86.42186784 | U31: 107.896145 | V31: 135.1315486 | W31: 175.2041012 | X31: 245.0903889 | Y31: 268.9418757 | Z31: 128.7355469 | AA31: 133.0397858 | AB31: 145.0222959 | AD31: 20.75720183 | AE31: 1.42692388 | AF31: 6.097294396 | AG31: 19.3382013 | AH31: 3.48009469 | AI31: -10.47303481 | AJ31: 25.24223967 | AK31: 9.731710369 | AL31: 9.006711795
A32: Prosthesis | B32: 185.6272615 | C32: 185.3512052 | D32: 161.5910197 | E32: 129.1601156 | F32: 125.555408 | G32: 120.6417416 | H32: 147.9184629 | I32: 160.0029832 | J32: 139.7583553 | K32: 177.8368816 | L32: 180.9718568 | M32: 163.9928808 | N32: 164.5488272 | O32: 164.0365844 | P32: 154.7170123 | Q32: 145.1963547 | R32: 162.5241362 | S32: 143.2327769 | T32: 34.1752635 | U32: 40.06153058 | V32: 37.67352724 | W32: 175.3260709 | X32: 118.1835391 | Y32: 127.8612918 | Z32: 153.1566488 | AA32: 155.0985082 | AB32: 139.917549 | AD32: -12.81900782 | AE32: -3.913544201 | AF32: -12.65265656 | AG32: -9.38210852 | AH32: -5.681398486 | AI32: -11.8698427 | AJ32: -5.960838989 | AK32: 8.188748431 | AL32: -9.787946607
A33: Ward Supplies | B33: 403.9383984 | C33: 511.9791715 | D33: 621.1802294 | E33: 300.3008187 | F33: 317.2630682 | G33: 360.8513682 | H33: 281.0039412 | I33: 302.6853041 | J33: 323.9865172 | K33: 482.2360543 | L33: 449.6259738 | M33: 481.9796725 | N33: 616.5915624 | O33: 601.2745083 | P33: 695.7333526 | Q33: 701.5622069 | R33: 751.0051187 | S33: 898.9417472 | T33: 451.7474543 | U33: 528.3489624 | V33: 557.7950803 | W33: 409.3902813 | X33: 478.7916445 | Y33: 681.3684347 | Z33: 377.4960294 | AA33: 417.0828165 | AB33: 477.2877693 | AD33: 21.32919932 | AE33: 13.73885094 | AF33: 7.037412382 | AG33: 7.195691654 | AH33: 15.70977033 | AI33: 19.69848471 | AJ33: 5.573232841 | AK33: 42.3100095 | AL33: 14.43477179
A34: Pharmacy | B34: 157.203167 | C34: 165.7751818 | D34: 216.8283883 | E34: 319.9335719 | F34: 347.5517199 | G34: 366.2413048 | H34: 226.5013771 | I34: 242.8906587 | J34: 226.5250712 | K34: 146.3789421 | L34: 146.6963511 | M34: 168.6458303 | N34: 155.9150558 | O34: 269.5996359 | P34: 309.4180323 | Q34: 165.2717238 | R34: 230.3551622 | S34: 304.8509289 | T34: 155.7524949 | U34: 184.4207446 | V34: 188.463513 | W34: 68.91889465 | X34: 62.65549041 | Y34: 53.64293506 | Z34: 216.2905105 | AA34: 241.5908203 | AB34: 263.7201316 | AD34: 30.79665242 | AE34: 5.377497478 | AF34: -6.737841443 | AG34: 14.96252568 | AH34: 14.76945483 | AI34: 32.33952564 | AJ34: 2.192144044 | AK34: -14.38430263 | AL34: 9.159831199
A35: Critical Care | B35: 518.6990323 | C35: 494.1388831 | D35: 612.0792 | E35: 394.2249356 | F35: 411.1038116 | G35: 443.0597851 | H35: 420.89687 | I35: 371.2097439 | J35: 397.238803 | K35: 502.5197257 | L35: 473.6381785 | M35: 499.7579836 | N35: 341.7618066 | O35: 331.4913032 | P35: 343.832486 | Q35: 549.6803972 | R35: 520.0343158 | S35: 479.7558924 | T35: 217.5014909 | U35: 228.165742 | V35: 302.5881806 | W35: 734.9991326 | X35: 701.589139 | Y35: 864.5041406 | Z35: 439.1448205 | AA35: 421.0728167 | AB35: 470.5985798 | AD35: 23.86784786 | AE35: 7.773212676 | AF35: 7.011954702 | AG35: 5.514717001 | AH35: 3.722928083 | AI35: -7.74533952 | AJ35: 32.61770936 | AK35: 23.2208557 | AL35: 11.76180488
A36: Operating Room | B36: 789.1437365 | C36: 783.7943196 | D36: 833.9189094 | E36: 834.8146688 | F36: 794.6903806 | G36: 809.2597655 | H36: 734.5543669 | I36: 679.6620475 | J36: 686.1795212 | K36: 1061.228966 | L36: 1040.015744 | M36: 1065.179389 | N36: 779.149959 | O36: 779.2420462 | P36: 880.6494529 | Q36: 923.0901923 | R36: 1061.531974 | S36: 1071.40872 | T36: 357.2207664 | U36: 287.1529667 | V36: 311.3396165 | W36: 1125.86462 | X36: 1109.913522 | Y36: 1343.049829 | Z36: 800.4401573 | AA36: 773.7861053 | AB36: 809.0990615 | AD36: 6.395120324 | AE36: 1.833341033 | AF36: 0.9589285828 | AG36: 2.419544612 | AH36: 13.01359535 | AI36: 0.9304237595 | AJ36: 8.422914817 | AK36: 21.00490734 | AL36: 4.563658599
A37: Patient Travel | B37: 55.69477579 | C37: 51.10027836 | D37: 60.08832054 | E37: 13.53698986 | F37: 15.56705387 | G37: 16.645745 | H37: 18.15983154 | I37: 11.27344227 | J37: 12.97695187 | K37: 20.51867036 | L37: 16.88009872 | M37: 29.04168148 | N37: 1.219732893 | O37: 1.516060274 | P37: 0.7136545106 | Q37: 22.88157333 | R37: 15.8314795 | S37: 17.83032595 | T37: 141.0006997 | U37: 113.7721452 | V37: 150.818466 | W37: 0 | X37: 0 | Y37: 0 | Z37: 28.61290943 | AA37: 24.78603349 | AB37: 28.77324209 | AD37: 17.58902783 | AE37: 6.92932096 | AF37: 15.11082022 | AG37: 72.04686989 | AH37: -52.92703577 | AI37: 12.62577164 | AJ37: 32.56185482 | AL37: 16.08651338
A38: Special Procedure Suite | B38: 59.55233942 | C38: 63.19679134 | D38: 68.43687101 | E38: 70.57950778 | F38: 70.6109143 | G38: 72.95921596 | H38: 49.83861493 | I38: 41.64108126 | J38: 60.43151229 | K38: 128.9375433 | L38: 125.2238656 | M38: 106.2422373 | N38: 61.32782522 | O38: 67.72972659 | P38: 67.80281799 | Q38: 93.55971671 | R38: 101.4180199 | S38: 123.1279734 | T38: 8.643625134 | U38: 1.753679739 | V38: 2.425350343 | W38: 77.0336787 | X38: 77.26353932 | Y38: 93.52418198 | Z38: 64.21638925 | AA38: 63.32802953 | AB38: 69.97811619 | AD38: 8.291686278 | AE38: 3.325692199 | AF38: 45.12474328 | AG38: -15.15815549 | AH38: 0.1079162883 | AI38: 21.40640645 | AJ38: 38.30064228 | AK38: 21.04568701 | AL38: 10.50101623
A39: Emergency Department | B39: 2.12503856 | C39: 2.298033336 | D39: 4.523506755 | E39: 32.77093795 | F39: 52.24482578 | G39: 46.71460132 | H39: 0.2909618471 | I39: 102.8971763 | J39: 106.9383992 | K39: 0.0002743681 | L39: 118.3074247 | M39: 117.9231545 | N39: 49.23354965 | O39: 24.43525024 | P39: 31.27735752 | Q39: 25.08251009 | R39: 26.0793559 | S39: 23.79420976 | T39: 1.948939751 | U39: 3.598386819 | V39: 10.96782991 | W39: 0 | X39: 4.184585848 | Y39: 4.341558866 | Z39: 14.6336113 | AA39: 51.12818143 | AB39: 53.25542054 | AD39: 96.84252114 | AE39: -10.58520989 | AF39: 3.927438174 | AG39: -0.3248064869 | AH39: 28.00097077 | AI39: -8.762279856 | AJ39: 204.7985239 | AK39: 3.751219915 | AL39: 4.160599987
A40: Hotel | B40: 230.7269003 | C40: 227.4674487 | D40: 248.4906508 | E40: 93.7569198 | F40: 212.7456883 | G40: 221.7082772 | H40: 79.28139923 | I40: 67.69036649 | J40: 86.96415678 | K40: 235.9028132 | L40: 234.2807308 | M40: 249.95183 | N40: 348.2492672 | O40: 341.1631845 | P40: 381.184824 | Q40: 231.75303 | R40: 207.3493954 | S40: 146.8045058 | T40: 27.09343647 | U40: 25.7055369 | V40: 26.85457951 | W40: 209.2652008 | X40: 189.5114467 | Y40: 206.3825201 | Z40: 161.0810089 | AA40: 187.2674043 | AB40: 202.543718 | AD40: 9.242290357 | AE40: 4.212818103 | AF40: 28.47346128 | AG40: 6.689026083 | AH40: 11.73093738 | AI40: -29.19945314 | AJ40: 4.470019886 | AK40: 8.902403311 | AL40: 8.157486747
A41: Depreciation | B41: 277.4450816 | C41: 266.9257583 | D41: 317.6196465 | E41: 42.82814345 | F41: 51.41454543 | G41: 58.61950154 | H41: 139.8205103 | I41: 101.2018024 | J41: 115.8350598 | K41: 332.2034365 | L41: 317.6252643 | M41: 492.6043912 | N41: 272.6837855 | O41: 249.8761113 | P41: 294.98844 | Q41: 223.8420653 | R41: 234.179504 | S41: 266.7804072 | T41: 169.5714231 | U41: 168.2359217 | V41: 204.6187661 | W41: 6.211490692 | X41: 6.138805416 | Y41: 22.75702329 | Z41: 173.7997828 | AA41: 161.5308876 | AB41: 194.7711842 | AD41: 18.99175581 | AE41: 14.01345875 | AF41: 14.459483 | AG41: 55.08980126 | AH41: 18.05387814 | AI41: 13.92133072 | AJ41: 21.62608558 | AK41: 270.7076826 | AL41: 20.57829131
A42: Total Bucket | B42: 5824.584949 | C42: 5757.604778 | D42: 6638.102676 | E42: 4919.075201 | F42: 5213.520716 | G42: 5572.906138 | H42: 4879.109466 | I42: 4636.195682 | J42: 4841.895577 | K42: 6287.415149 | L42: 5989.066456 | M42: 6552.871397 | N42: 5792.109583 | O42: 5710.022737 | P42: 6353.460087 | Q42: 6657.78408 | R42: 6700.08534 | S42: 7035.18315 | T42: 3821.330948 | U42: 4111.084625 | V42: 4454.961978 | W42: 6076.122821 | X42: 5902.352465 | Y42: 7127.854732 | Z42: 5334.847832 | AA42: 5314.940655 | AB42: 5808.506883 | AD42: 15.29278115 | AE42: 6.8933345 | AF42: 4.436825128 | AG42: 9.413903575 | AH42: 11.26856021 | AI42: 5.001396142 | AJ42: 8.364638167 | AK42: 20.76294621 | AL42: 9.286392079
B44: B: Line item
A46: Line Item | B46: Jurisdiction ($) | AD46: Change (%)
B47: NSW | E47: Vic | H47: QLD | K47: SA | N47: WA | Q47: Tas | T47: NT | W47: ACT | Z47: National | AD47: NSW | AE47: Vic | AF47: QLD | AG47: SA | AH47: WA | AI47: Tas | AJ47: NT | AK47: ACT | AL47: National
B48: 2019-20 | C48: 2020-21 | D48: 2021-22 | E48: 2019-20 | F48: 2020-21 | G48: 2021-22 | H48: 2019-20 | I48: 2020-21 | J48: 2021-22 | K48: 2019-20 | L48: 2020-21 | M48: 2021-22 | N48: 2019-20 | O48: 2020-21 | P48: 2021-22 | Q48: 2019-20 | R48: 2020-21 | S48: 2021-22 | T48: 2019-20 | U48: 2020-21 | V48: 2021-22 | W48: 2019-20 | X48: 2020-21 | Y48: 2021-22 | Z48: 2019-20 | AA48: 2020-21 | AB48: 2021-22 | AD48: 2020-21 and 2021-22
A49: Salary & Wages Nursing | B49: 1619.426634 | C49: 1537.851717 | D49: 1789.169393 | E49: 1286.569585 | F49: 1324.851484 | G49: 1359.303416 | H49: 1595.354459 | I49: 1451.490762 | J49: 1506.49369 | K49: 1803.807469 | L49: 1759.160475 | M49: 1822.596627 | N49: 1336.787482 | O49: 1276.557994 | P49: 1428.687592 | Q49: 1862.065456 | R49: 1924.785569 | S49: 1967.09408 | T49: 988.3204768 | U49: 1029.855246 | V49: 1142.28712 | W49: 1769.264734 | X49: 1615.862446 | Y49: 1921.188951 | Z49: 1497.68564 | AA49: 1444.421952 | AB49: 1556.507658 | AD49: =IFERROR((D49/C49-1)*100,"") -> 16.3421267 | AE49: =IFERROR((G49/F49-1)*100,"") -> 2.600437285 | AF49: =IFERROR((J49/I49-1)*100,"") -> 3.78940944 | AG49: =IFERROR((M49/L49-1)*100,"") -> 3.606046875 | AH49: =IFERROR((P49/O49-1)*100,"") -> 11.91717091 | AI49: =IFERROR((S49/R49-1)*100,"") -> 2.198089549 | AJ49: =IFERROR((V49/U49-1)*100,"") -> 10.91725016 | AK49: =IFERROR((Y49/X49-1)*100,"") -> 18.89557534 | AL49: =IFERROR((AB49/AA49-1)*100,"") -> 7.759900467
A50: Salary & Wages Medical (nonVMO) | B50: 756.9321064 | C50: 707.3037174 | D50: 832.5602683 | E50: 648.6958679 | F50: 705.454302 | G50: 736.9505024 | H50: 989.3249934 | I50: 883.2781215 | J50: 917.2062585 | K50: 1154.795896 | L50: 1103.56166 | M50: 1113.497524 | N50: 995.679254 | O50: 974.2141242 | P50: 1064.973044 | Q50: 1063.077068 | R50: 891.1414144 | S50: 1025.972316 | T50: 585.8073839 | U50: 667.846401 | V50: 715.3021788 | W50: 1022.707803 | X50: 1022.985223 | Y50: 1118.965575 | Z50: 837.4837987 | AA50: 811.3037127 | AB50: 875.8959282 | AD50: 17.70901916 | AE50: 4.464669121 | AF50: 3.84116126 | AG50: 0.9003451508 | AH50: 9.316116147 | AI50: 15.13013534 | AJ50: 7.105792254 | AK50: 9.382379126 | AL50: 7.96153333
A51: Salary & Wages Medical (VMO) | B51: 351.4159759 | C51: 355.0322985 | D51: 381.9729074 | E51: 309.012309 | F51: 327.8995777 | G51: 364.9511265 | H51: 42.30443964 | I51: 34.9116002 | J51: 32.71925318 | K51: 180.7965789 | L51: 153.3442306 | M51: 214.8336113 | N51: 137.6969074 | O51: 142.8656823 | P51: 146.6087527 | Q51: 119.6631112 | R51: 71.77981961 | S51: 92.96725316 | T51: 40.15797327 | U51: 55.23727106 | V51: 46.88365757 | W51: 363.4217804 | X51: 344.1654187 | Y51: 411.428881 | Z51: 219.9800471 | AA51: 218.3226374 | AB51: 237.5338491 | AD51: 7.588213526 | AE51: 11.29966347 | AF51: -6.279709355 | AG51: 40.09892017 | AH51: 2.619992645 | AI51: 29.51725661 | AJ51: -15.12314663 | AK51: 19.54393402 | AL51: 8.79945937
A52: Salary & Wages Allied Health | B52: 266.6827675 | C52: 263.9657662 | D52: 325.3578056 | E52: 98.3655113 | F52: 105.0373653 | G52: 112.2193648 | H52: 258.3754393 | I52: 232.5514565 | J52: 237.6782206 | K52: 192.2306729 | L52: 196.5248375 | M52: 144.1777742 | N52: 274.4489653 | O52: 264.7802132 | P52: 309.2618369 | Q52: 198.8931607 | R52: 218.6033813 | S52: 218.5841946 | T52: 107.9593298 | U52: 83.35846535 | V52: 127.5247063 | W52: 288.6337015 | X52: 281.3716422 | Y52: 326.6638595 | Z52: 209.2454858 | AA52: 204.5318496 | AB52: 223.5110532 | AD52: 23.25757625 | AE52: 6.837566307 | AF52: 2.204571916 | AG52: -26.63636003 | AH52: 16.79945158 | AI52: -0.00877697381 | AJ52: 52.98351015 | AK52: 16.09693748 | AL52: 9.279338972
A53: Salary & Wages Other | B53: 556.1353865 | C53: 516.2253207 | D53: 612.9462992 | E53: 637.1179446 | F53: 593.053033 | G53: 644.4116093 | H53: 614.720945 | I53: 579.3892229 | J53: 574.245205 | K53: 364.8526251 | L53: 342.1254018 | M53: 363.940169 | N53: 438.5140173 | O53: 483.6464625 | P53: 464.5364223 | Q53: 605.0626733 | R53: 616.7059258 | S53: 654.7087375 | T53: 587.1195785 | U53: 674.8504136 | V53: 677.862837 | W53: 492.1880491 | X53: 464.350378 | Y53: 681.4612423 | Z53: 570.4490807 | AA53: 543.8191269 | AB53: 584.9510947 | AD53: 18.73619418 | AE53: 8.660030961 | AF53: -0.887834583 | AG53: 6.376248921 | AH53: -3.951241603 | AI53: 6.162225811 | AJ53: 0.4463838628 | AK53: 46.75582806 | AL53: 7.563538262
A54: Oncosts | B54: 335.6549457 | C54: 319.8799408 | D54: 381.5965417 | E54: 602.4022816 | F54: 640.200411 | G54: 731.4891238 | H54: 112.3230655 | I54: 206.5906032 | J54: 262.9410036 | K54: 548.3679339 | L54: 441.1171491 | M54: 463.4878289 | N54: 366.4415945 | O54: 358.8379855 | P54: 422.3331413 | Q54: 635.7933563 | R54: 602.8388372 | S54: 555.1394135 | T54: 212.0590515 | U54: 212.2835675 | V54: 229.1170923 | W54: 676.6079095 | X54: 618.4356 | Y54: 687.8218601 | Z54: 378.0610062 | AA54: 394.4210533 | AB54: 460.0516021 | AD54: 19.29367648 | AE54: 14.25939616 | AF54: 27.27636179 | AG54: 5.071369317 | AH54: 17.69465841 | AI54: -7.912466939 | AJ54: 7.929735255 | AK54: 11.21964196 | AL54: 16.63971742
A55: Pathology | B55: 161.6693816 | C55: 158.6578148 | D55: 178.6714543 | E55: 54.32790919 | F55: 60.39512231 | G55: 72.23437478 | H55: 110.9229356 | I55: 113.0504435 | J55: 115.3814165 | K55: 144.6153954 | L55: 131.5372344 | M55: 140.5279516 | N55: 106.1785376 | O55: 100.6134366 | P55: 148.8419421 | Q55: 46.8326104 | R55: 53.80823109 | S55: 39.32398366 | T55: 60.73738193 | U55: 53.05822366 | V55: 54.47679631 | W55: 58.87408595 | X55: 58.58896113 | Y55: 67.94728855 | Z55: 106.7478086 | AA55: 107.0094487 | AB55: 119.335847 | AD55: 12.61434214 | AE55: 19.60299445 | AF55: 2.061887555 | AG55: 6.835111962 | AH55: 47.93445789 | AI55: -26.91827464 | AJ55: 2.673615042 | AK55: 15.97285092 | AL55: 11.51898118
A56: Imaging | B56: 43.3003419 | C56: 39.67708938 | D56: 37.87214042 | E56: 33.35771668 | F56: 35.16858754 | G56: 33.76992217 | H56: 4.207589188 | I56: 6.124868718 | J56: 5.416269003 | K56: 28.74835739 | L56: 21.4172459 | M56: 161.2470849 | N56: 13.74695021 | O56: 14.2741866 | P56: 15.3512147 | Q56: 24.63971185 | R56: 28.89540009 | S56: 24.07895115 | T56: 47.39281654 | U56: 57.7734044 | V56: 65.89388622 | W56: 9.042978724 | X56: 11.24393324 | Y56: 2.941681016 | Z56: 26.4935291 | AA56: 26.0740504 | AB56: 34.09679187 | AD56: -4.549096178 | AE56: -3.977030272 | AF56: -11.56922291 | AG56: 652.8843139 | AH56: 7.54528529 | AI56: -16.66856635 | AJ56: 14.055744 | AK56: -73.83761577 | AL56: 30.7690648
A57: Prostheses | B57: 185.6272615 | C57: 185.3512052 | D57: 161.5910197 | E57: 129.1601157 | F57: 125.555408 | G57: 120.6417416 | H57: 147.9184639 | I57: 160.0029859 | J57: 139.7583555 | K57: 177.8368816 | L57: 180.9718568 | M57: 163.9928808 | N57: 164.5488272 | O57: 164.0365844 | P57: 154.7170123 | Q57: 145.1963547 | R57: 162.5241362 | S57: 143.2327769 | T57: 34.1752635 | U57: 40.06153058 | V57: 37.67352724 | W57: 175.3260709 | X57: 118.1835391 | Y57: 127.8612918 | Z57: 153.156649 | AA57: 155.0985089 | AB57: 139.9175491 | AD57: -12.81900782 | AE57: -3.913544202 | AF57: -12.65265785 | AG57: -9.382108522 | AH57: -5.681398488 | AI57: -11.86984269 | AJ57: -5.96083899 | AK57: 8.188748438 | AL57: -9.787946957
A58: Medical supplies | B58: 290.2879675 | C58: 320.0346393 | D58: 328.4399689 | E58: 251.2206074 | F58: 256.6938526 | G58: 264.2941175 | H58: 198.6189661 | I58: 196.0328118 | J58: 202.8382947 | K58: 300.0640359 | L58: 319.7482699 | M58: 293.5202898 | N58: 258.3199878 | O58: 260.2472362 | P58: 274.682683 | Q58: 376.2867987 | R58: 409.5439195 | S58: 375.3574666 | T58: 204.9666832 | U58: 224.5830987 | V58: 298.8627404 | W58: 321.1793906 | X58: 358.1730944 | Y58: 407.1473886 | Z58: 254.5935242 | AA58: 265.9398755 | AB58: 272.7307826 | AD58: 2.626381177 | AE58: 2.960828566 | AF58: 3.471603993 | AG58: -8.202696497 | AH58: 5.546820387 | AI58: -8.347444872 | AJ58: 33.0744576 | AK58: 13.67335931 | AL58: 2.553549768
A59: Goods and services | B59: 511.1160421 | C59: 614.2512074 | D59: 730.345766 | E59: 366.8859065 | F59: 396.269669 | G59: 451.2371597 | H59: 344.5622426 | I59: 361.5569597 | J59: 403.9014261 | K59: 569.3318503 | L59: 544.0377317 | M59: 569.5252549 | N59: 545.3242937 | O59: 523.212806 | P59: 653.6309878 | Q59: 851.0029877 | R59: 964.8813006 | S59: 1134.769897 | T59: 460.4791796 | U59: 523.0696829 | V59: 499.6201901 | W59: 534.6890479 | X59: 659.3572248 | Y59: 972.9191738 | Z59: 443.5286607 | AA59: 485.1611647 | AB59: 559.8301307 | AD59: 18.90017588 | AE59: 13.8712334 | AF59: 11.71169999 | AG59: 4.684881534 | AH59: 24.92641242 | AI59: 17.60720166 | AJ59: -4.483053323 | AK59: 47.55570081 | AL59: 15.39054884
A60: Pharmaceuticals PBS | B60: 0 | C60: 13.50799379 | D60: 22.53712858 | E60: 183.9693216 | F60: 188.6454723 | G60: 204.47371 | H60: 0 | I60: 62.60266783 | J60: 51.95855668 | K60: 40.69190609 | L60: 43.80577836 | M60: 49.74775768 | N60: 169.9634895 | O60: 194.3003417 | P60: 211.1961913 | Q60: 14.16693502 | R60: 17.74896636 | S60: 33.64714879 | T60: 26.43108205 | U60: 101.6123789 | V60: 95.61175776 | W60: 18.20347209 | X60: 19.48815 | Y60: 19.24626301 | Z60: 69.64702506 | AA60: 93.70785137 | AB60: 101.2001685 | AD60: 66.84290001 | AE60: 8.390467888 | AF60: -17.00264783 | AG60: 13.56437333 | AH60: 8.695738521 | AI60: 89.57244109 | AJ60: -5.905403629 | AK60: -1.241200383 | AL60: 7.995399524
A61: Pharmaceuticals nonPBS | B61: 140.6595088 | C61: 138.6714124 | D61: 176.9580208 | E61: 97.47472756 | F61: 107.5188441 | G61: 103.4141057 | H61: 196.6963921 | I61: 143.777902 | J61: 143.5028909 | K61: 117.9026442 | L61: 114.5460958 | M61: 153.5414976 | N61: 94.9365832 | O61: 91.02138322 | P61: 104.3667595 | Q61: 193.7972081 | R61: 242.3242831 | S61: 287.7278161 | T61: 117.2524101 | U61: 69.39135702 | V61: 68.39234017 | W61: 85.52771457 | X61: 77.82068327 | Y61: 73.64748117 | Z61: 136.4524082 | AA61: 124.8050815 | AB61: 137.8067381 | AD61: 27.60958998 | AE61: -3.817692123 | AF61: -0.191274997 | AG61: 34.04341416 | AH61: 14.66180343 | AI61: 18.73668308 | AJ61: -1.439684844 | AK61: -5.362587321 | AL61: 10.41756988
A62: Blood | B62: 41.80987199 | C62: 41.70116903 | D62: 51.88534386 | E62: 70.45442066 | F62: 67.11372005 | G62: 76.57314907 | H62: 26.56114859 | I62: 24.70147674 | J62: 32.13107821 | K62: 0 | L62: 0 | M62: 52.31364186 | N62: 0 | O62: 0 | P62: 0 | Q62: 35.97285629 | R62: 33.17464687 | S62: 44.1160457 | T62: 10.80677796 | U62: 10.38998014 | V62: 13.16133679 | W62: 44.97939043 | X62: 56.67591933 | Y62: 79.47425151 | Z62: 38.41125661 | AA62: 36.55029954 | AB62: 47.79126637 | AD62: 24.42179696 | AE62: 14.09462777 | AF62: 30.07755991 | AI62: 32.98120662 | AJ62: 26.67335846 | AK62: 40.22578276 | AL62: 30.75478714
A63: Depreciation building | B63: 207.5791626 | C63: 203.5560745 | D63: 234.7369683 | E63: 0 | F63: 0.01698679744 | G63: 0.1390016784 | H63: 113.4714294 | I63: 70.98227566 | J63: 71.09570153 | K63: 215.0923553 | L63: 198.0170304 | M63: 396.8274981 | N63: 147.0195958 | O63: 136.0394495 | P63: 157.9981746 | Q63: 132.0400718 | R63: 164.6022017 | S63: 160.3201443 | T63: 98.31337328 | U63: 127.3560462 | V63: 161.6732626 | W63: 0 | X63: 0 | Y63: 0 | Z63: 114.510156 | AA63: 102.9270451 | AB63: 124.0685031 | AD63: 15.31808561 | AE63: 718.2924353 | AF63: 0.1597946294 | AG63: 100.4006915 | AH63: 16.14143922 | AI63: -2.60145817 | AJ63: 26.94588715 | AL63: 20.54023607
A64: Depreciation equipment | B64: 59.25215527 | C64: 55.44198539 | D64: 67.65004374 | E64: 0 | F64: 0.003911636304 | G64: 0.03595653336 | H64: 22.35004334 | I64: 18.70497594 | J64: 28.23876133 | K64: 109.3516783 | L64: 104.0943677 | M64: 89.92022494 | N64: 112.0744813 | O64: 67.44189754 | P64: 97.99095383 | Q64: 47.43016412 | R64: 60.28657318 | S64: 62.44388348 | T64: 57.19784629 | U64: 22.36586357 | V64: 26.90513726 | W64: 0.003858689736 | X64: 0 | Y64: 0 | Z64: 40.73759594 | AA64: 33.95408732 | AB64: 40.97911503 | AD64: 22.01951871 | AE64: 819.2197476 | AF64: 50.96924699 | AG64: -13.61662796 | AH64: 45.29685167 | AI64: 3.578425813 | AJ64: 20.29554405 | AL64: 20.68978513
A65: Hotel | B65: 230.7269003 | C65: 227.4674487 | D65: 248.4906508 | E65: 93.75772374 | F65: 212.7459185 | G65: 221.7099424 | H65: 79.28194243 | I65: 67.69102159 | J65: 86.96463125 | K65: 235.9028132 | L65: 234.2807308 | M65: 249.95183 | N65: 348.2512612 | O65: 341.1721228 | P65: 381.1887934 | Q65: 231.7533951 | R65: 207.3501288 | S65: 146.8068959 | T65: 27.09343647 | U65: 25.7055369 | V65: 26.85457951 | W65: 209.2652008 | X65: 189.5114467 | Y65: 206.38252 | Z65: 161.0815519 | AA65: 187.2685043 | AB65: 202.5447246 | AD65: 9.242290356 | AE65: 4.213488057 | AF65: 28.47291887 | AG65: 6.68902609 | AH65: 11.7291736 | AI65: -29.19855092 | AJ65: 4.470019883 | AK65: 8.902403307 | AL65: 8.157388969
A66: Corporate | B66: 0 | C66: 0 | D66: 0 | E66: 0 | F66: 0 | G66: 0 | H66: 5.300765431e-09 | I66: 0 | J66: 0 | K66: 74.74798221 | L66: 68.38239531 | M66: 74.3236018 | N66: 267.4320628 | O66: 269.0977062 | P66: 277.4334915 | Q66: 6.869376889 | R66: 3.982763064 | S66: 7.201489859 | T66: 0 | U66: 0 | V66: 0 | W66: 0 | X66: 0 | Y66: 0 | Z66: 29.45145079 | AA66: 30.23757531 | AB66: 31.28852637 | AG66: 8.688210567 | AH66: 3.097679811 | AI66: 80.81642677 | AL66: 3.475645947
A67: Lease | B67: 10.61376373 | C67: 0 | D67: 0 | E67: 42.82814483 | F67: 51.39373131 | G67: 58.44066504 | H67: 4.001257813 | I67: 6.622314827 | J67: 7.384456146 | K67: 7.759402832 | L67: 15.51386621 | M67: 5.856668161 | N67: 13.59072096 | O67: 10.74813411 | P67: 13.63292755 | Q67: 44.37271908 | R67: 9.291437764 | S67: 27.02010053 | T67: 14.06020349 | U67: 18.51401195 | V67: 16.04036618 | W67: 6.207632002 | X67: 6.138805416 | Y67: 22.7570233 | Z67: 18.5526878 | AA67: 17.95229781 | AB67: 20.89380406 | AE67: 13.71166005 | AF67: 11.50868449 | AG67: -62.2488161 | AH67: 26.8399465 | AI67: 190.8064523 | AJ67: -13.36093859 | AK67: 270.7076826 | AL67: 16.38512398
A68: Patient Travel | B68: 55.69477579 | C68: 51.10027836 | D68: 60.08832054 | E68: 13.53698986 | F68: 15.56705387 | G68: 16.64592419 | H68: 18.16013099 | I68: 11.2735129 | J68: 12.98036117 | K68: 20.51867036 | L68: 16.88009872 | M68: 29.04168148 | N68: 1.219785518 | O68: 1.517268736 | P68: 0.7136557447 | Q68: 22.88157973 | R68: 15.83148838 | S68: 17.83032595 | T68: 141.0006996 | U68: 113.7721452 | V68: 150.818466 | W68: 0 | X68: 0 | Y68: 0 | Z68: 28.61298798 | AA68: 24.78616761 | AB68: 28.77417933 | AD68: 17.58902783 | AE68: 6.930472047 | AF68: 15.1403408 | AG68: 72.04686989 | AH68: -52.96444671 | AI68: 12.62570847 | AJ68: 32.56185482 | AL68: 16.08966655
A69: Depreciation right-of-use | B69: 0 | C69: 7.927698343 | D69: 15.23263446 | E69: 0 | F69: 0 | G69: 0.003927347899 | H69: 0 | I69: 4.893880686 | J69: 9.116912465 | K69: 0 | L69: 0 | M69: 0 | N69: 0 | O69: 35.65484543 | P69: 25.37079266 | Q69: 0 | R69: 0 | S69: 17.00528413 | T69: 0 | U69: 0 | V69: 0 | W69: 0 | X69: 0 | Y69: 0 | Z69: 0 | AA69: 6.698702476 | AB69: 8.830610175 | AD69: 92.14447625 | AF69: 86.29208699 | AH69: -28.84335256 | AL69: 31.82568127
A70: Total | B70: 5824.584949 | C70: 5757.604778 | D70: 6638.102676 | E70: 4919.137083 | F70: 5213.584451 | G70: 5572.93884 | H70: 4879.155884 | I70: 4636.229864 | J70: 4841.952742 | K70: 6287.415149 | L70: 5989.066456 | M70: 6552.871397 | N70: 5792.174797 | O70: 5710.279861 | P70: 6353.516369 | Q70: 6657.797595 | R70: 6700.100424 | S70: 7035.348205 | T70: 3821.330948 | U70: 4111.084625 | V70: 4454.961978 | W70: 6076.122821 | X70: 5902.352465 | Y70: 7127.854732 | Z70: 5334.882351 | AA70: 5314.990992 | AB70: 5808.539922 | AD70: 15.29278115 | AE70: 6.892655002 | AF70: 4.437288147 | AG70: 9.413903574 | AH70: 11.2645356 | AI70: 5.00362322 | AJ70: 8.364638166 | AK70: 20.76294621 | AL70: 9.285978663

Sheet 5 Acute Product
A1: Appendix 5. NHCDC 2019-20 to 2021-22 admitted acute summaries, by jurisdiction
A4: A: Same day and overnight, Indigenous and non-Indigenous, by jurisdiction | D4: Jurisdiction
D5: NSW | G5: Vic | J5: QLD | M5: SA | P5: WA | S5: Tas | V5: NT | Y5: ACT | AB5: National
D6: 2019-20 | E6: 2020-21 | F6: 2021-22 | G6: 2019-20 | H6: 2020-21 | I6: 2021-22 | J6: 2019-20 | K6: 2020-21 | L6: 2021-22 | M6: 2019-20 | N6: 2020-21 | O6: 2021-22 | P6: 2019-20 | Q6: 2020-21 | R6: 2021-22 | S6: 2019-20 | T6: 2020-21 | U6: 2021-22 | V6: 2019-20 | W6: 2020-21 | X6: 2021-22 | Y6: 2019-20 | Z6: 2020-21 | AA6: 2021-22 | AB6: 2019-20 | AC6: 2020-21 | AD6: 2021-22
A7: Indigenous | B7: Overnight | C7: Separations | D7: 41785 | E7: 42397 | F7: 43635 | G7: 10706 | H7: 10951 | I7: 11557 | J7: 47836 | K7: 50429 | L7: 54907 | M7: 8759 | N7: 9119 | O7: 8727 | P7: 22300 | Q7: 22682 | R7: 22101 | S7: 2785 | T7: 3009 | U7: 3203 | V7: 25835 | W7: 26747 | X7: 24882 | Y7: 1683 | Z7: 1840 | AA7: 1798 | AB7: 161689 | AC7: 167174 | AD7: 170810
C8: ALOS | D8: 4.163719038 | E8: 4.206854259 | F8: 4.872006417 | G8: 4.223706333 | H8: 4.267372843 | I8: 4.304750368 | J8: 3.613220169 | K8: 3.634218406 | L8: 3.992842443 | M8: 4.308140199 | N8: 4.469788354 | O8: 4.588976739 | P8: 3.818251121 | Q8: 3.893704259 | R8: 4.020451563 | S8: 3.93967684 | T8: 4.314390163 | U8: 4.217608492 | V8: 4.384052642 | W8: 4.251018806 | X8: 4.724941725 | Y8: 4.537730244 | Z8: 4.470652174 | AA8: 4.942157953 | AB8: 4.000241204 | AC8: 4.021839521 | AD8: 4.393419589
C9: Average cost | D9: 9782.728735 | E9: 10012.87012 | F9: 10774.46616 | G9: 11347.41178 | H9: 12060.51882 | I9: 12531.30687 | J9: 10463.8024 | K9: 10324.64098 | L9: 10169.38689 | M9: 12781.29784 | N9: 12860.32498 | O9: 14191.64097 | P9: 12409.9237 | Q9: 12639.81756 | R9: 14183.89288 | S9: 11657.72639 | T9: 12492.67213 | U9: 13676.63239 | V9: 12181.34805 | W9: 12206.48126 | X9: 13939.34618 | Y9: 12642.29167 | Z9: 13238.22114 | AA9: 15988.13142 | AB9: 11057.92429 | AC9: 11183.89758 | AD9: 11884.89587
B10: Same Day | C10: Separations | D10: 48366 | E10: 49476 | F10: 44455 | G10: 14317 | H10: 14751 | I10: 16502 | J10: 93463 | K10: 107454 | L10: 106691 | M10: 18375 | N10: 20070 | O10: 20708 | P10: 58364 | Q10: 69768 | R10: 72481 | S10: 3398 | T10: 3634 | U10: 4746 | V10: 96997 | W10: 97585 | X10: 93941 | Y10: 1823 | Z10: 2007 | AA10: 1957 | AB10: 335103 | AC10: 364745 | AD10: 361481
C11: Average cost | D11: 1188.329213 | E11: 1278.289253 | F11: 1407.42291 | G11: 1345.553387 | H11: 1536.003404 | I11: 1614.00741 | J11: 1099.311847 | K11: 1116.648077 | L11: 1136.995053 | M11: 956.1447365 | N11: 945.345015 | O11: 1036.657874 | P11: 1048.508424 | Q11: 1046.145111 | R11: 1095.099668 | S11: 1994.896389 | T11: 2409.388177 | U11: 2257.96274 | V11: 749.4084253 | W11: 899.2346432 | X11: 844.9011203 | Y11: 1608.756408 | Z11: 1581.712512 | AA11: 1514.297491 | AB11: 1016.553408 | AC11: 1089.89316 | AD11: 1118.731366
A12: Non-Indigenous | B12: Overnight | C12: Separations | D12: 765994 | E12: 755679 | F12: 699395 | G12: 622389 | H12: 607340 | I12: 594901 | J12: 532608 | K12: 559764 | L12: 567204 | M12: 167921 | N12: 169123 | O12: 166866 | P12: 191350 | Q12: 200275 | R12: 190528 | S12: 49774 | T12: 52413 | U12: 53402 | V12: 21928 | W12: 22692 | X12: 20561 | Y12: 47019 | Z12: 50331 | AA12: 46197 | AB12: 2398983 | AC12: 2417617 | AD12: 2339054
C13: ALOS | D13: 4.700743087 | E13: 4.74489565 | F13: 5.27037654 | G13: 4.182395576 | H13: 4.31995752 | I13: 4.459076384 | J13: 3.662907805 | K13: 3.655204693 | L13: 3.868123285 | M13: 4.325593583 | N13: 4.322096935 | O13: 4.577757003 | P13: 3.854983015 | Q13: 3.919435776 | R13: 4.182618828 | S13: 4.778679632 | T13: 4.874305993 | U13: 4.901670349 | V13: 3.910160525 | W13: 3.820597567 | X13: 4.167501581 | Y13: 4.54073885 | Z13: 4.359500109 | AA13: 4.716128753 | AB13: 4.23338473 | AC13: 4.273992117 | AD13: 4.556925578
C14: Average cost | D14: 10239.42626 | E14: 10306.4274 | F14: 11798.60459 | G14: 10382.05911 | H14: 11064.74738 | I14: 12173.1427 | J14: 10445.86244 | K14: 9908.042504 | L14: 10205.84173 | M14: 11552.58212 | N14: 11353.1702 | O14: 12622.02052 | P14: 12619.91098 | Q14: 12764.82615 | R14: 14414.0147 | S14: 13092.48019 | T14: 13165.73601 | U14: 14870.81098 | V14: 10816.9536 | W14: 11166.62015 | X14: 12987.0243 | Y14: 11644.22241 | Z14: 11404.64308 | AA14: 14568.19824 | AB14: 10696.06097 | AC14: 10774.49135 | AD14: 11914.69622
B15: Same Day | C15: Separations | D15: 739006 | E15: 776623 | F15: 698138 | G15: 1007092 | H15: 1009072 | I15: 1038107 | J15: 831821 | K15: 900245 | L15: 883521 | M15: 181233 | N15: 195401 | O15: 200577 | P15: 292886 | Q15: 317114 | R15: 303199 | S15: 66195 | T15: 72339 | U15: 87144 | V15: 34106 | W15: 32709 | X15: 29888 | Y15: 56231 | Z15: 64473 | AA15: 61689 | AB15: 3208570 | AC15: 3367976 | AD15: 3302263
C16: Average cost | D16: 1315.778138 | E16: 1376.625143 | F16: 1530.104556 | G16: 1489.709216 | H16: 1635.551952 | I16: 1744.069414 | J16: 1407.556165 | K16: 1464.059958 | L16: 1524.36079 | M16: 1535.073067 | N16: 1460.189836 | O16: 1666.636478 | P16: 1772.724859 | Q16: 1784.958104 | R16: 1974.519118 | S16: 1816.233205 | T16: 1972.951338 | U16: 2210.726671 | V16: 1728.136323 | W16: 2177.721643 | X16: 2036.30375 | Y16: 1262.511069 | Z16: 1378.941324 | AA16: 1348.325549 | AB16: 1462.0366 | AC16: 1541.500222 | AD16: 1664.074062
A17: Not Assigned | B17: Overnight | C17: Separations | D17: 1668 | E17: 1658 | F17: 2073 | G17: 7254 | H17: 7575 | I17: 8630 | J17: 1706 | K17: 2079 | L17: 3935 | M17: 5690 | N17: 5549 | O17: 6204 | S17: 783 | T17: 762 | U17: 856 | V17: 2 | W17: 22 | X17: 17 | Y17: 657 | Z17: 589 | AA17: 555 | AB17: 17760 | AC17: 18234 | AD17: 22270
C18: ALOS | D18: 5.027577938 | E18: 4.828709288 | F18: 5.865412446 | G18: 4.906258616 | H18: 4.705082508 | I18: 4.64368482 | J18: 5.613716295 | K18: 5.785954786 | L18: 5.516899619 | M18: 5.207908612 | N18: 4.828797982 | O18: 4.666666667 | S18: 4.77394636 | T18: 4.653543307 | U18: 4.83411215 | V18: 1 | W18: 1.545454545 | X18: 1.588235294 | Y18: 6.657534247 | Z18: 7.030560272 | AA18: 5.965765766 | AB18: 5.140765766 | AC18: 4.946363935 | AD18: 4.956039515
C19: Average cost | D19: 14426.90651 | E19: 13285.92512 | F19: 14734.87804 | G19: 14204.26269 | H19: 14184.5169 | I19: 14823.82088 | J19: 13782.34899 | K19: 13844.94146 | L19: 8893.449756 | M19: 14196.76311 | N19: 13369.95873 | O19: 14034.00671 | S19: 12742.48582 | T19: 12138.79925 | U19: 14756.39562 | V19: 2491.788898 | W19: 6758.045098 | X19: 7707.494601 | Y19: 18059.43816 | Z19: 24233.06202 | AA19: 24156.39088 | AB19: 14259.09189 | AC19: 14046.3436 | AD19: 13772.20376
B20: Same Day | C20: Separations | D20: 1374 | E20: 1682 | F20: 1902 | G20: 9922 | H20: 9618 | I20: 12754 | J20: 1782 | K20: 6411 | L20: 6298 | M20: 5528 | N20: 5574 | O20: 6783 | S20: 609 | T20: 635 | U20: 703 | V20: 7 | W20: 18 | X20: 25 | Y20: 521 | Z20: 575 | AA20: 299 | AB20: 19743 | AC20: 24513 | AD20: 28764
C21: Average cost | D21: 2033.293497 | E21: 1979.95375 | F21: 2491.618657 | G21: 1751.52285 | H21: 1892.079784 | I21: 1913.739583 | J21: 1369.960003 | K21: 1031.631268 | L21: 948.6041518 | M21: 1444.270242 | N21: 1569.549815 | O21: 1906.689509 | S21: 2324.824316 | T21: 2117.719498 | U21: 2447.709773 | V21: 873.9986566 | W21: 2818.367788 | X21: 2379.369573 | Y21: 2405.943057 | Z21: 4300.327408 | AA21: 1830.005272 | AB21: 1685.30527 | AC21: 1662.747728 | AD21: 1751.553087
A22: Total Indigenous | C22: Separations | D22: 90151 | E22: 91873 | F22: 88090 | G22: 25023 | H22: 25702 | I22: 28059 | J22: 141299 | K22: 157883 | L22: 161598 | M22: 27134 | N22: 29189 | O22: 29435 | P22: 80664 | Q22: 92450 | R22: 94582 | S22: 6183 | T22: 6643 | U22: 7949 | V22: 122832 | W22: 124332 | X22: 118823 | Y22: 3506 | Z22: 3847 | AA22: 3755 | AB22: 496792 | AC22: 531919 | AD22: 532291
C23: ALOS | D23: 2.466384178 | E23: 2.479879834 | F23: 2.91798161 | G23: 2.379251089 | H23: 2.392148471 | I23: 2.36116754 | J23: 1.884691328 | K23: 1.841388877 | L23: 2.016893773 | M23: 2.06788531 | N23: 2.084004248 | O23: 2.064073382 | P23: 1.779120797 | Q23: 1.709951325 | R23: 1.705789685 | S23: 2.324114508 | T23: 2.501279542 | U23: 2.296515285 | V23: 1.711760779 | W23: 1.699377473 | X23: 1.780017337 | Y23: 2.698231603 | Z23: 2.659994801 | AA23: 2.887616511 | AB23: 1.976477077 | AC23: 1.949717908 | AD23: 2.088934436
C24: Average cost | D24: 5171.834488 | E24: 5309.07115 | F24: 6047.347215 | G24: 5624.812307 | H24: 6020.244645 | I24: 6110.647698 | J24: 4269.608664 | K24: 4057.749235 | L24: 4205.978199 | M24: 4773.367264 | N24: 4667.730239 | O24: 4936.896958 | P24: 4189.433255 | Q24: 3890.576463 | R24: 4153.561307 | S24: 6347.311325 | T24: 6976.69232 | U24: 6859.044495 | V24: 3153.864594 | W24: 3331.713211 | X24: 3586.929027 | Y24: 6905.23098 | Z24: 7156.959685 | AA24: 8444.777761 | AB24: 4284.680142 | AC24: 4262.284246 | AD24: 4573.549422
A25: Total Non Indigenous | C25: Separations | D25: 1505000 | E25: 1532302 | F25: 1397533 | G25: 1629481 | H25: 1616412 | I25: 1633008 | J25: 1364429 | K25: 1460009 | L25: 1450725 | M25: 349154 | N25: 364524 | O25: 367443 | P25: 484236 | Q25: 517389 | R25: 493727 | S25: 115969 | T25: 124752 | U25: 140546 | V25: 56034 | W25: 55401 | X25: 50449 | Y25: 103250 | Z25: 114804 | AA25: 107886 | AB25: 5607553 | AC25: 5785593 | AD25: 5641317
C26: ALOS | D26: 2.883552824 | E26: 2.846854602 | F26: 3.137108748 | G26: 2.215533044 | H26: 2.247418975 | I26: 2.260133447 | J26: 2.03947219 | K26: 2.017999204 | L26: 2.121377932 | M26: 2.599400265 | N26: 2.541305922 | O26: 2.624758126 | P26: 2.128170975 | Q26: 2.130078142 | R26: 2.228164553 | S26: 2.621812726 | T26: 2.627741439 | U26: 2.482482604 | V26: 2.138844273 | W26: 2.155304056 | X26: 2.290947293 | Y26: 2.612416465 | Z26: 2.472831957 | AA26: 2.591253731 | AB26: 2.383283404 | AC26: 2.368098136 | AD26: 2.474804731
C27: Average cost | D27: 5857.612636 | E27: 5780.498557 | F27: 6668.972534 | G27: 4886.189911 | H27: 5178.415746 | I27: 5543.356452 | J27: 4935.67982 | K27: 4701.46291 | L27: 4918.643451 | M27: 6352.861601 | N27: 6050.094804 | O27: 6641.778509 | P27: 6059.083296 | Q27: 6035.131713 | R27: 6774.888987 | S27: 6656.00864 | T27: 6675.460501 | U27: 7021.065082 | V27: 5284.898024 | W27: 5859.533974 | X27: 6499.380622 | Y27: 5990.236838 | Z27: 5774.289876 | AA27: 7009.101358 | AB27: 5412.470504 | AC27: 5399.676265 | AD27: 5914.279956
A28: Total Not Assigned | C28: Separations | D28: 3042 | E28: 3340 | F28: 3975 | G28: 17176 | H28: 17193 | I28: 21384 | J28: 3488 | K28: 8490 | L28: 10233 | M28: 11218 | N28: 11123 | O28: 12987 | S28: 1392 | T28: 1397 | U28: 1559 | V28: 9 | W28: 40 | X28: 42 | Y28: 1178 | Z28: 1164 | AA28: 854 | AB28: 37503 | AC28: 42747 | AD28: 51034
C29: ALOS | D29: 3.208415516 | E29: 2.900598802 | F29: 3.537358491 | G29: 2.649743829 | H29: 2.632408538 | I29: 2.470491957 | J29: 3.256594037 | K29: 2.17196702 | L29: 2.736929542 | M29: 3.134337672 | N29: 2.910096197 | O29: 2.751597752 | S29: 3.122844828 | T29: 2.992841804 | U29: 3.105195638 | V29: 1 | W29: 1.3 | X29: 1.238095238 | Y29: 4.155348048 | Z29: 4.051546392 | AA29: 4.227166276 | AB29: 2.960909794 | AC29: 2.6833462 | AD29: 2.726319708
C30: Average cost | D30: 8829.002405 | E30: 7592.319181 | F30: 8876.593927 | G30: 7010.73191 | H30: 7307.958987 | I30: 7123.896785 | J30: 7440.92778 | K30: 4169.30758 | L30: 4003.716773 | M30: 7912.596539 | N30: 7456.493 | O30: 7700.011747 | S30: 8184.758913 | T30: 7583.763001 | U30: 9206.038886 | V30: 1233.507599 | W30: 4985.190309 | X30: 4535.991608 | Y30: 11136.28795 | Z30: 14386.56511 | AA30: 16339.54159 | AB30: 7639.774254 | AC30: 6945.047939 | AD30: 6997.073535
A31: Total Overnight | C31: Separations | D31: 809447 | E31: 799734 | F31: 745103 | G31: 640349 | H31: 625866 | I31: 615088 | J31: 582150 | K31: 612272 | L31: 626046 | M31: 182370 | N31: 183791 | O31: 181797 | P31: 213650 | Q31: 222957 | R31: 212629 | S31: 53342 | T31: 56184 | U31: 57461 | V31: 47765 | W31: 49461 | X31: 45460 | Y31: 49359 | Z31: 52760 | AA31: 48550 | AB31: 2578432 | AC31: 2603025 | AD31: 2532134
C32: ALOS | D32: 4.67369451 | E32: 4.716545751 | F32: 5.248702528 | G32: 4.191286314 | H32: 4.323698683 | I32: 4.458766876 | J32: 3.664541785 | K32: 3.660711253 | L32: 3.889425058 | M32: 4.352283819 | N32: 4.344723082 | O32: 4.581329725 | P32: 3.851149076 | Q32: 3.916818041 | R32: 4.165762902 | S32: 4.734805594 | T32: 4.841324932 | U32: 4.862532848 | V32: 4.166356119 | W32: 4.052344271 | X32: 4.471645403 | Y32: 4.568812172 | Z32: 4.393195603 | AA32: 4.738784758 | AB32: 4.22501466 | AC32: 4.262508043 | AD32: 4.549406153
C33: Average cost | D33: 10224.47977 | E33: 10297.04185 | F33: 11746.79781 | G33: 10441.49753 | H33: 11119.93003 | I33: 12217.06269 | J33: 10457.11422 | K33: 9955.723041 | L33: 10194.39546 | M33: 11694.09504 | N33: 11488.84009 | O33: 12745.55413 | P33: 12597.99328 | Q33: 12752.1087 | R33: 14390.09547 | S33: 13012.43379 | T33: 13115.76138 | U33: 14802.54044 | V33: 11554.57487 | W33: 11726.98441 | X33: 13506.29225 | Y33: 11763.64435 | Z33: 11611.80234 | AA33: 14730.39159 | AB33: 10743.29462 | AC33: 10823.70372 | AD33: 11929.02267
A34: Total Sameday | C34: Separations | D34: 788746 | E34: 827781 | F34: 744495 | G34: 1031331 | H34: 1033441 | I34: 1067363 | J34: 927066 | K34: 1014110 | L34: 996510 | M34: 205136 | N34: 221045 | O34: 228068 | P34: 351250 | Q34: 386882 | R34: 375680 | S34: 70202 | T34: 76608 | U34: 92593 | V34: 131110 | W34: 130312 | X34: 123854 | Y34: 58575 | Z34: 67055 | AA34: 63945 | AB34: 3563416 | AC34: 3757234 | AD34: 3692508
C35: Average cost | D35: 1309.212871 | E35: 1371.97359 | F35: 1525.235466 | G35: 1490.226834 | H35: 1636.518474 | I35: 1744.085988 | J35: 1376.407968 | K35: 1424.514844 | L35: 1479.248797 | M35: 1480.768771 | N35: 1416.201675 | O35: 1616.575456 | P35: 1652.388437 | Q35: 1651.72496 | R35: 1804.850248 | S35: 1829.293082 | T35: 1994.854263 | U35: 2214.947093 | V35: 1004.01422 | W35: 1220.40672 | X35: 1132.715834 | Y35: 1283.457433 | Z35: 1410.061431 | AA35: 1355.657308 | AB35: 1421.380454 | AC35: 1498.450128 | AD35: 1611.368753
A36: Total | C36: Separations | D36: 1598193 | E36: 1627515 | F36: 1489598 | G36: 1671680 | H36: 1659307 | I36: 1682451 | J36: 1509216 | K36: 1626382 | L36: 1622556 | M36: 387506 | N36: 404836 | O36: 409865 | P36: 564900 | Q36: 609839 | R36: 588309 | S36: 123544 | T36: 132792 | U36: 150054 | V36: 178875 | W36: 179773 | X36: 169314 | Y36: 107934 | Z36: 119815 | AA36: 112495 | AB36: 6141848 | AC36: 6360259 | AD36: 6224642
C37: ALOS | D37: 2.860639485 | E37: 2.82624922 | F37: 3.125218348 | G37: 2.222445085 | H37: 2.253649867 | I37: 2.264492101 | J37: 2.027793901 | K37: 2.001658282 | L37: 2.114853971 | M37: 2.577668475 | N37: 2.518466737 | O37: 2.588510851 | P37: 2.078328908 | Q37: 2.066388014 | R37: 2.144182734 | S37: 2.612559088 | T37: 2.625256039 | U37: 2.479100857 | V37: 1.845512229 | W37: 1.839792405 | X37: 1.932120203 | Y37: 2.632043656 | Z37: 2.494178525 | AA37: 2.613565047 | AB37: 2.353905372 | AC37: 2.335227072 | AD37: 2.443869704
C38: Average cost | D38: 5824.584949 | E38: 5757.604778 | F38: 6638.102676 | G38: 4919.075201 | H38: 5213.520716 | I38: 5572.906138 | J38: 4879.109466 | K38: 4636.195682 | L38: 4841.895577 | M38: 6287.415149 | N38: 5989.066456 | O38: 6552.871397 | P38: 5792.109583 | Q38: 5710.022737 | R38: 6353.460087 | S38: 6657.78408 | T38: 6700.08534 | U38: 7035.18315 | V38: 3821.330948 | W38: 4111.084625 | X38: 4454.961978 | Y38: 6076.122821 | Z38: 5902.352465 | AA38: 7127.854732 | AB38: 5334.847832 | AC38: 5314.940655 | AD38: 5808.506883
A43: B: Paediatric , by jurisdiction | D43: Jurisdiction
D44: NSW | G44: Vic | J44: QLD | M44: SA | P44: WA | S44: Tas | V44: NT | Y44: ACT | AB44: National
D45: 2019-20 | E45: 2020-21 | F45: 2021-22 | G45: 2019-20 | H45: 2020-21 | I45: 2021-22 | J45: 2019-20 | K45: 2020-21 | L45: 2021-22 | M45: 2019-20 | N45: 2020-21 | O45: 2021-22 | P45: 2019-20 | Q45: 2020-21 | R45: 2021-22 | S45: 2019-20 | T45: 2020-21 | U45: 2021-22 | V45: 2019-20 | W45: 2020-21 | X45: 2021-22 | Y45: 2019-20 | Z45: 2020-21 | AA45: 2021-22 | AB45: 2019-20 | AC45: 2020-21 | AD45: 2021-22
A46: Paediatric | C46: Separations | D46: 55960 | E46: 61497 | F46: 57933 | G46: 62522 | H46: 58972 | I46: 61931 | J46: 40266 | K46: 43145 | L46: 45432 | M46: 20447 | N46: 20771 | O46: 24619 | AB46: 179195 | AC46: 184385 | AD46: 189915
C47: ALOS | D47: 2.599017155 | E47: 2.381839765 | F47: 3.068717311 | G47: 2.309730975 | H47: 2.269432951 | I47: 2.222667162 | J47: 2.336984056 | K47: 2.210221347 | L47: 2.453248811 | M47: 1.968014868 | N47: 2.03711906 | O47: 1.906007555 | AB47: 2.367203326 | AC47: 2.266898067 | AD47: 2.494863492
C48: Average cost | D48: 7996.930016 | E48: 7533.65047 | F48: 8557.678596 | G48: 7623.312699 | H48: 7993.133593 | I48: 8076.408757 | J48: 10436.45021 | K48: 9559.568891 | L48: 10215.38187 | M48: 6047.142743 | N48: 6648.793417 | O48: 5965.147684 | AB48: 8192.265365 | AC48: 8054.980964 | AD48: 8461.22352
A49: Non-Paediatric | C49: Separations | D49: 1542233 | E49: 1566018 | F49: 1431665 | G49: 1609158 | H49: 1600335 | I49: 1620520 | J49: 1468950 | K49: 1583237 | L49: 1577124 | M49: 367059 | N49: 384065 | O49: 385246 | P49: 564900 | Q49: 609839 | R49: 588309 | S49: 123544 | T49: 132792 | U49: 150054 | V49: 178875 | W49: 179773 | X49: 169314 | Y49: 107934 | Z49: 119815 | AA49: 112495 | AB49: 5962653 | AC49: 6175874 | AD49: 6034727
C50: ALOS | D50: 2.870132464 | E50: 2.84370103 | F50: 3.127504689 | G50: 2.219053691 | H50: 2.253068264 | I50: 2.266090514 | J50: 2.019318561 | K50: 1.995974703 | L50: 2.105105876 | M50: 2.611629193 | N50: 2.544498978 | O50: 2.632125966 | P50: 2.078328908 | Q50: 2.066388014 | R50: 2.144182734 | S50: 2.612559088 | T50: 2.625256039 | U50: 2.479100857 | V50: 1.845512229 | W50: 1.839792405 | X50: 1.932120203 | Y50: 2.632043656 | Z50: 2.494178525 | AA50: 2.613565047 | AB50: 2.35350573 | AC50: 2.337267081 | AD50: 2.442264911
C51: Average cost | D51: 5745.761302 | E51: 5687.860061 | F51: 6560.42613 | G51: 4814.005135 | H51: 5111.09258 | I51: 5477.230416 | J51: 4726.774885 | K51: 4502.02819 | L51: 4687.102276 | M51: 6300.799509 | N51: 5953.387108 | O51: 6590.429659 | P51: 5792.109583 | Q51: 5710.022737 | R51: 6353.460087 | S51: 6657.78408 | T51: 6700.08534 | U51: 7035.18315 | V51: 3821.330948 | W51: 4111.084625 | X51: 4454.961978 | Y51: 6076.122821 | Z51: 5902.352465 | AA51: 7127.854732 | AB51: 5248.974155 | AC51: 5233.134852 | AD51: 5725.024949
A52: Total | C52: Separations | D52: 1598193 | E52: 1627515 | F52: 1489598 | G52: 1671680 | H52: 1659307 | I52: 1682451 | J52: 1509216 | K52: 1626382 | L52: 1622556 | M52: 387506 | N52: 404836 | O52: 409865 | P52: 564900 | Q52: 609839 | R52: 588309 | S52: 123544 | T52: 132792 | U52: 150054 | V52: 178875 | W52: 179773 | X52: 169314 | Y52: 107934 | Z52: 119815 | AA52: 112495 | AB52: 6141848 | AC52: 6360259 | AD52: 6224642
C53: ALOS | D53: 2.860639485 | E53: 2.82624922 | F53: 3.125218348 | G53: 2.222445085 | H53: 2.253649867 | I53: 2.264492101 | J53: 2.027793901 | K53: 2.001658282 | L53: 2.114853971 | M53: 2.577668475 | N53: 2.518466737 | O53: 2.588510851 | P53: 2.078328908 | Q53: 2.066388014 | R53: 2.144182734 | S53: 2.612559088 | T53: 2.625256039 | U53: 2.479100857 | V53: 1.845512229 | W53: 1.839792405 | X53: 1.932120203 | Y53: 2.632043656 | Z53: 2.494178525 | AA53: 2.613565047 | AB53: 2.353905372 | AC53: 2.335227072 | AD53: 2.443869704
C54: Average cost | D54: 5824.584949 | E54: 5757.604778 | F54: 6638.102676 | G54: 4919.075201 | H54: 5213.520716 | I54: 5572.906138 | J54: 4879.109466 | K54: 4636.195682 | L54: 4841.895577 | M54: 6287.415149 | N54: 5989.066456 | O54: 6552.871397 | P54: 5792.109583 | Q54: 5710.022737 | R54: 6353.460087 | S54: 6657.78408 | T54: 6700.08534 | U54: 7035.18315 | V54: 3821.330948 | W54: 4111.084625 | X54: 4454.961978 | Y54: 6076.122821 | Z54: 5902.352465 | AA54: 7127.854732 | AB54: 5334.847832 | AC54: 5314.940655 | AD54: 5808.506883
A59: C: Geographic location, by jurisdiction | D59: Jurisdiction
D60: NSW | G60: Vic | J60: QLD | M60: SA | P60: WA | S60: Tas | V60: NT | Y60: ACT | AB60: National
D61: 2019-20 | E61: 2020-21 | F61: 2021-22 | G61: 2019-20 | H61: 2020-21 | I61: 2021-22 | J61: 2019-20 | K61: 2020-21 | L61: 2021-22 | M61: 2019-20 | N61: 2020-21 | O61: 2021-22 | P61: 2019-20 | Q61: 2020-21 | R61: 2021-22 | S61: 2019-20 | T61: 2020-21 | U61: 2021-22 | V61: 2019-20 | W61: 2020-21 | X61: 2021-22 | Y61: 2019-20 | Z61: 2020-21 | AA61: 2021-22 | AB61: 2019-20 | AC61: 2020-21 | AD61: 2021-22
A62: Metro and inner regional | C62: Separations | D62: 1512254 | E62: 1537754 | F62: 1404797 | G62: 1582111 | H62: 1574914 | I62: 1594547 | J62: 1219435 | K62: 1308843 | L62: 1299383 | M62: 321909 | N62: 336275 | O62: 338240 | P62: 446880 | Q62: 476195 | R62: 455976 | S62: 72253 | T62: 77188 | U62: 87380 | V62: 1743 | W62: 1599 | X62: 1810 | Y62: 104913 | Z62: 116535 | AA62: 109119 | AB62: 5261498 | AC62: 5429303 | AD62: 5291252
C63: ALOS | D63: 2.874041662 | E63: 2.837332239 | F63: 3.145052274 | G63: 2.210525684 | H63: 2.241900828 | I63: 2.253413038 | J63: 2.016460902 | K63: 1.995189645 | L63: 2.108900147 | M63: 2.541041102 | N63: 2.481466062 | O63: 2.563100166 | P63: 2.069528732 | Q63: 2.065991873 | R63: 2.168897047 | S63: 2.47998007 | T63: 2.554866041 | U63: 2.444037537 | V63: 2.127940333 | W63: 2.293933709 | X63: 2.50718232 | Y63: 2.580195019 | Z63: 2.440588664 | AA63: 2.56653745 | AB63: 2.375545329 | AC63: 2.359210197 | AD63: 2.476855383
C64: Average cost | D64: 5794.71356 | E64: 5714.862831 | F64: 6609.210292 | G64: 4857.57328 | H64: 5127.332485 | I64: 5488.842492 | J64: 4873.759917 | K64: 4588.828363 | L64: 4858.789005 | M64: 6060.162916 | N64: 5768.684545 | O64: 6360.364811 | P64: 5759.762134 | Q64: 5711.412993 | R64: 6405.312828 | S64: 6219.129494 | T64: 6357.551074 | U64: 6785.054833 | V64: 5438.542906 | W64: 6315.328203 | X64: 8009.229501 | Y64: 5858.355106 | Z64: 5660.90933 | AA64: 6870.426379 | AB64: 5319.725208 | AC64: 5284.16749 | AD64: 5817.018642
A65: Outer regional, remote and very remote | C65: Separations | D65: 85939 | E65: 89761 | F65: 84801 | G65: 89569 | H65: 84393 | I65: 87904 | J65: 289781 | K65: 317539 | L65: 323173 | M65: 65597 | N65: 68561 | O65: 71625 | P65: 118020 | Q65: 133644 | R65: 132333 | S65: 51291 | T65: 55604 | U65: 62674 | V65: 177132 | W65: 178174 | X65: 167504 | Y65: 3021 | Z65: 3280 | AA65: 3376 | AB65: 880350 | AC65: 930956 | AD65: 933390
C66: ALOS | D66: 2.62480364 | E66: 2.636378828 | F66: 2.796653341 | G66: 2.432984626 | H66: 2.472906521 | I66: 2.465462323 | J66: 2.07548459 | K66: 2.028320931 | L66: 2.138792535 | M66: 2.757412687 | N66: 2.699946033 | O66: 2.708509599 | P66: 2.111650568 | Q66: 2.067799527 | R66: 2.059025338 | S66: 2.799321518 | T66: 2.722969571 | U66: 2.527986087 | V66: 1.842733103 | W66: 1.835716771 | X66: 1.925906247 | Y66: 4.432638199 | Z66: 4.398170732 | AA66: 4.133590047 | AB66: 2.224572045 | AC66: 2.19535832 | AD66: 2.25687869
C67: Average cost | D67: 6350.226707 | E67: 6489.844836 | F67: 7116.728332 | G67: 6005.420533 | H67: 6821.936726 | I67: 7097.790497 | J67: 4901.621041 | K67: 4831.435898 | L67: 4773.972101 | M67: 7402.626808 | N67: 7069.986032 | O67: 7461.959396 | P67: 5914.592449 | Q67: 5705.069032 | R67: 6174.792594 | S67: 7275.711392 | T67: 7175.582336 | U67: 7383.911686 | V67: 3805.417389 | W67: 4091.30292 | X67: 4416.555587 | Y67: 13638.73927 | Z67: 14480.57677 | AA67: 15448.44846 | AB67: 5425.22967 | AC67: 5494.408682 | AD67: 5760.254964
A68: Total | C68: Separations | D68: 1598193 | E68: 1627515 | F68: 1489598 | G68: 1671680 | H68: 1659307 | I68: 1682451 | J68: 1509216 | K68: 1626382 | L68: 1622556 | M68: 387506 | N68: 404836 | O68: 409865 | P68: 564900 | Q68: 609839 | R68: 588309 | S68: 123544 | T68: 132792 | U68: 150054 | V68: 178875 | W68: 179773 | X68: 169314 | Y68: 107934 | Z68: 119815 | AA68: 112495 | AB68: 6141848 | AC68: 6360259 | AD68: 6224642
C69: ALOS | D69: 2.860639485 | E69: 2.82624922 | F69: 3.125218348 | G69: 2.222445085 | H69: 2.253649867 | I69: 2.264492101 | J69: 2.027793901 | K69: 2.001658282 | L69: 2.114853971 | M69: 2.577668475 | N69: 2.518466737 | O69: 2.588510851 | P69: 2.078328908 | Q69: 2.066388014 | R69: 2.144182734 | S69: 2.612559088 | T69: 2.625256039 | U69: 2.479100857 | V69: 1.845512229 | W69: 1.839792405 | X69: 1.932120203 | Y69: 2.632043656 | Z69: 2.494178525 | AA69: 2.613565047 | AB69: 2.353905372 | AC69: 2.335227072 | AD69: 2.443869704
C70: Average cost | D70: 5824.584949 | E70: 5757.604778 | F70: 6638.102676 | G70: 4919.075201 | H70: 5213.520716 | I70: 5572.906138 | J70: 4879.109466 | K70: 4636.195682 | L70: 4841.895577 | M70: 6287.415149 | N70: 5989.066456 | O70: 6552.871397 | P70: 5792.109583 | Q70: 5710.022737 | R70: 6353.460087 | S70: 6657.78408 | T70: 6700.08534 | U70: 7035.18315 | V70: 3821.330948 | W70: 4111.084625 | X70: 4454.961978 | Y70: 6076.122821 | Z70: 5902.352465 | AA70: 7127.854732 | AB70: 5334.847832 | AC70: 5314.940655 | AD70: 5808.506883
A75: D: Urgency of admission, by jurisdiction | D75: Jurisdiction
D76: NSW | G76: Vic | J76: QLD | M76: SA | P76: WA | S76: Tas | V76: NT | Y76: ACT | AB76: National
D77: 2019-20 | E77: 2020-21 | F77: 2021-22 | G77: 2019-20 | H77: 2020-21 | I77: 2021-22 | J77: 2019-20 | K77: 2020-21 | L77: 2021-22 | M77: 2019-20 | N77: 2020-21 | O77: 2021-22 | P77: 2019-20 | Q77: 2020-21 | R77: 2021-22 | S77: 2019-20 | T77: 2020-21 | U77: 2021-22 | V77: 2019-20 | W77: 2020-21 | X77: 2021-22 | Y77: 2019-20 | Z77: 2020-21 | AA77: 2021-22 | AB77: 2019-20 | AC77: 2020-21 | AD77: 2021-22
A78: Emergency | C78: Separations | D78: 696864 | E78: 671747 | F78: 619445 | G78: 638734 | H78: 628924 | I78: 622618 | J78: 689114 | K78: 715998 | L78: 698029 | M78: 178663 | N78: 184372 | O78: 177968 | P78: 195693 | Q78: 198327 | R78: 188855 | S78: 45591 | T78: 47453 | U78: 50978 | V78: 60373 | W78: 59059 | X78: 50351 | Y78: 84435 | Z78: 93077 | AA78: 87266 | AB78: 2589467 | AC78: 2598957 | AD78: 2495510
